Workbook

Sheet Title
A1: --> На контрольную панель | C1: =IF(draft_model_flag,"ПРЕДВАРИТЕЛЬНАЯ ВЕРСИЯ МОДЕЛИ - ТОЛЬКО ДЛЯ ОБСУЖДЕНИЯ","") -> ПРЕДВАРИТЕЛЬНАЯ ВЕРСИЯ МОДЕЛИ - ТОЛЬКО ДЛЯ ОБСУЖДЕНИЯ

Sheet Description
B1: =IF(draft_model_flag,"ПРЕДВАРИТЕЛЬНАЯ ВЕРСИЯ МОДЕЛИ","") -> ПРЕДВАРИТЕЛЬНАЯ ВЕРСИЯ МОДЕЛИ
B2: Содержание и условные обозначения | H2: Проверка:
B3: =CONCATENATE("Проект """,project_name,"""",IF(draft_model_flag,", модель версии "&model_version,"")) -> Проект "Строительство школы на основе концессии", модель версии 45 | H3: =IF(check_total,val_OK,IF(check_signals_only,val_Signals,val_ERR)) -> Сигналы
B6: НАЗВАНИЕ ПРОЕКТА
B8: Название проекта (краткое) | C8: Строительство школы на основе концессии
B9: Название проекта (полное) | C9: Проект реализации концессионного соглашения по строительству и последующей эксплуатации средней общеобразовательной школы
B10: Версия модели | C10: 45
B11: Финальная модель | C11: Нет | D11: =(C11="Нет") -> TRUE
B12: Дата разработки модели | C12: 2019-02-12
B14: СОДЕРЖАНИЕ
B16: Описание листа | C16: Название листа | D16: Вид листа
B17: Титульный лист | C17: Title | D17: Информационный
B18: =INDIRECT(CONCATENATE("'",C18,"'!B2"),TRUE) -> Содержание и условные обозначения | C18: Description | D18: Информационный
B19: =INDIRECT(CONCATENATE("'",C19,"'!B2"),TRUE) -> Контрольная панель | C19: Dashboard | D19: Результирующий
B20: Прогнозная финансовая отчетность | C20: FinStat | D20: Результирующий
B21: Годовая прогнозная финансовая отчетность | C21: FinStat_Y | D21: Результирующий
B22: =INDIRECT(CONCATENATE("'",C22,"'!B2"),TRUE) -> Проверка модели | C22: Checklist | D22: Результирующий
B23: Общие предпосылки | C23: Inputs C | D23: Предпосылки
B24: Предпосылки, зависящие от времени | C24: Inputs T | D24: Предпосылки
B25: Предпосылки операционных затрат | C25: Input Opex | D25: Предпосылки
B26: Предпосылки капитальных затрат | C26: Input Capex | D26: Предпосылки
B27: Расчет капитальных затрат, основных средств и амортизации | C27: FixedAssets | D27: Расчетный
B28: Расчет долгового финансирования | C28: Debt | D28: Расчетный
B29: =INDIRECT(CONCATENATE("'",C29,"'!B2"),TRUE) -> Расчет акционерного финансирования | C29: Investor | D29: Расчетный
B30: Источники и направления денежных средств | C30: S&U | D30: Расчетный
B31: Операционная деятельность | C31: Oper | D31: Расчетный
B32: Расчет платежей концедента и субсидий | C32: Subs | D32: Расчетный
B33: Расчет денежных потоков проекта | C33: CashFlow | D33: Расчетный
B34: Расчет налогов | C34: Tax | D34: Расчетный
B35: Расчет бюджетной эффективности | C35: BgEf | D35: Расчетный
B36: Технический лист с данными для подстановки в списки | C36: Controls | D36: Технический
B37: Данные для графиков и диаграмм | C37: Charts | D37: Технический
B38: Лист предпосылок Sberbank CIB для базового сценария | C38: inputs Sber_base_11-2018 | D38: Технический
B39: Лист предпосылок Sberbank CIB для пессимистичного сценария | C39: inputs Sber_neg_11-2018 | D39: Технический
B40: Лист предпосылок Sberbank CIB для оптимистичного сценария | C40: inputs Sber_pos_11-2018 | D40: Технический
B41: Технический лист, используемый для добавления листов в модель | C41: Sheet_template | D41: Технический
B43: УСЛОВНЫЕ ОБОЗНАЧЕНИЯ
B45: УСЛОВНЫЕ ОБОЗНАЧЕНИЯ ЛИСТОВ МОДЕЛИ
B47: Информационные листы
B49: Результирующие листы
B51: Листы предпосылок
B53: Расчетные листы
B55: Технические листы
B58: УСЛОВНЫЕ ОБОЗНАЧЕНИЯ ЯЧЕЕК
B61: Входные данные
B63: Ячейка выбора сценария | C63: ХХХ
B65: Ячейка для ручного ввода данных | C65: ХХХ
B67: Вычисления и ссылки внутри модели
B69: Ячейка вычислений | C69: ХХХ
B71: Ячейка с данными с панели управления | C71: ХХХ
B73: Ячейка с данными с листов предпосылок | C73: ХХХ
B75: Ячейка со ссылкой на иной лист модели | C75: XXX
B77: Результирющие показатели
B79: Ячейка промежуточных итогов | C79: XXX
B81: Ячейка подитогов | C81: ХХХ
B83: Ячейка с ключевыми резльтирюущими данными | C83: ХХХ
B85: Сумма ячеек по строке | C85: XXX
B87: Ключевые результаты на панели управления | C87: XXX
B89: Технические ячейки
B91: Ячейка с технической константой / значением | C91: ХХХ
B93: Ячейка, заполняемая в результате работы макроса | C93: ХХХ
B95: Активный флаг | C95: 1
B97: Неактивный флаг | C97: 0
B99: Единицы изменения показателя | C99: XXX
B101: Названия разделов модели
B103: Заголовок 1го уровня | C103: XXX
B105: Заголовок 2го уровня | C105: XXX

Sheet Checklist
A1: <-- | B1: =IF(draft_model_flag,"ПРЕДВАРИТЕЛЬНАЯ ВЕРСИЯ МОДЕЛИ","") -> ПРЕДВАРИТЕЛЬНАЯ ВЕРСИЯ МОДЕЛИ
B2: Проверка модели | H2: Проверка:
B3: =model_full_name -> Проект "Строительство школы на основе концессии", модель версии 45 | H3: =IF(check_total,val_OK,IF(check_signals_only,val_Signals,val_ERR)) -> Сигналы
C6: ПАРАМЕТРЫ ПРОВЕРОК | J6: ИТОГОВЫЕ РЕЗУЛЬТАТЫ
C8: Точность проверки [VSN] | D8: 0.001 | J8: =Controls!K18 -> Целостность | K8: =(COUNTIFS($F$15:$F$32,FALSE,$D$15:$D$32,J8)=0) -> TRUE
C9: Точность округления отчетности, число разрядов | D9: 3 | J9: =Controls!K19 -> Сигналы | K9: =(COUNTIFS($F$15:$F$32,FALSE,$D$15:$D$32,J9)=0) -> FALSE
J10: =Controls!K20 -> Актуальность | K10: =(COUNTIFS($F$15:$F$32,FALSE,$D$15:$D$32,J10)=0) -> TRUE
C12: РЕЗУЛЬТАТЫ ПРОВЕРКИ | J12: Общая проверка | K12: =AND(F15:F32) -> FALSE
J13: Проверка - только сигналы | K13: =AND(K8,NOT(K9),K10) -> TRUE
D14: Тип | F14: Результат
C15: Источники = направления | D15: Целостность | F15: =check_SU -> TRUE | J15: Описание результатов проверки:
C16: График кап. затрат совпадает с фазами проекта | D16: Целостность | F16: =check_capex_vs_phase -> TRUE | J16: =IF(K8,"",J8)&" "&IF(K9,"",J9)&" "&IF(K10,"",J10) -> Сигналы
C17: Долг погашен в полном объеме | D17: Сигналы | F17: =check_full_debt_repay -> TRUE
C18: Расчет процентов по старшему долгу актуален | D18: Актуальность | F18: =check_interest -> TRUE | J18: | <-- вернуться на контрольную панель
C19: Расчет комиссии за открытие КЛ старшего долга актуален | D19: Актуальность | F19: =check_upfront_fee -> TRUE
C20: Расчет комиссии за обязательство старшего долга актуален | D20: Актуальность | F20: =check_comm_fee -> TRUE
C21: Расчет процентов по акц. займу актуален | D21: Актуальность | F21: =check_shloan_interest -> TRUE
C22: Расчеты затрат на страхование объекта актуальны | D22: Актуальность | F22: =check_insurance -> TRUE
C23: Акционерный займ погашен в полном объеме | D23: Сигналы | F23: =ShLoan_full_repay -> FALSE
C24: Корректность ручного графика погашения кредита | D24: Целостность | F24: =check_manual_loan_rep_profile -> TRUE
C25: Актуальность расчета DSRA | D25: Актуальность | F25: =check_DSRA -> TRUE
C26: Актуальность расчета НДС | D26: Актуальность | F26: =check_VAT -> TRUE
C27: Неотрицательный остаток ДС (лист cashflow) | D27: Сигналы | F27: =check_pos_CF -> TRUE
C28: Сходимость баланса | D28: Целостность | F28: =check_BS -> TRUE
C29: Выполнение ковенанта по DSCR | D29: Сигналы | F29: =check_DSCR -> TRUE
C30: Достижение целевой доходности инвестора | D30: Сигналы | F30: =check_eq_IRR -> FALSE
C31: Расчет налога на прибыль актуален | D31: Актуальность | F31: =check_IncomeTax -> TRUE
C32: Расчет дополнительной субсидии актуален | D32: Актуальность | F32: =check_dop_subs -> TRUE

Sheet Dashboard
A1: <-- | B1: =IF(draft_model_flag,"ПРЕДВАРИТЕЛЬНАЯ ВЕРСИЯ МОДЕЛИ","") -> ПРЕДВАРИТЕЛЬНАЯ ВЕРСИЯ МОДЕЛИ
B2: Контрольная панель | I2: Проверка:
B3: =model_full_name -> Проект "Строительство школы на основе концессии", модель версии 45 | I3: =IF(check_total,val_OK,IF(check_signals_only,val_Signals,val_ERR)) -> Сигналы
C6: КЛЮЧЕВЫЕ ПОКАЗАТЕЛИ ЭФФЕКТИВНОСТИ ПРОЕКТА | K6: ОСНОВНЫЕ РЕЗУЛЬТАТЫ ПРОЕКТА
K8: ИСТОЧНИКИ И НАПРАВЛЕНИЯ ДЕНЕЖНЫХ СРЕДСТВ НА ИНВЕСТИЦИОННОЙ СТАДИИ
C9: Показатели проекта в целом:
C10: NPV, тыс. руб. | E10: =NPV_project -> 14858.81371 | K10: Источники: | L10: тыс. руб. | M10: %
C11: Ставка дисконтирования, % | E11: =WACC_avg -> 0.09496494816 | K11: ='S&U'!B47 -> Привлечение старшего долга | L11: ='S&U'!L47 -> 507846.3165 | M11: =L11/$L$17 -> 0.556337034
C12: IRR, % | E12: =IRR_project -> 0.1039984166 | K12: ='S&U'!B44 -> Капитальный грант | L12: ='S&U'!L44 -> 187344.5762 | M12: 0.2052328086
C13: Срок окупаемости, лет | E13: =PBP_project -> 7 | K13: ='S&U'!B46 -> Собственные средства - акционерный займ | L13: ='S&U'!L46 -> 217648.4214 | M13: 0.2384301574
C14: Срок дискон. окупаемости, лет | E14: =DPBP_project -> 8 | K14: ='S&U'!B49 -> Доходность DSRA на инвестционной стадии | L14: ='S&U'!L49 -> 0 | M14: 0
K15: ='S&U'!B45 -> Собственные средства - вложение в УК | L15: ='S&U'!L45 -> 0 | M15: 0
C16: Показатели доходности инвестора: | K16: ='S&U'!B48 -> Возмещение НДС на инвестиционной стадии | L16: ='S&U'!L48 -> 0 | M16: 0
C17: NPV to equity, тыс. руб. | E17: =NPV_equity -> -20269.28391 | K17: ='S&U'!B50 -> Итого источники денежных средств: | L17: ='S&U'!L50 -> 912839.3141 | M17: 1
C18: Требуемая доходность собственного капитала, % | E18: =IRR_equity_req -> 0.1
C19: IRR to equity, % | E19: =IRR_equity -> 0.07305990411
C20: Срок окупаемости, лет | E20: =PBP_equity -> 7.5 | K20: Направления: | L20: тыс. руб. | M20: %
C21: Срок дискон. окупаемости, лет | E21: =DPBP_equity -> не достиг. | K21: ='S&U'!B31 -> Капитальные затраты инвестционной стадии | L21: ='S&U'!L31 -> 710079.3295 | M21: =L21/$L$28 -> 0.7778798727
K22: ='S&U'!B35 -> Формирование DSRA на инвестиционной стадии | L22: ='S&U'!L35 -> 13927.51133 | M22: 0.01525735265
C23: Показатель бюджетной эффективности проекта | E23: =BgEf!$D$103 -> 0.08798074604 | K23: ='S&U'!B33 -> Уплата НДС на инвестиционной стадии | L23: ='S&U'!L33 -> 141927.7093 | M23: 0.1554794005
E24: =IF(E23>0,"Концессия эффективна ","Концессия неэффективна ") -> Концессия эффективна | K24: ='S&U'!B32 -> Операционные затраты инвестиционной стадии | L24: ='S&U'!L32 -> 3525.642783 | M24: 0.003862281924
K25: ='S&U'!B34 -> Изменение оборотного капитала | L25: ='S&U'!L34 -> 0 | M25: 0
C26: Долговые ковенанты: | D26: min | E26: avg | K26: ='S&U'!B37 -> Проценты по старшему долгу на инвестиционной стадии | L26: ='S&U'!L37 -> 33762.75927 | M26: 0.03698653065
C27: ="DSCR "&IF(E88<>"","(ковенант - не менее "&$E$88&")") -> DSCR (ковенант - не менее 1.2) | D27: =DSCR_min -> 1.2 | E27: =DSCR_avg -> 1.262180391 | K27: ='S&U'!B38 -> Комиссии по старшему долгу на инвестиционной стадии | L27: ='S&U'!L38 -> 9616.361958 | M27: 0.01053456157
C28: LLCR | D28: =LLCR_min -> 1.239729669 | E28: =LLCR_avg -> 1.364426367 | K28: ='S&U'!B39 -> Итого направления денежных средств: | L28: ='S&U'!L39 -> 912839.3141 | M28: 1
C29: PLCR | D29: =PLCR_min -> 1.437885264 | E29: =PLCR_avg -> 2.623211695
C32: СВОД СУБСИДИЙ
C34: Субсидии: | K34: АРЕНДНЫЙ ПЛАТЕЖ И ПЛАТА КОНЦЕДЕНТА
C36: Субсидии по государственной программе: | K36: Бюджетные платежи | L36: тыс. руб. | M36: % | O36: =FinStat_Y!M21 -> 2019 | P36: =FinStat_Y!N21 -> 2020 | Q36: =FinStat_Y!O21 -> 2021 | R36: =FinStat_Y!P21 -> 2022 | S36: =FinStat_Y!Q21 -> 2023 | T36: =FinStat_Y!R21 -> 2024 | U36: =FinStat_Y!S21 -> 2025 | V36: =FinStat_Y!T21 -> 2026 | W36: =FinStat_Y!U21 -> 2027 | X36: =FinStat_Y!V21 -> 2028 | Y36: =FinStat_Y!W21 -> 2029
C37: Капитальный грант | E37: =Subs!L41 -> 187344.5762 | K37: =FinStat_Y!B111 -> Капитальный грант | L37: =FinStat_Y!L111 -> 187344.5762 | M37: =L37/$L$42 -> 0.1557398233 | O37: =FinStat_Y!M111 -> 0 | P37: =FinStat_Y!N111 -> 93672.288 | Q37: =FinStat_Y!O111 -> 93672.288 | R37: =FinStat_Y!P111 -> 0 | S37: =FinStat_Y!Q111 -> 0 | T37: =FinStat_Y!R111 -> 0 | U37: =FinStat_Y!S111 -> 0 | V37: =FinStat_Y!T111 -> 0 | W37: =FinStat_Y!U111 -> 0 | X37: =FinStat_Y!V111 -> 0 | Y37: =FinStat_Y!W111 -> 0
C38: Субсидия на проценты | E38: =Subs!L198 -> 193135.2268 | K38: =FinStat_Y!B85 -> Платежи концедента - субсидия на банковские проценты | L38: =FinStat_Y!L85 -> 193135.2268 | M38: 0.1605535996 | O38: =FinStat_Y!M85 -> 0 | P38: =FinStat_Y!N85 -> 0 | Q38: =FinStat_Y!O85 -> 0 | R38: =FinStat_Y!P85 -> 45409.771 | S38: =FinStat_Y!Q85 -> 53137.734 | T38: =FinStat_Y!R85 -> 42429.289 | U38: =FinStat_Y!S85 -> 30741.542 | V38: =FinStat_Y!T85 -> 17797.735 | W38: =FinStat_Y!U85 -> 3619.157 | X38: =FinStat_Y!V85 -> 0 | Y38: =FinStat_Y!W85 -> 0
C39: Инвестиционный платеж | E39: =Subs!L199 -> 716507.8475 | K39: =FinStat_Y!B86 -> Платежи концедента - субсидия на инвестиционные затраты | L39: =FinStat_Y!L86 -> 716507.8475 | M39: 0.5956340332 | O39: =FinStat_Y!M86 -> 0 | P39: =FinStat_Y!N86 -> 0 | Q39: =FinStat_Y!O86 -> 0 | R39: =FinStat_Y!P86 -> 88073.24 | S39: =FinStat_Y!Q86 -> 126180.83 | T39: =FinStat_Y!R86 -> 138805.3 | U39: =FinStat_Y!S86 -> 152643.251 | V39: =FinStat_Y!T86 -> 167864.998 | W39: =FinStat_Y!U86 -> 42940.228 | X39: =FinStat_Y!V86 -> 0 | Y39: =FinStat_Y!W86 -> 0
C40: Субсидия на операционные затраты (налог на прибыль) | E40: =Subs!L200 -> 83156.70576 | K40: =FinStat_Y!B87 -> Платежи концедента - субсидия на операционные затраты (на налог на прибыль) | L40: =FinStat_Y!L87 -> 83156.70576 | M40: 0.06912829248 | O40: =FinStat_Y!M87 -> 0 | P40: =FinStat_Y!N87 -> 0 | Q40: =FinStat_Y!O87 -> 0 | R40: =FinStat_Y!P87 -> 0 | S40: =FinStat_Y!Q87 -> 0 | T40: =FinStat_Y!R87 -> 0 | U40: =FinStat_Y!S87 -> 0 | V40: =FinStat_Y!T87 -> 0 | W40: =FinStat_Y!U87 -> 83156.706 | X40: =FinStat_Y!V87 -> 0 | Y40: =FinStat_Y!W87 -> 0
C41: Коэффициент удорожания | E41: =Subs!$L$140 -> 1.3888 | K41: =FinStat_Y!B88 -> Платежи концедента - субсидия на операционные затраты (на эксплуатационные расходы) | L41: =FinStat_Y!L88 -> 22788.66553 | M41: 0.01894425136 | O41: =FinStat_Y!M88 -> 0 | P41: =FinStat_Y!N88 -> 0 | Q41: =FinStat_Y!O88 -> 0 | R41: =FinStat_Y!P88 -> 3142.232 | S41: =FinStat_Y!Q88 -> 4334.782 | T41: =FinStat_Y!R88 -> 4506.733 | U41: =FinStat_Y!S88 -> 4685.563 | V41: =FinStat_Y!T88 -> 4871.545 | W41: =FinStat_Y!U88 -> 1247.811 | X41: =FinStat_Y!V88 -> 0 | Y41: =FinStat_Y!W88 -> 0
K42: Итого бюджетные платежи | L42: =SUM(L37:L41) -> 1202933.022 | M42: 1 | O42: =SUM(O37:O41) -> 0 | P42: 93672.288 | Q42: 93672.288 | R42: 136625.243 | S42: 183653.346 | T42: 185741.322 | U42: 188070.356 | V42: 190534.278 | W42: 130963.902 | X42: 0 | Y42: 0
C43: Субсидия от муниципалитета на эксплуатационные расходы:
C44: Субсидия на операционные затраты (эксплуатация) (без НДС) | E44: =Subs!L210 -> 22788.66553
C45: НДС сверх операционных платежей | E45: =(E44)*Const_VAT_rate -> 4557.733107
C50: КЛЮЧЕВЫЕ ПАРАМЕТРЫ УПРАВЛЕНИЯ ПРОЕКТОМ
C52: ПАРАМЕТРЫ И СХЕМА РЕАЛИЗАЦИИ ПРОЕКТА
C54: Регион | E54: Сургут, Когалым, Нефтеюганск, Пыть-Ях и прилегающие к ним территории
C55: Количество мест | E55: 550
C56: Наличие бассейна | E56: Да
C57: Строительство >3 доп. функциональных помещений | E57: Да
C58: Строительство в стесненных условиях | E58: Да
C59: Проживает более 100 тыс.чел.(Нефтеюганск, Нижневартовск, Ханты-Мансийск, Югорск) | E59: Да | F59: =MATCH(E59,Controls!$K$10:$K$11,0) -> 1
C60: Срок операционной фазы, лет | E60: =60/12 -> 5
C62: Параметры платы концедента и арендной платы
C63: Месяц первой выборки капитального гранта | E63: =IF('Inputs C'!F17<'Inputs C'!D46,'Inputs C'!D46,EDATE('Inputs C'!F17,month_in_period)) -> 2020-07-01
C64: Месяц первой выборки субсидии | E64: =IF('Inputs C'!F18<'Inputs C'!D48,'Inputs C'!D48,'Inputs C'!F18) -> 2022-04-01
C65: Месяц последней выборки субсидии | E65: =IF(DATE(YEAR(E63)+6,10,1)>'Inputs C'!H18,'Inputs C'!H18,DATE(YEAR(E63)+6,10,1)) -> 2026-10-01
C66: Месяц последней выборки капитального гранта | E66: ='Inputs C'!D47 -> 2022-04-01
C68: Коммерческая выручка
C69: Выручка, тыс. руб./мес., без НДС (в ценах базового периода) | E69: 0 | K69: ДЕНЕЖНЫЕ ПОТОКИ ПО КРЕДИТУ
L71: тыс. руб. | O71: =FinStat_Y!M21 -> 2019 | P71: =FinStat_Y!N21 -> 2020 | Q71: =FinStat_Y!O21 -> 2021 | R71: =FinStat_Y!P21 -> 2022 | S71: =FinStat_Y!Q21 -> 2023 | T71: =FinStat_Y!R21 -> 2024 | U71: =FinStat_Y!S21 -> 2025 | V71: =FinStat_Y!T21 -> 2026 | W71: =FinStat_Y!U21 -> 2027 | X71: =FinStat_Y!V21 -> 2028 | Y71: =FinStat_Y!W21 -> 2029
K72: Выборка кредита | L72: =Charts!L59 -> 507846.316 | O72: =Charts!M59 -> 0 | P72: =Charts!N59 -> 55318.14 | Q72: =Charts!O59 -> 380782.539 | R72: =Charts!P59 -> 71745.637 | S72: =Charts!Q59 -> 0 | T72: =Charts!R59 -> 0 | U72: =Charts!S59 -> 0 | V72: =Charts!T59 -> 0 | W72: =Charts!U59 -> 0 | X72: =Charts!V59 -> 0 | Y72: =Charts!W59 -> 0
C73: ПАРАМЕТРЫ ДОЛГОВОГО ФИНАНСИРОВАНИЯ | K73: Капитализация процентов по кредиту | L73: =Charts!L60 -> 0 | O73: =Charts!M60 -> 0 | P73: =Charts!N60 -> 0 | Q73: =Charts!O60 -> 0 | R73: =Charts!P60 -> 0 | S73: =Charts!Q60 -> 0 | T73: =Charts!R60 -> 0 | U73: =Charts!S60 -> 0 | V73: =Charts!T60 -> 0 | W73: =Charts!U60 -> 0 | X73: =Charts!V60 -> 0 | Y73: =Charts!W60 -> 0
K74: Погашение кредита | L74: =Charts!L61 -> -507846.316 | O74: =Charts!M61 -> 0 | P74: =Charts!N61 -> 0 | Q74: =Charts!O61 -> 0 | R74: =Charts!P61 -> -157577.49 | S74: =Charts!Q61 -> -98954.582 | T74: =Charts!R61 -> -110461.538 | U74: =Charts!S61 -> -123212.231 | V74: =Charts!T61 -> -17640.475 | W74: =Charts!U61 -> 0 | X74: =Charts!V61 -> 0 | Y74: =Charts!W61 -> 0
C75: Доля старшего долга в общем объеме фин. (кроме НДС) | E75: 0.7 | K75: Итого изменение суммы долга по кредиту | L75: =ROUND(SUM(L72:L74),0) -> 0 | O75: =SUM(O72:O74) -> 0 | P75: 55318.14 | Q75: 380782.539 | R75: -85831.853 | S75: -98954.582 | T75: -110461.538 | U75: -123212.231 | V75: -17640.475 | W75: 0 | X75: 0 | Y75: 0
C76: Доля кредитных средств при рефинансировании | E76: ='S&U'!D112 -> 0.7
C78: Сценарий погашения кредита | E78: Соблюдение DSCR
C79: Погашение кредита только из инвест. платежа при "Соблюдение DSCR" | E79: Да
C80: Процентная ставка | E80: 0.11
C81: Комиссия за открытие кредитной линии | E81: 0.01
C82: Комиссия за обязательство | E82: 0.01
C83: Лимит кредита утвержден? | E83: Нет | F83: =MATCH(E83,Controls!$K$10:$K$11,0) -> 2
C84: Срок кредита, мес. | E84: 69
C86: Начало периода доступности | E86: =EDATE('Inputs C'!F17,month_in_period) -> 2020-07-01
C88: Ковенант на минимальный DSCR | E88: 1.2
K100: ПОКАЗАТЕЛИ БЮЖЕТНОЙ ЭФФЕКТИВНОСТИ ПРОЕКТА
K102: Потоки бюджета | L102: Концессия | N102: Госконтракт
K103: Доходы бюджета | L103: =BgEf!L94 -> 293691.7986 | N103: =BgEf!L83 -> 99831.47957
K104: Расходы бюджета | L104: =BgEf!L95 -> -1290309.822 | N104: =BgEf!L84 -> -836003.9791
K105: Риски бюджета | L105: =BgEf!L96 -> 0 | N105: =BgEf!L85 -> -94130.8482
K106: Итого потоки с учетом рисков | L106: =SUM(L103:L105) -> -996618.0231 | N106: =SUM(N103:N105) -> -830303.3477
K107: Ставка дисконтирования | L107: ='Inputs C'!D85 -> 0.105 | N107: ='Inputs C'!D86 -> 0.105
K108: Дисконтированные потоки с учетом рисков | L108: =BgEf!L100 -> -604931.8395 | N108: =BgEf!L89 -> -663288.4524
K111: Показатель бюджетной эффективности концессии | L111: =BgEf!D103 -> 0.08798074604

Sheet FinStat
A1: <-- | B1: =IF(draft_model_flag,"ПРЕДВАРИТЕЛЬНАЯ ВЕРСИЯ МОДЕЛИ","") -> ПРЕДВАРИТЕЛЬНАЯ ВЕРСИЯ МОДЕЛИ
B2: Прогнозная финансовая отчетность | H2: Проверка:
B3: =model_full_name -> Проект "Строительство школы на основе концессии", модель версии 45 | H3: =IF(check_total,val_OK,IF(check_signals_only,val_Signals,val_ERR)) -> Сигналы
B6: ВРЕМЕННЫЕ ПРЕДПОСЫЛКИ
B8: Порядковый номер периода | H8: индекс | M8: ='Inputs T'!M8 -> 1 | N8: ='Inputs T'!N8 -> 2 | O8: ='Inputs T'!O8 -> 3 | P8: ='Inputs T'!P8 -> 4 | Q8: ='Inputs T'!Q8 -> 5 | R8: ='Inputs T'!R8 -> 6 | S8: ='Inputs T'!S8 -> 7 | T8: ='Inputs T'!T8 -> 8 | U8: ='Inputs T'!U8 -> 9 | V8: ='Inputs T'!V8 -> 10 | W8: ='Inputs T'!W8 -> 11 | X8: ='Inputs T'!X8 -> 12 | Y8: ='Inputs T'!Y8 -> 13 | Z8: ='Inputs T'!Z8 -> 14 | AA8: ='Inputs T'!AA8 -> 15 | AB8: ='Inputs T'!AB8 -> 16 | AC8: ='Inputs T'!AC8 -> 17 | AD8: ='Inputs T'!AD8 -> 18 | AE8: ='Inputs T'!AE8 -> 19 | AF8: ='Inputs T'!AF8 -> 20 | AG8: ='Inputs T'!AG8 -> 21 | AH8: ='Inputs T'!AH8 -> 22 | AI8: ='Inputs T'!AI8 -> 23 | AJ8: ='Inputs T'!AJ8 -> 24 | AK8: ='Inputs T'!AK8 -> 25 | AL8: ='Inputs T'!AL8 -> 26 | AM8: ='Inputs T'!AM8 -> 27 | AN8: ='Inputs T'!AN8 -> 28 | AO8: ='Inputs T'!AO8 -> 29 | AP8: ='Inputs T'!AP8 -> 30 | AQ8: ='Inputs T'!AQ8 -> 31 | AR8: ='Inputs T'!AR8 -> 32 | AS8: ='Inputs T'!AS8 -> 33 | AT8: ='Inputs T'!AT8 -> 34 | AU8: ='Inputs T'!AU8 -> 35 | AV8: ='Inputs T'!AV8 -> 36 | AW8: ='Inputs T'!AW8 -> 37 | AX8: ='Inputs T'!AX8 -> 38 | AY8: ='Inputs T'!AY8 -> 39 | AZ8: ='Inputs T'!AZ8 -> 40 | BA8: ='Inputs T'!BA8 -> 41 | BB8: ='Inputs T'!BB8 -> 42 | BC8: ='Inputs T'!BC8 -> 43 | BD8: ='Inputs T'!BD8 -> 44 | BE8: ='Inputs T'!BE8 -> 45 | BF8: ='Inputs T'!BF8 -> 46 | BG8: ='Inputs T'!BG8 -> 47 | BH8: ='Inputs T'!BH8 -> 48 | BI8: ='Inputs T'!BI8 -> 49 | BJ8: ='Inputs T'!BJ8 -> 50 | BK8: ='Inputs T'!BK8 -> 51 | BL8: ='Inputs T'!BL8 -> 52 | BM8: ='Inputs T'!BM8 -> 53 | BN8: ='Inputs T'!BN8 -> 54 | BO8: ='Inputs T'!BO8 -> 55 | BP8: ='Inputs T'!BP8 -> 56 | BQ8: ='Inputs T'!BQ8 -> 57 | BR8: ='Inputs T'!BR8 -> 58 | BS8: ='Inputs T'!BS8 -> 59 | BT8: ='Inputs T'!BT8 -> 60 | BU8: ='Inputs T'!BU8 -> 61 | BV8: ='Inputs T'!BV8 -> 62 | BW8: ='Inputs T'!BW8 -> 63 | BX8: ='Inputs T'!BX8 -> 64 | BY8: ='Inputs T'!BY8 -> 65 | BZ8: ='Inputs T'!BZ8 -> 66 | CA8: ='Inputs T'!CA8 -> 67 | CB8: ='Inputs T'!CB8 -> 68 | CC8: ='Inputs T'!CC8 -> 69 | CD8: ='Inputs T'!CD8 -> 70 | CE8: ='Inputs T'!CE8 -> 71 | CF8: ='Inputs T'!CF8 -> 72 | CG8: ='Inputs T'!CG8 -> 73 | CH8: ='Inputs T'!CH8 -> 74 | CI8: ='Inputs T'!CI8 -> 75 | CJ8: ='Inputs T'!CJ8 -> 76 | CK8: ='Inputs T'!CK8 -> 77 | CL8: ='Inputs T'!CL8 -> 78 | CM8: ='Inputs T'!CM8 -> 79 | CN8: ='Inputs T'!CN8 -> 80 | CO8: ='Inputs T'!CO8 -> 81 | CP8: ='Inputs T'!CP8 -> 82 | CQ8: ='Inputs T'!CQ8 -> 83 | CR8: ='Inputs T'!CR8 -> 84 | CS8: ='Inputs T'!CS8 -> 85 | CT8: ='Inputs T'!CT8 -> 86 | CU8: ='Inputs T'!CU8 -> 87 | CV8: ='Inputs T'!CV8 -> 88 | CW8: ='Inputs T'!CW8 -> 89 | CX8: ='Inputs T'!CX8 -> 90 | CY8: ='Inputs T'!CY8 -> 91 | CZ8: ='Inputs T'!CZ8 -> 92 | DA8: ='Inputs T'!DA8 -> 93 | DB8: ='Inputs T'!DB8 -> 94 | DC8: ='Inputs T'!DC8 -> 95 | DD8: ='Inputs T'!DD8 -> 96 | DE8: ='Inputs T'!DE8 -> 97 | DF8: ='Inputs T'!DF8 -> 98 | DG8: ='Inputs T'!DG8 -> 99 | DH8: ='Inputs T'!DH8 -> 100 | DI8: ='Inputs T'!DI8 -> 101 | DJ8: ='Inputs T'!DJ8 -> 102 | DK8: ='Inputs T'!DK8 -> 103 | DL8: ='Inputs T'!DL8 -> 104 | DM8: ='Inputs T'!DM8 -> 105 | DN8: ='Inputs T'!DN8 -> 106 | DO8: ='Inputs T'!DO8 -> 107 | DP8: ='Inputs T'!DP8 -> 108 | DQ8: ='Inputs T'!DQ8 -> 109 | DR8: ='Inputs T'!DR8 -> 110 | DS8: ='Inputs T'!DS8 -> 111 | DT8: ='Inputs T'!DT8 -> 112 | DU8: ='Inputs T'!DU8 -> 113 | DV8: ='Inputs T'!DV8 -> 114 | DW8: ='Inputs T'!DW8 -> 115 | DX8: ='Inputs T'!DX8 -> 116 | DY8: ='Inputs T'!DY8 -> 117 | DZ8: ='Inputs T'!DZ8 -> 118 | EA8: ='Inputs T'!EA8 -> 119 | EB8: ='Inputs T'!EB8 -> 120 | EC8: ='Inputs T'!EC8 -> 121 | ED8: ='Inputs T'!ED8 -> 122 | EE8: ='Inputs T'!EE8 -> 123 | EF8: ='Inputs T'!EF8 -> 124 | EG8: ='Inputs T'!EG8 -> 125 | EH8: ='Inputs T'!EH8 -> 126 | EI8: ='Inputs T'!EI8 -> 127 | EJ8: ='Inputs T'!EJ8 -> 128 | EK8: ='Inputs T'!EK8 -> 129 | EL8: ='Inputs T'!EL8 -> 130 | EM8: ='Inputs T'!EM8 -> 131 | EN8: ='Inputs T'!EN8 -> 132 | EO8: ='Inputs T'!EO8 -> 133 | EP8: ='Inputs T'!EP8 -> 134 | EQ8: ='Inputs T'!EQ8 -> 135 | ER8: ='Inputs T'!ER8 -> 136 | ES8: ='Inputs T'!ES8 -> 137 | ET8: ='Inputs T'!ET8 -> 138 | EU8: ='Inputs T'!EU8 -> 139 | EV8: ='Inputs T'!EV8 -> 140 | EW8: ='Inputs T'!EW8 -> 141 | EX8: ='Inputs T'!EX8 -> 142 | EY8: ='Inputs T'!EY8 -> 143 | EZ8: ='Inputs T'!EZ8 -> 144 | FA8: ='Inputs T'!FA8 -> 145 | FB8: ='Inputs T'!FB8 -> 146 | FC8: ='Inputs T'!FC8 -> 147 | FD8: ='Inputs T'!FD8 -> 148 | FE8: ='Inputs T'!FE8 -> 149 | FF8: ='Inputs T'!FF8 -> 150
B9: Начало периода | H9: дата | M9: ='Inputs T'!M9 -> 2019-04-01 | N9: ='Inputs T'!N9 -> 2019-07-01 | O9: ='Inputs T'!O9 -> 2019-10-01 | P9: ='Inputs T'!P9 -> 2020-01-01 | Q9: ='Inputs T'!Q9 -> 2020-04-01 | R9: ='Inputs T'!R9 -> 2020-07-01 | S9: ='Inputs T'!S9 -> 2020-10-01 | T9: ='Inputs T'!T9 -> 2021-01-01 | U9: ='Inputs T'!U9 -> 2021-04-01 | V9: ='Inputs T'!V9 -> 2021-07-01 | W9: ='Inputs T'!W9 -> 2021-10-01 | X9: ='Inputs T'!X9 -> 2022-01-01 | Y9: ='Inputs T'!Y9 -> 2022-04-01 | Z9: ='Inputs T'!Z9 -> 2022-07-01 | AA9: ='Inputs T'!AA9 -> 2022-10-01 | AB9: ='Inputs T'!AB9 -> 2023-01-01 | AC9: ='Inputs T'!AC9 -> 2023-04-01 | AD9: ='Inputs T'!AD9 -> 2023-07-01 | AE9: ='Inputs T'!AE9 -> 2023-10-01 | AF9: ='Inputs T'!AF9 -> 2024-01-01 | AG9: ='Inputs T'!AG9 -> 2024-04-01 | AH9: ='Inputs T'!AH9 -> 2024-07-01 | AI9: ='Inputs T'!AI9 -> 2024-10-01 | AJ9: ='Inputs T'!AJ9 -> 2025-01-01 | AK9: ='Inputs T'!AK9 -> 2025-04-01 | AL9: ='Inputs T'!AL9 -> 2025-07-01 | AM9: ='Inputs T'!AM9 -> 2025-10-01 | AN9: ='Inputs T'!AN9 -> 2026-01-01 | AO9: ='Inputs T'!AO9 -> 2026-04-01 | AP9: ='Inputs T'!AP9 -> 2026-07-01 | AQ9: ='Inputs T'!AQ9 -> 2026-10-01 | AR9: ='Inputs T'!AR9 -> 2027-01-01 | AS9: ='Inputs T'!AS9 -> 2027-04-01 | AT9: ='Inputs T'!AT9 -> 2027-07-01 | AU9: ='Inputs T'!AU9 -> 2027-10-01 | AV9: ='Inputs T'!AV9 -> 2028-01-01 | AW9: ='Inputs T'!AW9 -> 2028-04-01 | AX9: ='Inputs T'!AX9 -> 2028-07-01 | AY9: ='Inputs T'!AY9 -> 2028-10-01 | AZ9: ='Inputs T'!AZ9 -> 2029-01-01 | BA9: ='Inputs T'!BA9 -> 2029-04-01 | BB9: ='Inputs T'!BB9 -> 2029-07-01 | BC9: ='Inputs T'!BC9 -> 2029-10-01 | BD9: ='Inputs T'!BD9 -> 2030-01-01 | BE9: ='Inputs T'!BE9 -> 2030-04-01 | BF9: ='Inputs T'!BF9 -> 2030-07-01 | BG9: ='Inputs T'!BG9 -> 2030-10-01 | BH9: ='Inputs T'!BH9 -> 2031-01-01 | BI9: ='Inputs T'!BI9 -> 2031-04-01 | BJ9: ='Inputs T'!BJ9 -> 2031-07-01 | BK9: ='Inputs T'!BK9 -> 2031-10-01 | BL9: ='Inputs T'!BL9 -> 2032-01-01 | BM9: ='Inputs T'!BM9 -> 2032-04-01 | BN9: ='Inputs T'!BN9 -> 2032-07-01 | BO9: ='Inputs T'!BO9 -> 2032-10-01 | BP9: ='Inputs T'!BP9 -> 2033-01-01 | BQ9: ='Inputs T'!BQ9 -> 2033-04-01 | BR9: ='Inputs T'!BR9 -> 2033-07-01 | BS9: ='Inputs T'!BS9 -> 2033-10-01 | BT9: ='Inputs T'!BT9 -> 2034-01-01 | BU9: ='Inputs T'!BU9 -> 2034-04-01 | BV9: ='Inputs T'!BV9 -> 2034-07-01 | BW9: ='Inputs T'!BW9 -> 2034-10-01 | BX9: ='Inputs T'!BX9 -> 2035-01-01 | BY9: ='Inputs T'!BY9 -> 2035-04-01 | BZ9: ='Inputs T'!BZ9 -> 2035-07-01 | CA9: ='Inputs T'!CA9 -> 2035-10-01 | CB9: ='Inputs T'!CB9 -> 2036-01-01 | CC9: ='Inputs T'!CC9 -> 2036-04-01 | CD9: ='Inputs T'!CD9 -> 2036-07-01 | CE9: ='Inputs T'!CE9 -> 2036-10-01 | CF9: ='Inputs T'!CF9 -> 2037-01-01 | CG9: ='Inputs T'!CG9 -> 2037-04-01 | CH9: ='Inputs T'!CH9 -> 2037-07-01 | CI9: ='Inputs T'!CI9 -> 2037-10-01 | CJ9: ='Inputs T'!CJ9 -> 2038-01-01 | CK9: ='Inputs T'!CK9 -> 2038-04-01 | CL9: ='Inputs T'!CL9 -> 2038-07-01 | CM9: ='Inputs T'!CM9 -> 2038-10-01 | CN9: ='Inputs T'!CN9 -> 2039-01-01 | CO9: ='Inputs T'!CO9 -> 2039-04-01 | CP9: ='Inputs T'!CP9 -> 2039-07-01 | CQ9: ='Inputs T'!CQ9 -> 2039-10-01 | CR9: ='Inputs T'!CR9 -> 2040-01-01 | CS9: ='Inputs T'!CS9 -> 2040-04-01 | CT9: ='Inputs T'!CT9 -> 2040-07-01 | CU9: ='Inputs T'!CU9 -> 2040-10-01 | CV9: ='Inputs T'!CV9 -> 2041-01-01 | CW9: ='Inputs T'!CW9 -> 2041-04-01 | CX9: ='Inputs T'!CX9 -> 2041-07-01 | CY9: ='Inputs T'!CY9 -> 2041-10-01 | CZ9: ='Inputs T'!CZ9 -> 2042-01-01 | DA9: ='Inputs T'!DA9 -> 2042-04-01 | DB9: ='Inputs T'!DB9 -> 2042-07-01 | DC9: ='Inputs T'!DC9 -> 2042-10-01 | DD9: ='Inputs T'!DD9 -> 2043-01-01 | DE9: ='Inputs T'!DE9 -> 2043-04-01 | DF9: ='Inputs T'!DF9 -> 2043-07-01 | DG9: ='Inputs T'!DG9 -> 2043-10-01 | DH9: ='Inputs T'!DH9 -> 2044-01-01 | DI9: ='Inputs T'!DI9 -> 2044-04-01 | DJ9: ='Inputs T'!DJ9 -> 2044-07-01 | DK9: ='Inputs T'!DK9 -> 2044-10-01 | DL9: ='Inputs T'!DL9 -> 2045-01-01 | DM9: ='Inputs T'!DM9 -> 2045-04-01 | DN9: ='Inputs T'!DN9 -> 2045-07-01 | DO9: ='Inputs T'!DO9 -> 2045-10-01 | DP9: ='Inputs T'!DP9 -> 2046-01-01 | DQ9: ='Inputs T'!DQ9 -> 2046-04-01 | DR9: ='Inputs T'!DR9 -> 2046-07-01 | DS9: ='Inputs T'!DS9 -> 2046-10-01 | DT9: ='Inputs T'!DT9 -> 2047-01-01 | DU9: ='Inputs T'!DU9 -> 2047-04-01 | DV9: ='Inputs T'!DV9 -> 2047-07-01 | DW9: ='Inputs T'!DW9 -> 2047-10-01 | DX9: ='Inputs T'!DX9 -> 2048-01-01 | DY9: ='Inputs T'!DY9 -> 2048-04-01 | DZ9: ='Inputs T'!DZ9 -> 2048-07-01 | EA9: ='Inputs T'!EA9 -> 2048-10-01 | EB9: ='Inputs T'!EB9 -> 2049-01-01 | EC9: ='Inputs T'!EC9 -> 2049-04-01 | ED9: ='Inputs T'!ED9 -> 2049-07-01 | EE9: ='Inputs T'!EE9 -> 2049-10-01 | EF9: ='Inputs T'!EF9 -> 2050-01-01 | EG9: ='Inputs T'!EG9 -> 2050-04-01 | EH9: ='Inputs T'!EH9 -> 2050-07-01 | EI9: ='Inputs T'!EI9 -> 2050-10-01 | EJ9: ='Inputs T'!EJ9 -> 2051-01-01 | EK9: ='Inputs T'!EK9 -> 2051-04-01 | EL9: ='Inputs T'!EL9 -> 2051-07-01 | EM9: ='Inputs T'!EM9 -> 2051-10-01 | EN9: ='Inputs T'!EN9 -> 2052-01-01 | EO9: ='Inputs T'!EO9 -> 2052-04-01 | EP9: ='Inputs T'!EP9 -> 2052-07-01 | EQ9: ='Inputs T'!EQ9 -> 2052-10-01 | ER9: ='Inputs T'!ER9 -> 2053-01-01 | ES9: ='Inputs T'!ES9 -> 2053-04-01 | ET9: ='Inputs T'!ET9 -> 2053-07-01 | EU9: ='Inputs T'!EU9 -> 2053-10-01 | EV9: ='Inputs T'!EV9 -> 2054-01-01 | EW9: ='Inputs T'!EW9 -> 2054-04-01 | EX9: ='Inputs T'!EX9 -> 2054-07-01 | EY9: ='Inputs T'!EY9 -> 2054-10-01 | EZ9: ='Inputs T'!EZ9 -> 2055-01-01 | FA9: ='Inputs T'!FA9 -> 2055-04-01 | FB9: ='Inputs T'!FB9 -> 2055-07-01 | FC9: ='Inputs T'!FC9 -> 2055-10-01 | FD9: ='Inputs T'!FD9 -> 2056-01-01 | FE9: ='Inputs T'!FE9 -> 2056-04-01 | FF9: ='Inputs T'!FF9 -> 2056-07-01
B10: Конец периода | H10: дата | M10: ='Inputs T'!M10 -> 2019-06-30 | N10: ='Inputs T'!N10 -> 2019-09-30 | O10: ='Inputs T'!O10 -> 2019-12-31 | P10: ='Inputs T'!P10 -> 2020-03-31 | Q10: ='Inputs T'!Q10 -> 2020-06-30 | R10: ='Inputs T'!R10 -> 2020-09-30 | S10: ='Inputs T'!S10 -> 2020-12-31 | T10: ='Inputs T'!T10 -> 2021-03-31 | U10: ='Inputs T'!U10 -> 2021-06-30 | V10: ='Inputs T'!V10 -> 2021-09-30 | W10: ='Inputs T'!W10 -> 2021-12-31 | X10: ='Inputs T'!X10 -> 2022-03-31 | Y10: ='Inputs T'!Y10 -> 2022-06-30 | Z10: ='Inputs T'!Z10 -> 2022-09-30 | AA10: ='Inputs T'!AA10 -> 2022-12-31 | AB10: ='Inputs T'!AB10 -> 2023-03-31 | AC10: ='Inputs T'!AC10 -> 2023-06-30 | AD10: ='Inputs T'!AD10 -> 2023-09-30 | AE10: ='Inputs T'!AE10 -> 2023-12-31 | AF10: ='Inputs T'!AF10 -> 2024-03-31 | AG10: ='Inputs T'!AG10 -> 2024-06-30 | AH10: ='Inputs T'!AH10 -> 2024-09-30 | AI10: ='Inputs T'!AI10 -> 2024-12-31 | AJ10: ='Inputs T'!AJ10 -> 2025-03-31 | AK10: ='Inputs T'!AK10 -> 2025-06-30 | AL10: ='Inputs T'!AL10 -> 2025-09-30 | AM10: ='Inputs T'!AM10 -> 2025-12-31 | AN10: ='Inputs T'!AN10 -> 2026-03-31 | AO10: ='Inputs T'!AO10 -> 2026-06-30 | AP10: ='Inputs T'!AP10 -> 2026-09-30 | AQ10: ='Inputs T'!AQ10 -> 2026-12-31 | AR10: ='Inputs T'!AR10 -> 2027-03-31 | AS10: ='Inputs T'!AS10 -> 2027-06-30 | AT10: ='Inputs T'!AT10 -> 2027-09-30 | AU10: ='Inputs T'!AU10 -> 2027-12-31 | AV10: ='Inputs T'!AV10 -> 2028-03-31 | AW10: ='Inputs T'!AW10 -> 2028-06-30 | AX10: ='Inputs T'!AX10 -> 2028-09-30 | AY10: ='Inputs T'!AY10 -> 2028-12-31 | AZ10: ='Inputs T'!AZ10 -> 2029-03-31 | BA10: ='Inputs T'!BA10 -> 2029-06-30 | BB10: ='Inputs T'!BB10 -> 2029-09-30 | BC10: ='Inputs T'!BC10 -> 2029-12-31 | BD10: ='Inputs T'!BD10 -> 2030-03-31 | BE10: ='Inputs T'!BE10 -> 2030-06-30 | BF10: ='Inputs T'!BF10 -> 2030-09-30 | BG10: ='Inputs T'!BG10 -> 2030-12-31 | BH10: ='Inputs T'!BH10 -> 2031-03-31 | BI10: ='Inputs T'!BI10 -> 2031-06-30 | BJ10: ='Inputs T'!BJ10 -> 2031-09-30 | BK10: ='Inputs T'!BK10 -> 2031-12-31 | BL10: ='Inputs T'!BL10 -> 2032-03-31 | BM10: ='Inputs T'!BM10 -> 2032-06-30 | BN10: ='Inputs T'!BN10 -> 2032-09-30 | BO10: ='Inputs T'!BO10 -> 2032-12-31 | BP10: ='Inputs T'!BP10 -> 2033-03-31 | BQ10: ='Inputs T'!BQ10 -> 2033-06-30 | BR10: ='Inputs T'!BR10 -> 2033-09-30 | BS10: ='Inputs T'!BS10 -> 2033-12-31 | BT10: ='Inputs T'!BT10 -> 2034-03-31 | BU10: ='Inputs T'!BU10 -> 2034-06-30 | BV10: ='Inputs T'!BV10 -> 2034-09-30 | BW10: ='Inputs T'!BW10 -> 2034-12-31 | BX10: ='Inputs T'!BX10 -> 2035-03-31 | BY10: ='Inputs T'!BY10 -> 2035-06-30 | BZ10: ='Inputs T'!BZ10 -> 2035-09-30 | CA10: ='Inputs T'!CA10 -> 2035-12-31 | CB10: ='Inputs T'!CB10 -> 2036-03-31 | CC10: ='Inputs T'!CC10 -> 2036-06-30 | CD10: ='Inputs T'!CD10 -> 2036-09-30 | CE10: ='Inputs T'!CE10 -> 2036-12-31 | CF10: ='Inputs T'!CF10 -> 2037-03-31 | CG10: ='Inputs T'!CG10 -> 2037-06-30 | CH10: ='Inputs T'!CH10 -> 2037-09-30 | CI10: ='Inputs T'!CI10 -> 2037-12-31 | CJ10: ='Inputs T'!CJ10 -> 2038-03-31 | CK10: ='Inputs T'!CK10 -> 2038-06-30 | CL10: ='Inputs T'!CL10 -> 2038-09-30 | CM10: ='Inputs T'!CM10 -> 2038-12-31 | CN10: ='Inputs T'!CN10 -> 2039-03-31 | CO10: ='Inputs T'!CO10 -> 2039-06-30 | CP10: ='Inputs T'!CP10 -> 2039-09-30 | CQ10: ='Inputs T'!CQ10 -> 2039-12-31 | CR10: ='Inputs T'!CR10 -> 2040-03-31 | CS10: ='Inputs T'!CS10 -> 2040-06-30 | CT10: ='Inputs T'!CT10 -> 2040-09-30 | CU10: ='Inputs T'!CU10 -> 2040-12-31 | CV10: ='Inputs T'!CV10 -> 2041-03-31 | CW10: ='Inputs T'!CW10 -> 2041-06-30 | CX10: ='Inputs T'!CX10 -> 2041-09-30 | CY10: ='Inputs T'!CY10 -> 2041-12-31 | CZ10: ='Inputs T'!CZ10 -> 2042-03-31 | DA10: ='Inputs T'!DA10 -> 2042-06-30 | DB10: ='Inputs T'!DB10 -> 2042-09-30 | DC10: ='Inputs T'!DC10 -> 2042-12-31 | DD10: ='Inputs T'!DD10 -> 2043-03-31 | DE10: ='Inputs T'!DE10 -> 2043-06-30 | DF10: ='Inputs T'!DF10 -> 2043-09-30 | DG10: ='Inputs T'!DG10 -> 2043-12-31 | DH10: ='Inputs T'!DH10 -> 2044-03-31 | DI10: ='Inputs T'!DI10 -> 2044-06-30 | DJ10: ='Inputs T'!DJ10 -> 2044-09-30 | DK10: ='Inputs T'!DK10 -> 2044-12-31 | DL10: ='Inputs T'!DL10 -> 2045-03-31 | DM10: ='Inputs T'!DM10 -> 2045-06-30 | DN10: ='Inputs T'!DN10 -> 2045-09-30 | DO10: ='Inputs T'!DO10 -> 2045-12-31 | DP10: ='Inputs T'!DP10 -> 2046-03-31 | DQ10: ='Inputs T'!DQ10 -> 2046-06-30 | DR10: ='Inputs T'!DR10 -> 2046-09-30 | DS10: ='Inputs T'!DS10 -> 2046-12-31 | DT10: ='Inputs T'!DT10 -> 2047-03-31 | DU10: ='Inputs T'!DU10 -> 2047-06-30 | DV10: ='Inputs T'!DV10 -> 2047-09-30 | DW10: ='Inputs T'!DW10 -> 2047-12-31 | DX10: ='Inputs T'!DX10 -> 2048-03-31 | DY10: ='Inputs T'!DY10 -> 2048-06-30 | DZ10: ='Inputs T'!DZ10 -> 2048-09-30 | EA10: ='Inputs T'!EA10 -> 2048-12-31 | EB10: ='Inputs T'!EB10 -> 2049-03-31 | EC10: ='Inputs T'!EC10 -> 2049-06-30 | ED10: ='Inputs T'!ED10 -> 2049-09-30 | EE10: ='Inputs T'!EE10 -> 2049-12-31 | EF10: ='Inputs T'!EF10 -> 2050-03-31 | EG10: ='Inputs T'!EG10 -> 2050-06-30 | EH10: ='Inputs T'!EH10 -> 2050-09-30 | EI10: ='Inputs T'!EI10 -> 2050-12-31 | EJ10: ='Inputs T'!EJ10 -> 2051-03-31 | EK10: ='Inputs T'!EK10 -> 2051-06-30 | EL10: ='Inputs T'!EL10 -> 2051-09-30 | EM10: ='Inputs T'!EM10 -> 2051-12-31 | EN10: ='Inputs T'!EN10 -> 2052-03-31 | EO10: ='Inputs T'!EO10 -> 2052-06-30 | EP10: ='Inputs T'!EP10 -> 2052-09-30 | EQ10: ='Inputs T'!EQ10 -> 2052-12-31 | ER10: ='Inputs T'!ER10 -> 2053-03-31 | ES10: ='Inputs T'!ES10 -> 2053-06-30 | ET10: ='Inputs T'!ET10 -> 2053-09-30 | EU10: ='Inputs T'!EU10 -> 2053-12-31 | EV10: ='Inputs T'!EV10 -> 2054-03-31 | EW10: ='Inputs T'!EW10 -> 2054-06-30 | EX10: ='Inputs T'!EX10 -> 2054-09-30 | EY10: ='Inputs T'!EY10 -> 2054-12-31 | EZ10: ='Inputs T'!EZ10 -> 2055-03-31 | FA10: ='Inputs T'!FA10 -> 2055-06-30 | FB10: ='Inputs T'!FB10 -> 2055-09-30 | FC10: ='Inputs T'!FC10 -> 2055-12-31 | FD10: ='Inputs T'!FD10 -> 2056-03-31 | FE10: ='Inputs T'!FE10 -> 2056-06-30 | FF10: ='Inputs T'!FF10 -> 2056-09-30
B11: Код периода | H11: код | M11: =IF(periods_in_year=1,M21,CONCATENATE(M23,period_symbol," ",M21)) -> 2Q 2019 | N11: 3Q 2019 | O11: 4Q 2019 | P11: 1Q 2020 | Q11: 2Q 2020 | R11: 3Q 2020 | S11: 4Q 2020 | T11: 1Q 2021 | U11: 2Q 2021 | V11: 3Q 2021 | W11: 4Q 2021 | X11: 1Q 2022 | Y11: 2Q 2022 | Z11: 3Q 2022 | AA11: 4Q 2022 | AB11: 1Q 2023 | AC11: 2Q 2023 | AD11: 3Q 2023 | AE11: 4Q 2023 | AF11: 1Q 2024 | AG11: 2Q 2024 | AH11: 3Q 2024 | AI11: 4Q 2024 | AJ11: 1Q 2025 | AK11: 2Q 2025 | AL11: 3Q 2025 | AM11: 4Q 2025 | AN11: 1Q 2026 | AO11: 2Q 2026 | AP11: 3Q 2026 | AQ11: 4Q 2026 | AR11: 1Q 2027 | AS11: =IF(periods_in_year=1,AS21,CONCATENATE(AS23,period_symbol," ",AS21)) -> 2Q 2027 | AT11: 3Q 2027 | AU11: 4Q 2027 | AV11: 1Q 2028 | AW11: 2Q 2028 | AX11: 3Q 2028 | AY11: 4Q 2028 | AZ11: 1Q 2029 | BA11: 2Q 2029 | BB11: 3Q 2029 | BC11: 4Q 2029 | BD11: 1Q 2030 | BE11: 2Q 2030 | BF11: 3Q 2030 | BG11: 4Q 2030 | BH11: 1Q 2031 | BI11: 2Q 2031 | BJ11: 3Q 2031 | BK11: 4Q 2031 | BL11: 1Q 2032 | BM11: 2Q 2032 | BN11: 3Q 2032 | BO11: 4Q 2032 | BP11: 1Q 2033 | BQ11: 2Q 2033 | BR11: 3Q 2033 | BS11: 4Q 2033 | BT11: 1Q 2034 | BU11: 2Q 2034 | BV11: 3Q 2034 | BW11: 4Q 2034 | BX11: 1Q 2035 | BY11: =IF(periods_in_year=1,BY21,CONCATENATE(BY23,period_symbol," ",BY21)) -> 2Q 2035 | BZ11: 3Q 2035 | CA11: 4Q 2035 | CB11: 1Q 2036 | CC11: 2Q 2036 | CD11: 3Q 2036 | CE11: 4Q 2036 | CF11: 1Q 2037 | CG11: 2Q 2037 | CH11: 3Q 2037 | CI11: 4Q 2037 | CJ11: 1Q 2038 | CK11: 2Q 2038 | CL11: 3Q 2038 | CM11: 4Q 2038 | CN11: 1Q 2039 | CO11: 2Q 2039 | CP11: 3Q 2039 | CQ11: 4Q 2039 | CR11: 1Q 2040 | CS11: 2Q 2040 | CT11: 3Q 2040 | CU11: 4Q 2040 | CV11: 1Q 2041 | CW11: 2Q 2041 | CX11: 3Q 2041 | CY11: 4Q 2041 | CZ11: 1Q 2042 | DA11: 2Q 2042 | DB11: 3Q 2042 | DC11: 4Q 2042 | DD11: 1Q 2043 | DE11: =IF(periods_in_year=1,DE21,CONCATENATE(DE23,period_symbol," ",DE21)) -> 2Q 2043 | DF11: 3Q 2043 | DG11: 4Q 2043 | DH11: 1Q 2044 | DI11: 2Q 2044 | DJ11: 3Q 2044 | DK11: 4Q 2044 | DL11: 1Q 2045 | DM11: 2Q 2045 | DN11: 3Q 2045 | DO11: 4Q 2045 | DP11: 1Q 2046 | DQ11: 2Q 2046 | DR11: 3Q 2046 | DS11: 4Q 2046 | DT11: 1Q 2047 | DU11: 2Q 2047 | DV11: 3Q 2047 | DW11: 4Q 2047 | DX11: 1Q 2048 | DY11: 2Q 2048 | DZ11: 3Q 2048 | EA11: 4Q 2048 | EB11: 1Q 2049 | EC11: 2Q 2049 | ED11: 3Q 2049 | EE11: 4Q 2049 | EF11: 1Q 2050 | EG11: 2Q 2050 | EH11: 3Q 2050 | EI11: 4Q 2050 | EJ11: 1Q 2051 | EK11: =IF(periods_in_year=1,EK21,CONCATENATE(EK23,period_symbol," ",EK21)) -> 2Q 2051 | EL11: 3Q 2051 | EM11: 4Q 2051 | EN11: 1Q 2052 | EO11: 2Q 2052 | EP11: 3Q 2052 | EQ11: 4Q 2052 | ER11: 1Q 2053 | ES11: 2Q 2053 | ET11: 3Q 2053 | EU11: 4Q 2053 | EV11: 1Q 2054 | EW11: 2Q 2054 | EX11: 3Q 2054 | EY11: 4Q 2054 | EZ11: 1Q 2055 | FA11: 2Q 2055 | FB11: 3Q 2055 | FC11: 4Q 2055 | FD11: 1Q 2056 | FE11: 2Q 2056 | FF11: 3Q 2056
B12: Флаг фазы проектирования | H12: флаг | M12: ='Inputs T'!M12 -> 1 | N12: ='Inputs T'!N12 -> 1 | O12: ='Inputs T'!O12 -> 1 | P12: ='Inputs T'!P12 -> 1 | Q12: ='Inputs T'!Q12 -> 0 | R12: ='Inputs T'!R12 -> 0 | S12: ='Inputs T'!S12 -> 0 | T12: ='Inputs T'!T12 -> 0 | U12: ='Inputs T'!U12 -> 0 | V12: ='Inputs T'!V12 -> 0 | W12: ='Inputs T'!W12 -> 0 | X12: ='Inputs T'!X12 -> 0 | Y12: ='Inputs T'!Y12 -> 0 | Z12: ='Inputs T'!Z12 -> 0 | AA12: ='Inputs T'!AA12 -> 0 | AB12: ='Inputs T'!AB12 -> 0 | AC12: ='Inputs T'!AC12 -> 0 | AD12: ='Inputs T'!AD12 -> 0 | AE12: ='Inputs T'!AE12 -> 0 | AF12: ='Inputs T'!AF12 -> 0 | AG12: ='Inputs T'!AG12 -> 0 | AH12: ='Inputs T'!AH12 -> 0 | AI12: ='Inputs T'!AI12 -> 0 | AJ12: ='Inputs T'!AJ12 -> 0 | AK12: ='Inputs T'!AK12 -> 0 | AL12: ='Inputs T'!AL12 -> 0 | AM12: ='Inputs T'!AM12 -> 0 | AN12: ='Inputs T'!AN12 -> 0 | AO12: ='Inputs T'!AO12 -> 0 | AP12: ='Inputs T'!AP12 -> 0 | AQ12: ='Inputs T'!AQ12 -> 0 | AR12: ='Inputs T'!AR12 -> 0 | AS12: ='Inputs T'!AS12 -> 0 | AT12: ='Inputs T'!AT12 -> 0 | AU12: ='Inputs T'!AU12 -> 0 | AV12: ='Inputs T'!AV12 -> 0 | AW12: ='Inputs T'!AW12 -> 0 | AX12: ='Inputs T'!AX12 -> 0 | AY12: ='Inputs T'!AY12 -> 0 | AZ12: ='Inputs T'!AZ12 -> 0 | BA12: ='Inputs T'!BA12 -> 0 | BB12: ='Inputs T'!BB12 -> 0 | BC12: ='Inputs T'!BC12 -> 0 | BD12: ='Inputs T'!BD12 -> 0 | BE12: ='Inputs T'!BE12 -> 0 | BF12: ='Inputs T'!BF12 -> 0 | BG12: ='Inputs T'!BG12 -> 0 | BH12: ='Inputs T'!BH12 -> 0 | BI12: ='Inputs T'!BI12 -> 0 | BJ12: ='Inputs T'!BJ12 -> 0 | BK12: ='Inputs T'!BK12 -> 0 | BL12: ='Inputs T'!BL12 -> 0 | BM12: ='Inputs T'!BM12 -> 0 | BN12: ='Inputs T'!BN12 -> 0 | BO12: ='Inputs T'!BO12 -> 0 | BP12: ='Inputs T'!BP12 -> 0 | BQ12: ='Inputs T'!BQ12 -> 0 | BR12: ='Inputs T'!BR12 -> 0 | BS12: ='Inputs T'!BS12 -> 0 | BT12: ='Inputs T'!BT12 -> 0 | BU12: ='Inputs T'!BU12 -> 0 | BV12: ='Inputs T'!BV12 -> 0 | BW12: ='Inputs T'!BW12 -> 0 | BX12: ='Inputs T'!BX12 -> 0 | BY12: ='Inputs T'!BY12 -> 0 | BZ12: ='Inputs T'!BZ12 -> 0 | CA12: ='Inputs T'!CA12 -> 0 | CB12: ='Inputs T'!CB12 -> 0 | CC12: ='Inputs T'!CC12 -> 0 | CD12: ='Inputs T'!CD12 -> 0 | CE12: ='Inputs T'!CE12 -> 0 | CF12: ='Inputs T'!CF12 -> 0 | CG12: ='Inputs T'!CG12 -> 0 | CH12: ='Inputs T'!CH12 -> 0 | CI12: ='Inputs T'!CI12 -> 0 | CJ12: ='Inputs T'!CJ12 -> 0 | CK12: ='Inputs T'!CK12 -> 0 | CL12: ='Inputs T'!CL12 -> 0 | CM12: ='Inputs T'!CM12 -> 0 | CN12: ='Inputs T'!CN12 -> 0 | CO12: ='Inputs T'!CO12 -> 0 | CP12: ='Inputs T'!CP12 -> 0 | CQ12: ='Inputs T'!CQ12 -> 0 | CR12: ='Inputs T'!CR12 -> 0 | CS12: ='Inputs T'!CS12 -> 0 | CT12: ='Inputs T'!CT12 -> 0 | CU12: ='Inputs T'!CU12 -> 0 | CV12: ='Inputs T'!CV12 -> 0 | CW12: ='Inputs T'!CW12 -> 0 | CX12: ='Inputs T'!CX12 -> 0 | CY12: ='Inputs T'!CY12 -> 0 | CZ12: ='Inputs T'!CZ12 -> 0 | DA12: ='Inputs T'!DA12 -> 0 | DB12: ='Inputs T'!DB12 -> 0 | DC12: ='Inputs T'!DC12 -> 0 | DD12: ='Inputs T'!DD12 -> 0 | DE12: ='Inputs T'!DE12 -> 0 | DF12: ='Inputs T'!DF12 -> 0 | DG12: ='Inputs T'!DG12 -> 0 | DH12: ='Inputs T'!DH12 -> 0 | DI12: ='Inputs T'!DI12 -> 0 | DJ12: ='Inputs T'!DJ12 -> 0 | DK12: ='Inputs T'!DK12 -> 0 | DL12: ='Inputs T'!DL12 -> 0 | DM12: ='Inputs T'!DM12 -> 0 | DN12: ='Inputs T'!DN12 -> 0 | DO12: ='Inputs T'!DO12 -> 0 | DP12: ='Inputs T'!DP12 -> 0 | DQ12: ='Inputs T'!DQ12 -> 0 | DR12: ='Inputs T'!DR12 -> 0 | DS12: ='Inputs T'!DS12 -> 0 | DT12: ='Inputs T'!DT12 -> 0 | DU12: ='Inputs T'!DU12 -> 0 | DV12: ='Inputs T'!DV12 -> 0 | DW12: ='Inputs T'!DW12 -> 0 | DX12: ='Inputs T'!DX12 -> 0 | DY12: ='Inputs T'!DY12 -> 0 | DZ12: ='Inputs T'!DZ12 -> 0 | EA12: ='Inputs T'!EA12 -> 0 | EB12: ='Inputs T'!EB12 -> 0 | EC12: ='Inputs T'!EC12 -> 0 | ED12: ='Inputs T'!ED12 -> 0 | EE12: ='Inputs T'!EE12 -> 0 | EF12: ='Inputs T'!EF12 -> 0 | EG12: ='Inputs T'!EG12 -> 0 | EH12: ='Inputs T'!EH12 -> 0 | EI12: ='Inputs T'!EI12 -> 0 | EJ12: ='Inputs T'!EJ12 -> 0 | EK12: ='Inputs T'!EK12 -> 0 | EL12: ='Inputs T'!EL12 -> 0 | EM12: ='Inputs T'!EM12 -> 0 | EN12: ='Inputs T'!EN12 -> 0 | EO12: ='Inputs T'!EO12 -> 0 | EP12: ='Inputs T'!EP12 -> 0 | EQ12: ='Inputs T'!EQ12 -> 0 | ER12: ='Inputs T'!ER12 -> 0 | ES12: ='Inputs T'!ES12 -> 0 | ET12: ='Inputs T'!ET12 -> 0 | EU12: ='Inputs T'!EU12 -> 0 | EV12: ='Inputs T'!EV12 -> 0 | EW12: ='Inputs T'!EW12 -> 0 | EX12: ='Inputs T'!EX12 -> 0 | EY12: ='Inputs T'!EY12 -> 0 | EZ12: ='Inputs T'!EZ12 -> 0 | FA12: ='Inputs T'!FA12 -> 0 | FB12: ='Inputs T'!FB12 -> 0 | FC12: ='Inputs T'!FC12 -> 0 | FD12: ='Inputs T'!FD12 -> 0 | FE12: ='Inputs T'!FE12 -> 0 | FF12: ='Inputs T'!FF12 -> 0
B13: Флаг фазы строительства | H13: флаг | M13: ='Inputs T'!M13 -> 0 | N13: ='Inputs T'!N13 -> 0 | O13: ='Inputs T'!O13 -> 0 | P13: ='Inputs T'!P13 -> 0 | Q13: ='Inputs T'!Q13 -> 1 | R13: ='Inputs T'!R13 -> 1 | S13: ='Inputs T'!S13 -> 1 | T13: ='Inputs T'!T13 -> 1 | U13: ='Inputs T'!U13 -> 1 | V13: ='Inputs T'!V13 -> 1 | W13: ='Inputs T'!W13 -> 1 | X13: ='Inputs T'!X13 -> 1 | Y13: ='Inputs T'!Y13 -> 0 | Z13: ='Inputs T'!Z13 -> 0 | AA13: ='Inputs T'!AA13 -> 0 | AB13: ='Inputs T'!AB13 -> 0 | AC13: ='Inputs T'!AC13 -> 0 | AD13: ='Inputs T'!AD13 -> 0 | AE13: ='Inputs T'!AE13 -> 0 | AF13: ='Inputs T'!AF13 -> 0 | AG13: ='Inputs T'!AG13 -> 0 | AH13: ='Inputs T'!AH13 -> 0 | AI13: ='Inputs T'!AI13 -> 0 | AJ13: ='Inputs T'!AJ13 -> 0 | AK13: ='Inputs T'!AK13 -> 0 | AL13: ='Inputs T'!AL13 -> 0 | AM13: ='Inputs T'!AM13 -> 0 | AN13: ='Inputs T'!AN13 -> 0 | AO13: ='Inputs T'!AO13 -> 0 | AP13: ='Inputs T'!AP13 -> 0 | AQ13: ='Inputs T'!AQ13 -> 0 | AR13: ='Inputs T'!AR13 -> 0 | AS13: ='Inputs T'!AS13 -> 0 | AT13: ='Inputs T'!AT13 -> 0 | AU13: ='Inputs T'!AU13 -> 0 | AV13: ='Inputs T'!AV13 -> 0 | AW13: ='Inputs T'!AW13 -> 0 | AX13: ='Inputs T'!AX13 -> 0 | AY13: ='Inputs T'!AY13 -> 0 | AZ13: ='Inputs T'!AZ13 -> 0 | BA13: ='Inputs T'!BA13 -> 0 | BB13: ='Inputs T'!BB13 -> 0 | BC13: ='Inputs T'!BC13 -> 0 | BD13: ='Inputs T'!BD13 -> 0 | BE13: ='Inputs T'!BE13 -> 0 | BF13: ='Inputs T'!BF13 -> 0 | BG13: ='Inputs T'!BG13 -> 0 | BH13: ='Inputs T'!BH13 -> 0 | BI13: ='Inputs T'!BI13 -> 0 | BJ13: ='Inputs T'!BJ13 -> 0 | BK13: ='Inputs T'!BK13 -> 0 | BL13: ='Inputs T'!BL13 -> 0 | BM13: ='Inputs T'!BM13 -> 0 | BN13: ='Inputs T'!BN13 -> 0 | BO13: ='Inputs T'!BO13 -> 0 | BP13: ='Inputs T'!BP13 -> 0 | BQ13: ='Inputs T'!BQ13 -> 0 | BR13: ='Inputs T'!BR13 -> 0 | BS13: ='Inputs T'!BS13 -> 0 | BT13: ='Inputs T'!BT13 -> 0 | BU13: ='Inputs T'!BU13 -> 0 | BV13: ='Inputs T'!BV13 -> 0 | BW13: ='Inputs T'!BW13 -> 0 | BX13: ='Inputs T'!BX13 -> 0 | BY13: ='Inputs T'!BY13 -> 0 | BZ13: ='Inputs T'!BZ13 -> 0 | CA13: ='Inputs T'!CA13 -> 0 | CB13: ='Inputs T'!CB13 -> 0 | CC13: ='Inputs T'!CC13 -> 0 | CD13: ='Inputs T'!CD13 -> 0 | CE13: ='Inputs T'!CE13 -> 0 | CF13: ='Inputs T'!CF13 -> 0 | CG13: ='Inputs T'!CG13 -> 0 | CH13: ='Inputs T'!CH13 -> 0 | CI13: ='Inputs T'!CI13 -> 0 | CJ13: ='Inputs T'!CJ13 -> 0 | CK13: ='Inputs T'!CK13 -> 0 | CL13: ='Inputs T'!CL13 -> 0 | CM13: ='Inputs T'!CM13 -> 0 | CN13: ='Inputs T'!CN13 -> 0 | CO13: ='Inputs T'!CO13 -> 0 | CP13: ='Inputs T'!CP13 -> 0 | CQ13: ='Inputs T'!CQ13 -> 0 | CR13: ='Inputs T'!CR13 -> 0 | CS13: ='Inputs T'!CS13 -> 0 | CT13: ='Inputs T'!CT13 -> 0 | CU13: ='Inputs T'!CU13 -> 0 | CV13: ='Inputs T'!CV13 -> 0 | CW13: ='Inputs T'!CW13 -> 0 | CX13: ='Inputs T'!CX13 -> 0 | CY13: ='Inputs T'!CY13 -> 0 | CZ13: ='Inputs T'!CZ13 -> 0 | DA13: ='Inputs T'!DA13 -> 0 | DB13: ='Inputs T'!DB13 -> 0 | DC13: ='Inputs T'!DC13 -> 0 | DD13: ='Inputs T'!DD13 -> 0 | DE13: ='Inputs T'!DE13 -> 0 | DF13: ='Inputs T'!DF13 -> 0 | DG13: ='Inputs T'!DG13 -> 0 | DH13: ='Inputs T'!DH13 -> 0 | DI13: ='Inputs T'!DI13 -> 0 | DJ13: ='Inputs T'!DJ13 -> 0 | DK13: ='Inputs T'!DK13 -> 0 | DL13: ='Inputs T'!DL13 -> 0 | DM13: ='Inputs T'!DM13 -> 0 | DN13: ='Inputs T'!DN13 -> 0 | DO13: ='Inputs T'!DO13 -> 0 | DP13: ='Inputs T'!DP13 -> 0 | DQ13: ='Inputs T'!DQ13 -> 0 | DR13: ='Inputs T'!DR13 -> 0 | DS13: ='Inputs T'!DS13 -> 0 | DT13: ='Inputs T'!DT13 -> 0 | DU13: ='Inputs T'!DU13 -> 0 | DV13: ='Inputs T'!DV13 -> 0 | DW13: ='Inputs T'!DW13 -> 0 | DX13: ='Inputs T'!DX13 -> 0 | DY13: ='Inputs T'!DY13 -> 0 | DZ13: ='Inputs T'!DZ13 -> 0 | EA13: ='Inputs T'!EA13 -> 0 | EB13: ='Inputs T'!EB13 -> 0 | EC13: ='Inputs T'!EC13 -> 0 | ED13: ='Inputs T'!ED13 -> 0 | EE13: ='Inputs T'!EE13 -> 0 | EF13: ='Inputs T'!EF13 -> 0 | EG13: ='Inputs T'!EG13 -> 0 | EH13: ='Inputs T'!EH13 -> 0 | EI13: ='Inputs T'!EI13 -> 0 | EJ13: ='Inputs T'!EJ13 -> 0 | EK13: ='Inputs T'!EK13 -> 0 | EL13: ='Inputs T'!EL13 -> 0 | EM13: ='Inputs T'!EM13 -> 0 | EN13: ='Inputs T'!EN13 -> 0 | EO13: ='Inputs T'!EO13 -> 0 | EP13: ='Inputs T'!EP13 -> 0 | EQ13: ='Inputs T'!EQ13 -> 0 | ER13: ='Inputs T'!ER13 -> 0 | ES13: ='Inputs T'!ES13 -> 0 | ET13: ='Inputs T'!ET13 -> 0 | EU13: ='Inputs T'!EU13 -> 0 | EV13: ='Inputs T'!EV13 -> 0 | EW13: ='Inputs T'!EW13 -> 0 | EX13: ='Inputs T'!EX13 -> 0 | EY13: ='Inputs T'!EY13 -> 0 | EZ13: ='Inputs T'!EZ13 -> 0 | FA13: ='Inputs T'!FA13 -> 0 | FB13: ='Inputs T'!FB13 -> 0 | FC13: ='Inputs T'!FC13 -> 0 | FD13: ='Inputs T'!FD13 -> 0 | FE13: ='Inputs T'!FE13 -> 0 | FF13: ='Inputs T'!FF13 -> 0
B14: Флаг операционной фазы | H14: флаг | M14: ='Inputs T'!M14 -> 0 | N14: ='Inputs T'!N14 -> 0 | O14: ='Inputs T'!O14 -> 0 | P14: ='Inputs T'!P14 -> 0 | Q14: ='Inputs T'!Q14 -> 0 | R14: ='Inputs T'!R14 -> 0 | S14: ='Inputs T'!S14 -> 0 | T14: ='Inputs T'!T14 -> 0 | U14: ='Inputs T'!U14 -> 0 | V14: ='Inputs T'!V14 -> 0 | W14: ='Inputs T'!W14 -> 0 | X14: ='Inputs T'!X14 -> 0 | Y14: ='Inputs T'!Y14 -> 1 | Z14: ='Inputs T'!Z14 -> 1 | AA14: ='Inputs T'!AA14 -> 1 | AB14: ='Inputs T'!AB14 -> 1 | AC14: ='Inputs T'!AC14 -> 1 | AD14: ='Inputs T'!AD14 -> 1 | AE14: ='Inputs T'!AE14 -> 1 | AF14: ='Inputs T'!AF14 -> 1 | AG14: ='Inputs T'!AG14 -> 1 | AH14: ='Inputs T'!AH14 -> 1 | AI14: ='Inputs T'!AI14 -> 1 | AJ14: ='Inputs T'!AJ14 -> 1 | AK14: ='Inputs T'!AK14 -> 1 | AL14: ='Inputs T'!AL14 -> 1 | AM14: ='Inputs T'!AM14 -> 1 | AN14: ='Inputs T'!AN14 -> 1 | AO14: ='Inputs T'!AO14 -> 1 | AP14: ='Inputs T'!AP14 -> 1 | AQ14: ='Inputs T'!AQ14 -> 1 | AR14: ='Inputs T'!AR14 -> 1 | AS14: ='Inputs T'!AS14 -> 0 | AT14: ='Inputs T'!AT14 -> 0 | AU14: ='Inputs T'!AU14 -> 0 | AV14: ='Inputs T'!AV14 -> 0 | AW14: ='Inputs T'!AW14 -> 0 | AX14: ='Inputs T'!AX14 -> 0 | AY14: ='Inputs T'!AY14 -> 0 | AZ14: ='Inputs T'!AZ14 -> 0 | BA14: ='Inputs T'!BA14 -> 0 | BB14: ='Inputs T'!BB14 -> 0 | BC14: ='Inputs T'!BC14 -> 0 | BD14: ='Inputs T'!BD14 -> 0 | BE14: ='Inputs T'!BE14 -> 0 | BF14: ='Inputs T'!BF14 -> 0 | BG14: ='Inputs T'!BG14 -> 0 | BH14: ='Inputs T'!BH14 -> 0 | BI14: ='Inputs T'!BI14 -> 0 | BJ14: ='Inputs T'!BJ14 -> 0 | BK14: ='Inputs T'!BK14 -> 0 | BL14: ='Inputs T'!BL14 -> 0 | BM14: ='Inputs T'!BM14 -> 0 | BN14: ='Inputs T'!BN14 -> 0 | BO14: ='Inputs T'!BO14 -> 0 | BP14: ='Inputs T'!BP14 -> 0 | BQ14: ='Inputs T'!BQ14 -> 0 | BR14: ='Inputs T'!BR14 -> 0 | BS14: ='Inputs T'!BS14 -> 0 | BT14: ='Inputs T'!BT14 -> 0 | BU14: ='Inputs T'!BU14 -> 0 | BV14: ='Inputs T'!BV14 -> 0 | BW14: ='Inputs T'!BW14 -> 0 | BX14: ='Inputs T'!BX14 -> 0 | BY14: ='Inputs T'!BY14 -> 0 | BZ14: ='Inputs T'!BZ14 -> 0 | CA14: ='Inputs T'!CA14 -> 0 | CB14: ='Inputs T'!CB14 -> 0 | CC14: ='Inputs T'!CC14 -> 0 | CD14: ='Inputs T'!CD14 -> 0 | CE14: ='Inputs T'!CE14 -> 0 | CF14: ='Inputs T'!CF14 -> 0 | CG14: ='Inputs T'!CG14 -> 0 | CH14: ='Inputs T'!CH14 -> 0 | CI14: ='Inputs T'!CI14 -> 0 | CJ14: ='Inputs T'!CJ14 -> 0 | CK14: ='Inputs T'!CK14 -> 0 | CL14: ='Inputs T'!CL14 -> 0 | CM14: ='Inputs T'!CM14 -> 0 | CN14: ='Inputs T'!CN14 -> 0 | CO14: ='Inputs T'!CO14 -> 0 | CP14: ='Inputs T'!CP14 -> 0 | CQ14: ='Inputs T'!CQ14 -> 0 | CR14: ='Inputs T'!CR14 -> 0 | CS14: ='Inputs T'!CS14 -> 0 | CT14: ='Inputs T'!CT14 -> 0 | CU14: ='Inputs T'!CU14 -> 0 | CV14: ='Inputs T'!CV14 -> 0 | CW14: ='Inputs T'!CW14 -> 0 | CX14: ='Inputs T'!CX14 -> 0 | CY14: ='Inputs T'!CY14 -> 0 | CZ14: ='Inputs T'!CZ14 -> 0 | DA14: ='Inputs T'!DA14 -> 0 | DB14: ='Inputs T'!DB14 -> 0 | DC14: ='Inputs T'!DC14 -> 0 | DD14: ='Inputs T'!DD14 -> 0 | DE14: ='Inputs T'!DE14 -> 0 | DF14: ='Inputs T'!DF14 -> 0 | DG14: ='Inputs T'!DG14 -> 0 | DH14: ='Inputs T'!DH14 -> 0 | DI14: ='Inputs T'!DI14 -> 0 | DJ14: ='Inputs T'!DJ14 -> 0 | DK14: ='Inputs T'!DK14 -> 0 | DL14: ='Inputs T'!DL14 -> 0 | DM14: ='Inputs T'!DM14 -> 0 | DN14: ='Inputs T'!DN14 -> 0 | DO14: ='Inputs T'!DO14 -> 0 | DP14: ='Inputs T'!DP14 -> 0 | DQ14: ='Inputs T'!DQ14 -> 0 | DR14: ='Inputs T'!DR14 -> 0 | DS14: ='Inputs T'!DS14 -> 0 | DT14: ='Inputs T'!DT14 -> 0 | DU14: ='Inputs T'!DU14 -> 0 | DV14: ='Inputs T'!DV14 -> 0 | DW14: ='Inputs T'!DW14 -> 0 | DX14: ='Inputs T'!DX14 -> 0 | DY14: ='Inputs T'!DY14 -> 0 | DZ14: ='Inputs T'!DZ14 -> 0 | EA14: ='Inputs T'!EA14 -> 0 | EB14: ='Inputs T'!EB14 -> 0 | EC14: ='Inputs T'!EC14 -> 0 | ED14: ='Inputs T'!ED14 -> 0 | EE14: ='Inputs T'!EE14 -> 0 | EF14: ='Inputs T'!EF14 -> 0 | EG14: ='Inputs T'!EG14 -> 0 | EH14: ='Inputs T'!EH14 -> 0 | EI14: ='Inputs T'!EI14 -> 0 | EJ14: ='Inputs T'!EJ14 -> 0 | EK14: ='Inputs T'!EK14 -> 0 | EL14: ='Inputs T'!EL14 -> 0 | EM14: ='Inputs T'!EM14 -> 0 | EN14: ='Inputs T'!EN14 -> 0 | EO14: ='Inputs T'!EO14 -> 0 | EP14: ='Inputs T'!EP14 -> 0 | EQ14: ='Inputs T'!EQ14 -> 0 | ER14: ='Inputs T'!ER14 -> 0 | ES14: ='Inputs T'!ES14 -> 0 | ET14: ='Inputs T'!ET14 -> 0 | EU14: ='Inputs T'!EU14 -> 0 | EV14: ='Inputs T'!EV14 -> 0 | EW14: ='Inputs T'!EW14 -> 0 | EX14: ='Inputs T'!EX14 -> 0 | EY14: ='Inputs T'!EY14 -> 0 | EZ14: ='Inputs T'!EZ14 -> 0 | FA14: ='Inputs T'!FA14 -> 0 | FB14: ='Inputs T'!FB14 -> 0 | FC14: ='Inputs T'!FC14 -> 0 | FD14: ='Inputs T'!FD14 -> 0 | FE14: ='Inputs T'!FE14 -> 0 | FF14: ='Inputs T'!FF14 -> 0
B15: Флаг постпроектной фазы | H15: флаг | M15: ='Inputs T'!M15 -> 0 | N15: ='Inputs T'!N15 -> 0 | O15: ='Inputs T'!O15 -> 0 | P15: ='Inputs T'!P15 -> 0 | Q15: ='Inputs T'!Q15 -> 0 | R15: ='Inputs T'!R15 -> 0 | S15: ='Inputs T'!S15 -> 0 | T15: ='Inputs T'!T15 -> 0 | U15: ='Inputs T'!U15 -> 0 | V15: ='Inputs T'!V15 -> 0 | W15: ='Inputs T'!W15 -> 0 | X15: ='Inputs T'!X15 -> 0 | Y15: ='Inputs T'!Y15 -> 0 | Z15: ='Inputs T'!Z15 -> 0 | AA15: ='Inputs T'!AA15 -> 0 | AB15: ='Inputs T'!AB15 -> 0 | AC15: ='Inputs T'!AC15 -> 0 | AD15: ='Inputs T'!AD15 -> 0 | AE15: ='Inputs T'!AE15 -> 0 | AF15: ='Inputs T'!AF15 -> 0 | AG15: ='Inputs T'!AG15 -> 0 | AH15: ='Inputs T'!AH15 -> 0 | AI15: ='Inputs T'!AI15 -> 0 | AJ15: ='Inputs T'!AJ15 -> 0 | AK15: ='Inputs T'!AK15 -> 0 | AL15: ='Inputs T'!AL15 -> 0 | AM15: ='Inputs T'!AM15 -> 0 | AN15: ='Inputs T'!AN15 -> 0 | AO15: ='Inputs T'!AO15 -> 0 | AP15: ='Inputs T'!AP15 -> 0 | AQ15: ='Inputs T'!AQ15 -> 0 | AR15: ='Inputs T'!AR15 -> 0 | AS15: ='Inputs T'!AS15 -> 1 | AT15: ='Inputs T'!AT15 -> 1 | AU15: ='Inputs T'!AU15 -> 1 | AV15: ='Inputs T'!AV15 -> 1 | AW15: ='Inputs T'!AW15 -> 1 | AX15: ='Inputs T'!AX15 -> 1 | AY15: ='Inputs T'!AY15 -> 1 | AZ15: ='Inputs T'!AZ15 -> 1 | BA15: ='Inputs T'!BA15 -> 1 | BB15: ='Inputs T'!BB15 -> 1 | BC15: ='Inputs T'!BC15 -> 1 | BD15: ='Inputs T'!BD15 -> 1 | BE15: ='Inputs T'!BE15 -> 1 | BF15: ='Inputs T'!BF15 -> 1 | BG15: ='Inputs T'!BG15 -> 1 | BH15: ='Inputs T'!BH15 -> 1 | BI15: ='Inputs T'!BI15 -> 1 | BJ15: ='Inputs T'!BJ15 -> 1 | BK15: ='Inputs T'!BK15 -> 1 | BL15: ='Inputs T'!BL15 -> 1 | BM15: ='Inputs T'!BM15 -> 1 | BN15: ='Inputs T'!BN15 -> 1 | BO15: ='Inputs T'!BO15 -> 1 | BP15: ='Inputs T'!BP15 -> 1 | BQ15: ='Inputs T'!BQ15 -> 1 | BR15: ='Inputs T'!BR15 -> 1 | BS15: ='Inputs T'!BS15 -> 1 | BT15: ='Inputs T'!BT15 -> 1 | BU15: ='Inputs T'!BU15 -> 1 | BV15: ='Inputs T'!BV15 -> 1 | BW15: ='Inputs T'!BW15 -> 1 | BX15: ='Inputs T'!BX15 -> 1 | BY15: ='Inputs T'!BY15 -> 1 | BZ15: ='Inputs T'!BZ15 -> 1 | CA15: ='Inputs T'!CA15 -> 1 | CB15: ='Inputs T'!CB15 -> 1 | CC15: ='Inputs T'!CC15 -> 1 | CD15: ='Inputs T'!CD15 -> 1 | CE15: ='Inputs T'!CE15 -> 1 | CF15: ='Inputs T'!CF15 -> 1 | CG15: ='Inputs T'!CG15 -> 1 | CH15: ='Inputs T'!CH15 -> 1 | CI15: ='Inputs T'!CI15 -> 1 | CJ15: ='Inputs T'!CJ15 -> 1 | CK15: ='Inputs T'!CK15 -> 1 | CL15: ='Inputs T'!CL15 -> 1 | CM15: ='Inputs T'!CM15 -> 1 | CN15: ='Inputs T'!CN15 -> 1 | CO15: ='Inputs T'!CO15 -> 1 | CP15: ='Inputs T'!CP15 -> 1 | CQ15: ='Inputs T'!CQ15 -> 1 | CR15: ='Inputs T'!CR15 -> 1 | CS15: ='Inputs T'!CS15 -> 1 | CT15: ='Inputs T'!CT15 -> 1 | CU15: ='Inputs T'!CU15 -> 1 | CV15: ='Inputs T'!CV15 -> 1 | CW15: ='Inputs T'!CW15 -> 1 | CX15: ='Inputs T'!CX15 -> 1 | CY15: ='Inputs T'!CY15 -> 1 | CZ15: ='Inputs T'!CZ15 -> 1 | DA15: ='Inputs T'!DA15 -> 1 | DB15: ='Inputs T'!DB15 -> 1 | DC15: ='Inputs T'!DC15 -> 1 | DD15: ='Inputs T'!DD15 -> 1 | DE15: ='Inputs T'!DE15 -> 1 | DF15: ='Inputs T'!DF15 -> 1 | DG15: ='Inputs T'!DG15 -> 1 | DH15: ='Inputs T'!DH15 -> 1 | DI15: ='Inputs T'!DI15 -> 1 | DJ15: ='Inputs T'!DJ15 -> 1 | DK15: ='Inputs T'!DK15 -> 1 | DL15: ='Inputs T'!DL15 -> 1 | DM15: ='Inputs T'!DM15 -> 1 | DN15: ='Inputs T'!DN15 -> 1 | DO15: ='Inputs T'!DO15 -> 1 | DP15: ='Inputs T'!DP15 -> 1 | DQ15: ='Inputs T'!DQ15 -> 1 | DR15: ='Inputs T'!DR15 -> 1 | DS15: ='Inputs T'!DS15 -> 1 | DT15: ='Inputs T'!DT15 -> 1 | DU15: ='Inputs T'!DU15 -> 1 | DV15: ='Inputs T'!DV15 -> 1 | DW15: ='Inputs T'!DW15 -> 1 | DX15: ='Inputs T'!DX15 -> 1 | DY15: ='Inputs T'!DY15 -> 1 | DZ15: ='Inputs T'!DZ15 -> 1 | EA15: ='Inputs T'!EA15 -> 1 | EB15: ='Inputs T'!EB15 -> 1 | EC15: ='Inputs T'!EC15 -> 1 | ED15: ='Inputs T'!ED15 -> 1 | EE15: ='Inputs T'!EE15 -> 1 | EF15: ='Inputs T'!EF15 -> 1 | EG15: ='Inputs T'!EG15 -> 1 | EH15: ='Inputs T'!EH15 -> 1 | EI15: ='Inputs T'!EI15 -> 1 | EJ15: ='Inputs T'!EJ15 -> 1 | EK15: ='Inputs T'!EK15 -> 1 | EL15: ='Inputs T'!EL15 -> 1 | EM15: ='Inputs T'!EM15 -> 1 | EN15: ='Inputs T'!EN15 -> 1 | EO15: ='Inputs T'!EO15 -> 1 | EP15: ='Inputs T'!EP15 -> 1 | EQ15: ='Inputs T'!EQ15 -> 1 | ER15: ='Inputs T'!ER15 -> 1 | ES15: ='Inputs T'!ES15 -> 1 | ET15: ='Inputs T'!ET15 -> 1 | EU15: ='Inputs T'!EU15 -> 1 | EV15: ='Inputs T'!EV15 -> 1 | EW15: ='Inputs T'!EW15 -> 1 | EX15: ='Inputs T'!EX15 -> 1 | EY15: ='Inputs T'!EY15 -> 1 | EZ15: ='Inputs T'!EZ15 -> 1 | FA15: ='Inputs T'!FA15 -> 1 | FB15: ='Inputs T'!FB15 -> 1 | FC15: ='Inputs T'!FC15 -> 1 | FD15: ='Inputs T'!FD15 -> 1 | FE15: ='Inputs T'!FE15 -> 1 | FF15: ='Inputs T'!FF15 -> 1
B16: ="Код статуса проекта (1 "& Controls!$H$10 & "; 2 " & Controls!$H$11 & "; 3 "& Controls!$H$12 & "; 4 "& Controls!$H$13 &")" -> Код статуса проекта (1 Проект; 2 Строит; 3 Опер; 4 П/проект) | H16: код | M16: ='Inputs T'!M16 -> 1 | N16: ='Inputs T'!N16 -> 1 | O16: ='Inputs T'!O16 -> 1 | P16: ='Inputs T'!P16 -> 1 | Q16: ='Inputs T'!Q16 -> 2 | R16: ='Inputs T'!R16 -> 2 | S16: ='Inputs T'!S16 -> 2 | T16: ='Inputs T'!T16 -> 2 | U16: ='Inputs T'!U16 -> 2 | V16: ='Inputs T'!V16 -> 2 | W16: ='Inputs T'!W16 -> 2 | X16: ='Inputs T'!X16 -> 2 | Y16: ='Inputs T'!Y16 -> 3 | Z16: ='Inputs T'!Z16 -> 3 | AA16: ='Inputs T'!AA16 -> 3 | AB16: ='Inputs T'!AB16 -> 3 | AC16: ='Inputs T'!AC16 -> 3 | AD16: ='Inputs T'!AD16 -> 3 | AE16: ='Inputs T'!AE16 -> 3 | AF16: ='Inputs T'!AF16 -> 3 | AG16: ='Inputs T'!AG16 -> 3 | AH16: ='Inputs T'!AH16 -> 3 | AI16: ='Inputs T'!AI16 -> 3 | AJ16: ='Inputs T'!AJ16 -> 3 | AK16: ='Inputs T'!AK16 -> 3 | AL16: ='Inputs T'!AL16 -> 3 | AM16: ='Inputs T'!AM16 -> 3 | AN16: ='Inputs T'!AN16 -> 3 | AO16: ='Inputs T'!AO16 -> 3 | AP16: ='Inputs T'!AP16 -> 3 | AQ16: ='Inputs T'!AQ16 -> 3 | AR16: ='Inputs T'!AR16 -> 3 | AS16: ='Inputs T'!AS16 -> 4 | AT16: ='Inputs T'!AT16 -> 4 | AU16: ='Inputs T'!AU16 -> 4 | AV16: ='Inputs T'!AV16 -> 4 | AW16: ='Inputs T'!AW16 -> 4 | AX16: ='Inputs T'!AX16 -> 4 | AY16: ='Inputs T'!AY16 -> 4 | AZ16: ='Inputs T'!AZ16 -> 4 | BA16: ='Inputs T'!BA16 -> 4 | BB16: ='Inputs T'!BB16 -> 4 | BC16: ='Inputs T'!BC16 -> 4 | BD16: ='Inputs T'!BD16 -> 4 | BE16: ='Inputs T'!BE16 -> 4 | BF16: ='Inputs T'!BF16 -> 4 | BG16: ='Inputs T'!BG16 -> 4 | BH16: ='Inputs T'!BH16 -> 4 | BI16: ='Inputs T'!BI16 -> 4 | BJ16: ='Inputs T'!BJ16 -> 4 | BK16: ='Inputs T'!BK16 -> 4 | BL16: ='Inputs T'!BL16 -> 4 | BM16: ='Inputs T'!BM16 -> 4 | BN16: ='Inputs T'!BN16 -> 4 | BO16: ='Inputs T'!BO16 -> 4 | BP16: ='Inputs T'!BP16 -> 4 | BQ16: ='Inputs T'!BQ16 -> 4 | BR16: ='Inputs T'!BR16 -> 4 | BS16: ='Inputs T'!BS16 -> 4 | BT16: ='Inputs T'!BT16 -> 4 | BU16: ='Inputs T'!BU16 -> 4 | BV16: ='Inputs T'!BV16 -> 4 | BW16: ='Inputs T'!BW16 -> 4 | BX16: ='Inputs T'!BX16 -> 4 | BY16: ='Inputs T'!BY16 -> 4 | BZ16: ='Inputs T'!BZ16 -> 4 | CA16: ='Inputs T'!CA16 -> 4 | CB16: ='Inputs T'!CB16 -> 4 | CC16: ='Inputs T'!CC16 -> 4 | CD16: ='Inputs T'!CD16 -> 4 | CE16: ='Inputs T'!CE16 -> 4 | CF16: ='Inputs T'!CF16 -> 4 | CG16: ='Inputs T'!CG16 -> 4 | CH16: ='Inputs T'!CH16 -> 4 | CI16: ='Inputs T'!CI16 -> 4 | CJ16: ='Inputs T'!CJ16 -> 4 | CK16: ='Inputs T'!CK16 -> 4 | CL16: ='Inputs T'!CL16 -> 4 | CM16: ='Inputs T'!CM16 -> 4 | CN16: ='Inputs T'!CN16 -> 4 | CO16: ='Inputs T'!CO16 -> 4 | CP16: ='Inputs T'!CP16 -> 4 | CQ16: ='Inputs T'!CQ16 -> 4 | CR16: ='Inputs T'!CR16 -> 4 | CS16: ='Inputs T'!CS16 -> 4 | CT16: ='Inputs T'!CT16 -> 4 | CU16: ='Inputs T'!CU16 -> 4 | CV16: ='Inputs T'!CV16 -> 4 | CW16: ='Inputs T'!CW16 -> 4 | CX16: ='Inputs T'!CX16 -> 4 | CY16: ='Inputs T'!CY16 -> 4 | CZ16: ='Inputs T'!CZ16 -> 4 | DA16: ='Inputs T'!DA16 -> 4 | DB16: ='Inputs T'!DB16 -> 4 | DC16: ='Inputs T'!DC16 -> 4 | DD16: ='Inputs T'!DD16 -> 4 | DE16: ='Inputs T'!DE16 -> 4 | DF16: ='Inputs T'!DF16 -> 4 | DG16: ='Inputs T'!DG16 -> 4 | DH16: ='Inputs T'!DH16 -> 4 | DI16: ='Inputs T'!DI16 -> 4 | DJ16: ='Inputs T'!DJ16 -> 4 | DK16: ='Inputs T'!DK16 -> 4 | DL16: ='Inputs T'!DL16 -> 4 | DM16: ='Inputs T'!DM16 -> 4 | DN16: ='Inputs T'!DN16 -> 4 | DO16: ='Inputs T'!DO16 -> 4 | DP16: ='Inputs T'!DP16 -> 4 | DQ16: ='Inputs T'!DQ16 -> 4 | DR16: ='Inputs T'!DR16 -> 4 | DS16: ='Inputs T'!DS16 -> 4 | DT16: ='Inputs T'!DT16 -> 4 | DU16: ='Inputs T'!DU16 -> 4 | DV16: ='Inputs T'!DV16 -> 4 | DW16: ='Inputs T'!DW16 -> 4 | DX16: ='Inputs T'!DX16 -> 4 | DY16: ='Inputs T'!DY16 -> 4 | DZ16: ='Inputs T'!DZ16 -> 4 | EA16: ='Inputs T'!EA16 -> 4 | EB16: ='Inputs T'!EB16 -> 4 | EC16: ='Inputs T'!EC16 -> 4 | ED16: ='Inputs T'!ED16 -> 4 | EE16: ='Inputs T'!EE16 -> 4 | EF16: ='Inputs T'!EF16 -> 4 | EG16: ='Inputs T'!EG16 -> 4 | EH16: ='Inputs T'!EH16 -> 4 | EI16: ='Inputs T'!EI16 -> 4 | EJ16: ='Inputs T'!EJ16 -> 4 | EK16: ='Inputs T'!EK16 -> 4 | EL16: ='Inputs T'!EL16 -> 4 | EM16: ='Inputs T'!EM16 -> 4 | EN16: ='Inputs T'!EN16 -> 4 | EO16: ='Inputs T'!EO16 -> 4 | EP16: ='Inputs T'!EP16 -> 4 | EQ16: ='Inputs T'!EQ16 -> 4 | ER16: ='Inputs T'!ER16 -> 4 | ES16: ='Inputs T'!ES16 -> 4 | ET16: ='Inputs T'!ET16 -> 4 | EU16: ='Inputs T'!EU16 -> 4 | EV16: ='Inputs T'!EV16 -> 4 | EW16: ='Inputs T'!EW16 -> 4 | EX16: ='Inputs T'!EX16 -> 4 | EY16: ='Inputs T'!EY16 -> 4 | EZ16: ='Inputs T'!EZ16 -> 4 | FA16: ='Inputs T'!FA16 -> 4 | FB16: ='Inputs T'!FB16 -> 4 | FC16: ='Inputs T'!FC16 -> 4 | FD16: ='Inputs T'!FD16 -> 4 | FE16: ='Inputs T'!FE16 -> 4 | FF16: ='Inputs T'!FF16 -> 4
B17: Статус проекта | H17: код | M17: ='Inputs T'!M17 -> Проект | N17: ='Inputs T'!N17 -> Проект | O17: ='Inputs T'!O17 -> Проект | P17: ='Inputs T'!P17 -> Проект | Q17: ='Inputs T'!Q17 -> Строит | R17: ='Inputs T'!R17 -> Строит | S17: ='Inputs T'!S17 -> Строит | T17: ='Inputs T'!T17 -> Строит | U17: ='Inputs T'!U17 -> Строит | V17: ='Inputs T'!V17 -> Строит | W17: ='Inputs T'!W17 -> Строит | X17: ='Inputs T'!X17 -> Строит | Y17: ='Inputs T'!Y17 -> Опер | Z17: ='Inputs T'!Z17 -> Опер | AA17: ='Inputs T'!AA17 -> Опер | AB17: ='Inputs T'!AB17 -> Опер | AC17: ='Inputs T'!AC17 -> Опер | AD17: ='Inputs T'!AD17 -> Опер | AE17: ='Inputs T'!AE17 -> Опер | AF17: ='Inputs T'!AF17 -> Опер | AG17: ='Inputs T'!AG17 -> Опер | AH17: ='Inputs T'!AH17 -> Опер | AI17: ='Inputs T'!AI17 -> Опер | AJ17: ='Inputs T'!AJ17 -> Опер | AK17: ='Inputs T'!AK17 -> Опер | AL17: ='Inputs T'!AL17 -> Опер | AM17: ='Inputs T'!AM17 -> Опер | AN17: ='Inputs T'!AN17 -> Опер | AO17: ='Inputs T'!AO17 -> Опер | AP17: ='Inputs T'!AP17 -> Опер | AQ17: ='Inputs T'!AQ17 -> Опер | AR17: ='Inputs T'!AR17 -> Опер | AS17: ='Inputs T'!AS17 -> П/проект | AT17: ='Inputs T'!AT17 -> П/проект | AU17: ='Inputs T'!AU17 -> П/проект | AV17: ='Inputs T'!AV17 -> П/проект | AW17: ='Inputs T'!AW17 -> П/проект | AX17: ='Inputs T'!AX17 -> П/проект | AY17: ='Inputs T'!AY17 -> П/проект | AZ17: ='Inputs T'!AZ17 -> П/проект | BA17: ='Inputs T'!BA17 -> П/проект | BB17: ='Inputs T'!BB17 -> П/проект | BC17: ='Inputs T'!BC17 -> П/проект | BD17: ='Inputs T'!BD17 -> П/проект | BE17: ='Inputs T'!BE17 -> П/проект | BF17: ='Inputs T'!BF17 -> П/проект | BG17: ='Inputs T'!BG17 -> П/проект | BH17: ='Inputs T'!BH17 -> П/проект | BI17: ='Inputs T'!BI17 -> П/проект | BJ17: ='Inputs T'!BJ17 -> П/проект | BK17: ='Inputs T'!BK17 -> П/проект | BL17: ='Inputs T'!BL17 -> П/проект | BM17: ='Inputs T'!BM17 -> П/проект | BN17: ='Inputs T'!BN17 -> П/проект | BO17: ='Inputs T'!BO17 -> П/проект | BP17: ='Inputs T'!BP17 -> П/проект | BQ17: ='Inputs T'!BQ17 -> П/проект | BR17: ='Inputs T'!BR17 -> П/проект | BS17: ='Inputs T'!BS17 -> П/проект | BT17: ='Inputs T'!BT17 -> П/проект | BU17: ='Inputs T'!BU17 -> П/проект | BV17: ='Inputs T'!BV17 -> П/проект | BW17: ='Inputs T'!BW17 -> П/проект | BX17: ='Inputs T'!BX17 -> П/проект | BY17: ='Inputs T'!BY17 -> П/проект | BZ17: ='Inputs T'!BZ17 -> П/проект | CA17: ='Inputs T'!CA17 -> П/проект | CB17: ='Inputs T'!CB17 -> П/проект | CC17: ='Inputs T'!CC17 -> П/проект | CD17: ='Inputs T'!CD17 -> П/проект | CE17: ='Inputs T'!CE17 -> П/проект | CF17: ='Inputs T'!CF17 -> П/проект | CG17: ='Inputs T'!CG17 -> П/проект | CH17: ='Inputs T'!CH17 -> П/проект | CI17: ='Inputs T'!CI17 -> П/проект | CJ17: ='Inputs T'!CJ17 -> П/проект | CK17: ='Inputs T'!CK17 -> П/проект | CL17: ='Inputs T'!CL17 -> П/проект | CM17: ='Inputs T'!CM17 -> П/проект | CN17: ='Inputs T'!CN17 -> П/проект | CO17: ='Inputs T'!CO17 -> П/проект | CP17: ='Inputs T'!CP17 -> П/проект | CQ17: ='Inputs T'!CQ17 -> П/проект | CR17: ='Inputs T'!CR17 -> П/проект | CS17: ='Inputs T'!CS17 -> П/проект | CT17: ='Inputs T'!CT17 -> П/проект | CU17: ='Inputs T'!CU17 -> П/проект | CV17: ='Inputs T'!CV17 -> П/проект | CW17: ='Inputs T'!CW17 -> П/проект | CX17: ='Inputs T'!CX17 -> П/проект | CY17: ='Inputs T'!CY17 -> П/проект | CZ17: ='Inputs T'!CZ17 -> П/проект | DA17: ='Inputs T'!DA17 -> П/проект | DB17: ='Inputs T'!DB17 -> П/проект | DC17: ='Inputs T'!DC17 -> П/проект | DD17: ='Inputs T'!DD17 -> П/проект | DE17: ='Inputs T'!DE17 -> П/проект | DF17: ='Inputs T'!DF17 -> П/проект | DG17: ='Inputs T'!DG17 -> П/проект | DH17: ='Inputs T'!DH17 -> П/проект | DI17: ='Inputs T'!DI17 -> П/проект | DJ17: ='Inputs T'!DJ17 -> П/проект | DK17: ='Inputs T'!DK17 -> П/проект | DL17: ='Inputs T'!DL17 -> П/проект | DM17: ='Inputs T'!DM17 -> П/проект | DN17: ='Inputs T'!DN17 -> П/проект | DO17: ='Inputs T'!DO17 -> П/проект | DP17: ='Inputs T'!DP17 -> П/проект | DQ17: ='Inputs T'!DQ17 -> П/проект | DR17: ='Inputs T'!DR17 -> П/проект | DS17: ='Inputs T'!DS17 -> П/проект | DT17: ='Inputs T'!DT17 -> П/проект | DU17: ='Inputs T'!DU17 -> П/проект | DV17: ='Inputs T'!DV17 -> П/проект | DW17: ='Inputs T'!DW17 -> П/проект | DX17: ='Inputs T'!DX17 -> П/проект | DY17: ='Inputs T'!DY17 -> П/проект | DZ17: ='Inputs T'!DZ17 -> П/проект | EA17: ='Inputs T'!EA17 -> П/проект | EB17: ='Inputs T'!EB17 -> П/проект | EC17: ='Inputs T'!EC17 -> П/проект | ED17: ='Inputs T'!ED17 -> П/проект | EE17: ='Inputs T'!EE17 -> П/проект | EF17: ='Inputs T'!EF17 -> П/проект | EG17: ='Inputs T'!EG17 -> П/проект | EH17: ='Inputs T'!EH17 -> П/проект | EI17: ='Inputs T'!EI17 -> П/проект | EJ17: ='Inputs T'!EJ17 -> П/проект | EK17: ='Inputs T'!EK17 -> П/проект | EL17: ='Inputs T'!EL17 -> П/проект | EM17: ='Inputs T'!EM17 -> П/проект | EN17: ='Inputs T'!EN17 -> П/проект | EO17: ='Inputs T'!EO17 -> П/проект | EP17: ='Inputs T'!EP17 -> П/проект | EQ17: ='Inputs T'!EQ17 -> П/проект | ER17: ='Inputs T'!ER17 -> П/проект | ES17: ='Inputs T'!ES17 -> П/проект | ET17: ='Inputs T'!ET17 -> П/проект | EU17: ='Inputs T'!EU17 -> П/проект | EV17: ='Inputs T'!EV17 -> П/проект | EW17: ='Inputs T'!EW17 -> П/проект | EX17: ='Inputs T'!EX17 -> П/проект | EY17: ='Inputs T'!EY17 -> П/проект | EZ17: ='Inputs T'!EZ17 -> П/проект | FA17: ='Inputs T'!FA17 -> П/проект | FB17: ='Inputs T'!FB17 -> П/проект | FC17: ='Inputs T'!FC17 -> П/проект | FD17: ='Inputs T'!FD17 -> П/проект | FE17: ='Inputs T'!FE17 -> П/проект | FF17: ='Inputs T'!FF17 -> П/проект
B19: Дней в периоде | H19: дней | M19: ='Inputs T'!M19 -> 91 | N19: ='Inputs T'!N19 -> 92 | O19: ='Inputs T'!O19 -> 92 | P19: ='Inputs T'!P19 -> 91 | Q19: ='Inputs T'!Q19 -> 91 | R19: ='Inputs T'!R19 -> 92 | S19: ='Inputs T'!S19 -> 92 | T19: ='Inputs T'!T19 -> 90 | U19: ='Inputs T'!U19 -> 91 | V19: ='Inputs T'!V19 -> 92 | W19: ='Inputs T'!W19 -> 92 | X19: ='Inputs T'!X19 -> 90 | Y19: ='Inputs T'!Y19 -> 91 | Z19: ='Inputs T'!Z19 -> 92 | AA19: ='Inputs T'!AA19 -> 92 | AB19: ='Inputs T'!AB19 -> 90 | AC19: ='Inputs T'!AC19 -> 91 | AD19: ='Inputs T'!AD19 -> 92 | AE19: ='Inputs T'!AE19 -> 92 | AF19: ='Inputs T'!AF19 -> 91 | AG19: ='Inputs T'!AG19 -> 91 | AH19: ='Inputs T'!AH19 -> 92 | AI19: ='Inputs T'!AI19 -> 92 | AJ19: ='Inputs T'!AJ19 -> 90 | AK19: ='Inputs T'!AK19 -> 91 | AL19: ='Inputs T'!AL19 -> 92 | AM19: ='Inputs T'!AM19 -> 92 | AN19: ='Inputs T'!AN19 -> 90 | AO19: ='Inputs T'!AO19 -> 91 | AP19: ='Inputs T'!AP19 -> 92 | AQ19: ='Inputs T'!AQ19 -> 92 | AR19: ='Inputs T'!AR19 -> 90 | AS19: ='Inputs T'!AS19 -> 91 | AT19: ='Inputs T'!AT19 -> 92 | AU19: ='Inputs T'!AU19 -> 92 | AV19: ='Inputs T'!AV19 -> 91 | AW19: ='Inputs T'!AW19 -> 91 | AX19: ='Inputs T'!AX19 -> 92 | AY19: ='Inputs T'!AY19 -> 92 | AZ19: ='Inputs T'!AZ19 -> 90 | BA19: ='Inputs T'!BA19 -> 91 | BB19: ='Inputs T'!BB19 -> 92 | BC19: ='Inputs T'!BC19 -> 92 | BD19: ='Inputs T'!BD19 -> 90 | BE19: ='Inputs T'!BE19 -> 91 | BF19: ='Inputs T'!BF19 -> 92 | BG19: ='Inputs T'!BG19 -> 92 | BH19: ='Inputs T'!BH19 -> 90 | BI19: ='Inputs T'!BI19 -> 91 | BJ19: ='Inputs T'!BJ19 -> 92 | BK19: ='Inputs T'!BK19 -> 92 | BL19: ='Inputs T'!BL19 -> 91 | BM19: ='Inputs T'!BM19 -> 91 | BN19: ='Inputs T'!BN19 -> 92 | BO19: ='Inputs T'!BO19 -> 92 | BP19: ='Inputs T'!BP19 -> 90 | BQ19: ='Inputs T'!BQ19 -> 91 | BR19: ='Inputs T'!BR19 -> 92 | BS19: ='Inputs T'!BS19 -> 92 | BT19: ='Inputs T'!BT19 -> 90 | BU19: ='Inputs T'!BU19 -> 91 | BV19: ='Inputs T'!BV19 -> 92 | BW19: ='Inputs T'!BW19 -> 92 | BX19: ='Inputs T'!BX19 -> 90 | BY19: ='Inputs T'!BY19 -> 91 | BZ19: ='Inputs T'!BZ19 -> 92 | CA19: ='Inputs T'!CA19 -> 92 | CB19: ='Inputs T'!CB19 -> 91 | CC19: ='Inputs T'!CC19 -> 91 | CD19: ='Inputs T'!CD19 -> 92 | CE19: ='Inputs T'!CE19 -> 92 | CF19: ='Inputs T'!CF19 -> 90 | CG19: ='Inputs T'!CG19 -> 91 | CH19: ='Inputs T'!CH19 -> 92 | CI19: ='Inputs T'!CI19 -> 92 | CJ19: ='Inputs T'!CJ19 -> 90 | CK19: ='Inputs T'!CK19 -> 91 | CL19: ='Inputs T'!CL19 -> 92 | CM19: ='Inputs T'!CM19 -> 92 | CN19: ='Inputs T'!CN19 -> 90 | CO19: ='Inputs T'!CO19 -> 91 | CP19: ='Inputs T'!CP19 -> 92 | CQ19: ='Inputs T'!CQ19 -> 92 | CR19: ='Inputs T'!CR19 -> 91 | CS19: ='Inputs T'!CS19 -> 91 | CT19: ='Inputs T'!CT19 -> 92 | CU19: ='Inputs T'!CU19 -> 92 | CV19: ='Inputs T'!CV19 -> 90 | CW19: ='Inputs T'!CW19 -> 91 | CX19: ='Inputs T'!CX19 -> 92 | CY19: ='Inputs T'!CY19 -> 92 | CZ19: ='Inputs T'!CZ19 -> 90 | DA19: ='Inputs T'!DA19 -> 91 | DB19: ='Inputs T'!DB19 -> 92 | DC19: ='Inputs T'!DC19 -> 92 | DD19: ='Inputs T'!DD19 -> 90 | DE19: ='Inputs T'!DE19 -> 91 | DF19: ='Inputs T'!DF19 -> 92 | DG19: ='Inputs T'!DG19 -> 92 | DH19: ='Inputs T'!DH19 -> 91 | DI19: ='Inputs T'!DI19 -> 91 | DJ19: ='Inputs T'!DJ19 -> 92 | DK19: ='Inputs T'!DK19 -> 92 | DL19: ='Inputs T'!DL19 -> 90 | DM19: ='Inputs T'!DM19 -> 91 | DN19: ='Inputs T'!DN19 -> 92 | DO19: ='Inputs T'!DO19 -> 92 | DP19: ='Inputs T'!DP19 -> 90 | DQ19: ='Inputs T'!DQ19 -> 91 | DR19: ='Inputs T'!DR19 -> 92 | DS19: ='Inputs T'!DS19 -> 92 | DT19: ='Inputs T'!DT19 -> 90 | DU19: ='Inputs T'!DU19 -> 91 | DV19: ='Inputs T'!DV19 -> 92 | DW19: ='Inputs T'!DW19 -> 92 | DX19: ='Inputs T'!DX19 -> 91 | DY19: ='Inputs T'!DY19 -> 91 | DZ19: ='Inputs T'!DZ19 -> 92 | EA19: ='Inputs T'!EA19 -> 92 | EB19: ='Inputs T'!EB19 -> 90 | EC19: ='Inputs T'!EC19 -> 91 | ED19: ='Inputs T'!ED19 -> 92 | EE19: ='Inputs T'!EE19 -> 92 | EF19: ='Inputs T'!EF19 -> 90 | EG19: ='Inputs T'!EG19 -> 91 | EH19: ='Inputs T'!EH19 -> 92 | EI19: ='Inputs T'!EI19 -> 92 | EJ19: ='Inputs T'!EJ19 -> 90 | EK19: ='Inputs T'!EK19 -> 91 | EL19: ='Inputs T'!EL19 -> 92 | EM19: ='Inputs T'!EM19 -> 92 | EN19: ='Inputs T'!EN19 -> 91 | EO19: ='Inputs T'!EO19 -> 91 | EP19: ='Inputs T'!EP19 -> 92 | EQ19: ='Inputs T'!EQ19 -> 92 | ER19: ='Inputs T'!ER19 -> 90 | ES19: ='Inputs T'!ES19 -> 91 | ET19: ='Inputs T'!ET19 -> 92 | EU19: ='Inputs T'!EU19 -> 92 | EV19: ='Inputs T'!EV19 -> 90 | EW19: ='Inputs T'!EW19 -> 91 | EX19: ='Inputs T'!EX19 -> 92 | EY19: ='Inputs T'!EY19 -> 92 | EZ19: ='Inputs T'!EZ19 -> 90 | FA19: ='Inputs T'!FA19 -> 91 | FB19: ='Inputs T'!FB19 -> 92 | FC19: ='Inputs T'!FC19 -> 92 | FD19: ='Inputs T'!FD19 -> 91 | FE19: ='Inputs T'!FE19 -> 91 | FF19: ='Inputs T'!FF19 -> 92
B20: Дней в 360-году в периоде | H20: дней | M20: ='Inputs T'!M20 -> 90 | N20: ='Inputs T'!N20 -> 90 | O20: ='Inputs T'!O20 -> 90 | P20: ='Inputs T'!P20 -> 90 | Q20: ='Inputs T'!Q20 -> 90 | R20: ='Inputs T'!R20 -> 90 | S20: ='Inputs T'!S20 -> 90 | T20: ='Inputs T'!T20 -> 90 | U20: ='Inputs T'!U20 -> 90 | V20: ='Inputs T'!V20 -> 90 | W20: ='Inputs T'!W20 -> 90 | X20: ='Inputs T'!X20 -> 90 | Y20: ='Inputs T'!Y20 -> 90 | Z20: ='Inputs T'!Z20 -> 90 | AA20: ='Inputs T'!AA20 -> 90 | AB20: ='Inputs T'!AB20 -> 90 | AC20: ='Inputs T'!AC20 -> 90 | AD20: ='Inputs T'!AD20 -> 90 | AE20: ='Inputs T'!AE20 -> 90 | AF20: ='Inputs T'!AF20 -> 90 | AG20: ='Inputs T'!AG20 -> 90 | AH20: ='Inputs T'!AH20 -> 90 | AI20: ='Inputs T'!AI20 -> 90 | AJ20: ='Inputs T'!AJ20 -> 90 | AK20: ='Inputs T'!AK20 -> 90 | AL20: ='Inputs T'!AL20 -> 90 | AM20: ='Inputs T'!AM20 -> 90 | AN20: ='Inputs T'!AN20 -> 90 | AO20: ='Inputs T'!AO20 -> 90 | AP20: ='Inputs T'!AP20 -> 90 | AQ20: ='Inputs T'!AQ20 -> 90 | AR20: ='Inputs T'!AR20 -> 90 | AS20: ='Inputs T'!AS20 -> 90 | AT20: ='Inputs T'!AT20 -> 90 | AU20: ='Inputs T'!AU20 -> 90 | AV20: ='Inputs T'!AV20 -> 90 | AW20: ='Inputs T'!AW20 -> 90 | AX20: ='Inputs T'!AX20 -> 90 | AY20: ='Inputs T'!AY20 -> 90 | AZ20: ='Inputs T'!AZ20 -> 90 | BA20: ='Inputs T'!BA20 -> 90 | BB20: ='Inputs T'!BB20 -> 90 | BC20: ='Inputs T'!BC20 -> 90 | BD20: ='Inputs T'!BD20 -> 90 | BE20: ='Inputs T'!BE20 -> 90 | BF20: ='Inputs T'!BF20 -> 90 | BG20: ='Inputs T'!BG20 -> 90 | BH20: ='Inputs T'!BH20 -> 90 | BI20: ='Inputs T'!BI20 -> 90 | BJ20: ='Inputs T'!BJ20 -> 90 | BK20: ='Inputs T'!BK20 -> 90 | BL20: ='Inputs T'!BL20 -> 90 | BM20: ='Inputs T'!BM20 -> 90 | BN20: ='Inputs T'!BN20 -> 90 | BO20: ='Inputs T'!BO20 -> 90 | BP20: ='Inputs T'!BP20 -> 90 | BQ20: ='Inputs T'!BQ20 -> 90 | BR20: ='Inputs T'!BR20 -> 90 | BS20: ='Inputs T'!BS20 -> 90 | BT20: ='Inputs T'!BT20 -> 90 | BU20: ='Inputs T'!BU20 -> 90 | BV20: ='Inputs T'!BV20 -> 90 | BW20: ='Inputs T'!BW20 -> 90 | BX20: ='Inputs T'!BX20 -> 90 | BY20: ='Inputs T'!BY20 -> 90 | BZ20: ='Inputs T'!BZ20 -> 90 | CA20: ='Inputs T'!CA20 -> 90 | CB20: ='Inputs T'!CB20 -> 90 | CC20: ='Inputs T'!CC20 -> 90 | CD20: ='Inputs T'!CD20 -> 90 | CE20: ='Inputs T'!CE20 -> 90 | CF20: ='Inputs T'!CF20 -> 90 | CG20: ='Inputs T'!CG20 -> 90 | CH20: ='Inputs T'!CH20 -> 90 | CI20: ='Inputs T'!CI20 -> 90 | CJ20: ='Inputs T'!CJ20 -> 90 | CK20: ='Inputs T'!CK20 -> 90 | CL20: ='Inputs T'!CL20 -> 90 | CM20: ='Inputs T'!CM20 -> 90 | CN20: ='Inputs T'!CN20 -> 90 | CO20: ='Inputs T'!CO20 -> 90 | CP20: ='Inputs T'!CP20 -> 90 | CQ20: ='Inputs T'!CQ20 -> 90 | CR20: ='Inputs T'!CR20 -> 90 | CS20: ='Inputs T'!CS20 -> 90 | CT20: ='Inputs T'!CT20 -> 90 | CU20: ='Inputs T'!CU20 -> 90 | CV20: ='Inputs T'!CV20 -> 90 | CW20: ='Inputs T'!CW20 -> 90 | CX20: ='Inputs T'!CX20 -> 90 | CY20: ='Inputs T'!CY20 -> 90 | CZ20: ='Inputs T'!CZ20 -> 90 | DA20: ='Inputs T'!DA20 -> 90 | DB20: ='Inputs T'!DB20 -> 90 | DC20: ='Inputs T'!DC20 -> 90 | DD20: ='Inputs T'!DD20 -> 90 | DE20: ='Inputs T'!DE20 -> 90 | DF20: ='Inputs T'!DF20 -> 90 | DG20: ='Inputs T'!DG20 -> 90 | DH20: ='Inputs T'!DH20 -> 90 | DI20: ='Inputs T'!DI20 -> 90 | DJ20: ='Inputs T'!DJ20 -> 90 | DK20: ='Inputs T'!DK20 -> 90 | DL20: ='Inputs T'!DL20 -> 90 | DM20: ='Inputs T'!DM20 -> 90 | DN20: ='Inputs T'!DN20 -> 90 | DO20: ='Inputs T'!DO20 -> 90 | DP20: ='Inputs T'!DP20 -> 90 | DQ20: ='Inputs T'!DQ20 -> 90 | DR20: ='Inputs T'!DR20 -> 90 | DS20: ='Inputs T'!DS20 -> 90 | DT20: ='Inputs T'!DT20 -> 90 | DU20: ='Inputs T'!DU20 -> 90 | DV20: ='Inputs T'!DV20 -> 90 | DW20: ='Inputs T'!DW20 -> 90 | DX20: ='Inputs T'!DX20 -> 90 | DY20: ='Inputs T'!DY20 -> 90 | DZ20: ='Inputs T'!DZ20 -> 90 | EA20: ='Inputs T'!EA20 -> 90 | EB20: ='Inputs T'!EB20 -> 90 | EC20: ='Inputs T'!EC20 -> 90 | ED20: ='Inputs T'!ED20 -> 90 | EE20: ='Inputs T'!EE20 -> 90 | EF20: ='Inputs T'!EF20 -> 90 | EG20: ='Inputs T'!EG20 -> 90 | EH20: ='Inputs T'!EH20 -> 90 | EI20: ='Inputs T'!EI20 -> 90 | EJ20: ='Inputs T'!EJ20 -> 90 | EK20: ='Inputs T'!EK20 -> 90 | EL20: ='Inputs T'!EL20 -> 90 | EM20: ='Inputs T'!EM20 -> 90 | EN20: ='Inputs T'!EN20 -> 90 | EO20: ='Inputs T'!EO20 -> 90 | EP20: ='Inputs T'!EP20 -> 90 | EQ20: ='Inputs T'!EQ20 -> 90 | ER20: ='Inputs T'!ER20 -> 90 | ES20: ='Inputs T'!ES20 -> 90 | ET20: ='Inputs T'!ET20 -> 90 | EU20: ='Inputs T'!EU20 -> 90 | EV20: ='Inputs T'!EV20 -> 90 | EW20: ='Inputs T'!EW20 -> 90 | EX20: ='Inputs T'!EX20 -> 90 | EY20: ='Inputs T'!EY20 -> 90 | EZ20: ='Inputs T'!EZ20 -> 90 | FA20: ='Inputs T'!FA20 -> 90 | FB20: ='Inputs T'!FB20 -> 90 | FC20: ='Inputs T'!FC20 -> 90 | FD20: ='Inputs T'!FD20 -> 90 | FE20: ='Inputs T'!FE20 -> 90 | FF20: ='Inputs T'!FF20 -> 90
B21: Год | H21: год | L21: =YEAR(M9-1) -> 2019 | M21: ='Inputs T'!M21 -> 2019 | N21: ='Inputs T'!N21 -> 2019 | O21: ='Inputs T'!O21 -> 2019 | P21: ='Inputs T'!P21 -> 2020 | Q21: ='Inputs T'!Q21 -> 2020 | R21: ='Inputs T'!R21 -> 2020 | S21: ='Inputs T'!S21 -> 2020 | T21: ='Inputs T'!T21 -> 2021 | U21: ='Inputs T'!U21 -> 2021 | V21: ='Inputs T'!V21 -> 2021 | W21: ='Inputs T'!W21 -> 2021 | X21: ='Inputs T'!X21 -> 2022 | Y21: ='Inputs T'!Y21 -> 2022 | Z21: ='Inputs T'!Z21 -> 2022 | AA21: ='Inputs T'!AA21 -> 2022 | AB21: ='Inputs T'!AB21 -> 2023 | AC21: ='Inputs T'!AC21 -> 2023 | AD21: ='Inputs T'!AD21 -> 2023 | AE21: ='Inputs T'!AE21 -> 2023 | AF21: ='Inputs T'!AF21 -> 2024 | AG21: ='Inputs T'!AG21 -> 2024 | AH21: ='Inputs T'!AH21 -> 2024 | AI21: ='Inputs T'!AI21 -> 2024 | AJ21: ='Inputs T'!AJ21 -> 2025 | AK21: ='Inputs T'!AK21 -> 2025 | AL21: ='Inputs T'!AL21 -> 2025 | AM21: ='Inputs T'!AM21 -> 2025 | AN21: ='Inputs T'!AN21 -> 2026 | AO21: ='Inputs T'!AO21 -> 2026 | AP21: ='Inputs T'!AP21 -> 2026 | AQ21: ='Inputs T'!AQ21 -> 2026 | AR21: ='Inputs T'!AR21 -> 2027 | AS21: ='Inputs T'!AS21 -> 2027 | AT21: ='Inputs T'!AT21 -> 2027 | AU21: ='Inputs T'!AU21 -> 2027 | AV21: ='Inputs T'!AV21 -> 2028 | AW21: ='Inputs T'!AW21 -> 2028 | AX21: ='Inputs T'!AX21 -> 2028 | AY21: ='Inputs T'!AY21 -> 2028 | AZ21: ='Inputs T'!AZ21 -> 2029 | BA21: ='Inputs T'!BA21 -> 2029 | BB21: ='Inputs T'!BB21 -> 2029 | BC21: ='Inputs T'!BC21 -> 2029 | BD21: ='Inputs T'!BD21 -> 2030 | BE21: ='Inputs T'!BE21 -> 2030 | BF21: ='Inputs T'!BF21 -> 2030 | BG21: ='Inputs T'!BG21 -> 2030 | BH21: ='Inputs T'!BH21 -> 2031 | BI21: ='Inputs T'!BI21 -> 2031 | BJ21: ='Inputs T'!BJ21 -> 2031 | BK21: ='Inputs T'!BK21 -> 2031 | BL21: ='Inputs T'!BL21 -> 2032 | BM21: ='Inputs T'!BM21 -> 2032 | BN21: ='Inputs T'!BN21 -> 2032 | BO21: ='Inputs T'!BO21 -> 2032 | BP21: ='Inputs T'!BP21 -> 2033 | BQ21: ='Inputs T'!BQ21 -> 2033 | BR21: ='Inputs T'!BR21 -> 2033 | BS21: ='Inputs T'!BS21 -> 2033 | BT21: ='Inputs T'!BT21 -> 2034 | BU21: ='Inputs T'!BU21 -> 2034 | BV21: ='Inputs T'!BV21 -> 2034 | BW21: ='Inputs T'!BW21 -> 2034 | BX21: ='Inputs T'!BX21 -> 2035 | BY21: ='Inputs T'!BY21 -> 2035 | BZ21: ='Inputs T'!BZ21 -> 2035 | CA21: ='Inputs T'!CA21 -> 2035 | CB21: ='Inputs T'!CB21 -> 2036 | CC21: ='Inputs T'!CC21 -> 2036 | CD21: ='Inputs T'!CD21 -> 2036 | CE21: ='Inputs T'!CE21 -> 2036 | CF21: ='Inputs T'!CF21 -> 2037 | CG21: ='Inputs T'!CG21 -> 2037 | CH21: ='Inputs T'!CH21 -> 2037 | CI21: ='Inputs T'!CI21 -> 2037 | CJ21: ='Inputs T'!CJ21 -> 2038 | CK21: ='Inputs T'!CK21 -> 2038 | CL21: ='Inputs T'!CL21 -> 2038 | CM21: ='Inputs T'!CM21 -> 2038 | CN21: ='Inputs T'!CN21 -> 2039 | CO21: ='Inputs T'!CO21 -> 2039 | CP21: ='Inputs T'!CP21 -> 2039 | CQ21: ='Inputs T'!CQ21 -> 2039 | CR21: ='Inputs T'!CR21 -> 2040 | CS21: ='Inputs T'!CS21 -> 2040 | CT21: ='Inputs T'!CT21 -> 2040 | CU21: ='Inputs T'!CU21 -> 2040 | CV21: ='Inputs T'!CV21 -> 2041 | CW21: ='Inputs T'!CW21 -> 2041 | CX21: ='Inputs T'!CX21 -> 2041 | CY21: ='Inputs T'!CY21 -> 2041 | CZ21: ='Inputs T'!CZ21 -> 2042 | DA21: ='Inputs T'!DA21 -> 2042 | DB21: ='Inputs T'!DB21 -> 2042 | DC21: ='Inputs T'!DC21 -> 2042 | DD21: ='Inputs T'!DD21 -> 2043 | DE21: ='Inputs T'!DE21 -> 2043 | DF21: ='Inputs T'!DF21 -> 2043 | DG21: ='Inputs T'!DG21 -> 2043 | DH21: ='Inputs T'!DH21 -> 2044 | DI21: ='Inputs T'!DI21 -> 2044 | DJ21: ='Inputs T'!DJ21 -> 2044 | DK21: ='Inputs T'!DK21 -> 2044 | DL21: ='Inputs T'!DL21 -> 2045 | DM21: ='Inputs T'!DM21 -> 2045 | DN21: ='Inputs T'!DN21 -> 2045 | DO21: ='Inputs T'!DO21 -> 2045 | DP21: ='Inputs T'!DP21 -> 2046 | DQ21: ='Inputs T'!DQ21 -> 2046 | DR21: ='Inputs T'!DR21 -> 2046 | DS21: ='Inputs T'!DS21 -> 2046 | DT21: ='Inputs T'!DT21 -> 2047 | DU21: ='Inputs T'!DU21 -> 2047 | DV21: ='Inputs T'!DV21 -> 2047 | DW21: ='Inputs T'!DW21 -> 2047 | DX21: ='Inputs T'!DX21 -> 2048 | DY21: ='Inputs T'!DY21 -> 2048 | DZ21: ='Inputs T'!DZ21 -> 2048 | EA21: ='Inputs T'!EA21 -> 2048 | EB21: ='Inputs T'!EB21 -> 2049 | EC21: ='Inputs T'!EC21 -> 2049 | ED21: ='Inputs T'!ED21 -> 2049 | EE21: ='Inputs T'!EE21 -> 2049 | EF21: ='Inputs T'!EF21 -> 2050 | EG21: ='Inputs T'!EG21 -> 2050 | EH21: ='Inputs T'!EH21 -> 2050 | EI21: ='Inputs T'!EI21 -> 2050 | EJ21: ='Inputs T'!EJ21 -> 2051 | EK21: ='Inputs T'!EK21 -> 2051 | EL21: ='Inputs T'!EL21 -> 2051 | EM21: ='Inputs T'!EM21 -> 2051 | EN21: ='Inputs T'!EN21 -> 2052 | EO21: ='Inputs T'!EO21 -> 2052 | EP21: ='Inputs T'!EP21 -> 2052 | EQ21: ='Inputs T'!EQ21 -> 2052 | ER21: ='Inputs T'!ER21 -> 2053 | ES21: ='Inputs T'!ES21 -> 2053 | ET21: ='Inputs T'!ET21 -> 2053 | EU21: ='Inputs T'!EU21 -> 2053 | EV21: ='Inputs T'!EV21 -> 2054 | EW21: ='Inputs T'!EW21 -> 2054 | EX21: ='Inputs T'!EX21 -> 2054 | EY21: ='Inputs T'!EY21 -> 2054 | EZ21: ='Inputs T'!EZ21 -> 2055 | FA21: ='Inputs T'!FA21 -> 2055 | FB21: ='Inputs T'!FB21 -> 2055 | FC21: ='Inputs T'!FC21 -> 2055 | FD21: ='Inputs T'!FD21 -> 2056 | FE21: ='Inputs T'!FE21 -> 2056 | FF21: ='Inputs T'!FF21 -> 2056
B22: Дней в году | H22: дней | M22: ='Inputs T'!M22 -> 365 | N22: ='Inputs T'!N22 -> 365 | O22: ='Inputs T'!O22 -> 365 | P22: ='Inputs T'!P22 -> 366 | Q22: ='Inputs T'!Q22 -> 366 | R22: ='Inputs T'!R22 -> 366 | S22: ='Inputs T'!S22 -> 366 | T22: ='Inputs T'!T22 -> 365 | U22: ='Inputs T'!U22 -> 365 | V22: ='Inputs T'!V22 -> 365 | W22: ='Inputs T'!W22 -> 365 | X22: ='Inputs T'!X22 -> 365 | Y22: ='Inputs T'!Y22 -> 365 | Z22: ='Inputs T'!Z22 -> 365 | AA22: ='Inputs T'!AA22 -> 365 | AB22: ='Inputs T'!AB22 -> 365 | AC22: ='Inputs T'!AC22 -> 365 | AD22: ='Inputs T'!AD22 -> 365 | AE22: ='Inputs T'!AE22 -> 365 | AF22: ='Inputs T'!AF22 -> 366 | AG22: ='Inputs T'!AG22 -> 366 | AH22: ='Inputs T'!AH22 -> 366 | AI22: ='Inputs T'!AI22 -> 366 | AJ22: ='Inputs T'!AJ22 -> 365 | AK22: ='Inputs T'!AK22 -> 365 | AL22: ='Inputs T'!AL22 -> 365 | AM22: ='Inputs T'!AM22 -> 365 | AN22: ='Inputs T'!AN22 -> 365 | AO22: ='Inputs T'!AO22 -> 365 | AP22: ='Inputs T'!AP22 -> 365 | AQ22: ='Inputs T'!AQ22 -> 365 | AR22: ='Inputs T'!AR22 -> 365 | AS22: ='Inputs T'!AS22 -> 365 | AT22: ='Inputs T'!AT22 -> 365 | AU22: ='Inputs T'!AU22 -> 365 | AV22: ='Inputs T'!AV22 -> 366 | AW22: ='Inputs T'!AW22 -> 366 | AX22: ='Inputs T'!AX22 -> 366 | AY22: ='Inputs T'!AY22 -> 366 | AZ22: ='Inputs T'!AZ22 -> 365 | BA22: ='Inputs T'!BA22 -> 365 | BB22: ='Inputs T'!BB22 -> 365 | BC22: ='Inputs T'!BC22 -> 365 | BD22: ='Inputs T'!BD22 -> 365 | BE22: ='Inputs T'!BE22 -> 365 | BF22: ='Inputs T'!BF22 -> 365 | BG22: ='Inputs T'!BG22 -> 365 | BH22: ='Inputs T'!BH22 -> 365 | BI22: ='Inputs T'!BI22 -> 365 | BJ22: ='Inputs T'!BJ22 -> 365 | BK22: ='Inputs T'!BK22 -> 365 | BL22: ='Inputs T'!BL22 -> 366 | BM22: ='Inputs T'!BM22 -> 366 | BN22: ='Inputs T'!BN22 -> 366 | BO22: ='Inputs T'!BO22 -> 366 | BP22: ='Inputs T'!BP22 -> 365 | BQ22: ='Inputs T'!BQ22 -> 365 | BR22: ='Inputs T'!BR22 -> 365 | BS22: ='Inputs T'!BS22 -> 365 | BT22: ='Inputs T'!BT22 -> 365 | BU22: ='Inputs T'!BU22 -> 365 | BV22: ='Inputs T'!BV22 -> 365 | BW22: ='Inputs T'!BW22 -> 365 | BX22: ='Inputs T'!BX22 -> 365 | BY22: ='Inputs T'!BY22 -> 365 | BZ22: ='Inputs T'!BZ22 -> 365 | CA22: ='Inputs T'!CA22 -> 365 | CB22: ='Inputs T'!CB22 -> 366 | CC22: ='Inputs T'!CC22 -> 366 | CD22: ='Inputs T'!CD22 -> 366 | CE22: ='Inputs T'!CE22 -> 366 | CF22: ='Inputs T'!CF22 -> 365 | CG22: ='Inputs T'!CG22 -> 365 | CH22: ='Inputs T'!CH22 -> 365 | CI22: ='Inputs T'!CI22 -> 365 | CJ22: ='Inputs T'!CJ22 -> 365 | CK22: ='Inputs T'!CK22 -> 365 | CL22: ='Inputs T'!CL22 -> 365 | CM22: ='Inputs T'!CM22 -> 365 | CN22: ='Inputs T'!CN22 -> 365 | CO22: ='Inputs T'!CO22 -> 365 | CP22: ='Inputs T'!CP22 -> 365 | CQ22: ='Inputs T'!CQ22 -> 365 | CR22: ='Inputs T'!CR22 -> 366 | CS22: ='Inputs T'!CS22 -> 366 | CT22: ='Inputs T'!CT22 -> 366 | CU22: ='Inputs T'!CU22 -> 366 | CV22: ='Inputs T'!CV22 -> 365 | CW22: ='Inputs T'!CW22 -> 365 | CX22: ='Inputs T'!CX22 -> 365 | CY22: ='Inputs T'!CY22 -> 365 | CZ22: ='Inputs T'!CZ22 -> 365 | DA22: ='Inputs T'!DA22 -> 365 | DB22: ='Inputs T'!DB22 -> 365 | DC22: ='Inputs T'!DC22 -> 365 | DD22: ='Inputs T'!DD22 -> 365 | DE22: ='Inputs T'!DE22 -> 365 | DF22: ='Inputs T'!DF22 -> 365 | DG22: ='Inputs T'!DG22 -> 365 | DH22: ='Inputs T'!DH22 -> 366 | DI22: ='Inputs T'!DI22 -> 366 | DJ22: ='Inputs T'!DJ22 -> 366 | DK22: ='Inputs T'!DK22 -> 366 | DL22: ='Inputs T'!DL22 -> 365 | DM22: ='Inputs T'!DM22 -> 365 | DN22: ='Inputs T'!DN22 -> 365 | DO22: ='Inputs T'!DO22 -> 365 | DP22: ='Inputs T'!DP22 -> 365 | DQ22: ='Inputs T'!DQ22 -> 365 | DR22: ='Inputs T'!DR22 -> 365 | DS22: ='Inputs T'!DS22 -> 365 | DT22: ='Inputs T'!DT22 -> 365 | DU22: ='Inputs T'!DU22 -> 365 | DV22: ='Inputs T'!DV22 -> 365 | DW22: ='Inputs T'!DW22 -> 365 | DX22: ='Inputs T'!DX22 -> 366 | DY22: ='Inputs T'!DY22 -> 366 | DZ22: ='Inputs T'!DZ22 -> 366 | EA22: ='Inputs T'!EA22 -> 366 | EB22: ='Inputs T'!EB22 -> 365 | EC22: ='Inputs T'!EC22 -> 365 | ED22: ='Inputs T'!ED22 -> 365 | EE22: ='Inputs T'!EE22 -> 365 | EF22: ='Inputs T'!EF22 -> 365 | EG22: ='Inputs T'!EG22 -> 365 | EH22: ='Inputs T'!EH22 -> 365 | EI22: ='Inputs T'!EI22 -> 365 | EJ22: ='Inputs T'!EJ22 -> 365 | EK22: ='Inputs T'!EK22 -> 365 | EL22: ='Inputs T'!EL22 -> 365 | EM22: ='Inputs T'!EM22 -> 365 | EN22: ='Inputs T'!EN22 -> 366 | EO22: ='Inputs T'!EO22 -> 366 | EP22: ='Inputs T'!EP22 -> 366 | EQ22: ='Inputs T'!EQ22 -> 366 | ER22: ='Inputs T'!ER22 -> 365 | ES22: ='Inputs T'!ES22 -> 365 | ET22: ='Inputs T'!ET22 -> 365 | EU22: ='Inputs T'!EU22 -> 365 | EV22: ='Inputs T'!EV22 -> 365 | EW22: ='Inputs T'!EW22 -> 365 | EX22: ='Inputs T'!EX22 -> 365 | EY22: ='Inputs T'!EY22 -> 365 | EZ22: ='Inputs T'!EZ22 -> 365 | FA22: ='Inputs T'!FA22 -> 365 | FB22: ='Inputs T'!FB22 -> 365 | FC22: ='Inputs T'!FC22 -> 365 | FD22: ='Inputs T'!FD22 -> 366 | FE22: ='Inputs T'!FE22 -> 366 | FF22: ='Inputs T'!FF22 -> 366
B23: Номер периода внутри года | H23: индекс | L23: =INDEX(Controls!$H$82:$H$93,MONTH(M9))-1 -> 1 | M23: =IF(M21<>L21,1,L23+1) -> 2 | N23: 3 | O23: 4 | P23: 1 | Q23: 2 | R23: 3 | S23: 4 | T23: 1 | U23: 2 | V23: 3 | W23: 4 | X23: 1 | Y23: 2 | Z23: 3 | AA23: 4 | AB23: 1 | AC23: 2 | AD23: 3 | AE23: 4 | AF23: 1 | AG23: 2 | AH23: 3 | AI23: 4 | AJ23: 1 | AK23: 2 | AL23: 3 | AM23: 4 | AN23: 1 | AO23: 2 | AP23: 3 | AQ23: 4 | AR23: 1 | AS23: 2 | AT23: 3 | AU23: 4 | AV23: 1 | AW23: 2 | AX23: 3 | AY23: 4 | AZ23: 1 | BA23: 2 | BB23: 3 | BC23: 4 | BD23: 1 | BE23: 2 | BF23: 3 | BG23: 4 | BH23: 1 | BI23: 2 | BJ23: 3 | BK23: 4 | BL23: 1 | BM23: 2 | BN23: 3 | BO23: 4 | BP23: 1 | BQ23: 2 | BR23: 3 | BS23: 4 | BT23: 1 | BU23: 2 | BV23: 3 | BW23: 4 | BX23: 1 | BY23: 2 | BZ23: =IF(BZ21<>BY21,1,BY23+1) -> 3 | CA23: 4 | CB23: 1 | CC23: 2 | CD23: 3 | CE23: 4 | CF23: 1 | CG23: 2 | CH23: 3 | CI23: 4 | CJ23: 1 | CK23: 2 | CL23: 3 | CM23: 4 | CN23: 1 | CO23: 2 | CP23: 3 | CQ23: 4 | CR23: 1 | CS23: 2 | CT23: 3 | CU23: 4 | CV23: 1 | CW23: 2 | CX23: 3 | CY23: 4 | CZ23: 1 | DA23: 2 | DB23: 3 | DC23: 4 | DD23: 1 | DE23: 2 | DF23: 3 | DG23: 4 | DH23: 1 | DI23: 2 | DJ23: 3 | DK23: 4 | DL23: 1 | DM23: 2 | DN23: 3 | DO23: 4 | DP23: 1 | DQ23: 2 | DR23: 3 | DS23: 4 | DT23: 1 | DU23: 2 | DV23: 3 | DW23: 4 | DX23: 1 | DY23: 2 | DZ23: 3 | EA23: 4 | EB23: 1 | EC23: 2 | ED23: 3 | EE23: 4 | EF23: 1 | EG23: 2 | EH23: 3 | EI23: 4 | EJ23: 1 | EK23: 2 | EL23: =IF(EL21<>EK21,1,EK23+1) -> 3 | EM23: 4 | EN23: 1 | EO23: 2 | EP23: 3 | EQ23: 4 | ER23: 1 | ES23: 2 | ET23: 3 | EU23: 4 | EV23: 1 | EW23: 2 | EX23: 3 | EY23: 4 | EZ23: 1 | FA23: 2 | FB23: 3 | FC23: 4 | FD23: 1 | FE23: 2 | FF23: 3
B24: Порядковый номер операционного периода | H24: индекс | M24: ='Inputs T'!M24 -> 0 | N24: ='Inputs T'!N24 -> 0 | O24: ='Inputs T'!O24 -> 0 | P24: ='Inputs T'!P24 -> 0 | Q24: ='Inputs T'!Q24 -> 0 | R24: ='Inputs T'!R24 -> 0 | S24: ='Inputs T'!S24 -> 0 | T24: ='Inputs T'!T24 -> 0 | U24: ='Inputs T'!U24 -> 0 | V24: ='Inputs T'!V24 -> 0 | W24: ='Inputs T'!W24 -> 0 | X24: ='Inputs T'!X24 -> 0 | Y24: ='Inputs T'!Y24 -> 1 | Z24: ='Inputs T'!Z24 -> 2 | AA24: ='Inputs T'!AA24 -> 3 | AB24: ='Inputs T'!AB24 -> 4 | AC24: ='Inputs T'!AC24 -> 5 | AD24: ='Inputs T'!AD24 -> 6 | AE24: ='Inputs T'!AE24 -> 7 | AF24: ='Inputs T'!AF24 -> 8 | AG24: ='Inputs T'!AG24 -> 9 | AH24: ='Inputs T'!AH24 -> 10 | AI24: ='Inputs T'!AI24 -> 11 | AJ24: ='Inputs T'!AJ24 -> 12 | AK24: ='Inputs T'!AK24 -> 13 | AL24: ='Inputs T'!AL24 -> 14 | AM24: ='Inputs T'!AM24 -> 15 | AN24: ='Inputs T'!AN24 -> 16 | AO24: ='Inputs T'!AO24 -> 17 | AP24: ='Inputs T'!AP24 -> 18 | AQ24: ='Inputs T'!AQ24 -> 19 | AR24: ='Inputs T'!AR24 -> 20 | AS24: ='Inputs T'!AS24 -> 0 | AT24: ='Inputs T'!AT24 -> 0 | AU24: ='Inputs T'!AU24 -> 0 | AV24: ='Inputs T'!AV24 -> 0 | AW24: ='Inputs T'!AW24 -> 0 | AX24: ='Inputs T'!AX24 -> 0 | AY24: ='Inputs T'!AY24 -> 0 | AZ24: ='Inputs T'!AZ24 -> 0 | BA24: ='Inputs T'!BA24 -> 0 | BB24: ='Inputs T'!BB24 -> 0 | BC24: ='Inputs T'!BC24 -> 0 | BD24: ='Inputs T'!BD24 -> 0 | BE24: ='Inputs T'!BE24 -> 0 | BF24: ='Inputs T'!BF24 -> 0 | BG24: ='Inputs T'!BG24 -> 0 | BH24: ='Inputs T'!BH24 -> 0 | BI24: ='Inputs T'!BI24 -> 0 | BJ24: ='Inputs T'!BJ24 -> 0 | BK24: ='Inputs T'!BK24 -> 0 | BL24: ='Inputs T'!BL24 -> 0 | BM24: ='Inputs T'!BM24 -> 0 | BN24: ='Inputs T'!BN24 -> 0 | BO24: ='Inputs T'!BO24 -> 0 | BP24: ='Inputs T'!BP24 -> 0 | BQ24: ='Inputs T'!BQ24 -> 0 | BR24: ='Inputs T'!BR24 -> 0 | BS24: ='Inputs T'!BS24 -> 0 | BT24: ='Inputs T'!BT24 -> 0 | BU24: ='Inputs T'!BU24 -> 0 | BV24: ='Inputs T'!BV24 -> 0 | BW24: ='Inputs T'!BW24 -> 0 | BX24: ='Inputs T'!BX24 -> 0 | BY24: ='Inputs T'!BY24 -> 0 | BZ24: ='Inputs T'!BZ24 -> 0 | CA24: ='Inputs T'!CA24 -> 0 | CB24: ='Inputs T'!CB24 -> 0 | CC24: ='Inputs T'!CC24 -> 0 | CD24: ='Inputs T'!CD24 -> 0 | CE24: ='Inputs T'!CE24 -> 0 | CF24: ='Inputs T'!CF24 -> 0 | CG24: ='Inputs T'!CG24 -> 0 | CH24: ='Inputs T'!CH24 -> 0 | CI24: ='Inputs T'!CI24 -> 0 | CJ24: ='Inputs T'!CJ24 -> 0 | CK24: ='Inputs T'!CK24 -> 0 | CL24: ='Inputs T'!CL24 -> 0 | CM24: ='Inputs T'!CM24 -> 0 | CN24: ='Inputs T'!CN24 -> 0 | CO24: ='Inputs T'!CO24 -> 0 | CP24: ='Inputs T'!CP24 -> 0 | CQ24: ='Inputs T'!CQ24 -> 0 | CR24: ='Inputs T'!CR24 -> 0 | CS24: ='Inputs T'!CS24 -> 0 | CT24: ='Inputs T'!CT24 -> 0 | CU24: ='Inputs T'!CU24 -> 0 | CV24: ='Inputs T'!CV24 -> 0 | CW24: ='Inputs T'!CW24 -> 0 | CX24: ='Inputs T'!CX24 -> 0 | CY24: ='Inputs T'!CY24 -> 0 | CZ24: ='Inputs T'!CZ24 -> 0 | DA24: ='Inputs T'!DA24 -> 0 | DB24: ='Inputs T'!DB24 -> 0 | DC24: ='Inputs T'!DC24 -> 0 | DD24: ='Inputs T'!DD24 -> 0 | DE24: ='Inputs T'!DE24 -> 0 | DF24: ='Inputs T'!DF24 -> 0 | DG24: ='Inputs T'!DG24 -> 0 | DH24: ='Inputs T'!DH24 -> 0 | DI24: ='Inputs T'!DI24 -> 0 | DJ24: ='Inputs T'!DJ24 -> 0 | DK24: ='Inputs T'!DK24 -> 0 | DL24: ='Inputs T'!DL24 -> 0 | DM24: ='Inputs T'!DM24 -> 0 | DN24: ='Inputs T'!DN24 -> 0 | DO24: ='Inputs T'!DO24 -> 0 | DP24: ='Inputs T'!DP24 -> 0 | DQ24: ='Inputs T'!DQ24 -> 0 | DR24: ='Inputs T'!DR24 -> 0 | DS24: ='Inputs T'!DS24 -> 0 | DT24: ='Inputs T'!DT24 -> 0 | DU24: ='Inputs T'!DU24 -> 0 | DV24: ='Inputs T'!DV24 -> 0 | DW24: ='Inputs T'!DW24 -> 0 | DX24: ='Inputs T'!DX24 -> 0 | DY24: ='Inputs T'!DY24 -> 0 | DZ24: ='Inputs T'!DZ24 -> 0 | EA24: ='Inputs T'!EA24 -> 0 | EB24: ='Inputs T'!EB24 -> 0 | EC24: ='Inputs T'!EC24 -> 0 | ED24: ='Inputs T'!ED24 -> 0 | EE24: ='Inputs T'!EE24 -> 0 | EF24: ='Inputs T'!EF24 -> 0 | EG24: ='Inputs T'!EG24 -> 0 | EH24: ='Inputs T'!EH24 -> 0 | EI24: ='Inputs T'!EI24 -> 0 | EJ24: ='Inputs T'!EJ24 -> 0 | EK24: ='Inputs T'!EK24 -> 0 | EL24: ='Inputs T'!EL24 -> 0 | EM24: ='Inputs T'!EM24 -> 0 | EN24: ='Inputs T'!EN24 -> 0 | EO24: ='Inputs T'!EO24 -> 0 | EP24: ='Inputs T'!EP24 -> 0 | EQ24: ='Inputs T'!EQ24 -> 0 | ER24: ='Inputs T'!ER24 -> 0 | ES24: ='Inputs T'!ES24 -> 0 | ET24: ='Inputs T'!ET24 -> 0 | EU24: ='Inputs T'!EU24 -> 0 | EV24: ='Inputs T'!EV24 -> 0 | EW24: ='Inputs T'!EW24 -> 0 | EX24: ='Inputs T'!EX24 -> 0 | EY24: ='Inputs T'!EY24 -> 0 | EZ24: ='Inputs T'!EZ24 -> 0 | FA24: ='Inputs T'!FA24 -> 0 | FB24: ='Inputs T'!FB24 -> 0 | FC24: ='Inputs T'!FC24 -> 0 | FD24: ='Inputs T'!FD24 -> 0 | FE24: ='Inputs T'!FE24 -> 0 | FF24: ='Inputs T'!FF24 -> 0
B25: Год операционного периода | H25: индекс | M25: ='Inputs T'!M25 -> 0 | N25: ='Inputs T'!N25 -> 0 | O25: ='Inputs T'!O25 -> 0 | P25: ='Inputs T'!P25 -> 0 | Q25: ='Inputs T'!Q25 -> 0 | R25: ='Inputs T'!R25 -> 0 | S25: ='Inputs T'!S25 -> 0 | T25: ='Inputs T'!T25 -> 0 | U25: ='Inputs T'!U25 -> 0 | V25: ='Inputs T'!V25 -> 0 | W25: ='Inputs T'!W25 -> 0 | X25: ='Inputs T'!X25 -> 0 | Y25: ='Inputs T'!Y25 -> 1 | Z25: ='Inputs T'!Z25 -> 1 | AA25: ='Inputs T'!AA25 -> 1 | AB25: ='Inputs T'!AB25 -> 2 | AC25: ='Inputs T'!AC25 -> 2 | AD25: ='Inputs T'!AD25 -> 2 | AE25: ='Inputs T'!AE25 -> 2 | AF25: ='Inputs T'!AF25 -> 3 | AG25: ='Inputs T'!AG25 -> 3 | AH25: ='Inputs T'!AH25 -> 3 | AI25: ='Inputs T'!AI25 -> 3 | AJ25: ='Inputs T'!AJ25 -> 4 | AK25: ='Inputs T'!AK25 -> 4 | AL25: ='Inputs T'!AL25 -> 4 | AM25: ='Inputs T'!AM25 -> 4 | AN25: ='Inputs T'!AN25 -> 5 | AO25: ='Inputs T'!AO25 -> 5 | AP25: ='Inputs T'!AP25 -> 5 | AQ25: ='Inputs T'!AQ25 -> 5 | AR25: ='Inputs T'!AR25 -> 6 | AS25: ='Inputs T'!AS25 -> 0 | AT25: ='Inputs T'!AT25 -> 0 | AU25: ='Inputs T'!AU25 -> 0 | AV25: ='Inputs T'!AV25 -> 0 | AW25: ='Inputs T'!AW25 -> 0 | AX25: ='Inputs T'!AX25 -> 0 | AY25: ='Inputs T'!AY25 -> 0 | AZ25: ='Inputs T'!AZ25 -> 0 | BA25: ='Inputs T'!BA25 -> 0 | BB25: ='Inputs T'!BB25 -> 0 | BC25: ='Inputs T'!BC25 -> 0 | BD25: ='Inputs T'!BD25 -> 0 | BE25: ='Inputs T'!BE25 -> 0 | BF25: ='Inputs T'!BF25 -> 0 | BG25: ='Inputs T'!BG25 -> 0 | BH25: ='Inputs T'!BH25 -> 0 | BI25: ='Inputs T'!BI25 -> 0 | BJ25: ='Inputs T'!BJ25 -> 0 | BK25: ='Inputs T'!BK25 -> 0 | BL25: ='Inputs T'!BL25 -> 0 | BM25: ='Inputs T'!BM25 -> 0 | BN25: ='Inputs T'!BN25 -> 0 | BO25: ='Inputs T'!BO25 -> 0 | BP25: ='Inputs T'!BP25 -> 0 | BQ25: ='Inputs T'!BQ25 -> 0 | BR25: ='Inputs T'!BR25 -> 0 | BS25: ='Inputs T'!BS25 -> 0 | BT25: ='Inputs T'!BT25 -> 0 | BU25: ='Inputs T'!BU25 -> 0 | BV25: ='Inputs T'!BV25 -> 0 | BW25: ='Inputs T'!BW25 -> 0 | BX25: ='Inputs T'!BX25 -> 0 | BY25: ='Inputs T'!BY25 -> 0 | BZ25: ='Inputs T'!BZ25 -> 0 | CA25: ='Inputs T'!CA25 -> 0 | CB25: ='Inputs T'!CB25 -> 0 | CC25: ='Inputs T'!CC25 -> 0 | CD25: ='Inputs T'!CD25 -> 0 | CE25: ='Inputs T'!CE25 -> 0 | CF25: ='Inputs T'!CF25 -> 0 | CG25: ='Inputs T'!CG25 -> 0 | CH25: ='Inputs T'!CH25 -> 0 | CI25: ='Inputs T'!CI25 -> 0 | CJ25: ='Inputs T'!CJ25 -> 0 | CK25: ='Inputs T'!CK25 -> 0 | CL25: ='Inputs T'!CL25 -> 0 | CM25: ='Inputs T'!CM25 -> 0 | CN25: ='Inputs T'!CN25 -> 0 | CO25: ='Inputs T'!CO25 -> 0 | CP25: ='Inputs T'!CP25 -> 0 | CQ25: ='Inputs T'!CQ25 -> 0 | CR25: ='Inputs T'!CR25 -> 0 | CS25: ='Inputs T'!CS25 -> 0 | CT25: ='Inputs T'!CT25 -> 0 | CU25: ='Inputs T'!CU25 -> 0 | CV25: ='Inputs T'!CV25 -> 0 | CW25: ='Inputs T'!CW25 -> 0 | CX25: ='Inputs T'!CX25 -> 0 | CY25: ='Inputs T'!CY25 -> 0 | CZ25: ='Inputs T'!CZ25 -> 0 | DA25: ='Inputs T'!DA25 -> 0 | DB25: ='Inputs T'!DB25 -> 0 | DC25: ='Inputs T'!DC25 -> 0 | DD25: ='Inputs T'!DD25 -> 0 | DE25: ='Inputs T'!DE25 -> 0 | DF25: ='Inputs T'!DF25 -> 0 | DG25: ='Inputs T'!DG25 -> 0 | DH25: ='Inputs T'!DH25 -> 0 | DI25: ='Inputs T'!DI25 -> 0 | DJ25: ='Inputs T'!DJ25 -> 0 | DK25: ='Inputs T'!DK25 -> 0 | DL25: ='Inputs T'!DL25 -> 0 | DM25: ='Inputs T'!DM25 -> 0 | DN25: ='Inputs T'!DN25 -> 0 | DO25: ='Inputs T'!DO25 -> 0 | DP25: ='Inputs T'!DP25 -> 0 | DQ25: ='Inputs T'!DQ25 -> 0 | DR25: ='Inputs T'!DR25 -> 0 | DS25: ='Inputs T'!DS25 -> 0 | DT25: ='Inputs T'!DT25 -> 0 | DU25: ='Inputs T'!DU25 -> 0 | DV25: ='Inputs T'!DV25 -> 0 | DW25: ='Inputs T'!DW25 -> 0 | DX25: ='Inputs T'!DX25 -> 0 | DY25: ='Inputs T'!DY25 -> 0 | DZ25: ='Inputs T'!DZ25 -> 0 | EA25: ='Inputs T'!EA25 -> 0 | EB25: ='Inputs T'!EB25 -> 0 | EC25: ='Inputs T'!EC25 -> 0 | ED25: ='Inputs T'!ED25 -> 0 | EE25: ='Inputs T'!EE25 -> 0 | EF25: ='Inputs T'!EF25 -> 0 | EG25: ='Inputs T'!EG25 -> 0 | EH25: ='Inputs T'!EH25 -> 0 | EI25: ='Inputs T'!EI25 -> 0 | EJ25: ='Inputs T'!EJ25 -> 0 | EK25: ='Inputs T'!EK25 -> 0 | EL25: ='Inputs T'!EL25 -> 0 | EM25: ='Inputs T'!EM25 -> 0 | EN25: ='Inputs T'!EN25 -> 0 | EO25: ='Inputs T'!EO25 -> 0 | EP25: ='Inputs T'!EP25 -> 0 | EQ25: ='Inputs T'!EQ25 -> 0 | ER25: ='Inputs T'!ER25 -> 0 | ES25: ='Inputs T'!ES25 -> 0 | ET25: ='Inputs T'!ET25 -> 0 | EU25: ='Inputs T'!EU25 -> 0 | EV25: ='Inputs T'!EV25 -> 0 | EW25: ='Inputs T'!EW25 -> 0 | EX25: ='Inputs T'!EX25 -> 0 | EY25: ='Inputs T'!EY25 -> 0 | EZ25: ='Inputs T'!EZ25 -> 0 | FA25: ='Inputs T'!FA25 -> 0 | FB25: ='Inputs T'!FB25 -> 0 | FC25: ='Inputs T'!FC25 -> 0 | FD25: ='Inputs T'!FD25 -> 0 | FE25: ='Inputs T'!FE25 -> 0 | FF25: ='Inputs T'!FF25 -> 0
B27: БАЛАНС
B29: АКТИВЫ | H29: тыс. руб. | M29: =M30+M33 -> 5006.25 | N29: =N30+N33 -> 10012.5 | O29: 15018.75 | P29: 20025 | Q29: 90222.32245 | R29: 200419.3591 | S29: 310106.32 | T29: 346734.0709 | U29: 488504.2207 | V29: 611627.405 | W29: 793560.7099 | X29: 865934.5501 | Y29: 835164.57 | Z29: 716369.4952 | AA29: 709431.1163 | AB29: 702800.0496 | AC29: 696215.9998 | AD29: 689438.7012 | AE29: 682544.961 | AF29: 675735.3167 | AG29: 669050.8561 | AH29: 662194.4566 | AI29: 655240.2606 | AJ29: 648387.8755 | AK29: 642060.6588 | AL29: 635582.7461 | AM29: 629069.4467 | AN29: 622978.6831 | AO29: 617462.2079 | AP29: 611849.9507 | AQ29: 606237.713 | AR29: 32366.60608 | AS29: 0 | AT29: 0 | AU29: 0 | AV29: 0 | AW29: 0 | AX29: 0 | AY29: 0 | AZ29: 0 | BA29: 0 | BB29: 0 | BC29: 0 | BD29: 0 | BE29: 0 | BF29: 0 | BG29: 0 | BH29: 0 | BI29: 0 | BJ29: 0 | BK29: 0 | BL29: 0 | BM29: 0 | BN29: 0 | BO29: 0 | BP29: 0 | BQ29: 0 | BR29: 0 | BS29: 0 | BT29: 0 | BU29: 0 | BV29: 0 | BW29: 0 | BX29: 0 | BY29: 0 | BZ29: =BZ30+BZ33 -> 0 | CA29: 0 | CB29: 0 | CC29: 0 | CD29: 0 | CE29: 0 | CF29: 0 | CG29: 0 | CH29: 0 | CI29: 0 | CJ29: 0 | CK29: 0 | CL29: 0 | CM29: 0 | CN29: 0 | CO29: 0 | CP29: 0 | CQ29: 0 | CR29: 0 | CS29: 0 | CT29: 0 | CU29: 0 | CV29: 0 | CW29: 0 | CX29: 0 | CY29: 0 | CZ29: 0 | DA29: 0 | DB29: 0 | DC29: 0 | DD29: 0 | DE29: 0 | DF29: 0 | DG29: 0 | DH29: 0 | DI29: 0 | DJ29: 0 | DK29: 0 | DL29: 0 | DM29: 0 | DN29: 0 | DO29: 0 | DP29: 0 | DQ29: 0 | DR29: 0 | DS29: 0 | DT29: 0 | DU29: 0 | DV29: 0 | DW29: 0 | DX29: 0 | DY29: 0 | DZ29: 0 | EA29: 0 | EB29: 0 | EC29: 0 | ED29: 0 | EE29: 0 | EF29: 0 | EG29: 0 | EH29: 0 | EI29: 0 | EJ29: 0 | EK29: 0 | EL29: =EL30+EL33 -> 0 | EM29: 0 | EN29: 0 | EO29: 0 | EP29: 0 | EQ29: 0 | ER29: 0 | ES29: 0 | ET29: 0 | EU29: 0 | EV29: 0 | EW29: 0 | EX29: 0 | EY29: 0 | EZ29: 0 | FA29: 0 | FB29: 0 | FC29: 0 | FD29: 0 | FE29: 0 | FF29: 0
B30: Внеоборотные активы | H30: тыс. руб. | M30: =SUM(M31:M32) -> 4172.916667 | N30: =SUM(N31:N32) -> 8345.833333 | O30: 12518.75 | P30: 16691.66667 | Q30: 75198.09752 | R30: 166400.3062 | S30: 256795.8755 | T30: 286370.8451 | U30: 402578.8707 | V30: 501739.9199 | W30: 650697.4992 | X30: 710079.3295 | Y30: 672041.671 | Z30: 665967.6587 | AA30: 659893.6465 | AB30: 653819.6342 | AC30: 647745.6219 | AD30: 641671.6096 | AE30: 635597.5973 | AF30: 629523.585 | AG30: 623449.5727 | AH30: 617375.5605 | AI30: 611301.5482 | AJ30: 605227.5359 | AK30: 599623.5772 | AL30: 594019.6186 | AM30: 588415.6599 | AN30: 582811.7012 | AO30: 577207.7426 | AP30: 571603.7839 | AQ30: 565999.8252 | AR30: 0 | AS30: 0 | AT30: 0 | AU30: 0 | AV30: 0 | AW30: 0 | AX30: 0 | AY30: 0 | AZ30: 0 | BA30: 0 | BB30: 0 | BC30: 0 | BD30: 0 | BE30: 0 | BF30: 0 | BG30: 0 | BH30: 0 | BI30: 0 | BJ30: 0 | BK30: 0 | BL30: 0 | BM30: 0 | BN30: 0 | BO30: 0 | BP30: 0 | BQ30: 0 | BR30: 0 | BS30: 0 | BT30: 0 | BU30: 0 | BV30: 0 | BW30: 0 | BX30: 0 | BY30: 0 | BZ30: =SUM(BZ31:BZ32) -> 0 | CA30: 0 | CB30: 0 | CC30: 0 | CD30: 0 | CE30: 0 | CF30: 0 | CG30: 0 | CH30: 0 | CI30: 0 | CJ30: 0 | CK30: 0 | CL30: 0 | CM30: 0 | CN30: 0 | CO30: 0 | CP30: 0 | CQ30: 0 | CR30: 0 | CS30: 0 | CT30: 0 | CU30: 0 | CV30: 0 | CW30: 0 | CX30: 0 | CY30: 0 | CZ30: 0 | DA30: 0 | DB30: 0 | DC30: 0 | DD30: 0 | DE30: 0 | DF30: 0 | DG30: 0 | DH30: 0 | DI30: 0 | DJ30: 0 | DK30: 0 | DL30: 0 | DM30: 0 | DN30: 0 | DO30: 0 | DP30: 0 | DQ30: 0 | DR30: 0 | DS30: 0 | DT30: 0 | DU30: 0 | DV30: 0 | DW30: 0 | DX30: 0 | DY30: 0 | DZ30: 0 | EA30: 0 | EB30: 0 | EC30: 0 | ED30: 0 | EE30: 0 | EF30: 0 | EG30: 0 | EH30: 0 | EI30: 0 | EJ30: 0 | EK30: 0 | EL30: =SUM(EL31:EL32) -> 0 | EM30: 0 | EN30: 0 | EO30: 0 | EP30: 0 | EQ30: 0 | ER30: 0 | ES30: 0 | ET30: 0 | EU30: 0 | EV30: 0 | EW30: 0 | EX30: 0 | EY30: 0 | EZ30: 0 | FA30: 0 | FB30: 0 | FC30: 0 | FD30: 0 | FE30: 0 | FF30: 0
B31: Основные средства | H31: тыс. руб. | M31: =FixedAssets!M135*(M$15=0) -> 0 | N31: =FixedAssets!N135*(N$15=0) -> 0 | O31: =FixedAssets!O135*(O$15=0) -> 0 | P31: =FixedAssets!P135*(P$15=0) -> 0 | Q31: =FixedAssets!Q135*(Q$15=0) -> 0 | R31: =FixedAssets!R135*(R$15=0) -> 0 | S31: =FixedAssets!S135*(S$15=0) -> 0 | T31: =FixedAssets!T135*(T$15=0) -> 0 | U31: =FixedAssets!U135*(U$15=0) -> 0 | V31: =FixedAssets!V135*(V$15=0) -> 0 | W31: =FixedAssets!W135*(W$15=0) -> 0 | X31: =FixedAssets!X135*(X$15=0) -> 0 | Y31: =FixedAssets!Y135*(Y$15=0) -> 672041.671 | Z31: =FixedAssets!Z135*(Z$15=0) -> 665967.6587 | AA31: =FixedAssets!AA135*(AA$15=0) -> 659893.6465 | AB31: =FixedAssets!AB135*(AB$15=0) -> 653819.6342 | AC31: =FixedAssets!AC135*(AC$15=0) -> 647745.6219 | AD31: =FixedAssets!AD135*(AD$15=0) -> 641671.6096 | AE31: =FixedAssets!AE135*(AE$15=0) -> 635597.5973 | AF31: =FixedAssets!AF135*(AF$15=0) -> 629523.585 | AG31: =FixedAssets!AG135*(AG$15=0) -> 623449.5727 | AH31: =FixedAssets!AH135*(AH$15=0) -> 617375.5605 | AI31: =FixedAssets!AI135*(AI$15=0) -> 611301.5482 | AJ31: =FixedAssets!AJ135*(AJ$15=0) -> 605227.5359 | AK31: =FixedAssets!AK135*(AK$15=0) -> 599623.5772 | AL31: =FixedAssets!AL135*(AL$15=0) -> 594019.6186 | AM31: =FixedAssets!AM135*(AM$15=0) -> 588415.6599 | AN31: =FixedAssets!AN135*(AN$15=0) -> 582811.7012 | AO31: =FixedAssets!AO135*(AO$15=0) -> 577207.7426 | AP31: =FixedAssets!AP135*(AP$15=0) -> 571603.7839 | AQ31: =FixedAssets!AQ135*(AQ$15=0) -> 565999.8252 | AR31: =FixedAssets!AR135*(AR$15=0) -> 0 | AS31: =FixedAssets!AS135*(AS$15=0) -> 0 | AT31: =FixedAssets!AT135*(AT$15=0) -> 0 | AU31: =FixedAssets!AU135*(AU$15=0) -> 0 | AV31: =FixedAssets!AV135*(AV$15=0) -> 0 | AW31: =FixedAssets!AW135*(AW$15=0) -> 0 | AX31: =FixedAssets!AX135*(AX$15=0) -> 0 | AY31: =FixedAssets!AY135*(AY$15=0) -> 0 | AZ31: =FixedAssets!AZ135*(AZ$15=0) -> 0 | BA31: =FixedAssets!BA135*(BA$15=0) -> 0 | BB31: =FixedAssets!BB135*(BB$15=0) -> 0 | BC31: =FixedAssets!BC135*(BC$15=0) -> 0 | BD31: =FixedAssets!BD135*(BD$15=0) -> 0 | BE31: =FixedAssets!BE135*(BE$15=0) -> 0 | BF31: =FixedAssets!BF135*(BF$15=0) -> 0 | BG31: =FixedAssets!BG135*(BG$15=0) -> 0 | BH31: =FixedAssets!BH135*(BH$15=0) -> 0 | BI31: =FixedAssets!BI135*(BI$15=0) -> 0 | BJ31: =FixedAssets!BJ135*(BJ$15=0) -> 0 | BK31: =FixedAssets!BK135*(BK$15=0) -> 0 | BL31: =FixedAssets!BL135*(BL$15=0) -> 0 | BM31: =FixedAssets!BM135*(BM$15=0) -> 0 | BN31: =FixedAssets!BN135*(BN$15=0) -> 0 | BO31: =FixedAssets!BO135*(BO$15=0) -> 0 | BP31: =FixedAssets!BP135*(BP$15=0) -> 0 | BQ31: =FixedAssets!BQ135*(BQ$15=0) -> 0 | BR31: =FixedAssets!BR135*(BR$15=0) -> 0 | BS31: =FixedAssets!BS135*(BS$15=0) -> 0 | BT31: =FixedAssets!BT135*(BT$15=0) -> 0 | BU31: =FixedAssets!BU135*(BU$15=0) -> 0 | BV31: =FixedAssets!BV135*(BV$15=0) -> 0 | BW31: =FixedAssets!BW135*(BW$15=0) -> 0 | BX31: =FixedAssets!BX135*(BX$15=0) -> 0 | BY31: =FixedAssets!BY135*(BY$15=0) -> 0 | BZ31: =FixedAssets!BZ135*(BZ$15=0) -> 0 | CA31: =FixedAssets!CA135*(CA$15=0) -> 0 | CB31: =FixedAssets!CB135*(CB$15=0) -> 0 | CC31: =FixedAssets!CC135*(CC$15=0) -> 0 | CD31: =FixedAssets!CD135*(CD$15=0) -> 0 | CE31: =FixedAssets!CE135*(CE$15=0) -> 0 | CF31: =FixedAssets!CF135*(CF$15=0) -> 0 | CG31: =FixedAssets!CG135*(CG$15=0) -> 0 | CH31: =FixedAssets!CH135*(CH$15=0) -> 0 | CI31: =FixedAssets!CI135*(CI$15=0) -> 0 | CJ31: =FixedAssets!CJ135*(CJ$15=0) -> 0 | CK31: =FixedAssets!CK135*(CK$15=0) -> 0 | CL31: =FixedAssets!CL135*(CL$15=0) -> 0 | CM31: =FixedAssets!CM135*(CM$15=0) -> 0 | CN31: =FixedAssets!CN135*(CN$15=0) -> 0 | CO31: =FixedAssets!CO135*(CO$15=0) -> 0 | CP31: =FixedAssets!CP135*(CP$15=0) -> 0 | CQ31: =FixedAssets!CQ135*(CQ$15=0) -> 0 | CR31: =FixedAssets!CR135*(CR$15=0) -> 0 | CS31: =FixedAssets!CS135*(CS$15=0) -> 0 | CT31: =FixedAssets!CT135*(CT$15=0) -> 0 | CU31: =FixedAssets!CU135*(CU$15=0) -> 0 | CV31: =FixedAssets!CV135*(CV$15=0) -> 0 | CW31: =FixedAssets!CW135*(CW$15=0) -> 0 | CX31: =FixedAssets!CX135*(CX$15=0) -> 0 | CY31: =FixedAssets!CY135*(CY$15=0) -> 0 | CZ31: =FixedAssets!CZ135*(CZ$15=0) -> 0 | DA31: =FixedAssets!DA135*(DA$15=0) -> 0 | DB31: =FixedAssets!DB135*(DB$15=0) -> 0 | DC31: =FixedAssets!DC135*(DC$15=0) -> 0 | DD31: =FixedAssets!DD135*(DD$15=0) -> 0 | DE31: =FixedAssets!DE135*(DE$15=0) -> 0 | DF31: =FixedAssets!DF135*(DF$15=0) -> 0 | DG31: =FixedAssets!DG135*(DG$15=0) -> 0 | DH31: =FixedAssets!DH135*(DH$15=0) -> 0 | DI31: =FixedAssets!DI135*(DI$15=0) -> 0 | DJ31: =FixedAssets!DJ135*(DJ$15=0) -> 0 | DK31: =FixedAssets!DK135*(DK$15=0) -> 0 | DL31: =FixedAssets!DL135*(DL$15=0) -> 0 | DM31: =FixedAssets!DM135*(DM$15=0) -> 0 | DN31: =FixedAssets!DN135*(DN$15=0) -> 0 | DO31: =FixedAssets!DO135*(DO$15=0) -> 0 | DP31: =FixedAssets!DP135*(DP$15=0) -> 0 | DQ31: =FixedAssets!DQ135*(DQ$15=0) -> 0 | DR31: =FixedAssets!DR135*(DR$15=0) -> 0 | DS31: =FixedAssets!DS135*(DS$15=0) -> 0 | DT31: =FixedAssets!DT135*(DT$15=0) -> 0 | DU31: =FixedAssets!DU135*(DU$15=0) -> 0 | DV31: =FixedAssets!DV135*(DV$15=0) -> 0 | DW31: =FixedAssets!DW135*(DW$15=0) -> 0 | DX31: =FixedAssets!DX135*(DX$15=0) -> 0 | DY31: =FixedAssets!DY135*(DY$15=0) -> 0 | DZ31: =FixedAssets!DZ135*(DZ$15=0) -> 0 | EA31: =FixedAssets!EA135*(EA$15=0) -> 0 | EB31: =FixedAssets!EB135*(EB$15=0) -> 0 | EC31: =FixedAssets!EC135*(EC$15=0) -> 0 | ED31: =FixedAssets!ED135*(ED$15=0) -> 0 | EE31: =FixedAssets!EE135*(EE$15=0) -> 0 | EF31: =FixedAssets!EF135*(EF$15=0) -> 0 | EG31: =FixedAssets!EG135*(EG$15=0) -> 0 | EH31: =FixedAssets!EH135*(EH$15=0) -> 0 | EI31: =FixedAssets!EI135*(EI$15=0) -> 0 | EJ31: =FixedAssets!EJ135*(EJ$15=0) -> 0 | EK31: =FixedAssets!EK135*(EK$15=0) -> 0 | EL31: =FixedAssets!EL135*(EL$15=0) -> 0 | EM31: =FixedAssets!EM135*(EM$15=0) -> 0 | EN31: =FixedAssets!EN135*(EN$15=0) -> 0 | EO31: =FixedAssets!EO135*(EO$15=0) -> 0 | EP31: =FixedAssets!EP135*(EP$15=0) -> 0 | EQ31: =FixedAssets!EQ135*(EQ$15=0) -> 0 | ER31: =FixedAssets!ER135*(ER$15=0) -> 0 | ES31: =FixedAssets!ES135*(ES$15=0) -> 0 | ET31: =FixedAssets!ET135*(ET$15=0) -> 0 | EU31: =FixedAssets!EU135*(EU$15=0) -> 0 | EV31: =FixedAssets!EV135*(EV$15=0) -> 0 | EW31: =FixedAssets!EW135*(EW$15=0) -> 0 | EX31: =FixedAssets!EX135*(EX$15=0) -> 0 | EY31: =FixedAssets!EY135*(EY$15=0) -> 0 | EZ31: =FixedAssets!EZ135*(EZ$15=0) -> 0 | FA31: =FixedAssets!FA135*(FA$15=0) -> 0 | FB31: =FixedAssets!FB135*(FB$15=0) -> 0 | FC31: =FixedAssets!FC135*(FC$15=0) -> 0 | FD31: =FixedAssets!FD135*(FD$15=0) -> 0 | FE31: =FixedAssets!FE135*(FE$15=0) -> 0 | FF31: =FixedAssets!FF135*(FF$15=0) -> 0
B32: Незавершенное строительство | H32: тыс. руб. | M32: =FixedAssets!M125*(M$15=0) -> 4172.916667 | N32: =FixedAssets!N125*(N$15=0) -> 8345.833333 | O32: =FixedAssets!O125*(O$15=0) -> 12518.75 | P32: =FixedAssets!P125*(P$15=0) -> 16691.66667 | Q32: =FixedAssets!Q125*(Q$15=0) -> 75198.09752 | R32: =FixedAssets!R125*(R$15=0) -> 166400.3062 | S32: =FixedAssets!S125*(S$15=0) -> 256795.8755 | T32: =FixedAssets!T125*(T$15=0) -> 286370.8451 | U32: =FixedAssets!U125*(U$15=0) -> 402578.8707 | V32: =FixedAssets!V125*(V$15=0) -> 501739.9199 | W32: =FixedAssets!W125*(W$15=0) -> 650697.4992 | X32: =FixedAssets!X125*(X$15=0) -> 710079.3295 | Y32: =FixedAssets!Y125*(Y$15=0) -> 0 | Z32: =FixedAssets!Z125*(Z$15=0) -> 0 | AA32: =FixedAssets!AA125*(AA$15=0) -> 0 | AB32: =FixedAssets!AB125*(AB$15=0) -> 0 | AC32: =FixedAssets!AC125*(AC$15=0) -> 0 | AD32: =FixedAssets!AD125*(AD$15=0) -> 0 | AE32: =FixedAssets!AE125*(AE$15=0) -> 0 | AF32: =FixedAssets!AF125*(AF$15=0) -> 0 | AG32: =FixedAssets!AG125*(AG$15=0) -> 0 | AH32: =FixedAssets!AH125*(AH$15=0) -> 0 | AI32: =FixedAssets!AI125*(AI$15=0) -> 0 | AJ32: =FixedAssets!AJ125*(AJ$15=0) -> 0 | AK32: =FixedAssets!AK125*(AK$15=0) -> 0 | AL32: =FixedAssets!AL125*(AL$15=0) -> 0 | AM32: =FixedAssets!AM125*(AM$15=0) -> 0 | AN32: =FixedAssets!AN125*(AN$15=0) -> 0 | AO32: =FixedAssets!AO125*(AO$15=0) -> 0 | AP32: =FixedAssets!AP125*(AP$15=0) -> 0 | AQ32: =FixedAssets!AQ125*(AQ$15=0) -> 0 | AR32: =FixedAssets!AR125*(AR$15=0) -> 0 | AS32: =FixedAssets!AS125*(AS$15=0) -> 0 | AT32: =FixedAssets!AT125*(AT$15=0) -> 0 | AU32: =FixedAssets!AU125*(AU$15=0) -> 0 | AV32: =FixedAssets!AV125*(AV$15=0) -> 0 | AW32: =FixedAssets!AW125*(AW$15=0) -> 0 | AX32: =FixedAssets!AX125*(AX$15=0) -> 0 | AY32: =FixedAssets!AY125*(AY$15=0) -> 0 | AZ32: =FixedAssets!AZ125*(AZ$15=0) -> 0 | BA32: =FixedAssets!BA125*(BA$15=0) -> 0 | BB32: =FixedAssets!BB125*(BB$15=0) -> 0 | BC32: =FixedAssets!BC125*(BC$15=0) -> 0 | BD32: =FixedAssets!BD125*(BD$15=0) -> 0 | BE32: =FixedAssets!BE125*(BE$15=0) -> 0 | BF32: =FixedAssets!BF125*(BF$15=0) -> 0 | BG32: =FixedAssets!BG125*(BG$15=0) -> 0 | BH32: =FixedAssets!BH125*(BH$15=0) -> 0 | BI32: =FixedAssets!BI125*(BI$15=0) -> 0 | BJ32: =FixedAssets!BJ125*(BJ$15=0) -> 0 | BK32: =FixedAssets!BK125*(BK$15=0) -> 0 | BL32: =FixedAssets!BL125*(BL$15=0) -> 0 | BM32: =FixedAssets!BM125*(BM$15=0) -> 0 | BN32: =FixedAssets!BN125*(BN$15=0) -> 0 | BO32: =FixedAssets!BO125*(BO$15=0) -> 0 | BP32: =FixedAssets!BP125*(BP$15=0) -> 0 | BQ32: =FixedAssets!BQ125*(BQ$15=0) -> 0 | BR32: =FixedAssets!BR125*(BR$15=0) -> 0 | BS32: =FixedAssets!BS125*(BS$15=0) -> 0 | BT32: =FixedAssets!BT125*(BT$15=0) -> 0 | BU32: =FixedAssets!BU125*(BU$15=0) -> 0 | BV32: =FixedAssets!BV125*(BV$15=0) -> 0 | BW32: =FixedAssets!BW125*(BW$15=0) -> 0 | BX32: =FixedAssets!BX125*(BX$15=0) -> 0 | BY32: =FixedAssets!BY125*(BY$15=0) -> 0 | BZ32: =FixedAssets!BZ125*(BZ$15=0) -> 0 | CA32: =FixedAssets!CA125*(CA$15=0) -> 0 | CB32: =FixedAssets!CB125*(CB$15=0) -> 0 | CC32: =FixedAssets!CC125*(CC$15=0) -> 0 | CD32: =FixedAssets!CD125*(CD$15=0) -> 0 | CE32: =FixedAssets!CE125*(CE$15=0) -> 0 | CF32: =FixedAssets!CF125*(CF$15=0) -> 0 | CG32: =FixedAssets!CG125*(CG$15=0) -> 0 | CH32: =FixedAssets!CH125*(CH$15=0) -> 0 | CI32: =FixedAssets!CI125*(CI$15=0) -> 0 | CJ32: =FixedAssets!CJ125*(CJ$15=0) -> 0 | CK32: =FixedAssets!CK125*(CK$15=0) -> 0 | CL32: =FixedAssets!CL125*(CL$15=0) -> 0 | CM32: =FixedAssets!CM125*(CM$15=0) -> 0 | CN32: =FixedAssets!CN125*(CN$15=0) -> 0 | CO32: =FixedAssets!CO125*(CO$15=0) -> 0 | CP32: =FixedAssets!CP125*(CP$15=0) -> 0 | CQ32: =FixedAssets!CQ125*(CQ$15=0) -> 0 | CR32: =FixedAssets!CR125*(CR$15=0) -> 0 | CS32: =FixedAssets!CS125*(CS$15=0) -> 0 | CT32: =FixedAssets!CT125*(CT$15=0) -> 0 | CU32: =FixedAssets!CU125*(CU$15=0) -> 0 | CV32: =FixedAssets!CV125*(CV$15=0) -> 0 | CW32: =FixedAssets!CW125*(CW$15=0) -> 0 | CX32: =FixedAssets!CX125*(CX$15=0) -> 0 | CY32: =FixedAssets!CY125*(CY$15=0) -> 0 | CZ32: =FixedAssets!CZ125*(CZ$15=0) -> 0 | DA32: =FixedAssets!DA125*(DA$15=0) -> 0 | DB32: =FixedAssets!DB125*(DB$15=0) -> 0 | DC32: =FixedAssets!DC125*(DC$15=0) -> 0 | DD32: =FixedAssets!DD125*(DD$15=0) -> 0 | DE32: =FixedAssets!DE125*(DE$15=0) -> 0 | DF32: =FixedAssets!DF125*(DF$15=0) -> 0 | DG32: =FixedAssets!DG125*(DG$15=0) -> 0 | DH32: =FixedAssets!DH125*(DH$15=0) -> 0 | DI32: =FixedAssets!DI125*(DI$15=0) -> 0 | DJ32: =FixedAssets!DJ125*(DJ$15=0) -> 0 | DK32: =FixedAssets!DK125*(DK$15=0) -> 0 | DL32: =FixedAssets!DL125*(DL$15=0) -> 0 | DM32: =FixedAssets!DM125*(DM$15=0) -> 0 | DN32: =FixedAssets!DN125*(DN$15=0) -> 0 | DO32: =FixedAssets!DO125*(DO$15=0) -> 0 | DP32: =FixedAssets!DP125*(DP$15=0) -> 0 | DQ32: =FixedAssets!DQ125*(DQ$15=0) -> 0 | DR32: =FixedAssets!DR125*(DR$15=0) -> 0 | DS32: =FixedAssets!DS125*(DS$15=0) -> 0 | DT32: =FixedAssets!DT125*(DT$15=0) -> 0 | DU32: =FixedAssets!DU125*(DU$15=0) -> 0 | DV32: =FixedAssets!DV125*(DV$15=0) -> 0 | DW32: =FixedAssets!DW125*(DW$15=0) -> 0 | DX32: =FixedAssets!DX125*(DX$15=0) -> 0 | DY32: =FixedAssets!DY125*(DY$15=0) -> 0 | DZ32: =FixedAssets!DZ125*(DZ$15=0) -> 0 | EA32: =FixedAssets!EA125*(EA$15=0) -> 0 | EB32: =FixedAssets!EB125*(EB$15=0) -> 0 | EC32: =FixedAssets!EC125*(EC$15=0) -> 0 | ED32: =FixedAssets!ED125*(ED$15=0) -> 0 | EE32: =FixedAssets!EE125*(EE$15=0) -> 0 | EF32: =FixedAssets!EF125*(EF$15=0) -> 0 | EG32: =FixedAssets!EG125*(EG$15=0) -> 0 | EH32: =FixedAssets!EH125*(EH$15=0) -> 0 | EI32: =FixedAssets!EI125*(EI$15=0) -> 0 | EJ32: =FixedAssets!EJ125*(EJ$15=0) -> 0 | EK32: =FixedAssets!EK125*(EK$15=0) -> 0 | EL32: =FixedAssets!EL125*(EL$15=0) -> 0 | EM32: =FixedAssets!EM125*(EM$15=0) -> 0 | EN32: =FixedAssets!EN125*(EN$15=0) -> 0 | EO32: =FixedAssets!EO125*(EO$15=0) -> 0 | EP32: =FixedAssets!EP125*(EP$15=0) -> 0 | EQ32: =FixedAssets!EQ125*(EQ$15=0) -> 0 | ER32: =FixedAssets!ER125*(ER$15=0) -> 0 | ES32: =FixedAssets!ES125*(ES$15=0) -> 0 | ET32: =FixedAssets!ET125*(ET$15=0) -> 0 | EU32: =FixedAssets!EU125*(EU$15=0) -> 0 | EV32: =FixedAssets!EV125*(EV$15=0) -> 0 | EW32: =FixedAssets!EW125*(EW$15=0) -> 0 | EX32: =FixedAssets!EX125*(EX$15=0) -> 0 | EY32: =FixedAssets!EY125*(EY$15=0) -> 0 | EZ32: =FixedAssets!EZ125*(EZ$15=0) -> 0 | FA32: =FixedAssets!FA125*(FA$15=0) -> 0 | FB32: =FixedAssets!FB125*(FB$15=0) -> 0 | FC32: =FixedAssets!FC125*(FC$15=0) -> 0 | FD32: =FixedAssets!FD125*(FD$15=0) -> 0 | FE32: =FixedAssets!FE125*(FE$15=0) -> 0 | FF32: =FixedAssets!FF125*(FF$15=0) -> 0
B33: Оборотные активы | H33: тыс. руб. | M33: =SUM(M34:M38) -> 833.3333333 | N33: =SUM(N34:N38) -> 1666.666667 | O33: 2500 | P33: 3333.333333 | Q33: 15024.22493 | R33: 34019.05293 | S33: 53310.4445 | T33: 60363.22576 | U33: 85925.35005 | V33: 109887.4851 | W33: 142863.2108 | X33: 155855.2206 | Y33: 163122.899 | Z33: 50401.83644 | AA33: 49537.46988 | AB33: 48980.41545 | AC33: 48470.37796 | AD33: 47767.09159 | AE33: 46947.36373 | AF33: 46211.73172 | AG33: 45601.28334 | AH33: 44818.89613 | AI33: 43938.71244 | AJ33: =SUM(AJ34:AJ38) -> 43160.33962 | AK33: =SUM(AK34:AK38) -> 42437.08159 | AL33: =SUM(AL34:AL38) -> 41563.12754 | AM33: =SUM(AM34:AM38) -> 40653.78679 | AN33: =SUM(AN34:AN38) -> 40166.98185 | AO33: =SUM(AO34:AO38) -> 40254.4653 | AP33: =SUM(AP34:AP38) -> 40246.16682 | AQ33: =SUM(AQ34:AQ38) -> 40237.88781 | AR33: =SUM(AR34:AR38) -> 32366.60608 | AS33: =SUM(AS34:AS38) -> 0 | AT33: =SUM(AT34:AT38) -> 0 | AU33: =SUM(AU34:AU38) -> 0 | AV33: =SUM(AV34:AV38) -> 0 | AW33: =SUM(AW34:AW38) -> 0 | AX33: =SUM(AX34:AX38) -> 0 | AY33: =SUM(AY34:AY38) -> 0 | AZ33: =SUM(AZ34:AZ38) -> 0 | BA33: =SUM(BA34:BA38) -> 0 | BB33: =SUM(BB34:BB38) -> 0 | BC33: =SUM(BC34:BC38) -> 0 | BD33: =SUM(BD34:BD38) -> 0 | BE33: 0 | BF33: =SUM(BF34:BF38) -> 0 | BG33: =SUM(BG34:BG38) -> 0 | BH33: =SUM(BH34:BH38) -> 0 | BI33: =SUM(BI34:BI38) -> 0 | BJ33: =SUM(BJ34:BJ38) -> 0 | BK33: =SUM(BK34:BK38) -> 0 | BL33: =SUM(BL34:BL38) -> 0 | BM33: =SUM(BM34:BM38) -> 0 | BN33: =SUM(BN34:BN38) -> 0 | BO33: =SUM(BO34:BO38) -> 0 | BP33: =SUM(BP34:BP38) -> 0 | BQ33: =SUM(BQ34:BQ38) -> 0 | BR33: =SUM(BR34:BR38) -> 0 | BS33: =SUM(BS34:BS38) -> 0 | BT33: =SUM(BT34:BT38) -> 0 | BU33: =SUM(BU34:BU38) -> 0 | BV33: =SUM(BV34:BV38) -> 0 | BW33: =SUM(BW34:BW38) -> 0 | BX33: =SUM(BX34:BX38) -> 0 | BY33: =SUM(BY34:BY38) -> 0 | BZ33: =SUM(BZ34:BZ38) -> 0 | CA33: 0 | CB33: =SUM(CB34:CB38) -> 0 | CC33: =SUM(CC34:CC38) -> 0 | CD33: =SUM(CD34:CD38) -> 0 | CE33: =SUM(CE34:CE38) -> 0 | CF33: =SUM(CF34:CF38) -> 0 | CG33: =SUM(CG34:CG38) -> 0 | CH33: =SUM(CH34:CH38) -> 0 | CI33: =SUM(CI34:CI38) -> 0 | CJ33: =SUM(CJ34:CJ38) -> 0 | CK33: =SUM(CK34:CK38) -> 0 | CL33: =SUM(CL34:CL38) -> 0 | CM33: =SUM(CM34:CM38) -> 0 | CN33: =SUM(CN34:CN38) -> 0 | CO33: =SUM(CO34:CO38) -> 0 | CP33: =SUM(CP34:CP38) -> 0 | CQ33: =SUM(CQ34:CQ38) -> 0 | CR33: =SUM(CR34:CR38) -> 0 | CS33: =SUM(CS34:CS38) -> 0 | CT33: =SUM(CT34:CT38) -> 0 | CU33: =SUM(CU34:CU38) -> 0 | CV33: =SUM(CV34:CV38) -> 0 | CW33: 0 | CX33: =SUM(CX34:CX38) -> 0 | CY33: =SUM(CY34:CY38) -> 0 | CZ33: =SUM(CZ34:CZ38) -> 0 | DA33: =SUM(DA34:DA38) -> 0 | DB33: =SUM(DB34:DB38) -> 0 | DC33: =SUM(DC34:DC38) -> 0 | DD33: =SUM(DD34:DD38) -> 0 | DE33: =SUM(DE34:DE38) -> 0 | DF33: =SUM(DF34:DF38) -> 0 | DG33: =SUM(DG34:DG38) -> 0 | DH33: =SUM(DH34:DH38) -> 0 | DI33: =SUM(DI34:DI38) -> 0 | DJ33: =SUM(DJ34:DJ38) -> 0 | DK33: =SUM(DK34:DK38) -> 0 | DL33: =SUM(DL34:DL38) -> 0 | DM33: =SUM(DM34:DM38) -> 0 | DN33: =SUM(DN34:DN38) -> 0 | DO33: =SUM(DO34:DO38) -> 0 | DP33: =SUM(DP34:DP38) -> 0 | DQ33: =SUM(DQ34:DQ38) -> 0 | DR33: =SUM(DR34:DR38) -> 0 | DS33: 0 | DT33: =SUM(DT34:DT38) -> 0 | DU33: =SUM(DU34:DU38) -> 0 | DV33: =SUM(DV34:DV38) -> 0 | DW33: =SUM(DW34:DW38) -> 0 | DX33: =SUM(DX34:DX38) -> 0 | DY33: =SUM(DY34:DY38) -> 0 | DZ33: =SUM(DZ34:DZ38) -> 0 | EA33: =SUM(EA34:EA38) -> 0 | EB33: =SUM(EB34:EB38) -> 0 | EC33: =SUM(EC34:EC38) -> 0 | ED33: =SUM(ED34:ED38) -> 0 | EE33: =SUM(EE34:EE38) -> 0 | EF33: =SUM(EF34:EF38) -> 0 | EG33: =SUM(EG34:EG38) -> 0 | EH33: =SUM(EH34:EH38) -> 0 | EI33: =SUM(EI34:EI38) -> 0 | EJ33: =SUM(EJ34:EJ38) -> 0 | EK33: =SUM(EK34:EK38) -> 0 | EL33: =SUM(EL34:EL38) -> 0 | EM33: =SUM(EM34:EM38) -> 0 | EN33: =SUM(EN34:EN38) -> 0 | EO33: 0 | EP33: =SUM(EP34:EP38) -> 0 | EQ33: =SUM(EQ34:EQ38) -> 0 | ER33: =SUM(ER34:ER38) -> 0 | ES33: =SUM(ES34:ES38) -> 0 | ET33: =SUM(ET34:ET38) -> 0 | EU33: =SUM(EU34:EU38) -> 0 | EV33: =SUM(EV34:EV38) -> 0 | EW33: =SUM(EW34:EW38) -> 0 | EX33: =SUM(EX34:EX38) -> 0 | EY33: =SUM(EY34:EY38) -> 0 | EZ33: =SUM(EZ34:EZ38) -> 0 | FA33: =SUM(FA34:FA38) -> 0 | FB33: =SUM(FB34:FB38) -> 0 | FC33: =SUM(FC34:FC38) -> 0 | FD33: =SUM(FD34:FD38) -> 0 | FE33: =SUM(FE34:FE38) -> 0 | FF33: =SUM(FF34:FF38) -> 0
B34: НДС по приобретенным ценностям | H34: тыс. руб. | M34: =Tax!M81*(M$15=0) -> 833.3333333 | N34: =Tax!N81*(N$15=0) -> 1666.666667 | O34: =Tax!O81*(O$15=0) -> 2500 | P34: =Tax!P81*(P$15=0) -> 3333.333333 | Q34: =Tax!Q81*(Q$15=0) -> 15024.22493 | R34: =Tax!R81*(R$15=0) -> 33254.27207 | S34: =Tax!S81*(S$15=0) -> 51322.99137 | T34: =Tax!T81*(T$15=0) -> 57227.59071 | U34: =Tax!U81*(U$15=0) -> 80458.80124 | V34: =Tax!V81*(V$15=0) -> 100280.6165 | W34: =Tax!W81*(W$15=0) -> 130061.7378 | X34: =Tax!X81*(X$15=0) -> 141927.7093 | Y34: =Tax!Y81*(Y$15=0) -> 141927.7093 | Z34: =Tax!Z81*(Z$15=0) -> 31224.09604 | AA34: =Tax!AA81*(AA$15=0) -> 31224.09604 | AB34: =Tax!AB81*(AB$15=0) -> 31224.09604 | AC34: =Tax!AC81*(AC$15=0) -> 31224.09604 | AD34: =Tax!AD81*(AD$15=0) -> 31224.09604 | AE34: =Tax!AE81*(AE$15=0) -> 31224.09604 | AF34: =Tax!AF81*(AF$15=0) -> 31224.09604 | AG34: =Tax!AG81*(AG$15=0) -> 31224.09604 | AH34: =Tax!AH81*(AH$15=0) -> 31224.09604 | AI34: =Tax!AI81*(AI$15=0) -> 31224.09604 | AJ34: =Tax!AJ81*(AJ$15=0) -> 31224.09604 | AK34: =Tax!AK81*(AK$15=0) -> 31224.09604 | AL34: =Tax!AL81*(AL$15=0) -> 31224.09604 | AM34: =Tax!AM81*(AM$15=0) -> 31224.09604 | AN34: =Tax!AN81*(AN$15=0) -> 31224.09604 | AO34: =Tax!AO81*(AO$15=0) -> 31224.09604 | AP34: =Tax!AP81*(AP$15=0) -> 31224.09604 | AQ34: =Tax!AQ81*(AQ$15=0) -> 31224.09604 | AR34: =Tax!AR81*(AR$15=0) -> 31224.09604 | AS34: =Tax!AS81*(AS$15=0) -> 0 | AT34: =Tax!AT81*(AT$15=0) -> 0 | AU34: =Tax!AU81*(AU$15=0) -> 0 | AV34: =Tax!AV81*(AV$15=0) -> 0 | AW34: =Tax!AW81*(AW$15=0) -> 0 | AX34: =Tax!AX81*(AX$15=0) -> 0 | AY34: =Tax!AY81*(AY$15=0) -> 0 | AZ34: =Tax!AZ81*(AZ$15=0) -> 0 | BA34: =Tax!BA81*(BA$15=0) -> 0 | BB34: =Tax!BB81*(BB$15=0) -> 0 | BC34: =Tax!BC81*(BC$15=0) -> 0 | BD34: =Tax!BD81*(BD$15=0) -> 0 | BE34: =Tax!BE81*(BE$15=0) -> 0 | BF34: =Tax!BF81*(BF$15=0) -> 0 | BG34: =Tax!BG81*(BG$15=0) -> 0 | BH34: =Tax!BH81*(BH$15=0) -> 0 | BI34: =Tax!BI81*(BI$15=0) -> 0 | BJ34: =Tax!BJ81*(BJ$15=0) -> 0 | BK34: =Tax!BK81*(BK$15=0) -> 0 | BL34: =Tax!BL81*(BL$15=0) -> 0 | BM34: =Tax!BM81*(BM$15=0) -> 0 | BN34: =Tax!BN81*(BN$15=0) -> 0 | BO34: =Tax!BO81*(BO$15=0) -> 0 | BP34: =Tax!BP81*(BP$15=0) -> 0 | BQ34: =Tax!BQ81*(BQ$15=0) -> 0 | BR34: =Tax!BR81*(BR$15=0) -> 0 | BS34: =Tax!BS81*(BS$15=0) -> 0 | BT34: =Tax!BT81*(BT$15=0) -> 0 | BU34: =Tax!BU81*(BU$15=0) -> 0 | BV34: =Tax!BV81*(BV$15=0) -> 0 | BW34: =Tax!BW81*(BW$15=0) -> 0 | BX34: =Tax!BX81*(BX$15=0) -> 0 | BY34: =Tax!BY81*(BY$15=0) -> 0 | BZ34: =Tax!BZ81*(BZ$15=0) -> 0 | CA34: =Tax!CA81*(CA$15=0) -> 0 | CB34: =Tax!CB81*(CB$15=0) -> 0 | CC34: =Tax!CC81*(CC$15=0) -> 0 | CD34: =Tax!CD81*(CD$15=0) -> 0 | CE34: =Tax!CE81*(CE$15=0) -> 0 | CF34: =Tax!CF81*(CF$15=0) -> 0 | CG34: =Tax!CG81*(CG$15=0) -> 0 | CH34: =Tax!CH81*(CH$15=0) -> 0 | CI34: =Tax!CI81*(CI$15=0) -> 0 | CJ34: =Tax!CJ81*(CJ$15=0) -> 0 | CK34: =Tax!CK81*(CK$15=0) -> 0 | CL34: =Tax!CL81*(CL$15=0) -> 0 | CM34: =Tax!CM81*(CM$15=0) -> 0 | CN34: =Tax!CN81*(CN$15=0) -> 0 | CO34: =Tax!CO81*(CO$15=0) -> 0 | CP34: =Tax!CP81*(CP$15=0) -> 0 | CQ34: =Tax!CQ81*(CQ$15=0) -> 0 | CR34: =Tax!CR81*(CR$15=0) -> 0 | CS34: =Tax!CS81*(CS$15=0) -> 0 | CT34: =Tax!CT81*(CT$15=0) -> 0 | CU34: =Tax!CU81*(CU$15=0) -> 0 | CV34: =Tax!CV81*(CV$15=0) -> 0 | CW34: =Tax!CW81*(CW$15=0) -> 0 | CX34: =Tax!CX81*(CX$15=0) -> 0 | CY34: =Tax!CY81*(CY$15=0) -> 0 | CZ34: =Tax!CZ81*(CZ$15=0) -> 0 | DA34: =Tax!DA81*(DA$15=0) -> 0 | DB34: =Tax!DB81*(DB$15=0) -> 0 | DC34: =Tax!DC81*(DC$15=0) -> 0 | DD34: =Tax!DD81*(DD$15=0) -> 0 | DE34: =Tax!DE81*(DE$15=0) -> 0 | DF34: =Tax!DF81*(DF$15=0) -> 0 | DG34: =Tax!DG81*(DG$15=0) -> 0 | DH34: =Tax!DH81*(DH$15=0) -> 0 | DI34: =Tax!DI81*(DI$15=0) -> 0 | DJ34: =Tax!DJ81*(DJ$15=0) -> 0 | DK34: =Tax!DK81*(DK$15=0) -> 0 | DL34: =Tax!DL81*(DL$15=0) -> 0 | DM34: =Tax!DM81*(DM$15=0) -> 0 | DN34: =Tax!DN81*(DN$15=0) -> 0 | DO34: =Tax!DO81*(DO$15=0) -> 0 | DP34: =Tax!DP81*(DP$15=0) -> 0 | DQ34: =Tax!DQ81*(DQ$15=0) -> 0 | DR34: =Tax!DR81*(DR$15=0) -> 0 | DS34: =Tax!DS81*(DS$15=0) -> 0 | DT34: =Tax!DT81*(DT$15=0) -> 0 | DU34: =Tax!DU81*(DU$15=0) -> 0 | DV34: =Tax!DV81*(DV$15=0) -> 0 | DW34: =Tax!DW81*(DW$15=0) -> 0 | DX34: =Tax!DX81*(DX$15=0) -> 0 | DY34: =Tax!DY81*(DY$15=0) -> 0 | DZ34: =Tax!DZ81*(DZ$15=0) -> 0 | EA34: =Tax!EA81*(EA$15=0) -> 0 | EB34: =Tax!EB81*(EB$15=0) -> 0 | EC34: =Tax!EC81*(EC$15=0) -> 0 | ED34: =Tax!ED81*(ED$15=0) -> 0 | EE34: =Tax!EE81*(EE$15=0) -> 0 | EF34: =Tax!EF81*(EF$15=0) -> 0 | EG34: =Tax!EG81*(EG$15=0) -> 0 | EH34: =Tax!EH81*(EH$15=0) -> 0 | EI34: =Tax!EI81*(EI$15=0) -> 0 | EJ34: =Tax!EJ81*(EJ$15=0) -> 0 | EK34: =Tax!EK81*(EK$15=0) -> 0 | EL34: =Tax!EL81*(EL$15=0) -> 0 | EM34: =Tax!EM81*(EM$15=0) -> 0 | EN34: =Tax!EN81*(EN$15=0) -> 0 | EO34: =Tax!EO81*(EO$15=0) -> 0 | EP34: =Tax!EP81*(EP$15=0) -> 0 | EQ34: =Tax!EQ81*(EQ$15=0) -> 0 | ER34: =Tax!ER81*(ER$15=0) -> 0 | ES34: =Tax!ES81*(ES$15=0) -> 0 | ET34: =Tax!ET81*(ET$15=0) -> 0 | EU34: =Tax!EU81*(EU$15=0) -> 0 | EV34: =Tax!EV81*(EV$15=0) -> 0 | EW34: =Tax!EW81*(EW$15=0) -> 0 | EX34: =Tax!EX81*(EX$15=0) -> 0 | EY34: =Tax!EY81*(EY$15=0) -> 0 | EZ34: =Tax!EZ81*(EZ$15=0) -> 0 | FA34: =Tax!FA81*(FA$15=0) -> 0 | FB34: =Tax!FB81*(FB$15=0) -> 0 | FC34: =Tax!FC81*(FC$15=0) -> 0 | FD34: =Tax!FD81*(FD$15=0) -> 0 | FE34: =Tax!FE81*(FE$15=0) -> 0 | FF34: =Tax!FF81*(FF$15=0) -> 0
B35: Дебиторская задолженность | H35: тыс. руб. | M35: =Oper!M244 -> 0 | N35: =Oper!N244 -> 0 | O35: =Oper!O244 -> 0 | P35: =Oper!P244 -> 0 | Q35: =Oper!Q244 -> 0 | R35: =Oper!R244 -> 0 | S35: =Oper!S244 -> 0 | T35: =Oper!T244 -> 0 | U35: =Oper!U244 -> 0 | V35: =Oper!V244 -> 0 | W35: =Oper!W244 -> 0 | X35: =Oper!X244 -> 0 | Y35: =Oper!Y244 -> 7588.59706 | Z35: =Oper!Z244 -> 8822.362078 | AA35: =Oper!AA244 -> 8812.931647 | AB35: =Oper!AB244 -> 8803.518019 | AC35: =Oper!AC244 -> 8868.633407 | AD35: =Oper!AD244 -> 8859.253883 | AE35: =Oper!AE244 -> 8849.891663 | AF35: =Oper!AF244 -> 8840.546918 | AG35: =Oper!AG244 -> 8912.828252 | AH35: =Oper!AH244 -> 8903.518974 | AI35: =Oper!AI244 -> 8894.227693 | AJ35: =Oper!AJ244 -> 8884.954586 | AK35: =Oper!AK244 -> 8967.952842 | AL35: =Oper!AL244 -> 8959.578386 | AM35: =Oper!AM244 -> 8951.222646 | AN35: =Oper!AN244 -> 8942.885806 | AO35: =Oper!AO244 -> 9030.369258 | AP35: =Oper!AP244 -> 9022.07078 | AQ35: =Oper!AQ244 -> 9013.791768 | AR35: =Oper!AR244 -> 0 | AS35: =Oper!AS244 -> 0 | AT35: =Oper!AT244 -> 0 | AU35: =Oper!AU244 -> 0 | AV35: =Oper!AV244 -> 0 | AW35: =Oper!AW244 -> 0 | AX35: =Oper!AX244 -> 0 | AY35: =Oper!AY244 -> 0 | AZ35: =Oper!AZ244 -> 0 | BA35: =Oper!BA244 -> 0 | BB35: =Oper!BB244 -> 0 | BC35: =Oper!BC244 -> 0 | BD35: =Oper!BD244 -> 0 | BE35: =Oper!BE244 -> 0 | BF35: =Oper!BF244 -> 0 | BG35: =Oper!BG244 -> 0 | BH35: =Oper!BH244 -> 0 | BI35: =Oper!BI244 -> 0 | BJ35: =Oper!BJ244 -> 0 | BK35: =Oper!BK244 -> 0 | BL35: =Oper!BL244 -> 0 | BM35: =Oper!BM244 -> 0 | BN35: =Oper!BN244 -> 0 | BO35: =Oper!BO244 -> 0 | BP35: =Oper!BP244 -> 0 | BQ35: =Oper!BQ244 -> 0 | BR35: =Oper!BR244 -> 0 | BS35: =Oper!BS244 -> 0 | BT35: =Oper!BT244 -> 0 | BU35: =Oper!BU244 -> 0 | BV35: =Oper!BV244 -> 0 | BW35: =Oper!BW244 -> 0 | BX35: =Oper!BX244 -> 0 | BY35: =Oper!BY244 -> 0 | BZ35: =Oper!BZ244 -> 0 | CA35: =Oper!CA244 -> 0 | CB35: =Oper!CB244 -> 0 | CC35: =Oper!CC244 -> 0 | CD35: =Oper!CD244 -> 0 | CE35: =Oper!CE244 -> 0 | CF35: =Oper!CF244 -> 0 | CG35: =Oper!CG244 -> 0 | CH35: =Oper!CH244 -> 0 | CI35: =Oper!CI244 -> 0 | CJ35: =Oper!CJ244 -> 0 | CK35: =Oper!CK244 -> 0 | CL35: =Oper!CL244 -> 0 | CM35: =Oper!CM244 -> 0 | CN35: =Oper!CN244 -> 0 | CO35: =Oper!CO244 -> 0 | CP35: =Oper!CP244 -> 0 | CQ35: =Oper!CQ244 -> 0 | CR35: =Oper!CR244 -> 0 | CS35: =Oper!CS244 -> 0 | CT35: =Oper!CT244 -> 0 | CU35: =Oper!CU244 -> 0 | CV35: =Oper!CV244 -> 0 | CW35: =Oper!CW244 -> 0 | CX35: =Oper!CX244 -> 0 | CY35: =Oper!CY244 -> 0 | CZ35: =Oper!CZ244 -> 0 | DA35: =Oper!DA244 -> 0 | DB35: =Oper!DB244 -> 0 | DC35: =Oper!DC244 -> 0 | DD35: =Oper!DD244 -> 0 | DE35: =Oper!DE244 -> 0 | DF35: =Oper!DF244 -> 0 | DG35: =Oper!DG244 -> 0 | DH35: =Oper!DH244 -> 0 | DI35: =Oper!DI244 -> 0 | DJ35: =Oper!DJ244 -> 0 | DK35: =Oper!DK244 -> 0 | DL35: =Oper!DL244 -> 0 | DM35: =Oper!DM244 -> 0 | DN35: =Oper!DN244 -> 0 | DO35: =Oper!DO244 -> 0 | DP35: =Oper!DP244 -> 0 | DQ35: =Oper!DQ244 -> 0 | DR35: =Oper!DR244 -> 0 | DS35: =Oper!DS244 -> 0 | DT35: =Oper!DT244 -> 0 | DU35: =Oper!DU244 -> 0 | DV35: =Oper!DV244 -> 0 | DW35: =Oper!DW244 -> 0 | DX35: =Oper!DX244 -> 0 | DY35: =Oper!DY244 -> 0 | DZ35: =Oper!DZ244 -> 0 | EA35: =Oper!EA244 -> 0 | EB35: =Oper!EB244 -> 0 | EC35: =Oper!EC244 -> 0 | ED35: =Oper!ED244 -> 0 | EE35: =Oper!EE244 -> 0 | EF35: =Oper!EF244 -> 0 | EG35: =Oper!EG244 -> 0 | EH35: =Oper!EH244 -> 0 | EI35: =Oper!EI244 -> 0 | EJ35: =Oper!EJ244 -> 0 | EK35: =Oper!EK244 -> 0 | EL35: =Oper!EL244 -> 0 | EM35: =Oper!EM244 -> 0 | EN35: =Oper!EN244 -> 0 | EO35: =Oper!EO244 -> 0 | EP35: =Oper!EP244 -> 0 | EQ35: =Oper!EQ244 -> 0 | ER35: =Oper!ER244 -> 0 | ES35: =Oper!ES244 -> 0 | ET35: =Oper!ET244 -> 0 | EU35: =Oper!EU244 -> 0 | EV35: =Oper!EV244 -> 0 | EW35: =Oper!EW244 -> 0 | EX35: =Oper!EX244 -> 0 | EY35: =Oper!EY244 -> 0 | EZ35: =Oper!EZ244 -> 0 | FA35: =Oper!FA244 -> 0 | FB35: =Oper!FB244 -> 0 | FC35: =Oper!FC244 -> 0 | FD35: =Oper!FD244 -> 0 | FE35: =Oper!FE244 -> 0 | FF35: =Oper!FF244 -> 0
B36: Денежные средства | H36: тыс. руб. | M36: =M142*(M$15=0) -> 0 | N36: =N142*(N$15=0) -> 0 | O36: 0 | P36: 0 | Q36: 0 | R36: 0 | S36: 0 | T36: 0 | U36: 0 | V36: 0 | W36: 0 | X36: 0 | Y36: 0 | Z36: 0 | AA36: 0 | AB36: 0 | AC36: 0 | AD36: 0 | AE36: 0 | AF36: 0 | AG36: 0 | AH36: 0 | AI36: 0 | AJ36: =AJ142*(AJ$15=0) -> 0 | AK36: 0 | AL36: 0 | AM36: 0 | AN36: 0 | AO36: 0 | AP36: 0 | AQ36: 0 | AR36: 1142.510035 | AS36: 0 | AT36: 0 | AU36: 0 | AV36: 0 | AW36: 0 | AX36: 0 | AY36: 0 | AZ36: 0 | BA36: 0 | BB36: 0 | BC36: 0 | BD36: 0 | BE36: 0 | BF36: 0 | BG36: 0 | BH36: 0 | BI36: 0 | BJ36: 0 | BK36: 0 | BL36: 0 | BM36: 0 | BN36: 0 | BO36: 0 | BP36: 0 | BQ36: 0 | BR36: 0 | BS36: 0 | BT36: 0 | BU36: 0 | BV36: 0 | BW36: 0 | BX36: 0 | BY36: 0 | BZ36: 0 | CA36: 0 | CB36: 0 | CC36: 0 | CD36: 0 | CE36: 0 | CF36: 0 | CG36: 0 | CH36: 0 | CI36: 0 | CJ36: 0 | CK36: 0 | CL36: 0 | CM36: 0 | CN36: 0 | CO36: 0 | CP36: 0 | CQ36: 0 | CR36: 0 | CS36: 0 | CT36: 0 | CU36: 0 | CV36: =CV142*(CV$15=0) -> 0 | CW36: 0 | CX36: 0 | CY36: 0 | CZ36: 0 | DA36: 0 | DB36: 0 | DC36: 0 | DD36: 0 | DE36: 0 | DF36: 0 | DG36: 0 | DH36: 0 | DI36: 0 | DJ36: 0 | DK36: 0 | DL36: 0 | DM36: 0 | DN36: 0 | DO36: 0 | DP36: 0 | DQ36: 0 | DR36: 0 | DS36: 0 | DT36: 0 | DU36: 0 | DV36: 0 | DW36: 0 | DX36: 0 | DY36: 0 | DZ36: 0 | EA36: 0 | EB36: 0 | EC36: 0 | ED36: 0 | EE36: 0 | EF36: 0 | EG36: 0 | EH36: 0 | EI36: 0 | EJ36: 0 | EK36: 0 | EL36: 0 | EM36: 0 | EN36: 0 | EO36: 0 | EP36: 0 | EQ36: 0 | ER36: 0 | ES36: 0 | ET36: 0 | EU36: 0 | EV36: 0 | EW36: 0 | EX36: 0 | EY36: 0 | EZ36: 0 | FA36: 0 | FB36: 0 | FC36: 0 | FD36: 0 | FE36: 0 | FF36: 0
B37: Резервный счет по кредиту (DSRA) | H37: тыс. руб. | M37: =Debt!M152*(M$15=0) -> 0 | N37: =Debt!N152*(N$15=0) -> 0 | O37: =Debt!O152*(O$15=0) -> 0 | P37: =Debt!P152*(P$15=0) -> 0 | Q37: =Debt!Q152*(Q$15=0) -> 0 | R37: =Debt!R152*(R$15=0) -> 764.7808554 | S37: =Debt!S152*(S$15=0) -> 1987.453129 | T37: =Debt!T152*(T$15=0) -> 3135.635045 | U37: =Debt!U152*(U$15=0) -> 5466.548808 | V37: =Debt!V152*(V$15=0) -> 9606.868549 | W37: =Debt!W152*(W$15=0) -> 12801.47298 | X37: =Debt!X152*(X$15=0) -> 13927.51133 | Y37: =Debt!Y152*(Y$15=0) -> 13606.59268 | Z37: =Debt!Z152*(Z$15=0) -> 10355.37832 | AA37: =Debt!AA152*(AA$15=0) -> 9500.442194 | AB37: =Debt!AB152*(AB$15=0) -> 8952.801386 | AC37: =Debt!AC152*(AC$15=0) -> 8377.648512 | AD37: =Debt!AD152*(AD$15=0) -> 7683.741665 | AE37: =Debt!AE152*(AE$15=0) -> 6873.376024 | AF37: =Debt!AF152*(AF$15=0) -> 6147.088761 | AG37: =Debt!AG152*(AG$15=0) -> 5464.359044 | AH37: =Debt!AH152*(AH$15=0) -> 4691.28112 | AI37: =Debt!AI152*(AI$15=0) -> 3820.388704 | AJ37: =Debt!AJ152*(AJ$15=0) -> 3051.288993 | AK37: =Debt!AK152*(AK$15=0) -> 2245.032705 | AL37: =Debt!AL152*(AL$15=0) -> 1379.453117 | AM37: =Debt!AM152*(AM$15=0) -> 478.468101 | AN37: =Debt!AN152*(AN$15=0) -> -1.818989404e-12 | AO37: =Debt!AO152*(AO$15=0) -> 0 | AP37: =Debt!AP152*(AP$15=0) -> 0 | AQ37: =Debt!AQ152*(AQ$15=0) -> 0 | AR37: =Debt!AR152*(AR$15=0) -> 0 | AS37: =Debt!AS152*(AS$15=0) -> 0 | AT37: =Debt!AT152*(AT$15=0) -> 0 | AU37: =Debt!AU152*(AU$15=0) -> 0 | AV37: =Debt!AV152*(AV$15=0) -> 0 | AW37: =Debt!AW152*(AW$15=0) -> 0 | AX37: =Debt!AX152*(AX$15=0) -> 0 | AY37: =Debt!AY152*(AY$15=0) -> 0 | AZ37: =Debt!AZ152*(AZ$15=0) -> 0 | BA37: =Debt!BA152*(BA$15=0) -> 0 | BB37: =Debt!BB152*(BB$15=0) -> 0 | BC37: =Debt!BC152*(BC$15=0) -> 0 | BD37: =Debt!BD152*(BD$15=0) -> 0 | BE37: =Debt!BE152*(BE$15=0) -> 0 | BF37: =Debt!BF152*(BF$15=0) -> 0 | BG37: =Debt!BG152*(BG$15=0) -> 0 | BH37: =Debt!BH152*(BH$15=0) -> 0 | BI37: =Debt!BI152*(BI$15=0) -> 0 | BJ37: =Debt!BJ152*(BJ$15=0) -> 0 | BK37: =Debt!BK152*(BK$15=0) -> 0 | BL37: =Debt!BL152*(BL$15=0) -> 0 | BM37: =Debt!BM152*(BM$15=0) -> 0 | BN37: =Debt!BN152*(BN$15=0) -> 0 | BO37: =Debt!BO152*(BO$15=0) -> 0 | BP37: =Debt!BP152*(BP$15=0) -> 0 | BQ37: =Debt!BQ152*(BQ$15=0) -> 0 | BR37: =Debt!BR152*(BR$15=0) -> 0 | BS37: =Debt!BS152*(BS$15=0) -> 0 | BT37: =Debt!BT152*(BT$15=0) -> 0 | BU37: =Debt!BU152*(BU$15=0) -> 0 | BV37: =Debt!BV152*(BV$15=0) -> 0 | BW37: =Debt!BW152*(BW$15=0) -> 0 | BX37: =Debt!BX152*(BX$15=0) -> 0 | BY37: =Debt!BY152*(BY$15=0) -> 0 | BZ37: =Debt!BZ152*(BZ$15=0) -> 0 | CA37: =Debt!CA152*(CA$15=0) -> 0 | CB37: =Debt!CB152*(CB$15=0) -> 0 | CC37: =Debt!CC152*(CC$15=0) -> 0 | CD37: =Debt!CD152*(CD$15=0) -> 0 | CE37: =Debt!CE152*(CE$15=0) -> 0 | CF37: =Debt!CF152*(CF$15=0) -> 0 | CG37: =Debt!CG152*(CG$15=0) -> 0 | CH37: =Debt!CH152*(CH$15=0) -> 0 | CI37: =Debt!CI152*(CI$15=0) -> 0 | CJ37: =Debt!CJ152*(CJ$15=0) -> 0 | CK37: =Debt!CK152*(CK$15=0) -> 0 | CL37: =Debt!CL152*(CL$15=0) -> 0 | CM37: =Debt!CM152*(CM$15=0) -> 0 | CN37: =Debt!CN152*(CN$15=0) -> 0 | CO37: =Debt!CO152*(CO$15=0) -> 0 | CP37: =Debt!CP152*(CP$15=0) -> 0 | CQ37: =Debt!CQ152*(CQ$15=0) -> 0 | CR37: =Debt!CR152*(CR$15=0) -> 0 | CS37: =Debt!CS152*(CS$15=0) -> 0 | CT37: =Debt!CT152*(CT$15=0) -> 0 | CU37: =Debt!CU152*(CU$15=0) -> 0 | CV37: =Debt!CV152*(CV$15=0) -> 0 | CW37: =Debt!CW152*(CW$15=0) -> 0 | CX37: =Debt!CX152*(CX$15=0) -> 0 | CY37: =Debt!CY152*(CY$15=0) -> 0 | CZ37: =Debt!CZ152*(CZ$15=0) -> 0 | DA37: =Debt!DA152*(DA$15=0) -> 0 | DB37: =Debt!DB152*(DB$15=0) -> 0 | DC37: =Debt!DC152*(DC$15=0) -> 0 | DD37: =Debt!DD152*(DD$15=0) -> 0 | DE37: =Debt!DE152*(DE$15=0) -> 0 | DF37: =Debt!DF152*(DF$15=0) -> 0 | DG37: =Debt!DG152*(DG$15=0) -> 0 | DH37: =Debt!DH152*(DH$15=0) -> 0 | DI37: =Debt!DI152*(DI$15=0) -> 0 | DJ37: =Debt!DJ152*(DJ$15=0) -> 0 | DK37: =Debt!DK152*(DK$15=0) -> 0 | DL37: =Debt!DL152*(DL$15=0) -> 0 | DM37: =Debt!DM152*(DM$15=0) -> 0 | DN37: =Debt!DN152*(DN$15=0) -> 0 | DO37: =Debt!DO152*(DO$15=0) -> 0 | DP37: =Debt!DP152*(DP$15=0) -> 0 | DQ37: =Debt!DQ152*(DQ$15=0) -> 0 | DR37: =Debt!DR152*(DR$15=0) -> 0 | DS37: =Debt!DS152*(DS$15=0) -> 0 | DT37: =Debt!DT152*(DT$15=0) -> 0 | DU37: =Debt!DU152*(DU$15=0) -> 0 | DV37: =Debt!DV152*(DV$15=0) -> 0 | DW37: =Debt!DW152*(DW$15=0) -> 0 | DX37: =Debt!DX152*(DX$15=0) -> 0 | DY37: =Debt!DY152*(DY$15=0) -> 0 | DZ37: =Debt!DZ152*(DZ$15=0) -> 0 | EA37: =Debt!EA152*(EA$15=0) -> 0 | EB37: =Debt!EB152*(EB$15=0) -> 0 | EC37: =Debt!EC152*(EC$15=0) -> 0 | ED37: =Debt!ED152*(ED$15=0) -> 0 | EE37: =Debt!EE152*(EE$15=0) -> 0 | EF37: =Debt!EF152*(EF$15=0) -> 0 | EG37: =Debt!EG152*(EG$15=0) -> 0 | EH37: =Debt!EH152*(EH$15=0) -> 0 | EI37: =Debt!EI152*(EI$15=0) -> 0 | EJ37: =Debt!EJ152*(EJ$15=0) -> 0 | EK37: =Debt!EK152*(EK$15=0) -> 0 | EL37: =Debt!EL152*(EL$15=0) -> 0 | EM37: =Debt!EM152*(EM$15=0) -> 0 | EN37: =Debt!EN152*(EN$15=0) -> 0 | EO37: =Debt!EO152*(EO$15=0) -> 0 | EP37: =Debt!EP152*(EP$15=0) -> 0 | EQ37: =Debt!EQ152*(EQ$15=0) -> 0 | ER37: =Debt!ER152*(ER$15=0) -> 0 | ES37: =Debt!ES152*(ES$15=0) -> 0 | ET37: =Debt!ET152*(ET$15=0) -> 0 | EU37: =Debt!EU152*(EU$15=0) -> 0 | EV37: =Debt!EV152*(EV$15=0) -> 0 | EW37: =Debt!EW152*(EW$15=0) -> 0 | EX37: =Debt!EX152*(EX$15=0) -> 0 | EY37: =Debt!EY152*(EY$15=0) -> 0 | EZ37: =Debt!EZ152*(EZ$15=0) -> 0 | FA37: =Debt!FA152*(FA$15=0) -> 0 | FB37: =Debt!FB152*(FB$15=0) -> 0 | FC37: =Debt!FC152*(FC$15=0) -> 0 | FD37: =Debt!FD152*(FD$15=0) -> 0 | FE37: =Debt!FE152*(FE$15=0) -> 0 | FF37: =Debt!FF152*(FF$15=0) -> 0
B38: Резервный счет | H38: тыс. руб. | M38: =Debt!M175*(M$15=0) -> 0 | N38: =Debt!N175*(N$15=0) -> 0 | O38: =Debt!O175*(O$15=0) -> 0 | P38: =Debt!P175*(P$15=0) -> 0 | Q38: =Debt!Q175*(Q$15=0) -> 0 | R38: =Debt!R175*(R$15=0) -> 0 | S38: =Debt!S175*(S$15=0) -> 0 | T38: =Debt!T175*(T$15=0) -> 0 | U38: =Debt!U175*(U$15=0) -> 0 | V38: =Debt!V175*(V$15=0) -> 0 | W38: =Debt!W175*(W$15=0) -> 0 | X38: =Debt!X175*(X$15=0) -> 0 | Y38: =Debt!Y175*(Y$15=0) -> 0 | Z38: =Debt!Z175*(Z$15=0) -> 0 | AA38: =Debt!AA175*(AA$15=0) -> 0 | AB38: =Debt!AB175*(AB$15=0) -> 0 | AC38: =Debt!AC175*(AC$15=0) -> 0 | AD38: =Debt!AD175*(AD$15=0) -> 0 | AE38: =Debt!AE175*(AE$15=0) -> 0 | AF38: =Debt!AF175*(AF$15=0) -> 0 | AG38: =Debt!AG175*(AG$15=0) -> 0 | AH38: =Debt!AH175*(AH$15=0) -> 0 | AI38: =Debt!AI175*(AI$15=0) -> 0 | AJ38: =Debt!AJ175*(AJ$15=0) -> 0 | AK38: =Debt!AK175*(AK$15=0) -> 0 | AL38: =Debt!AL175*(AL$15=0) -> 0 | AM38: =Debt!AM175*(AM$15=0) -> 0 | AN38: =Debt!AN175*(AN$15=0) -> 0 | AO38: =Debt!AO175*(AO$15=0) -> 0 | AP38: =Debt!AP175*(AP$15=0) -> 0 | AQ38: =Debt!AQ175*(AQ$15=0) -> 0 | AR38: =Debt!AR175*(AR$15=0) -> 0 | AS38: =Debt!AS175*(AS$15=0) -> 0 | AT38: =Debt!AT175*(AT$15=0) -> 0 | AU38: =Debt!AU175*(AU$15=0) -> 0 | AV38: =Debt!AV175*(AV$15=0) -> 0 | AW38: =Debt!AW175*(AW$15=0) -> 0 | AX38: =Debt!AX175*(AX$15=0) -> 0 | AY38: =Debt!AY175*(AY$15=0) -> 0 | AZ38: =Debt!AZ175*(AZ$15=0) -> 0 | BA38: =Debt!BA175*(BA$15=0) -> 0 | BB38: =Debt!BB175*(BB$15=0) -> 0 | BC38: =Debt!BC175*(BC$15=0) -> 0 | BD38: =Debt!BD175*(BD$15=0) -> 0 | BE38: =Debt!BE175*(BE$15=0) -> 0 | BF38: =Debt!BF175*(BF$15=0) -> 0 | BG38: =Debt!BG175*(BG$15=0) -> 0 | BH38: =Debt!BH175*(BH$15=0) -> 0 | BI38: =Debt!BI175*(BI$15=0) -> 0 | BJ38: =Debt!BJ175*(BJ$15=0) -> 0 | BK38: =Debt!BK175*(BK$15=0) -> 0 | BL38: =Debt!BL175*(BL$15=0) -> 0 | BM38: =Debt!BM175*(BM$15=0) -> 0 | BN38: =Debt!BN175*(BN$15=0) -> 0 | BO38: =Debt!BO175*(BO$15=0) -> 0 | BP38: =Debt!BP175*(BP$15=0) -> 0 | BQ38: =Debt!BQ175*(BQ$15=0) -> 0 | BR38: =Debt!BR175*(BR$15=0) -> 0 | BS38: =Debt!BS175*(BS$15=0) -> 0 | BT38: =Debt!BT175*(BT$15=0) -> 0 | BU38: =Debt!BU175*(BU$15=0) -> 0 | BV38: =Debt!BV175*(BV$15=0) -> 0 | BW38: =Debt!BW175*(BW$15=0) -> 0 | BX38: =Debt!BX175*(BX$15=0) -> 0 | BY38: =Debt!BY175*(BY$15=0) -> 0 | BZ38: =Debt!BZ175*(BZ$15=0) -> 0 | CA38: =Debt!CA175*(CA$15=0) -> 0 | CB38: =Debt!CB175*(CB$15=0) -> 0 | CC38: =Debt!CC175*(CC$15=0) -> 0 | CD38: =Debt!CD175*(CD$15=0) -> 0 | CE38: =Debt!CE175*(CE$15=0) -> 0 | CF38: =Debt!CF175*(CF$15=0) -> 0 | CG38: =Debt!CG175*(CG$15=0) -> 0 | CH38: =Debt!CH175*(CH$15=0) -> 0 | CI38: =Debt!CI175*(CI$15=0) -> 0 | CJ38: =Debt!CJ175*(CJ$15=0) -> 0 | CK38: =Debt!CK175*(CK$15=0) -> 0 | CL38: =Debt!CL175*(CL$15=0) -> 0 | CM38: =Debt!CM175*(CM$15=0) -> 0 | CN38: =Debt!CN175*(CN$15=0) -> 0 | CO38: =Debt!CO175*(CO$15=0) -> 0 | CP38: =Debt!CP175*(CP$15=0) -> 0 | CQ38: =Debt!CQ175*(CQ$15=0) -> 0 | CR38: =Debt!CR175*(CR$15=0) -> 0 | CS38: =Debt!CS175*(CS$15=0) -> 0 | CT38: =Debt!CT175*(CT$15=0) -> 0 | CU38: =Debt!CU175*(CU$15=0) -> 0 | CV38: =Debt!CV175*(CV$15=0) -> 0 | CW38: =Debt!CW175*(CW$15=0) -> 0 | CX38: =Debt!CX175*(CX$15=0) -> 0 | CY38: =Debt!CY175*(CY$15=0) -> 0 | CZ38: =Debt!CZ175*(CZ$15=0) -> 0 | DA38: =Debt!DA175*(DA$15=0) -> 0 | DB38: =Debt!DB175*(DB$15=0) -> 0 | DC38: =Debt!DC175*(DC$15=0) -> 0 | DD38: =Debt!DD175*(DD$15=0) -> 0 | DE38: =Debt!DE175*(DE$15=0) -> 0 | DF38: =Debt!DF175*(DF$15=0) -> 0 | DG38: =Debt!DG175*(DG$15=0) -> 0 | DH38: =Debt!DH175*(DH$15=0) -> 0 | DI38: =Debt!DI175*(DI$15=0) -> 0 | DJ38: =Debt!DJ175*(DJ$15=0) -> 0 | DK38: =Debt!DK175*(DK$15=0) -> 0 | DL38: =Debt!DL175*(DL$15=0) -> 0 | DM38: =Debt!DM175*(DM$15=0) -> 0 | DN38: =Debt!DN175*(DN$15=0) -> 0 | DO38: =Debt!DO175*(DO$15=0) -> 0 | DP38: =Debt!DP175*(DP$15=0) -> 0 | DQ38: =Debt!DQ175*(DQ$15=0) -> 0 | DR38: =Debt!DR175*(DR$15=0) -> 0 | DS38: =Debt!DS175*(DS$15=0) -> 0 | DT38: =Debt!DT175*(DT$15=0) -> 0 | DU38: =Debt!DU175*(DU$15=0) -> 0 | DV38: =Debt!DV175*(DV$15=0) -> 0 | DW38: =Debt!DW175*(DW$15=0) -> 0 | DX38: =Debt!DX175*(DX$15=0) -> 0 | DY38: =Debt!DY175*(DY$15=0) -> 0 | DZ38: =Debt!DZ175*(DZ$15=0) -> 0 | EA38: =Debt!EA175*(EA$15=0) -> 0 | EB38: =Debt!EB175*(EB$15=0) -> 0 | EC38: =Debt!EC175*(EC$15=0) -> 0 | ED38: =Debt!ED175*(ED$15=0) -> 0 | EE38: =Debt!EE175*(EE$15=0) -> 0 | EF38: =Debt!EF175*(EF$15=0) -> 0 | EG38: =Debt!EG175*(EG$15=0) -> 0 | EH38: =Debt!EH175*(EH$15=0) -> 0 | EI38: =Debt!EI175*(EI$15=0) -> 0 | EJ38: =Debt!EJ175*(EJ$15=0) -> 0 | EK38: =Debt!EK175*(EK$15=0) -> 0 | EL38: =Debt!EL175*(EL$15=0) -> 0 | EM38: =Debt!EM175*(EM$15=0) -> 0 | EN38: =Debt!EN175*(EN$15=0) -> 0 | EO38: =Debt!EO175*(EO$15=0) -> 0 | EP38: =Debt!EP175*(EP$15=0) -> 0 | EQ38: =Debt!EQ175*(EQ$15=0) -> 0 | ER38: =Debt!ER175*(ER$15=0) -> 0 | ES38: =Debt!ES175*(ES$15=0) -> 0 | ET38: =Debt!ET175*(ET$15=0) -> 0 | EU38: =Debt!EU175*(EU$15=0) -> 0 | EV38: =Debt!EV175*(EV$15=0) -> 0 | EW38: =Debt!EW175*(EW$15=0) -> 0 | EX38: =Debt!EX175*(EX$15=0) -> 0 | EY38: =Debt!EY175*(EY$15=0) -> 0 | EZ38: =Debt!EZ175*(EZ$15=0) -> 0 | FA38: =Debt!FA175*(FA$15=0) -> 0 | FB38: =Debt!FB175*(FB$15=0) -> 0 | FC38: =Debt!FC175*(FC$15=0) -> 0 | FD38: =Debt!FD175*(FD$15=0) -> 0 | FE38: =Debt!FE175*(FE$15=0) -> 0 | FF38: =Debt!FF175*(FF$15=0) -> 0
B40: ПАССИВЫ | H40: тыс. руб. | M40: =M41+M44+M48 -> 5006.25 | N40: 10012.5 | O40: 15018.75 | P40: 20025 | Q40: 90222.32245 | R40: 200419.3591 | S40: 310106.32 | T40: 346734.0709 | U40: 488504.2207 | V40: 611627.405 | W40: 793560.7099 | X40: 865934.5501 | Y40: 835164.57 | Z40: 716369.4952 | AA40: 709431.1163 | AB40: 702800.0496 | AC40: 696215.9998 | AD40: 689438.7012 | AE40: 682544.961 | AF40: 675735.3167 | AG40: 669050.8561 | AH40: 662194.4566 | AI40: 655240.2606 | AJ40: 648387.8755 | AK40: 642060.6588 | AL40: 635582.7461 | AM40: 629069.4467 | AN40: 622978.6831 | AO40: 617462.2079 | AP40: 611849.9507 | AQ40: 606237.713 | AR40: 32366.60608 | AS40: =AS41+AS44+AS48 -> 0 | AT40: 0 | AU40: 0 | AV40: 0 | AW40: 0 | AX40: 0 | AY40: 0 | AZ40: 0 | BA40: 0 | BB40: 0 | BC40: 0 | BD40: 0 | BE40: 0 | BF40: 0 | BG40: 0 | BH40: 0 | BI40: 0 | BJ40: 0 | BK40: 0 | BL40: 0 | BM40: 0 | BN40: 0 | BO40: 0 | BP40: 0 | BQ40: 0 | BR40: 0 | BS40: 0 | BT40: 0 | BU40: 0 | BV40: 0 | BW40: 0 | BX40: 0 | BY40: =BY41+BY44+BY48 -> 0 | BZ40: 0 | CA40: 0 | CB40: 0 | CC40: 0 | CD40: 0 | CE40: 0 | CF40: 0 | CG40: 0 | CH40: 0 | CI40: 0 | CJ40: 0 | CK40: 0 | CL40: 0 | CM40: 0 | CN40: 0 | CO40: 0 | CP40: 0 | CQ40: 0 | CR40: 0 | CS40: 0 | CT40: 0 | CU40: 0 | CV40: 0 | CW40: 0 | CX40: 0 | CY40: 0 | CZ40: 0 | DA40: 0 | DB40: 0 | DC40: 0 | DD40: 0 | DE40: =DE41+DE44+DE48 -> 0 | DF40: 0 | DG40: 0 | DH40: 0 | DI40: 0 | DJ40: 0 | DK40: 0 | DL40: 0 | DM40: 0 | DN40: 0 | DO40: 0 | DP40: 0 | DQ40: 0 | DR40: 0 | DS40: 0 | DT40: 0 | DU40: 0 | DV40: 0 | DW40: 0 | DX40: 0 | DY40: 0 | DZ40: 0 | EA40: 0 | EB40: 0 | EC40: 0 | ED40: 0 | EE40: 0 | EF40: 0 | EG40: 0 | EH40: 0 | EI40: 0 | EJ40: 0 | EK40: =EK41+EK44+EK48 -> 0 | EL40: 0 | EM40: 0 | EN40: 0 | EO40: 0 | EP40: 0 | EQ40: 0 | ER40: 0 | ES40: 0 | ET40: 0 | EU40: 0 | EV40: 0 | EW40: 0 | EX40: 0 | EY40: 0 | EZ40: 0 | FA40: 0 | FB40: 0 | FC40: 0 | FD40: 0 | FE40: 0 | FF40: 0
B41: Капитал и резервы | H41: тыс. руб. | M41: =SUM(M42:M43) -> -5200.052985 | N41: =SUM(N42:N43) -> -5503.592201 | O41: -5927.850573 | P41: -6472.828101 | Q41: -8079.237611 | R41: -10752.71851 | S41: -16543.14474 | T41: -24170.95773 | U41: -32994.09728 | V41: -44171.07981 | W41: -59412.81153 | X41: -77879.89121 | Y41: -75576.40174 | Z41: -72596.32796 | AA41: -70939.25915 | AB41: -68393.26954 | AC41: -67567.92584 | AD41: -66104.9658 | AE41: -63900.33831 | AF41: -60855.68091 | AG41: -59615.118 | AH41: -57632.02923 | AI41: -54833.1021 | AJ41: -51140.31918 | AK41: -49432.12769 | AL41: -46861.98844 | AM41: -43390.38759 | AN41: -38822.93793 | AO41: -36281.69125 | AP41: -32885.34895 | AQ41: -36960.28911 | AR41: 11508.14406 | AS41: 0 | AT41: 0 | AU41: 0 | AV41: 0 | AW41: 0 | AX41: 0 | AY41: 0 | AZ41: 0 | BA41: 0 | BB41: 0 | BC41: 0 | BD41: 0 | BE41: 0 | BF41: 0 | BG41: 0 | BH41: 0 | BI41: 0 | BJ41: 0 | BK41: 0 | BL41: 0 | BM41: 0 | BN41: 0 | BO41: 0 | BP41: 0 | BQ41: 0 | BR41: 0 | BS41: 0 | BT41: 0 | BU41: 0 | BV41: 0 | BW41: 0 | BX41: 0 | BY41: 0 | BZ41: =SUM(BZ42:BZ43) -> 0 | CA41: 0 | CB41: 0 | CC41: 0 | CD41: 0 | CE41: 0 | CF41: 0 | CG41: 0 | CH41: 0 | CI41: 0 | CJ41: 0 | CK41: 0 | CL41: 0 | CM41: 0 | CN41: 0 | CO41: 0 | CP41: 0 | CQ41: 0 | CR41: 0 | CS41: 0 | CT41: 0 | CU41: 0 | CV41: 0 | CW41: 0 | CX41: 0 | CY41: 0 | CZ41: 0 | DA41: 0 | DB41: 0 | DC41: 0 | DD41: 0 | DE41: 0 | DF41: 0 | DG41: 0 | DH41: 0 | DI41: 0 | DJ41: 0 | DK41: 0 | DL41: 0 | DM41: 0 | DN41: 0 | DO41: 0 | DP41: 0 | DQ41: 0 | DR41: 0 | DS41: 0 | DT41: 0 | DU41: 0 | DV41: 0 | DW41: 0 | DX41: 0 | DY41: 0 | DZ41: 0 | EA41: 0 | EB41: 0 | EC41: 0 | ED41: 0 | EE41: 0 | EF41: 0 | EG41: 0 | EH41: 0 | EI41: 0 | EJ41: 0 | EK41: 0 | EL41: =SUM(EL42:EL43) -> 0 | EM41: 0 | EN41: 0 | EO41: 0 | EP41: 0 | EQ41: 0 | ER41: 0 | ES41: 0 | ET41: 0 | EU41: 0 | EV41: 0 | EW41: 0 | EX41: 0 | EY41: 0 | EZ41: 0 | FA41: 0 | FB41: 0 | FC41: 0 | FD41: 0 | FE41: 0 | FF41: 0
B42: Уставный капитал | H42: тыс. руб. | L42: 0 | M42: =('S&U'!M73+L42)*(M$15=0) -> 0 | N42: =('S&U'!N73+M42)*(N$15=0) -> 0 | O42: =('S&U'!O73+N42)*(O$15=0) -> 0 | P42: =('S&U'!P73+O42)*(P$15=0) -> 0 | Q42: =('S&U'!Q73+P42)*(Q$15=0) -> 0 | R42: =('S&U'!R73+Q42)*(R$15=0) -> 0 | S42: =('S&U'!S73+R42)*(S$15=0) -> 0 | T42: =('S&U'!T73+S42)*(T$15=0) -> 0 | U42: =('S&U'!U73+T42)*(U$15=0) -> 0 | V42: =('S&U'!V73+U42)*(V$15=0) -> 0 | W42: =('S&U'!W73+V42)*(W$15=0) -> 0 | X42: =('S&U'!X73+W42)*(X$15=0) -> 0 | Y42: =('S&U'!Y73+X42)*(Y$15=0) -> 0 | Z42: =('S&U'!Z73+Y42)*(Z$15=0) -> 0 | AA42: =('S&U'!AA73+Z42)*(AA$15=0) -> 0 | AB42: =('S&U'!AB73+AA42)*(AB$15=0) -> 0 | AC42: =('S&U'!AC73+AB42)*(AC$15=0) -> 0 | AD42: =('S&U'!AD73+AC42)*(AD$15=0) -> 0 | AE42: =('S&U'!AE73+AD42)*(AE$15=0) -> 0 | AF42: =('S&U'!AF73+AE42)*(AF$15=0) -> 0 | AG42: =('S&U'!AG73+AF42)*(AG$15=0) -> 0 | AH42: =('S&U'!AH73+AG42)*(AH$15=0) -> 0 | AI42: =('S&U'!AI73+AH42)*(AI$15=0) -> 0 | AJ42: =('S&U'!AJ73+AI42)*(AJ$15=0) -> 0 | AK42: =('S&U'!AK73+AJ42)*(AK$15=0) -> 0 | AL42: =('S&U'!AL73+AK42)*(AL$15=0) -> 0 | AM42: =('S&U'!AM73+AL42)*(AM$15=0) -> 0 | AN42: =('S&U'!AN73+AM42)*(AN$15=0) -> 0 | AO42: =('S&U'!AO73+AN42)*(AO$15=0) -> 0 | AP42: =('S&U'!AP73+AO42)*(AP$15=0) -> 0 | AQ42: =('S&U'!AQ73+AP42)*(AQ$15=0) -> 0 | AR42: =('S&U'!AR73+AQ42)*(AR$15=0) -> 0 | AS42: =('S&U'!AS73+AR42)*(AS$15=0) -> 0 | AT42: =('S&U'!AT73+AS42)*(AT$15=0) -> 0 | AU42: =('S&U'!AU73+AT42)*(AU$15=0) -> 0 | AV42: =('S&U'!AV73+AU42)*(AV$15=0) -> 0 | AW42: =('S&U'!AW73+AV42)*(AW$15=0) -> 0 | AX42: =('S&U'!AX73+AW42)*(AX$15=0) -> 0 | AY42: =('S&U'!AY73+AX42)*(AY$15=0) -> 0 | AZ42: =('S&U'!AZ73+AY42)*(AZ$15=0) -> 0 | BA42: =('S&U'!BA73+AZ42)*(BA$15=0) -> 0 | BB42: =('S&U'!BB73+BA42)*(BB$15=0) -> 0 | BC42: =('S&U'!BC73+BB42)*(BC$15=0) -> 0 | BD42: =('S&U'!BD73+BC42)*(BD$15=0) -> 0 | BE42: =('S&U'!BE73+BD42)*(BE$15=0) -> 0 | BF42: =('S&U'!BF73+BE42)*(BF$15=0) -> 0 | BG42: =('S&U'!BG73+BF42)*(BG$15=0) -> 0 | BH42: =('S&U'!BH73+BG42)*(BH$15=0) -> 0 | BI42: =('S&U'!BI73+BH42)*(BI$15=0) -> 0 | BJ42: =('S&U'!BJ73+BI42)*(BJ$15=0) -> 0 | BK42: =('S&U'!BK73+BJ42)*(BK$15=0) -> 0 | BL42: =('S&U'!BL73+BK42)*(BL$15=0) -> 0 | BM42: =('S&U'!BM73+BL42)*(BM$15=0) -> 0 | BN42: =('S&U'!BN73+BM42)*(BN$15=0) -> 0 | BO42: =('S&U'!BO73+BN42)*(BO$15=0) -> 0 | BP42: =('S&U'!BP73+BO42)*(BP$15=0) -> 0 | BQ42: =('S&U'!BQ73+BP42)*(BQ$15=0) -> 0 | BR42: =('S&U'!BR73+BQ42)*(BR$15=0) -> 0 | BS42: =('S&U'!BS73+BR42)*(BS$15=0) -> 0 | BT42: =('S&U'!BT73+BS42)*(BT$15=0) -> 0 | BU42: =('S&U'!BU73+BT42)*(BU$15=0) -> 0 | BV42: =('S&U'!BV73+BU42)*(BV$15=0) -> 0 | BW42: =('S&U'!BW73+BV42)*(BW$15=0) -> 0 | BX42: =('S&U'!BX73+BW42)*(BX$15=0) -> 0 | BY42: =('S&U'!BY73+BX42)*(BY$15=0) -> 0 | BZ42: =('S&U'!BZ73+BY42)*(BZ$15=0) -> 0 | CA42: =('S&U'!CA73+BZ42)*(CA$15=0) -> 0 | CB42: =('S&U'!CB73+CA42)*(CB$15=0) -> 0 | CC42: =('S&U'!CC73+CB42)*(CC$15=0) -> 0 | CD42: =('S&U'!CD73+CC42)*(CD$15=0) -> 0 | CE42: =('S&U'!CE73+CD42)*(CE$15=0) -> 0 | CF42: =('S&U'!CF73+CE42)*(CF$15=0) -> 0 | CG42: =('S&U'!CG73+CF42)*(CG$15=0) -> 0 | CH42: =('S&U'!CH73+CG42)*(CH$15=0) -> 0 | CI42: =('S&U'!CI73+CH42)*(CI$15=0) -> 0 | CJ42: =('S&U'!CJ73+CI42)*(CJ$15=0) -> 0 | CK42: =('S&U'!CK73+CJ42)*(CK$15=0) -> 0 | CL42: =('S&U'!CL73+CK42)*(CL$15=0) -> 0 | CM42: =('S&U'!CM73+CL42)*(CM$15=0) -> 0 | CN42: =('S&U'!CN73+CM42)*(CN$15=0) -> 0 | CO42: =('S&U'!CO73+CN42)*(CO$15=0) -> 0 | CP42: =('S&U'!CP73+CO42)*(CP$15=0) -> 0 | CQ42: =('S&U'!CQ73+CP42)*(CQ$15=0) -> 0 | CR42: =('S&U'!CR73+CQ42)*(CR$15=0) -> 0 | CS42: =('S&U'!CS73+CR42)*(CS$15=0) -> 0 | CT42: =('S&U'!CT73+CS42)*(CT$15=0) -> 0 | CU42: =('S&U'!CU73+CT42)*(CU$15=0) -> 0 | CV42: =('S&U'!CV73+CU42)*(CV$15=0) -> 0 | CW42: =('S&U'!CW73+CV42)*(CW$15=0) -> 0 | CX42: =('S&U'!CX73+CW42)*(CX$15=0) -> 0 | CY42: =('S&U'!CY73+CX42)*(CY$15=0) -> 0 | CZ42: =('S&U'!CZ73+CY42)*(CZ$15=0) -> 0 | DA42: =('S&U'!DA73+CZ42)*(DA$15=0) -> 0 | DB42: =('S&U'!DB73+DA42)*(DB$15=0) -> 0 | DC42: =('S&U'!DC73+DB42)*(DC$15=0) -> 0 | DD42: =('S&U'!DD73+DC42)*(DD$15=0) -> 0 | DE42: =('S&U'!DE73+DD42)*(DE$15=0) -> 0 | DF42: =('S&U'!DF73+DE42)*(DF$15=0) -> 0 | DG42: =('S&U'!DG73+DF42)*(DG$15=0) -> 0 | DH42: =('S&U'!DH73+DG42)*(DH$15=0) -> 0 | DI42: =('S&U'!DI73+DH42)*(DI$15=0) -> 0 | DJ42: =('S&U'!DJ73+DI42)*(DJ$15=0) -> 0 | DK42: =('S&U'!DK73+DJ42)*(DK$15=0) -> 0 | DL42: =('S&U'!DL73+DK42)*(DL$15=0) -> 0 | DM42: =('S&U'!DM73+DL42)*(DM$15=0) -> 0 | DN42: =('S&U'!DN73+DM42)*(DN$15=0) -> 0 | DO42: =('S&U'!DO73+DN42)*(DO$15=0) -> 0 | DP42: =('S&U'!DP73+DO42)*(DP$15=0) -> 0 | DQ42: =('S&U'!DQ73+DP42)*(DQ$15=0) -> 0 | DR42: =('S&U'!DR73+DQ42)*(DR$15=0) -> 0 | DS42: =('S&U'!DS73+DR42)*(DS$15=0) -> 0 | DT42: =('S&U'!DT73+DS42)*(DT$15=0) -> 0 | DU42: =('S&U'!DU73+DT42)*(DU$15=0) -> 0 | DV42: =('S&U'!DV73+DU42)*(DV$15=0) -> 0 | DW42: =('S&U'!DW73+DV42)*(DW$15=0) -> 0 | DX42: =('S&U'!DX73+DW42)*(DX$15=0) -> 0 | DY42: =('S&U'!DY73+DX42)*(DY$15=0) -> 0 | DZ42: =('S&U'!DZ73+DY42)*(DZ$15=0) -> 0 | EA42: =('S&U'!EA73+DZ42)*(EA$15=0) -> 0 | EB42: =('S&U'!EB73+EA42)*(EB$15=0) -> 0 | EC42: =('S&U'!EC73+EB42)*(EC$15=0) -> 0 | ED42: =('S&U'!ED73+EC42)*(ED$15=0) -> 0 | EE42: =('S&U'!EE73+ED42)*(EE$15=0) -> 0 | EF42: =('S&U'!EF73+EE42)*(EF$15=0) -> 0 | EG42: =('S&U'!EG73+EF42)*(EG$15=0) -> 0 | EH42: =('S&U'!EH73+EG42)*(EH$15=0) -> 0 | EI42: =('S&U'!EI73+EH42)*(EI$15=0) -> 0 | EJ42: =('S&U'!EJ73+EI42)*(EJ$15=0) -> 0 | EK42: =('S&U'!EK73+EJ42)*(EK$15=0) -> 0 | EL42: =('S&U'!EL73+EK42)*(EL$15=0) -> 0 | EM42: =('S&U'!EM73+EL42)*(EM$15=0) -> 0 | EN42: =('S&U'!EN73+EM42)*(EN$15=0) -> 0 | EO42: =('S&U'!EO73+EN42)*(EO$15=0) -> 0 | EP42: =('S&U'!EP73+EO42)*(EP$15=0) -> 0 | EQ42: =('S&U'!EQ73+EP42)*(EQ$15=0) -> 0 | ER42: =('S&U'!ER73+EQ42)*(ER$15=0) -> 0 | ES42: =('S&U'!ES73+ER42)*(ES$15=0) -> 0 | ET42: =('S&U'!ET73+ES42)*(ET$15=0) -> 0 | EU42: =('S&U'!EU73+ET42)*(EU$15=0) -> 0 | EV42: =('S&U'!EV73+EU42)*(EV$15=0) -> 0 | EW42: =('S&U'!EW73+EV42)*(EW$15=0) -> 0 | EX42: =('S&U'!EX73+EW42)*(EX$15=0) -> 0 | EY42: =('S&U'!EY73+EX42)*(EY$15=0) -> 0 | EZ42: =('S&U'!EZ73+EY42)*(EZ$15=0) -> 0 | FA42: =('S&U'!FA73+EZ42)*(FA$15=0) -> 0 | FB42: =('S&U'!FB73+FA42)*(FB$15=0) -> 0 | FC42: =('S&U'!FC73+FB42)*(FC$15=0) -> 0 | FD42: =('S&U'!FD73+FC42)*(FD$15=0) -> 0 | FE42: =('S&U'!FE73+FD42)*(FE$15=0) -> 0 | FF42: =('S&U'!FF73+FE42)*(FF$15=0) -> 0
B43: Нераспределенная прибыль (непокрытый убыток) | H43: тыс. руб. | L43: 0 | M43: =(L43+M77)*(M$15=0) -> -5200.052985 | N43: -5503.592201 | O43: -5927.850573 | P43: -6472.828101 | Q43: -8079.237611 | R43: -10752.71851 | S43: -16543.14474 | T43: -24170.95773 | U43: -32994.09728 | V43: -44171.07981 | W43: -59412.81153 | X43: -77879.89121 | Y43: -75576.40174 | Z43: -72596.32796 | AA43: -70939.25915 | AB43: -68393.26954 | AC43: -67567.92584 | AD43: -66104.9658 | AE43: -63900.33831 | AF43: -60855.68091 | AG43: -59615.118 | AH43: -57632.02923 | AI43: -54833.1021 | AJ43: -51140.31918 | AK43: -49432.12769 | AL43: -46861.98844 | AM43: -43390.38759 | AN43: -38822.93793 | AO43: -36281.69125 | AP43: -32885.34895 | AQ43: -36960.28911 | AR43: 11508.14406 | AS43: =(AR43+AS77)*(AS$15=0) -> 0 | AT43: 0 | AU43: 0 | AV43: 0 | AW43: 0 | AX43: 0 | AY43: 0 | AZ43: 0 | BA43: 0 | BB43: 0 | BC43: 0 | BD43: 0 | BE43: 0 | BF43: 0 | BG43: 0 | BH43: 0 | BI43: 0 | BJ43: 0 | BK43: 0 | BL43: 0 | BM43: 0 | BN43: 0 | BO43: 0 | BP43: 0 | BQ43: 0 | BR43: 0 | BS43: 0 | BT43: 0 | BU43: 0 | BV43: 0 | BW43: 0 | BX43: 0 | BY43: =(BX43+BY77)*(BY$15=0) -> 0 | BZ43: 0 | CA43: 0 | CB43: 0 | CC43: 0 | CD43: 0 | CE43: 0 | CF43: 0 | CG43: 0 | CH43: 0 | CI43: 0 | CJ43: 0 | CK43: 0 | CL43: 0 | CM43: 0 | CN43: 0 | CO43: 0 | CP43: 0 | CQ43: 0 | CR43: 0 | CS43: 0 | CT43: 0 | CU43: 0 | CV43: 0 | CW43: 0 | CX43: 0 | CY43: 0 | CZ43: 0 | DA43: 0 | DB43: 0 | DC43: 0 | DD43: 0 | DE43: =(DD43+DE77)*(DE$15=0) -> 0 | DF43: 0 | DG43: 0 | DH43: 0 | DI43: 0 | DJ43: 0 | DK43: 0 | DL43: 0 | DM43: 0 | DN43: 0 | DO43: 0 | DP43: 0 | DQ43: 0 | DR43: 0 | DS43: 0 | DT43: 0 | DU43: 0 | DV43: 0 | DW43: 0 | DX43: 0 | DY43: 0 | DZ43: 0 | EA43: 0 | EB43: 0 | EC43: 0 | ED43: 0 | EE43: 0 | EF43: 0 | EG43: 0 | EH43: 0 | EI43: 0 | EJ43: 0 | EK43: =(EJ43+EK77)*(EK$15=0) -> 0 | EL43: 0 | EM43: 0 | EN43: 0 | EO43: 0 | EP43: 0 | EQ43: 0 | ER43: 0 | ES43: 0 | ET43: 0 | EU43: 0 | EV43: 0 | EW43: 0 | EX43: 0 | EY43: 0 | EZ43: 0 | FA43: 0 | FB43: 0 | FC43: 0 | FD43: 0 | FE43: 0 | FF43: 0
B44: Долгосрочные обязательства | H44: тыс. руб. | M44: =SUM(M45:M47) -> 10084.71317 | N44: =SUM(N45:N47) -> 15090.96317 | O44: 20097.21317 | P44: 25103.46317 | Q44: 95692.21868 | R44: 206292.5829 | S44: 318369.9423 | T44: 358490.4158 | U44: 504820.1515 | V44: 634653.7565 | W44: 827077.7123 | X44: 912839.3141 | Y44: 875613.9712 | Z44: 750536.4077 | AA44: 742210.1866 | AB44: 734192.9829 | AC44: 726069.2974 | AD44: 717754.1021 | AE44: 709324.2214 | AF44: 700980.2101 | AG44: 692590.9575 | AH44: 684031.5747 | AI44: 675376.2218 | AJ44: 666824.5242 | AK44: 658611.7798 | AL44: 650250.2204 | AM44: 641855.1737 | AN44: 633884.581 | AO44: 626282.875 | AP44: 618587.3433 | AQ44: 619122.0654 | AR44: 8.731149137e-11 | AS44: 0 | AT44: 0 | AU44: 0 | AV44: 0 | AW44: 0 | AX44: 0 | AY44: 0 | AZ44: 0 | BA44: 0 | BB44: 0 | BC44: 0 | BD44: 0 | BE44: 0 | BF44: 0 | BG44: 0 | BH44: 0 | BI44: 0 | BJ44: 0 | BK44: 0 | BL44: 0 | BM44: 0 | BN44: 0 | BO44: 0 | BP44: 0 | BQ44: 0 | BR44: 0 | BS44: 0 | BT44: 0 | BU44: 0 | BV44: 0 | BW44: 0 | BX44: 0 | BY44: 0 | BZ44: =SUM(BZ45:BZ47) -> 0 | CA44: 0 | CB44: 0 | CC44: 0 | CD44: 0 | CE44: 0 | CF44: 0 | CG44: 0 | CH44: 0 | CI44: 0 | CJ44: 0 | CK44: 0 | CL44: 0 | CM44: 0 | CN44: 0 | CO44: 0 | CP44: 0 | CQ44: 0 | CR44: 0 | CS44: 0 | CT44: 0 | CU44: 0 | CV44: 0 | CW44: 0 | CX44: 0 | CY44: 0 | CZ44: 0 | DA44: 0 | DB44: 0 | DC44: 0 | DD44: 0 | DE44: 0 | DF44: 0 | DG44: 0 | DH44: 0 | DI44: 0 | DJ44: 0 | DK44: 0 | DL44: 0 | DM44: 0 | DN44: 0 | DO44: 0 | DP44: 0 | DQ44: 0 | DR44: 0 | DS44: 0 | DT44: 0 | DU44: 0 | DV44: 0 | DW44: 0 | DX44: 0 | DY44: 0 | DZ44: 0 | EA44: 0 | EB44: 0 | EC44: 0 | ED44: 0 | EE44: 0 | EF44: 0 | EG44: 0 | EH44: 0 | EI44: 0 | EJ44: 0 | EK44: 0 | EL44: =SUM(EL45:EL47) -> 0 | EM44: 0 | EN44: 0 | EO44: 0 | EP44: 0 | EQ44: 0 | ER44: 0 | ES44: 0 | ET44: 0 | EU44: 0 | EV44: 0 | EW44: 0 | EX44: 0 | EY44: 0 | EZ44: 0 | FA44: 0 | FB44: 0 | FC44: 0 | FD44: 0 | FE44: 0 | FF44: 0
B45: Заемные средства | H45: тыс. руб. | M45: =Debt!M51*(M$15=0) -> 0 | N45: =Debt!N51*(N$15=0) -> 0 | O45: =Debt!O51*(O$15=0) -> 0 | P45: =Debt!P51*(P$15=0) -> 0 | Q45: =Debt!Q51*(Q$15=0) -> 0 | R45: =Debt!R51*(R$15=0) -> 0 | S45: =Debt!S51*(S$15=0) -> 55318.14015 | T45: =Debt!T51*(T$15=0) -> 91231.43246 | U45: =Debt!U51*(U$15=0) -> 137441.2516 | V45: =Debt!V51*(V$15=0) -> 256884.896 | W45: =Debt!W51*(W$15=0) -> 436100.6796 | X45: =Debt!X51*(X$15=0) -> 507846.3165 | Y45: =Debt!Y51*(Y$15=0) -> 490751.6125 | Z45: =Debt!Z51*(Z$15=0) -> 373489.4341 | AA45: =Debt!AA51*(AA$15=0) -> 350268.8268 | AB45: =Debt!AB51*(AB$15=0) -> 326450.7978 | AC45: =Debt!AC51*(AC$15=0) -> 302158.2689 | AD45: =Debt!AD51*(AD$15=0) -> 277130.9956 | AE45: =Debt!AE51*(AE$15=0) -> 251314.2443 | AF45: =Debt!AF51*(AF$15=0) -> 224758.6852 | AG45: =Debt!AG51*(AG$15=0) -> 197624.0465 | AH45: =Debt!AH51*(AH$15=0) -> 169664.9028 | AI45: =Debt!AI51*(AI$15=0) -> 140852.7061 | AJ45: =Debt!AJ51*(AJ$15=0) -> 111260.7787 | AK45: =Debt!AK51*(AK$15=0) -> 80972.01872 | AL45: =Debt!AL51*(AL$15=0) -> 49752.98981 | AM45: =Debt!AM51*(AM$15=0) -> 17640.47522 | AN45: =Debt!AN51*(AN$15=0) -> 8.731149137e-11 | AO45: =Debt!AO51*(AO$15=0) -> 8.731149137e-11 | AP45: =Debt!AP51*(AP$15=0) -> 8.731149137e-11 | AQ45: =Debt!AQ51*(AQ$15=0) -> 8.731149137e-11 | AR45: =Debt!AR51*(AR$15=0) -> 8.731149137e-11 | AS45: =Debt!AS51*(AS$15=0) -> 0 | AT45: =Debt!AT51*(AT$15=0) -> 0 | AU45: =Debt!AU51*(AU$15=0) -> 0 | AV45: =Debt!AV51*(AV$15=0) -> 0 | AW45: =Debt!AW51*(AW$15=0) -> 0 | AX45: =Debt!AX51*(AX$15=0) -> 0 | AY45: =Debt!AY51*(AY$15=0) -> 0 | AZ45: =Debt!AZ51*(AZ$15=0) -> 0 | BA45: =Debt!BA51*(BA$15=0) -> 0 | BB45: =Debt!BB51*(BB$15=0) -> 0 | BC45: =Debt!BC51*(BC$15=0) -> 0 | BD45: =Debt!BD51*(BD$15=0) -> 0 | BE45: =Debt!BE51*(BE$15=0) -> 0 | BF45: =Debt!BF51*(BF$15=0) -> 0 | BG45: =Debt!BG51*(BG$15=0) -> 0 | BH45: =Debt!BH51*(BH$15=0) -> 0 | BI45: =Debt!BI51*(BI$15=0) -> 0 | BJ45: =Debt!BJ51*(BJ$15=0) -> 0 | BK45: =Debt!BK51*(BK$15=0) -> 0 | BL45: =Debt!BL51*(BL$15=0) -> 0 | BM45: =Debt!BM51*(BM$15=0) -> 0 | BN45: =Debt!BN51*(BN$15=0) -> 0 | BO45: =Debt!BO51*(BO$15=0) -> 0 | BP45: =Debt!BP51*(BP$15=0) -> 0 | BQ45: =Debt!BQ51*(BQ$15=0) -> 0 | BR45: =Debt!BR51*(BR$15=0) -> 0 | BS45: =Debt!BS51*(BS$15=0) -> 0 | BT45: =Debt!BT51*(BT$15=0) -> 0 | BU45: =Debt!BU51*(BU$15=0) -> 0 | BV45: =Debt!BV51*(BV$15=0) -> 0 | BW45: =Debt!BW51*(BW$15=0) -> 0 | BX45: =Debt!BX51*(BX$15=0) -> 0 | BY45: =Debt!BY51*(BY$15=0) -> 0 | BZ45: =Debt!BZ51*(BZ$15=0) -> 0 | CA45: =Debt!CA51*(CA$15=0) -> 0 | CB45: =Debt!CB51*(CB$15=0) -> 0 | CC45: =Debt!CC51*(CC$15=0) -> 0 | CD45: =Debt!CD51*(CD$15=0) -> 0 | CE45: =Debt!CE51*(CE$15=0) -> 0 | CF45: =Debt!CF51*(CF$15=0) -> 0 | CG45: =Debt!CG51*(CG$15=0) -> 0 | CH45: =Debt!CH51*(CH$15=0) -> 0 | CI45: =Debt!CI51*(CI$15=0) -> 0 | CJ45: =Debt!CJ51*(CJ$15=0) -> 0 | CK45: =Debt!CK51*(CK$15=0) -> 0 | CL45: =Debt!CL51*(CL$15=0) -> 0 | CM45: =Debt!CM51*(CM$15=0) -> 0 | CN45: =Debt!CN51*(CN$15=0) -> 0 | CO45: =Debt!CO51*(CO$15=0) -> 0 | CP45: =Debt!CP51*(CP$15=0) -> 0 | CQ45: =Debt!CQ51*(CQ$15=0) -> 0 | CR45: =Debt!CR51*(CR$15=0) -> 0 | CS45: =Debt!CS51*(CS$15=0) -> 0 | CT45: =Debt!CT51*(CT$15=0) -> 0 | CU45: =Debt!CU51*(CU$15=0) -> 0 | CV45: =Debt!CV51*(CV$15=0) -> 0 | CW45: =Debt!CW51*(CW$15=0) -> 0 | CX45: =Debt!CX51*(CX$15=0) -> 0 | CY45: =Debt!CY51*(CY$15=0) -> 0 | CZ45: =Debt!CZ51*(CZ$15=0) -> 0 | DA45: =Debt!DA51*(DA$15=0) -> 0 | DB45: =Debt!DB51*(DB$15=0) -> 0 | DC45: =Debt!DC51*(DC$15=0) -> 0 | DD45: =Debt!DD51*(DD$15=0) -> 0 | DE45: =Debt!DE51*(DE$15=0) -> 0 | DF45: =Debt!DF51*(DF$15=0) -> 0 | DG45: =Debt!DG51*(DG$15=0) -> 0 | DH45: =Debt!DH51*(DH$15=0) -> 0 | DI45: =Debt!DI51*(DI$15=0) -> 0 | DJ45: =Debt!DJ51*(DJ$15=0) -> 0 | DK45: =Debt!DK51*(DK$15=0) -> 0 | DL45: =Debt!DL51*(DL$15=0) -> 0 | DM45: =Debt!DM51*(DM$15=0) -> 0 | DN45: =Debt!DN51*(DN$15=0) -> 0 | DO45: =Debt!DO51*(DO$15=0) -> 0 | DP45: =Debt!DP51*(DP$15=0) -> 0 | DQ45: =Debt!DQ51*(DQ$15=0) -> 0 | DR45: =Debt!DR51*(DR$15=0) -> 0 | DS45: =Debt!DS51*(DS$15=0) -> 0 | DT45: =Debt!DT51*(DT$15=0) -> 0 | DU45: =Debt!DU51*(DU$15=0) -> 0 | DV45: =Debt!DV51*(DV$15=0) -> 0 | DW45: =Debt!DW51*(DW$15=0) -> 0 | DX45: =Debt!DX51*(DX$15=0) -> 0 | DY45: =Debt!DY51*(DY$15=0) -> 0 | DZ45: =Debt!DZ51*(DZ$15=0) -> 0 | EA45: =Debt!EA51*(EA$15=0) -> 0 | EB45: =Debt!EB51*(EB$15=0) -> 0 | EC45: =Debt!EC51*(EC$15=0) -> 0 | ED45: =Debt!ED51*(ED$15=0) -> 0 | EE45: =Debt!EE51*(EE$15=0) -> 0 | EF45: =Debt!EF51*(EF$15=0) -> 0 | EG45: =Debt!EG51*(EG$15=0) -> 0 | EH45: =Debt!EH51*(EH$15=0) -> 0 | EI45: =Debt!EI51*(EI$15=0) -> 0 | EJ45: =Debt!EJ51*(EJ$15=0) -> 0 | EK45: =Debt!EK51*(EK$15=0) -> 0 | EL45: =Debt!EL51*(EL$15=0) -> 0 | EM45: =Debt!EM51*(EM$15=0) -> 0 | EN45: =Debt!EN51*(EN$15=0) -> 0 | EO45: =Debt!EO51*(EO$15=0) -> 0 | EP45: =Debt!EP51*(EP$15=0) -> 0 | EQ45: =Debt!EQ51*(EQ$15=0) -> 0 | ER45: =Debt!ER51*(ER$15=0) -> 0 | ES45: =Debt!ES51*(ES$15=0) -> 0 | ET45: =Debt!ET51*(ET$15=0) -> 0 | EU45: =Debt!EU51*(EU$15=0) -> 0 | EV45: =Debt!EV51*(EV$15=0) -> 0 | EW45: =Debt!EW51*(EW$15=0) -> 0 | EX45: =Debt!EX51*(EX$15=0) -> 0 | EY45: =Debt!EY51*(EY$15=0) -> 0 | EZ45: =Debt!EZ51*(EZ$15=0) -> 0 | FA45: =Debt!FA51*(FA$15=0) -> 0 | FB45: =Debt!FB51*(FB$15=0) -> 0 | FC45: =Debt!FC51*(FC$15=0) -> 0 | FD45: =Debt!FD51*(FD$15=0) -> 0 | FE45: =Debt!FE51*(FE$15=0) -> 0 | FF45: =Debt!FF51*(FF$15=0) -> 0
B46: Акционерный заем | H46: тыс. руб. | M46: =Investor!M93*(M$15=0) -> 10084.71317 | N46: =Investor!N93*(N$15=0) -> 15090.96317 | O46: =Investor!O93*(O$15=0) -> 20097.21317 | P46: =Investor!P93*(P$15=0) -> 25103.46317 | Q46: =Investor!Q93*(Q$15=0) -> 75667.21868 | R46: =Investor!R93*(R$15=0) -> 112620.2948 | S46: =Investor!S93*(S$15=0) -> 169379.514 | T46: =Investor!T93*(T$15=0) -> 173586.6953 | U46: =Investor!U93*(U$15=0) -> 180034.3237 | V46: =Investor!V93*(V$15=0) -> 190424.2843 | W46: =Investor!W93*(W$15=0) -> 203632.4565 | X46: =Investor!X93*(X$15=0) -> 217648.4214 | Y46: =Investor!Y93*(Y$15=0) -> 212653.0572 | Z46: =Investor!Z93*(Z$15=0) -> 188009.3005 | AA46: =Investor!AA93*(AA$15=0) -> 186075.3153 | AB46: =Investor!AB93*(AB$15=0) -> 185047.7691 | AC46: =Investor!AC93*(AC$15=0) -> 182112.9498 | AD46: =Investor!AD93*(AD$15=0) -> 179721.365 | AE46: =Investor!AE93*(AE$15=0) -> 178004.5729 | AF46: =Investor!AF93*(AF$15=0) -> 177112.458 | AG46: =Investor!AG93*(AG$15=0) -> 174229.7707 | AH46: =Investor!AH93*(AH$15=0) -> 172001.4582 | AI46: =Investor!AI93*(AI$15=0) -> 170530.2286 | AJ46: =Investor!AJ93*(AJ$15=0) -> 169942.385 | AK46: =Investor!AK93*(AK$15=0) -> 167163.3514 | AL46: =Investor!AL93*(AL$15=0) -> 165165.7717 | AM46: =Investor!AM93*(AM$15=0) -> 164028.1903 | AN46: =Investor!AN93*(AN$15=0) -> 148843.0236 | AO46: =Investor!AO93*(AO$15=0) -> 113347.0109 | AP46: =Investor!AP93*(AP$15=0) -> 77757.17231 | AQ46: =Investor!AQ93*(AQ$15=0) -> 50397.58762 | AR46: =Investor!AR93*(AR$15=0) -> 0 | AS46: =Investor!AS93*(AS$15=0) -> 0 | AT46: =Investor!AT93*(AT$15=0) -> 0 | AU46: =Investor!AU93*(AU$15=0) -> 0 | AV46: =Investor!AV93*(AV$15=0) -> 0 | AW46: =Investor!AW93*(AW$15=0) -> 0 | AX46: =Investor!AX93*(AX$15=0) -> 0 | AY46: =Investor!AY93*(AY$15=0) -> 0 | AZ46: =Investor!AZ93*(AZ$15=0) -> 0 | BA46: =Investor!BA93*(BA$15=0) -> 0 | BB46: =Investor!BB93*(BB$15=0) -> 0 | BC46: =Investor!BC93*(BC$15=0) -> 0 | BD46: =Investor!BD93*(BD$15=0) -> 0 | BE46: =Investor!BE93*(BE$15=0) -> 0 | BF46: =Investor!BF93*(BF$15=0) -> 0 | BG46: =Investor!BG93*(BG$15=0) -> 0 | BH46: =Investor!BH93*(BH$15=0) -> 0 | BI46: =Investor!BI93*(BI$15=0) -> 0 | BJ46: =Investor!BJ93*(BJ$15=0) -> 0 | BK46: =Investor!BK93*(BK$15=0) -> 0 | BL46: =Investor!BL93*(BL$15=0) -> 0 | BM46: =Investor!BM93*(BM$15=0) -> 0 | BN46: =Investor!BN93*(BN$15=0) -> 0 | BO46: =Investor!BO93*(BO$15=0) -> 0 | BP46: =Investor!BP93*(BP$15=0) -> 0 | BQ46: =Investor!BQ93*(BQ$15=0) -> 0 | BR46: =Investor!BR93*(BR$15=0) -> 0 | BS46: =Investor!BS93*(BS$15=0) -> 0 | BT46: =Investor!BT93*(BT$15=0) -> 0 | BU46: =Investor!BU93*(BU$15=0) -> 0 | BV46: =Investor!BV93*(BV$15=0) -> 0 | BW46: =Investor!BW93*(BW$15=0) -> 0 | BX46: =Investor!BX93*(BX$15=0) -> 0 | BY46: =Investor!BY93*(BY$15=0) -> 0 | BZ46: =Investor!BZ93*(BZ$15=0) -> 0 | CA46: =Investor!CA93*(CA$15=0) -> 0 | CB46: =Investor!CB93*(CB$15=0) -> 0 | CC46: =Investor!CC93*(CC$15=0) -> 0 | CD46: =Investor!CD93*(CD$15=0) -> 0 | CE46: =Investor!CE93*(CE$15=0) -> 0 | CF46: =Investor!CF93*(CF$15=0) -> 0 | CG46: =Investor!CG93*(CG$15=0) -> 0 | CH46: =Investor!CH93*(CH$15=0) -> 0 | CI46: =Investor!CI93*(CI$15=0) -> 0 | CJ46: =Investor!CJ93*(CJ$15=0) -> 0 | CK46: =Investor!CK93*(CK$15=0) -> 0 | CL46: =Investor!CL93*(CL$15=0) -> 0 | CM46: =Investor!CM93*(CM$15=0) -> 0 | CN46: =Investor!CN93*(CN$15=0) -> 0 | CO46: =Investor!CO93*(CO$15=0) -> 0 | CP46: =Investor!CP93*(CP$15=0) -> 0 | CQ46: =Investor!CQ93*(CQ$15=0) -> 0 | CR46: =Investor!CR93*(CR$15=0) -> 0 | CS46: =Investor!CS93*(CS$15=0) -> 0 | CT46: =Investor!CT93*(CT$15=0) -> 0 | CU46: =Investor!CU93*(CU$15=0) -> 0 | CV46: =Investor!CV93*(CV$15=0) -> 0 | CW46: =Investor!CW93*(CW$15=0) -> 0 | CX46: =Investor!CX93*(CX$15=0) -> 0 | CY46: =Investor!CY93*(CY$15=0) -> 0 | CZ46: =Investor!CZ93*(CZ$15=0) -> 0 | DA46: =Investor!DA93*(DA$15=0) -> 0 | DB46: =Investor!DB93*(DB$15=0) -> 0 | DC46: =Investor!DC93*(DC$15=0) -> 0 | DD46: =Investor!DD93*(DD$15=0) -> 0 | DE46: =Investor!DE93*(DE$15=0) -> 0 | DF46: =Investor!DF93*(DF$15=0) -> 0 | DG46: =Investor!DG93*(DG$15=0) -> 0 | DH46: =Investor!DH93*(DH$15=0) -> 0 | DI46: =Investor!DI93*(DI$15=0) -> 0 | DJ46: =Investor!DJ93*(DJ$15=0) -> 0 | DK46: =Investor!DK93*(DK$15=0) -> 0 | DL46: =Investor!DL93*(DL$15=0) -> 0 | DM46: =Investor!DM93*(DM$15=0) -> 0 | DN46: =Investor!DN93*(DN$15=0) -> 0 | DO46: =Investor!DO93*(DO$15=0) -> 0 | DP46: =Investor!DP93*(DP$15=0) -> 0 | DQ46: =Investor!DQ93*(DQ$15=0) -> 0 | DR46: =Investor!DR93*(DR$15=0) -> 0 | DS46: =Investor!DS93*(DS$15=0) -> 0 | DT46: =Investor!DT93*(DT$15=0) -> 0 | DU46: =Investor!DU93*(DU$15=0) -> 0 | DV46: =Investor!DV93*(DV$15=0) -> 0 | DW46: =Investor!DW93*(DW$15=0) -> 0 | DX46: =Investor!DX93*(DX$15=0) -> 0 | DY46: =Investor!DY93*(DY$15=0) -> 0 | DZ46: =Investor!DZ93*(DZ$15=0) -> 0 | EA46: =Investor!EA93*(EA$15=0) -> 0 | EB46: =Investor!EB93*(EB$15=0) -> 0 | EC46: =Investor!EC93*(EC$15=0) -> 0 | ED46: =Investor!ED93*(ED$15=0) -> 0 | EE46: =Investor!EE93*(EE$15=0) -> 0 | EF46: =Investor!EF93*(EF$15=0) -> 0 | EG46: =Investor!EG93*(EG$15=0) -> 0 | EH46: =Investor!EH93*(EH$15=0) -> 0 | EI46: =Investor!EI93*(EI$15=0) -> 0 | EJ46: =Investor!EJ93*(EJ$15=0) -> 0 | EK46: =Investor!EK93*(EK$15=0) -> 0 | EL46: =Investor!EL93*(EL$15=0) -> 0 | EM46: =Investor!EM93*(EM$15=0) -> 0 | EN46: =Investor!EN93*(EN$15=0) -> 0 | EO46: =Investor!EO93*(EO$15=0) -> 0 | EP46: =Investor!EP93*(EP$15=0) -> 0 | EQ46: =Investor!EQ93*(EQ$15=0) -> 0 | ER46: =Investor!ER93*(ER$15=0) -> 0 | ES46: =Investor!ES93*(ES$15=0) -> 0 | ET46: =Investor!ET93*(ET$15=0) -> 0 | EU46: =Investor!EU93*(EU$15=0) -> 0 | EV46: =Investor!EV93*(EV$15=0) -> 0 | EW46: =Investor!EW93*(EW$15=0) -> 0 | EX46: =Investor!EX93*(EX$15=0) -> 0 | EY46: =Investor!EY93*(EY$15=0) -> 0 | EZ46: =Investor!EZ93*(EZ$15=0) -> 0 | FA46: =Investor!FA93*(FA$15=0) -> 0 | FB46: =Investor!FB93*(FB$15=0) -> 0 | FC46: =Investor!FC93*(FC$15=0) -> 0 | FD46: =Investor!FD93*(FD$15=0) -> 0 | FE46: =Investor!FE93*(FE$15=0) -> 0 | FF46: =Investor!FF93*(FF$15=0) -> 0
B47: Целевое финансирование: субсидия на капитальные затраты и инвест. платеж | H47: тыс. руб. | L47: 0 | M47: =Subs!M48+Subs!M55 -> 0 | N47: =Subs!N48+Subs!N55 -> 0 | O47: =Subs!O48+Subs!O55 -> 0 | P47: =Subs!P48+Subs!P55 -> 0 | Q47: =Subs!Q48+Subs!Q55 -> 20025 | R47: =Subs!R48+Subs!R55 -> 93672.28812 | S47: =Subs!S48+Subs!S55 -> 93672.28812 | T47: =Subs!T48+Subs!T55 -> 93672.28812 | U47: =Subs!U48+Subs!U55 -> 187344.5762 | V47: =Subs!V48+Subs!V55 -> 187344.5762 | W47: =Subs!W48+Subs!W55 -> 187344.5762 | X47: =Subs!X48+Subs!X55 -> 187344.5762 | Y47: =Subs!Y48+Subs!Y55 -> 172209.3016 | Z47: =Subs!Z48+Subs!Z55 -> 189037.6731 | AA47: =Subs!AA48+Subs!AA55 -> 205866.0446 | AB47: =Subs!AB48+Subs!AB55 -> 222694.4161 | AC47: =Subs!AC48+Subs!AC55 -> 241798.0788 | AD47: =Subs!AD48+Subs!AD55 -> 260901.7415 | AE47: =Subs!AE48+Subs!AE55 -> 280005.4042 | AF47: =Subs!AF48+Subs!AF55 -> 299109.0669 | AG47: =Subs!AG48+Subs!AG55 -> 320737.1403 | AH47: =Subs!AH48+Subs!AH55 -> 342365.2137 | AI47: =Subs!AI48+Subs!AI55 -> 363993.2871 | AJ47: =Subs!AJ48+Subs!AJ55 -> 385621.3605 | AK47: =Subs!AK48+Subs!AK55 -> 410476.4097 | AL47: =Subs!AL48+Subs!AL55 -> 435331.4589 | AM47: =Subs!AM48+Subs!AM55 -> 460186.5081 | AN47: =Subs!AN48+Subs!AN55 -> 485041.5574 | AO47: =Subs!AO48+Subs!AO55 -> 512935.8642 | AP47: =Subs!AP48+Subs!AP55 -> 540830.171 | AQ47: =Subs!AQ48+Subs!AQ55 -> 568724.4778 | AR47: =Subs!AR48+Subs!AR55 -> 0 | AS47: =Subs!AS48+Subs!AS55 -> 0 | AT47: =Subs!AT48+Subs!AT55 -> 0 | AU47: =Subs!AU48+Subs!AU55 -> 0 | AV47: =Subs!AV48+Subs!AV55 -> 0 | AW47: =Subs!AW48+Subs!AW55 -> 0 | AX47: =Subs!AX48+Subs!AX55 -> 0 | AY47: =Subs!AY48+Subs!AY55 -> 0 | AZ47: =Subs!AZ48+Subs!AZ55 -> 0 | BA47: =Subs!BA48+Subs!BA55 -> 0 | BB47: =Subs!BB48+Subs!BB55 -> 0 | BC47: =Subs!BC48+Subs!BC55 -> 0 | BD47: =Subs!BD48+Subs!BD55 -> 0 | BE47: =Subs!BE48+Subs!BE55 -> 0 | BF47: =Subs!BF48+Subs!BF55 -> 0 | BG47: =Subs!BG48+Subs!BG55 -> 0 | BH47: =Subs!BH48+Subs!BH55 -> 0 | BI47: =Subs!BI48+Subs!BI55 -> 0 | BJ47: =Subs!BJ48+Subs!BJ55 -> 0 | BK47: =Subs!BK48+Subs!BK55 -> 0 | BL47: =Subs!BL48+Subs!BL55 -> 0 | BM47: =Subs!BM48+Subs!BM55 -> 0 | BN47: =Subs!BN48+Subs!BN55 -> 0 | BO47: =Subs!BO48+Subs!BO55 -> 0 | BP47: =Subs!BP48+Subs!BP55 -> 0 | BQ47: =Subs!BQ48+Subs!BQ55 -> 0 | BR47: =Subs!BR48+Subs!BR55 -> 0 | BS47: =Subs!BS48+Subs!BS55 -> 0 | BT47: =Subs!BT48+Subs!BT55 -> 0 | BU47: =Subs!BU48+Subs!BU55 -> 0 | BV47: =Subs!BV48+Subs!BV55 -> 0 | BW47: =Subs!BW48+Subs!BW55 -> 0 | BX47: =Subs!BX48+Subs!BX55 -> 0 | BY47: =Subs!BY48+Subs!BY55 -> 0 | BZ47: =Subs!BZ48+Subs!BZ55 -> 0 | CA47: =Subs!CA48+Subs!CA55 -> 0 | CB47: =Subs!CB48+Subs!CB55 -> 0 | CC47: =Subs!CC48+Subs!CC55 -> 0 | CD47: =Subs!CD48+Subs!CD55 -> 0 | CE47: =Subs!CE48+Subs!CE55 -> 0 | CF47: =Subs!CF48+Subs!CF55 -> 0 | CG47: =Subs!CG48+Subs!CG55 -> 0 | CH47: =Subs!CH48+Subs!CH55 -> 0 | CI47: =Subs!CI48+Subs!CI55 -> 0 | CJ47: =Subs!CJ48+Subs!CJ55 -> 0 | CK47: =Subs!CK48+Subs!CK55 -> 0 | CL47: =Subs!CL48+Subs!CL55 -> 0 | CM47: =Subs!CM48+Subs!CM55 -> 0 | CN47: =Subs!CN48+Subs!CN55 -> 0 | CO47: =Subs!CO48+Subs!CO55 -> 0 | CP47: =Subs!CP48+Subs!CP55 -> 0 | CQ47: =Subs!CQ48+Subs!CQ55 -> 0 | CR47: =Subs!CR48+Subs!CR55 -> 0 | CS47: =Subs!CS48+Subs!CS55 -> 0 | CT47: =Subs!CT48+Subs!CT55 -> 0 | CU47: =Subs!CU48+Subs!CU55 -> 0 | CV47: =Subs!CV48+Subs!CV55 -> 0 | CW47: =Subs!CW48+Subs!CW55 -> 0 | CX47: =Subs!CX48+Subs!CX55 -> 0 | CY47: =Subs!CY48+Subs!CY55 -> 0 | CZ47: =Subs!CZ48+Subs!CZ55 -> 0 | DA47: =Subs!DA48+Subs!DA55 -> 0 | DB47: =Subs!DB48+Subs!DB55 -> 0 | DC47: =Subs!DC48+Subs!DC55 -> 0 | DD47: =Subs!DD48+Subs!DD55 -> 0 | DE47: =Subs!DE48+Subs!DE55 -> 0 | DF47: =Subs!DF48+Subs!DF55 -> 0 | DG47: =Subs!DG48+Subs!DG55 -> 0 | DH47: =Subs!DH48+Subs!DH55 -> 0 | DI47: =Subs!DI48+Subs!DI55 -> 0 | DJ47: =Subs!DJ48+Subs!DJ55 -> 0 | DK47: =Subs!DK48+Subs!DK55 -> 0 | DL47: =Subs!DL48+Subs!DL55 -> 0 | DM47: =Subs!DM48+Subs!DM55 -> 0 | DN47: =Subs!DN48+Subs!DN55 -> 0 | DO47: =Subs!DO48+Subs!DO55 -> 0 | DP47: =Subs!DP48+Subs!DP55 -> 0 | DQ47: =Subs!DQ48+Subs!DQ55 -> 0 | DR47: =Subs!DR48+Subs!DR55 -> 0 | DS47: =Subs!DS48+Subs!DS55 -> 0 | DT47: =Subs!DT48+Subs!DT55 -> 0 | DU47: =Subs!DU48+Subs!DU55 -> 0 | DV47: =Subs!DV48+Subs!DV55 -> 0 | DW47: =Subs!DW48+Subs!DW55 -> 0 | DX47: =Subs!DX48+Subs!DX55 -> 0 | DY47: =Subs!DY48+Subs!DY55 -> 0 | DZ47: =Subs!DZ48+Subs!DZ55 -> 0 | EA47: =Subs!EA48+Subs!EA55 -> 0 | EB47: =Subs!EB48+Subs!EB55 -> 0 | EC47: =Subs!EC48+Subs!EC55 -> 0 | ED47: =Subs!ED48+Subs!ED55 -> 0 | EE47: =Subs!EE48+Subs!EE55 -> 0 | EF47: =Subs!EF48+Subs!EF55 -> 0 | EG47: =Subs!EG48+Subs!EG55 -> 0 | EH47: =Subs!EH48+Subs!EH55 -> 0 | EI47: =Subs!EI48+Subs!EI55 -> 0 | EJ47: =Subs!EJ48+Subs!EJ55 -> 0 | EK47: =Subs!EK48+Subs!EK55 -> 0 | EL47: =Subs!EL48+Subs!EL55 -> 0 | EM47: =Subs!EM48+Subs!EM55 -> 0 | EN47: =Subs!EN48+Subs!EN55 -> 0 | EO47: =Subs!EO48+Subs!EO55 -> 0 | EP47: =Subs!EP48+Subs!EP55 -> 0 | EQ47: =Subs!EQ48+Subs!EQ55 -> 0 | ER47: =Subs!ER48+Subs!ER55 -> 0 | ES47: =Subs!ES48+Subs!ES55 -> 0 | ET47: =Subs!ET48+Subs!ET55 -> 0 | EU47: =Subs!EU48+Subs!EU55 -> 0 | EV47: =Subs!EV48+Subs!EV55 -> 0 | EW47: =Subs!EW48+Subs!EW55 -> 0 | EX47: =Subs!EX48+Subs!EX55 -> 0 | EY47: =Subs!EY48+Subs!EY55 -> 0 | EZ47: =Subs!EZ48+Subs!EZ55 -> 0 | FA47: =Subs!FA48+Subs!FA55 -> 0 | FB47: =Subs!FB48+Subs!FB55 -> 0 | FC47: =Subs!FC48+Subs!FC55 -> 0 | FD47: =Subs!FD48+Subs!FD55 -> 0 | FE47: =Subs!FE48+Subs!FE55 -> 0 | FF47: =Subs!FF48+Subs!FF55 -> 0
B48: Краткосрочные обязательства | H48: тыс. руб. | M48: =SUM(M49:M50) -> 121.589819 | N48: 425.1290349 | O48: 849.3874069 | P48: 1394.364935 | Q48: 2609.34138 | R48: 4879.49466 | S48: 8279.522516 | T48: 12414.61278 | U48: 16678.16644 | V48: 21144.72828 | W48: 25895.80915 | X48: 30975.1272 | Y48: 35127.00061 | Z48: 38429.41545 | AA48: 38160.18886 | AB48: 37000.33622 | AC48: 37714.62825 | AD48: 37789.5649 | AE48: 37121.07792 | AF48: 35610.78758 | AG48: 36075.01657 | AH48: 35794.91111 | AI48: 34697.14088 | AJ48: 32703.67045 | AK48: 32881.00664 | AL48: 32194.51414 | AM48: 30604.66057 | AN48: 27917.04 | AO48: 27461.02408 | AP48: 26147.95637 | AQ48: 24075.93671 | AR48: 20858.46201 | AS48: =SUM(AS49:AS50) -> 0 | AT48: 0 | AU48: 0 | AV48: 0 | AW48: 0 | AX48: 0 | AY48: 0 | AZ48: 0 | BA48: 0 | BB48: 0 | BC48: 0 | BD48: 0 | BE48: 0 | BF48: 0 | BG48: 0 | BH48: 0 | BI48: 0 | BJ48: 0 | BK48: 0 | BL48: 0 | BM48: 0 | BN48: 0 | BO48: 0 | BP48: 0 | BQ48: 0 | BR48: 0 | BS48: 0 | BT48: 0 | BU48: 0 | BV48: 0 | BW48: 0 | BX48: 0 | BY48: =SUM(BY49:BY50) -> 0 | BZ48: 0 | CA48: 0 | CB48: 0 | CC48: 0 | CD48: 0 | CE48: 0 | CF48: 0 | CG48: 0 | CH48: 0 | CI48: 0 | CJ48: 0 | CK48: 0 | CL48: 0 | CM48: 0 | CN48: 0 | CO48: 0 | CP48: 0 | CQ48: 0 | CR48: 0 | CS48: 0 | CT48: 0 | CU48: 0 | CV48: 0 | CW48: 0 | CX48: 0 | CY48: 0 | CZ48: 0 | DA48: 0 | DB48: 0 | DC48: 0 | DD48: 0 | DE48: =SUM(DE49:DE50) -> 0 | DF48: 0 | DG48: 0 | DH48: 0 | DI48: 0 | DJ48: 0 | DK48: 0 | DL48: 0 | DM48: 0 | DN48: 0 | DO48: 0 | DP48: 0 | DQ48: 0 | DR48: 0 | DS48: 0 | DT48: 0 | DU48: 0 | DV48: 0 | DW48: 0 | DX48: 0 | DY48: 0 | DZ48: 0 | EA48: 0 | EB48: 0 | EC48: 0 | ED48: 0 | EE48: 0 | EF48: 0 | EG48: 0 | EH48: 0 | EI48: 0 | EJ48: 0 | EK48: =SUM(EK49:EK50) -> 0 | EL48: 0 | EM48: 0 | EN48: 0 | EO48: 0 | EP48: 0 | EQ48: 0 | ER48: 0 | ES48: 0 | ET48: 0 | EU48: 0 | EV48: 0 | EW48: 0 | EX48: 0 | EY48: 0 | EZ48: 0 | FA48: 0 | FB48: 0 | FC48: 0 | FD48: 0 | FE48: 0 | FF48: 0
B49: Кредиторская задолженность | H49: тыс. руб. | M49: =Oper!M243 -> 0 | N49: =Oper!N243 -> 0 | O49: =Oper!O243 -> 0 | P49: =Oper!P243 -> 0 | Q49: =Oper!Q243 -> 0 | R49: =Oper!R243 -> 0 | S49: =Oper!S243 -> 0 | T49: =Oper!T243 -> 0 | U49: =Oper!U243 -> 0 | V49: =Oper!V243 -> 0 | W49: =Oper!W243 -> 0 | X49: =Oper!X243 -> 0 | Y49: =Oper!Y243 -> 172.8742508 | Z49: =Oper!Z243 -> 174.562871 | AA49: =Oper!AA243 -> 176.2681298 | AB49: =Oper!AB243 -> 177.9901913 | AC49: =Oper!AC243 -> 179.7292209 | AD49: =Oper!AD243 -> 181.4853858 | AE49: =Oper!AE243 -> 183.258855 | AF49: =Oper!AF243 -> 185.0497989 | AG49: =Oper!AG243 -> 186.8583897 | AH49: =Oper!AH243 -> 188.6848013 | AI49: =Oper!AI243 -> 190.5292092 | AJ49: =Oper!AJ243 -> 192.3917909 | AK49: =Oper!AK243 -> 194.2727253 | AL49: =Oper!AL243 -> 196.1721933 | AM49: =Oper!AM243 -> 198.0903776 | AN49: =Oper!AN243 -> 200.0274625 | AO49: =Oper!AO243 -> 201.9836343 | AP49: =Oper!AP243 -> 203.9590811 | AQ49: =Oper!AQ243 -> 205.9539927 | AR49: =Oper!AR243 -> 0 | AS49: =Oper!AS243 -> 0 | AT49: =Oper!AT243 -> 0 | AU49: =Oper!AU243 -> 0 | AV49: =Oper!AV243 -> 0 | AW49: =Oper!AW243 -> 0 | AX49: =Oper!AX243 -> 0 | AY49: =Oper!AY243 -> 0 | AZ49: =Oper!AZ243 -> 0 | BA49: =Oper!BA243 -> 0 | BB49: =Oper!BB243 -> 0 | BC49: =Oper!BC243 -> 0 | BD49: =Oper!BD243 -> 0 | BE49: =Oper!BE243 -> 0 | BF49: =Oper!BF243 -> 0 | BG49: =Oper!BG243 -> 0 | BH49: =Oper!BH243 -> 0 | BI49: =Oper!BI243 -> 0 | BJ49: =Oper!BJ243 -> 0 | BK49: =Oper!BK243 -> 0 | BL49: =Oper!BL243 -> 0 | BM49: =Oper!BM243 -> 0 | BN49: =Oper!BN243 -> 0 | BO49: =Oper!BO243 -> 0 | BP49: =Oper!BP243 -> 0 | BQ49: =Oper!BQ243 -> 0 | BR49: =Oper!BR243 -> 0 | BS49: =Oper!BS243 -> 0 | BT49: =Oper!BT243 -> 0 | BU49: =Oper!BU243 -> 0 | BV49: =Oper!BV243 -> 0 | BW49: =Oper!BW243 -> 0 | BX49: =Oper!BX243 -> 0 | BY49: =Oper!BY243 -> 0 | BZ49: =Oper!BZ243 -> 0 | CA49: =Oper!CA243 -> 0 | CB49: =Oper!CB243 -> 0 | CC49: =Oper!CC243 -> 0 | CD49: =Oper!CD243 -> 0 | CE49: =Oper!CE243 -> 0 | CF49: =Oper!CF243 -> 0 | CG49: =Oper!CG243 -> 0 | CH49: =Oper!CH243 -> 0 | CI49: =Oper!CI243 -> 0 | CJ49: =Oper!CJ243 -> 0 | CK49: =Oper!CK243 -> 0 | CL49: =Oper!CL243 -> 0 | CM49: =Oper!CM243 -> 0 | CN49: =Oper!CN243 -> 0 | CO49: =Oper!CO243 -> 0 | CP49: =Oper!CP243 -> 0 | CQ49: =Oper!CQ243 -> 0 | CR49: =Oper!CR243 -> 0 | CS49: =Oper!CS243 -> 0 | CT49: =Oper!CT243 -> 0 | CU49: =Oper!CU243 -> 0 | CV49: =Oper!CV243 -> 0 | CW49: =Oper!CW243 -> 0 | CX49: =Oper!CX243 -> 0 | CY49: =Oper!CY243 -> 0 | CZ49: =Oper!CZ243 -> 0 | DA49: =Oper!DA243 -> 0 | DB49: =Oper!DB243 -> 0 | DC49: =Oper!DC243 -> 0 | DD49: =Oper!DD243 -> 0 | DE49: =Oper!DE243 -> 0 | DF49: =Oper!DF243 -> 0 | DG49: =Oper!DG243 -> 0 | DH49: =Oper!DH243 -> 0 | DI49: =Oper!DI243 -> 0 | DJ49: =Oper!DJ243 -> 0 | DK49: =Oper!DK243 -> 0 | DL49: =Oper!DL243 -> 0 | DM49: =Oper!DM243 -> 0 | DN49: =Oper!DN243 -> 0 | DO49: =Oper!DO243 -> 0 | DP49: =Oper!DP243 -> 0 | DQ49: =Oper!DQ243 -> 0 | DR49: =Oper!DR243 -> 0 | DS49: =Oper!DS243 -> 0 | DT49: =Oper!DT243 -> 0 | DU49: =Oper!DU243 -> 0 | DV49: =Oper!DV243 -> 0 | DW49: =Oper!DW243 -> 0 | DX49: =Oper!DX243 -> 0 | DY49: =Oper!DY243 -> 0 | DZ49: =Oper!DZ243 -> 0 | EA49: =Oper!EA243 -> 0 | EB49: =Oper!EB243 -> 0 | EC49: =Oper!EC243 -> 0 | ED49: =Oper!ED243 -> 0 | EE49: =Oper!EE243 -> 0 | EF49: =Oper!EF243 -> 0 | EG49: =Oper!EG243 -> 0 | EH49: =Oper!EH243 -> 0 | EI49: =Oper!EI243 -> 0 | EJ49: =Oper!EJ243 -> 0 | EK49: =Oper!EK243 -> 0 | EL49: =Oper!EL243 -> 0 | EM49: =Oper!EM243 -> 0 | EN49: =Oper!EN243 -> 0 | EO49: =Oper!EO243 -> 0 | EP49: =Oper!EP243 -> 0 | EQ49: =Oper!EQ243 -> 0 | ER49: =Oper!ER243 -> 0 | ES49: =Oper!ES243 -> 0 | ET49: =Oper!ET243 -> 0 | EU49: =Oper!EU243 -> 0 | EV49: =Oper!EV243 -> 0 | EW49: =Oper!EW243 -> 0 | EX49: =Oper!EX243 -> 0 | EY49: =Oper!EY243 -> 0 | EZ49: =Oper!EZ243 -> 0 | FA49: =Oper!FA243 -> 0 | FB49: =Oper!FB243 -> 0 | FC49: =Oper!FC243 -> 0 | FD49: =Oper!FD243 -> 0 | FE49: =Oper!FE243 -> 0 | FF49: =Oper!FF243 -> 0
B50: Проценты по акционерному займу | H50: тыс. руб. | M50: =Investor!M108*(M$15=0) -> 121.589819 | N50: =Investor!N108*(N$15=0) -> 425.1290349 | O50: =Investor!O108*(O$15=0) -> 849.3874069 | P50: =Investor!P108*(P$15=0) -> 1394.364935 | Q50: =Investor!Q108*(Q$15=0) -> 2609.34138 | R50: =Investor!R108*(R$15=0) -> 4879.49466 | S50: =Investor!S108*(S$15=0) -> 8279.522516 | T50: =Investor!T108*(T$15=0) -> 12414.61278 | U50: =Investor!U108*(U$15=0) -> 16678.16644 | V50: =Investor!V108*(V$15=0) -> 21144.72828 | W50: =Investor!W108*(W$15=0) -> 25895.80915 | X50: =Investor!X108*(X$15=0) -> 30975.1272 | Y50: =Investor!Y108*(Y$15=0) -> 34954.12636 | Z50: =Investor!Z108*(Z$15=0) -> 38254.85258 | AA50: =Investor!AA108*(AA$15=0) -> 37983.92073 | AB50: =Investor!AB108*(AB$15=0) -> 36822.34603 | AC50: =Investor!AC108*(AC$15=0) -> 37534.89903 | AD50: =Investor!AD108*(AD$15=0) -> 37608.07951 | AE50: =Investor!AE108*(AE$15=0) -> 36937.81907 | AF50: =Investor!AF108*(AF$15=0) -> 35425.73778 | AG50: =Investor!AG108*(AG$15=0) -> 35888.15818 | AH50: =Investor!AH108*(AH$15=0) -> 35606.22631 | AI50: =Investor!AI108*(AI$15=0) -> 34506.61167 | AJ50: =Investor!AJ108*(AJ$15=0) -> 32511.27866 | AK50: =Investor!AK108*(AK$15=0) -> 32686.73392 | AL50: =Investor!AL108*(AL$15=0) -> 31998.34195 | AM50: =Investor!AM108*(AM$15=0) -> 30406.57019 | AN50: =Investor!AN108*(AN$15=0) -> 27717.01254 | AO50: =Investor!AO108*(AO$15=0) -> 27259.04044 | AP50: =Investor!AP108*(AP$15=0) -> 25943.99729 | AQ50: =Investor!AQ108*(AQ$15=0) -> 23869.98272 | AR50: =Investor!AR108*(AR$15=0) -> 20858.46201 | AS50: =Investor!AS108*(AS$15=0) -> 0 | AT50: =Investor!AT108*(AT$15=0) -> 0 | AU50: =Investor!AU108*(AU$15=0) -> 0 | AV50: =Investor!AV108*(AV$15=0) -> 0 | AW50: =Investor!AW108*(AW$15=0) -> 0 | AX50: =Investor!AX108*(AX$15=0) -> 0 | AY50: =Investor!AY108*(AY$15=0) -> 0 | AZ50: =Investor!AZ108*(AZ$15=0) -> 0 | BA50: =Investor!BA108*(BA$15=0) -> 0 | BB50: =Investor!BB108*(BB$15=0) -> 0 | BC50: =Investor!BC108*(BC$15=0) -> 0 | BD50: =Investor!BD108*(BD$15=0) -> 0 | BE50: =Investor!BE108*(BE$15=0) -> 0 | BF50: =Investor!BF108*(BF$15=0) -> 0 | BG50: =Investor!BG108*(BG$15=0) -> 0 | BH50: =Investor!BH108*(BH$15=0) -> 0 | BI50: =Investor!BI108*(BI$15=0) -> 0 | BJ50: =Investor!BJ108*(BJ$15=0) -> 0 | BK50: =Investor!BK108*(BK$15=0) -> 0 | BL50: =Investor!BL108*(BL$15=0) -> 0 | BM50: =Investor!BM108*(BM$15=0) -> 0 | BN50: =Investor!BN108*(BN$15=0) -> 0 | BO50: =Investor!BO108*(BO$15=0) -> 0 | BP50: =Investor!BP108*(BP$15=0) -> 0 | BQ50: =Investor!BQ108*(BQ$15=0) -> 0 | BR50: =Investor!BR108*(BR$15=0) -> 0 | BS50: =Investor!BS108*(BS$15=0) -> 0 | BT50: =Investor!BT108*(BT$15=0) -> 0 | BU50: =Investor!BU108*(BU$15=0) -> 0 | BV50: =Investor!BV108*(BV$15=0) -> 0 | BW50: =Investor!BW108*(BW$15=0) -> 0 | BX50: =Investor!BX108*(BX$15=0) -> 0 | BY50: =Investor!BY108*(BY$15=0) -> 0 | BZ50: =Investor!BZ108*(BZ$15=0) -> 0 | CA50: =Investor!CA108*(CA$15=0) -> 0 | CB50: =Investor!CB108*(CB$15=0) -> 0 | CC50: =Investor!CC108*(CC$15=0) -> 0 | CD50: =Investor!CD108*(CD$15=0) -> 0 | CE50: =Investor!CE108*(CE$15=0) -> 0 | CF50: =Investor!CF108*(CF$15=0) -> 0 | CG50: =Investor!CG108*(CG$15=0) -> 0 | CH50: =Investor!CH108*(CH$15=0) -> 0 | CI50: =Investor!CI108*(CI$15=0) -> 0 | CJ50: =Investor!CJ108*(CJ$15=0) -> 0 | CK50: =Investor!CK108*(CK$15=0) -> 0 | CL50: =Investor!CL108*(CL$15=0) -> 0 | CM50: =Investor!CM108*(CM$15=0) -> 0 | CN50: =Investor!CN108*(CN$15=0) -> 0 | CO50: =Investor!CO108*(CO$15=0) -> 0 | CP50: =Investor!CP108*(CP$15=0) -> 0 | CQ50: =Investor!CQ108*(CQ$15=0) -> 0 | CR50: =Investor!CR108*(CR$15=0) -> 0 | CS50: =Investor!CS108*(CS$15=0) -> 0 | CT50: =Investor!CT108*(CT$15=0) -> 0 | CU50: =Investor!CU108*(CU$15=0) -> 0 | CV50: =Investor!CV108*(CV$15=0) -> 0 | CW50: =Investor!CW108*(CW$15=0) -> 0 | CX50: =Investor!CX108*(CX$15=0) -> 0 | CY50: =Investor!CY108*(CY$15=0) -> 0 | CZ50: =Investor!CZ108*(CZ$15=0) -> 0 | DA50: =Investor!DA108*(DA$15=0) -> 0 | DB50: =Investor!DB108*(DB$15=0) -> 0 | DC50: =Investor!DC108*(DC$15=0) -> 0 | DD50: =Investor!DD108*(DD$15=0) -> 0 | DE50: =Investor!DE108*(DE$15=0) -> 0 | DF50: =Investor!DF108*(DF$15=0) -> 0 | DG50: =Investor!DG108*(DG$15=0) -> 0 | DH50: =Investor!DH108*(DH$15=0) -> 0 | DI50: =Investor!DI108*(DI$15=0) -> 0 | DJ50: =Investor!DJ108*(DJ$15=0) -> 0 | DK50: =Investor!DK108*(DK$15=0) -> 0 | DL50: =Investor!DL108*(DL$15=0) -> 0 | DM50: =Investor!DM108*(DM$15=0) -> 0 | DN50: =Investor!DN108*(DN$15=0) -> 0 | DO50: =Investor!DO108*(DO$15=0) -> 0 | DP50: =Investor!DP108*(DP$15=0) -> 0 | DQ50: =Investor!DQ108*(DQ$15=0) -> 0 | DR50: =Investor!DR108*(DR$15=0) -> 0 | DS50: =Investor!DS108*(DS$15=0) -> 0 | DT50: =Investor!DT108*(DT$15=0) -> 0 | DU50: =Investor!DU108*(DU$15=0) -> 0 | DV50: =Investor!DV108*(DV$15=0) -> 0 | DW50: =Investor!DW108*(DW$15=0) -> 0 | DX50: =Investor!DX108*(DX$15=0) -> 0 | DY50: =Investor!DY108*(DY$15=0) -> 0 | DZ50: =Investor!DZ108*(DZ$15=0) -> 0 | EA50: =Investor!EA108*(EA$15=0) -> 0 | EB50: =Investor!EB108*(EB$15=0) -> 0 | EC50: =Investor!EC108*(EC$15=0) -> 0 | ED50: =Investor!ED108*(ED$15=0) -> 0 | EE50: =Investor!EE108*(EE$15=0) -> 0 | EF50: =Investor!EF108*(EF$15=0) -> 0 | EG50: =Investor!EG108*(EG$15=0) -> 0 | EH50: =Investor!EH108*(EH$15=0) -> 0 | EI50: =Investor!EI108*(EI$15=0) -> 0 | EJ50: =Investor!EJ108*(EJ$15=0) -> 0 | EK50: =Investor!EK108*(EK$15=0) -> 0 | EL50: =Investor!EL108*(EL$15=0) -> 0 | EM50: =Investor!EM108*(EM$15=0) -> 0 | EN50: =Investor!EN108*(EN$15=0) -> 0 | EO50: =Investor!EO108*(EO$15=0) -> 0 | EP50: =Investor!EP108*(EP$15=0) -> 0 | EQ50: =Investor!EQ108*(EQ$15=0) -> 0 | ER50: =Investor!ER108*(ER$15=0) -> 0 | ES50: =Investor!ES108*(ES$15=0) -> 0 | ET50: =Investor!ET108*(ET$15=0) -> 0 | EU50: =Investor!EU108*(EU$15=0) -> 0 | EV50: =Investor!EV108*(EV$15=0) -> 0 | EW50: =Investor!EW108*(EW$15=0) -> 0 | EX50: =Investor!EX108*(EX$15=0) -> 0 | EY50: =Investor!EY108*(EY$15=0) -> 0 | EZ50: =Investor!EZ108*(EZ$15=0) -> 0 | FA50: =Investor!FA108*(FA$15=0) -> 0 | FB50: =Investor!FB108*(FB$15=0) -> 0 | FC50: =Investor!FC108*(FC$15=0) -> 0 | FD50: =Investor!FD108*(FD$15=0) -> 0 | FE50: =Investor!FE108*(FE$15=0) -> 0 | FF50: =Investor!FF108*(FF$15=0) -> 0
B52: Проверка: сходимость баланса | D52: =AND(M52:FF52) -> TRUE | H52: проверка | M52: =ABS(M29-M40)<1 -> TRUE | N52: TRUE | O52: TRUE | P52: TRUE | Q52: TRUE | R52: TRUE | S52: TRUE | T52: TRUE | U52: TRUE | V52: TRUE | W52: TRUE | X52: TRUE | Y52: TRUE | Z52: TRUE | AA52: TRUE | AB52: TRUE | AC52: TRUE | AD52: TRUE | AE52: TRUE | AF52: TRUE | AG52: TRUE | AH52: TRUE | AI52: TRUE | AJ52: TRUE | AK52: TRUE | AL52: TRUE | AM52: TRUE | AN52: TRUE | AO52: TRUE | AP52: TRUE | AQ52: TRUE | AR52: TRUE | AS52: =ABS(AS29-AS40)<1 -> TRUE | AT52: TRUE | AU52: TRUE | AV52: TRUE | AW52: TRUE | AX52: TRUE | AY52: TRUE | AZ52: TRUE | BA52: TRUE | BB52: TRUE | BC52: TRUE | BD52: TRUE | BE52: TRUE | BF52: TRUE | BG52: TRUE | BH52: TRUE | BI52: TRUE | BJ52: TRUE | BK52: TRUE | BL52: TRUE | BM52: TRUE | BN52: TRUE | BO52: TRUE | BP52: TRUE | BQ52: TRUE | BR52: TRUE | BS52: TRUE | BT52: TRUE | BU52: TRUE | BV52: TRUE | BW52: TRUE | BX52: TRUE | BY52: =ABS(BY29-BY40)<1 -> TRUE | BZ52: TRUE | CA52: TRUE | CB52: TRUE | CC52: TRUE | CD52: TRUE | CE52: TRUE | CF52: TRUE | CG52: TRUE | CH52: TRUE | CI52: TRUE | CJ52: TRUE | CK52: TRUE | CL52: TRUE | CM52: TRUE | CN52: TRUE | CO52: TRUE | CP52: TRUE | CQ52: TRUE | CR52: TRUE | CS52: TRUE | CT52: TRUE | CU52: TRUE | CV52: TRUE | CW52: TRUE | CX52: TRUE | CY52: TRUE | CZ52: TRUE | DA52: TRUE | DB52: TRUE | DC52: TRUE | DD52: TRUE | DE52: =ABS(DE29-DE40)<1 -> TRUE | DF52: TRUE | DG52: TRUE | DH52: TRUE | DI52: TRUE | DJ52: TRUE | DK52: TRUE | DL52: TRUE | DM52: TRUE | DN52: TRUE | DO52: TRUE | DP52: TRUE | DQ52: TRUE | DR52: TRUE | DS52: TRUE | DT52: TRUE | DU52: TRUE | DV52: TRUE | DW52: TRUE | DX52: TRUE | DY52: TRUE | DZ52: TRUE | EA52: TRUE | EB52: TRUE | EC52: TRUE | ED52: TRUE | EE52: TRUE | EF52: TRUE | EG52: TRUE | EH52: TRUE | EI52: TRUE | EJ52: TRUE | EK52: =ABS(EK29-EK40)<1 -> TRUE | EL52: TRUE | EM52: TRUE | EN52: TRUE | EO52: TRUE | EP52: TRUE | EQ52: TRUE | ER52: TRUE | ES52: TRUE | ET52: TRUE | EU52: TRUE | EV52: TRUE | EW52: TRUE | EX52: TRUE | EY52: TRUE | EZ52: TRUE | FA52: TRUE | FB52: TRUE | FC52: TRUE | FD52: TRUE | FE52: TRUE | FF52: TRUE
B54: Вспомогательная строка: D/(D+E) | H54: коэф | M54: =IFERROR(M45/(M45+M46+M42),0) -> 0 | N54: 0 | O54: 0 | P54: 0 | Q54: 0 | R54: 0 | S54: 0.2461892197 | T54: 0.3445059945 | U54: 0.4329191354 | V54: 0.5742893447 | W54: 0.6816915601 | X54: 0.7 | Y54: 0.6976803448 | Z54: 0.6651652285 | AA54: 0.6530673113 | AB54: 0.6382242667 | AC54: 0.6239443049 | AD54: 0.6066095297 | AE54: 0.5853790569 | AF54: 0.5592804783 | AG54: 0.5314562802 | AH54: 0.4965806476 | AI54: 0.4523456183 | AJ54: 0.3956597688 | AK54: 0.3263219535 | AL54: 0.2314967268 | AM54: 0.09710246489 | AN54: 5.86601167e-16 | AO54: 7.703025489e-16 | AP54: 1.122873798e-15 | AQ54: 1.732453784e-15 | AR54: 1 | AS54: =IFERROR(AS45/(AS45+AS46+AS42),0) -> 0 | AT54: 0 | AU54: 0 | AV54: 0 | AW54: 0 | AX54: 0 | AY54: 0 | AZ54: 0 | BA54: 0 | BB54: 0 | BC54: 0 | BD54: 0 | BE54: 0 | BF54: 0 | BG54: 0 | BH54: 0 | BI54: 0 | BJ54: 0 | BK54: 0 | BL54: 0 | BM54: 0 | BN54: 0 | BO54: 0 | BP54: 0 | BQ54: 0 | BR54: 0 | BS54: 0 | BT54: 0 | BU54: 0 | BV54: 0 | BW54: 0 | BX54: 0 | BY54: =IFERROR(BY45/(BY45+BY46+BY42),0) -> 0 | BZ54: 0 | CA54: 0 | CB54: 0 | CC54: 0 | CD54: 0 | CE54: 0 | CF54: 0 | CG54: 0 | CH54: 0 | CI54: 0 | CJ54: 0 | CK54: 0 | CL54: 0 | CM54: 0 | CN54: 0 | CO54: 0 | CP54: 0 | CQ54: 0 | CR54: 0 | CS54: 0 | CT54: 0 | CU54: 0 | CV54: 0 | CW54: 0 | CX54: 0 | CY54: 0 | CZ54: 0 | DA54: 0 | DB54: 0 | DC54: 0 | DD54: 0 | DE54: =IFERROR(DE45/(DE45+DE46+DE42),0) -> 0 | DF54: 0 | DG54: 0 | DH54: 0 | DI54: 0 | DJ54: 0 | DK54: 0 | DL54: 0 | DM54: 0 | DN54: 0 | DO54: 0 | DP54: 0 | DQ54: 0 | DR54: 0 | DS54: 0 | DT54: 0 | DU54: 0 | DV54: 0 | DW54: 0 | DX54: 0 | DY54: 0 | DZ54: 0 | EA54: 0 | EB54: 0 | EC54: 0 | ED54: 0 | EE54: 0 | EF54: 0 | EG54: 0 | EH54: 0 | EI54: 0 | EJ54: 0 | EK54: =IFERROR(EK45/(EK45+EK46+EK42),0) -> 0 | EL54: 0 | EM54: 0 | EN54: 0 | EO54: 0 | EP54: 0 | EQ54: 0 | ER54: 0 | ES54: 0 | ET54: 0 | EU54: 0 | EV54: 0 | EW54: 0 | EX54: 0 | EY54: 0 | EZ54: 0 | FA54: 0 | FB54: 0 | FC54: 0 | FD54: 0 | FE54: 0 | FF54: 0
M55: =M29-M40 -> 0 | N55: 0 | O55: 0 | P55: 0 | Q55: 0 | R55: 0 | S55: 0 | T55: 0 | U55: 0 | V55: 0 | W55: 0 | X55: 0 | Y55: 0 | Z55: 0 | AA55: 0 | AB55: 0 | AC55: 0 | AD55: 0 | AE55: 0 | AF55: 0 | AG55: 0
B56: ОТЧЕТ О ФИНАНСОВЫХ РЕЗУЛЬТАТАХ
B58: Платежи Концедента | H58: тыс. руб. | L58: =SUM(M58:FF58) -> 452832.6633 | M58: =Subs!M60+Subs!M184+Subs!M186+Subs!M187 -> 0 | N58: =Subs!N60+Subs!N184+Subs!N186+Subs!N187 -> 0 | O58: =Subs!O60+Subs!O184+Subs!O186+Subs!O187 -> 0 | P58: =Subs!P60+Subs!P184+Subs!P186+Subs!P187 -> 0 | Q58: =Subs!Q60+Subs!Q184+Subs!Q186+Subs!Q187 -> 0 | R58: =Subs!R60+Subs!R184+Subs!R186+Subs!R187 -> 0 | S58: =Subs!S60+Subs!S184+Subs!S186+Subs!S187 -> 0 | T58: =Subs!T60+Subs!T184+Subs!T186+Subs!T187 -> 0 | U58: =Subs!U60+Subs!U184+Subs!U186+Subs!U187 -> 0 | V58: =Subs!V60+Subs!V184+Subs!V186+Subs!V187 -> 0 | W58: =Subs!W60+Subs!W184+Subs!W186+Subs!W187 -> 0 | X58: =Subs!X60+Subs!X184+Subs!X186+Subs!X187 -> 0 | Y58: =Subs!Y60+Subs!Y184+Subs!Y186+Subs!Y187 -> 22456.32432 | Z58: =Subs!Z60+Subs!Z184+Subs!Z186+Subs!Z187 -> 22464.76743 | AA58: =Subs!AA60+Subs!AA184+Subs!AA186+Subs!AA187 -> 22473.29372 | AB58: =Subs!AB60+Subs!AB184+Subs!AB186+Subs!AB187 -> 22481.90403 | AC58: =Subs!AC60+Subs!AC184+Subs!AC186+Subs!AC187 -> 20662.38025 | AD58: =Subs!AD60+Subs!AD184+Subs!AD186+Subs!AD187 -> 20671.16107 | AE58: =Subs!AE60+Subs!AE184+Subs!AE186+Subs!AE187 -> 20680.02842 | AF58: =Subs!AF60+Subs!AF184+Subs!AF186+Subs!AF187 -> 20688.98314 | AG58: =Subs!AG60+Subs!AG184+Subs!AG186+Subs!AG187 -> 18663.266 | AH58: =Subs!AH60+Subs!AH184+Subs!AH186+Subs!AH187 -> 18672.39806 | AI58: =Subs!AI60+Subs!AI184+Subs!AI186+Subs!AI187 -> 18681.6201 | AJ58: =Subs!AJ60+Subs!AJ184+Subs!AJ186+Subs!AJ187 -> 18690.93301 | AK58: =Subs!AK60+Subs!AK184+Subs!AK186+Subs!AK187 -> 16496.93355 | AL58: =Subs!AL60+Subs!AL184+Subs!AL186+Subs!AL187 -> 16506.43089 | AM58: =Subs!AM60+Subs!AM184+Subs!AM186+Subs!AM187 -> 16516.02181 | AN58: =Subs!AN60+Subs!AN184+Subs!AN186+Subs!AN187 -> 16525.70724 | AO58: =Subs!AO60+Subs!AO184+Subs!AO186+Subs!AO187 -> 14071.03772 | AP58: =Subs!AP60+Subs!AP184+Subs!AP186+Subs!AP187 -> 14080.91495 | AQ58: =Subs!AQ60+Subs!AQ184+Subs!AQ186+Subs!AQ187 -> 14090.88951 | AR58: =Subs!AR60+Subs!AR184+Subs!AR186+Subs!AR187 -> 97257.66811 | AS58: =Subs!AS60+Subs!AS184+Subs!AS186+Subs!AS187 -> 0 | AT58: =Subs!AT60+Subs!AT184+Subs!AT186+Subs!AT187 -> 0 | AU58: =Subs!AU60+Subs!AU184+Subs!AU186+Subs!AU187 -> 0 | AV58: =Subs!AV60+Subs!AV184+Subs!AV186+Subs!AV187 -> 0 | AW58: =Subs!AW60+Subs!AW184+Subs!AW186+Subs!AW187 -> 0 | AX58: =Subs!AX60+Subs!AX184+Subs!AX186+Subs!AX187 -> 0 | AY58: =Subs!AY60+Subs!AY184+Subs!AY186+Subs!AY187 -> 0 | AZ58: =Subs!AZ60+Subs!AZ184+Subs!AZ186+Subs!AZ187 -> 0 | BA58: =Subs!BA60+Subs!BA184+Subs!BA186+Subs!BA187 -> 0 | BB58: =Subs!BB60+Subs!BB184+Subs!BB186+Subs!BB187 -> 0 | BC58: =Subs!BC60+Subs!BC184+Subs!BC186+Subs!BC187 -> 0 | BD58: =Subs!BD60+Subs!BD184+Subs!BD186+Subs!BD187 -> 0 | BE58: =Subs!BE60+Subs!BE184+Subs!BE186+Subs!BE187 -> 0 | BF58: =Subs!BF60+Subs!BF184+Subs!BF186+Subs!BF187 -> 0 | BG58: =Subs!BG60+Subs!BG184+Subs!BG186+Subs!BG187 -> 0 | BH58: =Subs!BH60+Subs!BH184+Subs!BH186+Subs!BH187 -> 0 | BI58: =Subs!BI60+Subs!BI184+Subs!BI186+Subs!BI187 -> 0 | BJ58: =Subs!BJ60+Subs!BJ184+Subs!BJ186+Subs!BJ187 -> 0 | BK58: =Subs!BK60+Subs!BK184+Subs!BK186+Subs!BK187 -> 0 | BL58: =Subs!BL60+Subs!BL184+Subs!BL186+Subs!BL187 -> 0 | BM58: =Subs!BM60+Subs!BM184+Subs!BM186+Subs!BM187 -> 0 | BN58: =Subs!BN60+Subs!BN184+Subs!BN186+Subs!BN187 -> 0 | BO58: =Subs!BO60+Subs!BO184+Subs!BO186+Subs!BO187 -> 0 | BP58: =Subs!BP60+Subs!BP184+Subs!BP186+Subs!BP187 -> 0 | BQ58: =Subs!BQ60+Subs!BQ184+Subs!BQ186+Subs!BQ187 -> 0 | BR58: =Subs!BR60+Subs!BR184+Subs!BR186+Subs!BR187 -> 0 | BS58: =Subs!BS60+Subs!BS184+Subs!BS186+Subs!BS187 -> 0 | BT58: =Subs!BT60+Subs!BT184+Subs!BT186+Subs!BT187 -> 0 | BU58: =Subs!BU60+Subs!BU184+Subs!BU186+Subs!BU187 -> 0 | BV58: =Subs!BV60+Subs!BV184+Subs!BV186+Subs!BV187 -> 0 | BW58: =Subs!BW60+Subs!BW184+Subs!BW186+Subs!BW187 -> 0 | BX58: =Subs!BX60+Subs!BX184+Subs!BX186+Subs!BX187 -> 0 | BY58: =Subs!BY60+Subs!BY184+Subs!BY186+Subs!BY187 -> 0 | BZ58: =Subs!BZ60+Subs!BZ184+Subs!BZ186+Subs!BZ187 -> 0 | CA58: =Subs!CA60+Subs!CA184+Subs!CA186+Subs!CA187 -> 0 | CB58: =Subs!CB60+Subs!CB184+Subs!CB186+Subs!CB187 -> 0 | CC58: =Subs!CC60+Subs!CC184+Subs!CC186+Subs!CC187 -> 0 | CD58: =Subs!CD60+Subs!CD184+Subs!CD186+Subs!CD187 -> 0 | CE58: =Subs!CE60+Subs!CE184+Subs!CE186+Subs!CE187 -> 0 | CF58: =Subs!CF60+Subs!CF184+Subs!CF186+Subs!CF187 -> 0 | CG58: =Subs!CG60+Subs!CG184+Subs!CG186+Subs!CG187 -> 0 | CH58: =Subs!CH60+Subs!CH184+Subs!CH186+Subs!CH187 -> 0 | CI58: =Subs!CI60+Subs!CI184+Subs!CI186+Subs!CI187 -> 0 | CJ58: =Subs!CJ60+Subs!CJ184+Subs!CJ186+Subs!CJ187 -> 0 | CK58: =Subs!CK60+Subs!CK184+Subs!CK186+Subs!CK187 -> 0 | CL58: =Subs!CL60+Subs!CL184+Subs!CL186+Subs!CL187 -> 0 | CM58: =Subs!CM60+Subs!CM184+Subs!CM186+Subs!CM187 -> 0 | CN58: =Subs!CN60+Subs!CN184+Subs!CN186+Subs!CN187 -> 0 | CO58: =Subs!CO60+Subs!CO184+Subs!CO186+Subs!CO187 -> 0 | CP58: =Subs!CP60+Subs!CP184+Subs!CP186+Subs!CP187 -> 0 | CQ58: =Subs!CQ60+Subs!CQ184+Subs!CQ186+Subs!CQ187 -> 0 | CR58: =Subs!CR60+Subs!CR184+Subs!CR186+Subs!CR187 -> 0 | CS58: =Subs!CS60+Subs!CS184+Subs!CS186+Subs!CS187 -> 0 | CT58: =Subs!CT60+Subs!CT184+Subs!CT186+Subs!CT187 -> 0 | CU58: =Subs!CU60+Subs!CU184+Subs!CU186+Subs!CU187 -> 0 | CV58: =Subs!CV60+Subs!CV184+Subs!CV186+Subs!CV187 -> 0 | CW58: =Subs!CW60+Subs!CW184+Subs!CW186+Subs!CW187 -> 0 | CX58: =Subs!CX60+Subs!CX184+Subs!CX186+Subs!CX187 -> 0 | CY58: =Subs!CY60+Subs!CY184+Subs!CY186+Subs!CY187 -> 0 | CZ58: =Subs!CZ60+Subs!CZ184+Subs!CZ186+Subs!CZ187 -> 0 | DA58: =Subs!DA60+Subs!DA184+Subs!DA186+Subs!DA187 -> 0 | DB58: =Subs!DB60+Subs!DB184+Subs!DB186+Subs!DB187 -> 0 | DC58: =Subs!DC60+Subs!DC184+Subs!DC186+Subs!DC187 -> 0 | DD58: =Subs!DD60+Subs!DD184+Subs!DD186+Subs!DD187 -> 0 | DE58: =Subs!DE60+Subs!DE184+Subs!DE186+Subs!DE187 -> 0 | DF58: =Subs!DF60+Subs!DF184+Subs!DF186+Subs!DF187 -> 0 | DG58: =Subs!DG60+Subs!DG184+Subs!DG186+Subs!DG187 -> 0 | DH58: =Subs!DH60+Subs!DH184+Subs!DH186+Subs!DH187 -> 0 | DI58: =Subs!DI60+Subs!DI184+Subs!DI186+Subs!DI187 -> 0 | DJ58: =Subs!DJ60+Subs!DJ184+Subs!DJ186+Subs!DJ187 -> 0 | DK58: =Subs!DK60+Subs!DK184+Subs!DK186+Subs!DK187 -> 0 | DL58: =Subs!DL60+Subs!DL184+Subs!DL186+Subs!DL187 -> 0 | DM58: =Subs!DM60+Subs!DM184+Subs!DM186+Subs!DM187 -> 0 | DN58: =Subs!DN60+Subs!DN184+Subs!DN186+Subs!DN187 -> 0 | DO58: =Subs!DO60+Subs!DO184+Subs!DO186+Subs!DO187 -> 0 | DP58: =Subs!DP60+Subs!DP184+Subs!DP186+Subs!DP187 -> 0 | DQ58: =Subs!DQ60+Subs!DQ184+Subs!DQ186+Subs!DQ187 -> 0 | DR58: =Subs!DR60+Subs!DR184+Subs!DR186+Subs!DR187 -> 0 | DS58: =Subs!DS60+Subs!DS184+Subs!DS186+Subs!DS187 -> 0 | DT58: =Subs!DT60+Subs!DT184+Subs!DT186+Subs!DT187 -> 0 | DU58: =Subs!DU60+Subs!DU184+Subs!DU186+Subs!DU187 -> 0 | DV58: =Subs!DV60+Subs!DV184+Subs!DV186+Subs!DV187 -> 0 | DW58: =Subs!DW60+Subs!DW184+Subs!DW186+Subs!DW187 -> 0 | DX58: =Subs!DX60+Subs!DX184+Subs!DX186+Subs!DX187 -> 0 | DY58: =Subs!DY60+Subs!DY184+Subs!DY186+Subs!DY187 -> 0 | DZ58: =Subs!DZ60+Subs!DZ184+Subs!DZ186+Subs!DZ187 -> 0 | EA58: =Subs!EA60+Subs!EA184+Subs!EA186+Subs!EA187 -> 0 | EB58: =Subs!EB60+Subs!EB184+Subs!EB186+Subs!EB187 -> 0 | EC58: =Subs!EC60+Subs!EC184+Subs!EC186+Subs!EC187 -> 0 | ED58: =Subs!ED60+Subs!ED184+Subs!ED186+Subs!ED187 -> 0 | EE58: =Subs!EE60+Subs!EE184+Subs!EE186+Subs!EE187 -> 0 | EF58: =Subs!EF60+Subs!EF184+Subs!EF186+Subs!EF187 -> 0 | EG58: =Subs!EG60+Subs!EG184+Subs!EG186+Subs!EG187 -> 0 | EH58: =Subs!EH60+Subs!EH184+Subs!EH186+Subs!EH187 -> 0 | EI58: =Subs!EI60+Subs!EI184+Subs!EI186+Subs!EI187 -> 0 | EJ58: =Subs!EJ60+Subs!EJ184+Subs!EJ186+Subs!EJ187 -> 0 | EK58: =Subs!EK60+Subs!EK184+Subs!EK186+Subs!EK187 -> 0 | EL58: =Subs!EL60+Subs!EL184+Subs!EL186+Subs!EL187 -> 0 | EM58: =Subs!EM60+Subs!EM184+Subs!EM186+Subs!EM187 -> 0 | EN58: =Subs!EN60+Subs!EN184+Subs!EN186+Subs!EN187 -> 0 | EO58: =Subs!EO60+Subs!EO184+Subs!EO186+Subs!EO187 -> 0 | EP58: =Subs!EP60+Subs!EP184+Subs!EP186+Subs!EP187 -> 0 | EQ58: =Subs!EQ60+Subs!EQ184+Subs!EQ186+Subs!EQ187 -> 0 | ER58: =Subs!ER60+Subs!ER184+Subs!ER186+Subs!ER187 -> 0 | ES58: =Subs!ES60+Subs!ES184+Subs!ES186+Subs!ES187 -> 0 | ET58: =Subs!ET60+Subs!ET184+Subs!ET186+Subs!ET187 -> 0 | EU58: =Subs!EU60+Subs!EU184+Subs!EU186+Subs!EU187 -> 0 | EV58: =Subs!EV60+Subs!EV184+Subs!EV186+Subs!EV187 -> 0 | EW58: =Subs!EW60+Subs!EW184+Subs!EW186+Subs!EW187 -> 0 | EX58: =Subs!EX60+Subs!EX184+Subs!EX186+Subs!EX187 -> 0 | EY58: =Subs!EY60+Subs!EY184+Subs!EY186+Subs!EY187 -> 0 | EZ58: =Subs!EZ60+Subs!EZ184+Subs!EZ186+Subs!EZ187 -> 0 | FA58: =Subs!FA60+Subs!FA184+Subs!FA186+Subs!FA187 -> 0 | FB58: =Subs!FB60+Subs!FB184+Subs!FB186+Subs!FB187 -> 0 | FC58: =Subs!FC60+Subs!FC184+Subs!FC186+Subs!FC187 -> 0 | FD58: =Subs!FD60+Subs!FD184+Subs!FD186+Subs!FD187 -> 0 | FE58: =Subs!FE60+Subs!FE184+Subs!FE186+Subs!FE187 -> 0 | FF58: =Subs!FF60+Subs!FF184+Subs!FF186+Subs!FF187 -> 0
B59: Арендная плата | H59: тыс. руб. | L59: =SUM(M59:FF59) -> 64588.13432 | M59: =Subs!M116 -> 0 | N59: =Subs!N116 -> 0 | O59: =Subs!O116 -> 0 | P59: =Subs!P116 -> 0 | Q59: =Subs!Q116 -> 0 | R59: =Subs!R116 -> 0 | S59: =Subs!S116 -> 0 | T59: =Subs!T116 -> 0 | U59: =Subs!U116 -> 0 | V59: =Subs!V116 -> 0 | W59: =Subs!W116 -> 0 | X59: =Subs!X116 -> 0 | Y59: =Subs!Y116 -> 0 | Z59: =Subs!Z116 -> 3696.229191 | AA59: =Subs!AA116 -> 3662.822123 | AB59: =Subs!AB116 -> 3629.415056 | AC59: =Subs!AC116 -> 3596.007988 | AD59: =Subs!AD116 -> 3562.60092 | AE59: =Subs!AE116 -> 3529.193853 | AF59: =Subs!AF116 -> 3495.786785 | AG59: =Subs!AG116 -> 3462.379718 | AH59: =Subs!AH116 -> 3428.97265 | AI59: =Subs!AI116 -> 3395.565582 | AJ59: =Subs!AJ116 -> 3362.158515 | AK59: =Subs!AK116 -> 3328.751447 | AL59: =Subs!AL116 -> 3297.929675 | AM59: =Subs!AM116 -> 3267.107902 | AN59: =Subs!AN116 -> 3236.286129 | AO59: =Subs!AO116 -> 3205.464357 | AP59: =Subs!AP116 -> 3174.642584 | AQ59: =Subs!AQ116 -> 3143.820811 | AR59: =Subs!AR116 -> 3112.999039 | AS59: =Subs!AS116 -> 0 | AT59: =Subs!AT116 -> 0 | AU59: =Subs!AU116 -> 0 | AV59: =Subs!AV116 -> 0 | AW59: =Subs!AW116 -> 0 | AX59: =Subs!AX116 -> 0 | AY59: =Subs!AY116 -> 0 | AZ59: =Subs!AZ116 -> 0 | BA59: =Subs!BA116 -> 0 | BB59: =Subs!BB116 -> 0 | BC59: =Subs!BC116 -> 0 | BD59: =Subs!BD116 -> 0 | BE59: =Subs!BE116 -> 0 | BF59: =Subs!BF116 -> 0 | BG59: =Subs!BG116 -> 0 | BH59: =Subs!BH116 -> 0 | BI59: =Subs!BI116 -> 0 | BJ59: =Subs!BJ116 -> 0 | BK59: =Subs!BK116 -> 0 | BL59: =Subs!BL116 -> 0 | BM59: =Subs!BM116 -> 0 | BN59: =Subs!BN116 -> 0 | BO59: =Subs!BO116 -> 0 | BP59: =Subs!BP116 -> 0 | BQ59: =Subs!BQ116 -> 0 | BR59: =Subs!BR116 -> 0 | BS59: =Subs!BS116 -> 0 | BT59: =Subs!BT116 -> 0 | BU59: =Subs!BU116 -> 0 | BV59: =Subs!BV116 -> 0 | BW59: =Subs!BW116 -> 0 | BX59: =Subs!BX116 -> 0 | BY59: =Subs!BY116 -> 0 | BZ59: =Subs!BZ116 -> 0 | CA59: =Subs!CA116 -> 0 | CB59: =Subs!CB116 -> 0 | CC59: =Subs!CC116 -> 0 | CD59: =Subs!CD116 -> 0 | CE59: =Subs!CE116 -> 0 | CF59: =Subs!CF116 -> 0 | CG59: =Subs!CG116 -> 0 | CH59: =Subs!CH116 -> 0 | CI59: =Subs!CI116 -> 0 | CJ59: =Subs!CJ116 -> 0 | CK59: =Subs!CK116 -> 0 | CL59: =Subs!CL116 -> 0 | CM59: =Subs!CM116 -> 0 | CN59: =Subs!CN116 -> 0 | CO59: =Subs!CO116 -> 0 | CP59: =Subs!CP116 -> 0 | CQ59: =Subs!CQ116 -> 0 | CR59: =Subs!CR116 -> 0 | CS59: =Subs!CS116 -> 0 | CT59: =Subs!CT116 -> 0 | CU59: =Subs!CU116 -> 0 | CV59: =Subs!CV116 -> 0 | CW59: =Subs!CW116 -> 0 | CX59: =Subs!CX116 -> 0 | CY59: =Subs!CY116 -> 0 | CZ59: =Subs!CZ116 -> 0 | DA59: =Subs!DA116 -> 0 | DB59: =Subs!DB116 -> 0 | DC59: =Subs!DC116 -> 0 | DD59: =Subs!DD116 -> 0 | DE59: =Subs!DE116 -> 0 | DF59: =Subs!DF116 -> 0 | DG59: =Subs!DG116 -> 0 | DH59: =Subs!DH116 -> 0 | DI59: =Subs!DI116 -> 0 | DJ59: =Subs!DJ116 -> 0 | DK59: =Subs!DK116 -> 0 | DL59: =Subs!DL116 -> 0 | DM59: =Subs!DM116 -> 0 | DN59: =Subs!DN116 -> 0 | DO59: =Subs!DO116 -> 0 | DP59: =Subs!DP116 -> 0 | DQ59: =Subs!DQ116 -> 0 | DR59: =Subs!DR116 -> 0 | DS59: =Subs!DS116 -> 0 | DT59: =Subs!DT116 -> 0 | DU59: =Subs!DU116 -> 0 | DV59: =Subs!DV116 -> 0 | DW59: =Subs!DW116 -> 0 | DX59: =Subs!DX116 -> 0 | DY59: =Subs!DY116 -> 0 | DZ59: =Subs!DZ116 -> 0 | EA59: =Subs!EA116 -> 0 | EB59: =Subs!EB116 -> 0 | EC59: =Subs!EC116 -> 0 | ED59: =Subs!ED116 -> 0 | EE59: =Subs!EE116 -> 0 | EF59: =Subs!EF116 -> 0 | EG59: =Subs!EG116 -> 0 | EH59: =Subs!EH116 -> 0 | EI59: =Subs!EI116 -> 0 | EJ59: =Subs!EJ116 -> 0 | EK59: =Subs!EK116 -> 0 | EL59: =Subs!EL116 -> 0 | EM59: =Subs!EM116 -> 0 | EN59: =Subs!EN116 -> 0 | EO59: =Subs!EO116 -> 0 | EP59: =Subs!EP116 -> 0 | EQ59: =Subs!EQ116 -> 0 | ER59: =Subs!ER116 -> 0 | ES59: =Subs!ES116 -> 0 | ET59: =Subs!ET116 -> 0 | EU59: =Subs!EU116 -> 0 | EV59: =Subs!EV116 -> 0 | EW59: =Subs!EW116 -> 0 | EX59: =Subs!EX116 -> 0 | EY59: =Subs!EY116 -> 0 | EZ59: =Subs!EZ116 -> 0 | FA59: =Subs!FA116 -> 0 | FB59: =Subs!FB116 -> 0 | FC59: =Subs!FC116 -> 0 | FD59: =Subs!FD116 -> 0 | FE59: =Subs!FE116 -> 0 | FF59: =Subs!FF116 -> 0
B60: Коммерческая выручка | H60: тыс. руб. | L60: 0 | M60: =Oper!M49 -> 0 | N60: =Oper!N49 -> 0 | O60: =Oper!O49 -> 0 | P60: =Oper!P49 -> 0 | Q60: =Oper!Q49 -> 0 | R60: =Oper!R49 -> 0 | S60: =Oper!S49 -> 0 | T60: =Oper!T49 -> 0 | U60: =Oper!U49 -> 0 | V60: =Oper!V49 -> 0 | W60: =Oper!W49 -> 0 | X60: =Oper!X49 -> 0 | Y60: =Oper!Y49 -> 0 | Z60: =Oper!Z49 -> 0 | AA60: =Oper!AA49 -> 0 | AB60: =Oper!AB49 -> 0 | AC60: =Oper!AC49 -> 0 | AD60: =Oper!AD49 -> 0 | AE60: =Oper!AE49 -> 0 | AF60: =Oper!AF49 -> 0 | AG60: =Oper!AG49 -> 0 | AH60: =Oper!AH49 -> 0 | AI60: =Oper!AI49 -> 0 | AJ60: =Oper!AJ49 -> 0 | AK60: =Oper!AK49 -> 0 | AL60: =Oper!AL49 -> 0 | AM60: =Oper!AM49 -> 0 | AN60: =Oper!AN49 -> 0 | AO60: =Oper!AO49 -> 0 | AP60: =Oper!AP49 -> 0 | AQ60: =Oper!AQ49 -> 0 | AR60: =Oper!AR49 -> 0 | AS60: =Oper!AS49 -> 0 | AT60: =Oper!AT49 -> 0 | AU60: =Oper!AU49 -> 0 | AV60: =Oper!AV49 -> 0 | AW60: =Oper!AW49 -> 0 | AX60: =Oper!AX49 -> 0 | AY60: =Oper!AY49 -> 0 | AZ60: =Oper!AZ49 -> 0 | BA60: =Oper!BA49 -> 0 | BB60: =Oper!BB49 -> 0 | BC60: =Oper!BC49 -> 0 | BD60: =Oper!BD49 -> 0 | BE60: =Oper!BE49 -> 0 | BF60: =Oper!BF49 -> 0 | BG60: =Oper!BG49 -> 0 | BH60: =Oper!BH49 -> 0 | BI60: =Oper!BI49 -> 0 | BJ60: =Oper!BJ49 -> 0 | BK60: =Oper!BK49 -> 0 | BL60: =Oper!BL49 -> 0 | BM60: =Oper!BM49 -> 0 | BN60: =Oper!BN49 -> 0 | BO60: =Oper!BO49 -> 0 | BP60: =Oper!BP49 -> 0 | BQ60: =Oper!BQ49 -> 0 | BR60: =Oper!BR49 -> 0 | BS60: =Oper!BS49 -> 0 | BT60: =Oper!BT49 -> 0 | BU60: =Oper!BU49 -> 0 | BV60: =Oper!BV49 -> 0 | BW60: =Oper!BW49 -> 0 | BX60: =Oper!BX49 -> 0 | BY60: =Oper!BY49 -> 0 | BZ60: =Oper!BZ49 -> 0 | CA60: =Oper!CA49 -> 0 | CB60: =Oper!CB49 -> 0 | CC60: =Oper!CC49 -> 0 | CD60: =Oper!CD49 -> 0 | CE60: =Oper!CE49 -> 0 | CF60: =Oper!CF49 -> 0 | CG60: =Oper!CG49 -> 0 | CH60: =Oper!CH49 -> 0 | CI60: =Oper!CI49 -> 0 | CJ60: =Oper!CJ49 -> 0 | CK60: =Oper!CK49 -> 0 | CL60: =Oper!CL49 -> 0 | CM60: =Oper!CM49 -> 0 | CN60: =Oper!CN49 -> 0 | CO60: =Oper!CO49 -> 0 | CP60: =Oper!CP49 -> 0 | CQ60: =Oper!CQ49 -> 0 | CR60: =Oper!CR49 -> 0 | CS60: =Oper!CS49 -> 0 | CT60: =Oper!CT49 -> 0 | CU60: =Oper!CU49 -> 0 | CV60: =Oper!CV49 -> 0 | CW60: =Oper!CW49 -> 0 | CX60: =Oper!CX49 -> 0 | CY60: =Oper!CY49 -> 0 | CZ60: =Oper!CZ49 -> 0 | DA60: =Oper!DA49 -> 0 | DB60: =Oper!DB49 -> 0 | DC60: =Oper!DC49 -> 0 | DD60: =Oper!DD49 -> 0 | DE60: =Oper!DE49 -> 0 | DF60: =Oper!DF49 -> 0 | DG60: =Oper!DG49 -> 0 | DH60: =Oper!DH49 -> 0 | DI60: =Oper!DI49 -> 0 | DJ60: =Oper!DJ49 -> 0 | DK60: =Oper!DK49 -> 0 | DL60: =Oper!DL49 -> 0 | DM60: =Oper!DM49 -> 0 | DN60: =Oper!DN49 -> 0 | DO60: =Oper!DO49 -> 0 | DP60: =Oper!DP49 -> 0 | DQ60: =Oper!DQ49 -> 0 | DR60: =Oper!DR49 -> 0 | DS60: =Oper!DS49 -> 0 | DT60: =Oper!DT49 -> 0 | DU60: =Oper!DU49 -> 0 | DV60: =Oper!DV49 -> 0 | DW60: =Oper!DW49 -> 0 | DX60: =Oper!DX49 -> 0 | DY60: =Oper!DY49 -> 0 | DZ60: =Oper!DZ49 -> 0 | EA60: =Oper!EA49 -> 0 | EB60: =Oper!EB49 -> 0 | EC60: =Oper!EC49 -> 0 | ED60: =Oper!ED49 -> 0 | EE60: =Oper!EE49 -> 0 | EF60: =Oper!EF49 -> 0 | EG60: =Oper!EG49 -> 0 | EH60: =Oper!EH49 -> 0 | EI60: =Oper!EI49 -> 0 | EJ60: =Oper!EJ49 -> 0 | EK60: =Oper!EK49 -> 0 | EL60: =Oper!EL49 -> 0 | EM60: =Oper!EM49 -> 0 | EN60: =Oper!EN49 -> 0 | EO60: =Oper!EO49 -> 0 | EP60: =Oper!EP49 -> 0 | EQ60: =Oper!EQ49 -> 0 | ER60: =Oper!ER49 -> 0 | ES60: =Oper!ES49 -> 0 | ET60: =Oper!ET49 -> 0 | EU60: =Oper!EU49 -> 0 | EV60: =Oper!EV49 -> 0 | EW60: =Oper!EW49 -> 0 | EX60: =Oper!EX49 -> 0 | EY60: =Oper!EY49 -> 0 | EZ60: =Oper!EZ49 -> 0 | FA60: =Oper!FA49 -> 0 | FB60: =Oper!FB49 -> 0 | FC60: =Oper!FC49 -> 0 | FD60: =Oper!FD49 -> 0 | FE60: =Oper!FE49 -> 0 | FF60: =Oper!FF49 -> 0
B61: Валовая выручка | H61: тыс. руб. | L61: 517420.7977 | M61: =SUM(M58:M60) -> 0 | N61: 0 | O61: 0 | P61: 0 | Q61: 0 | R61: 0 | S61: 0 | T61: 0 | U61: 0 | V61: 0 | W61: 0 | X61: 0 | Y61: 22456.32432 | Z61: 26160.99662 | AA61: 26136.11584 | AB61: 26111.31908 | AC61: =SUM(AC58:AC60) -> 24258.38824 | AD61: 24233.76199 | AE61: 24209.22227 | AF61: 24184.76992 | AG61: 22125.64572 | AH61: 22101.37071 | AI61: 22077.18568 | AJ61: 22053.09152 | AK61: 19825.685 | AL61: 19804.36057 | AM61: 19783.12972 | AN61: 19761.99337 | AO61: 17276.50207 | AP61: 17255.55754 | AQ61: 17234.71032 | AR61: 100370.6672 | AS61: =SUM(AS58:AS60) -> 0 | AT61: 0 | AU61: 0 | AV61: 0 | AW61: 0 | AX61: 0 | AY61: 0 | AZ61: 0 | BA61: 0 | BB61: 0 | BC61: 0 | BD61: 0 | BE61: 0 | BF61: 0 | BG61: 0 | BH61: 0 | BI61: 0 | BJ61: 0 | BK61: 0 | BL61: 0 | BM61: 0 | BN61: 0 | BO61: 0 | BP61: 0 | BQ61: 0 | BR61: 0 | BS61: 0 | BT61: 0 | BU61: 0 | BV61: 0 | BW61: 0 | BX61: 0 | BY61: =SUM(BY58:BY60) -> 0 | BZ61: 0 | CA61: 0 | CB61: 0 | CC61: 0 | CD61: 0 | CE61: 0 | CF61: 0 | CG61: 0 | CH61: 0 | CI61: 0 | CJ61: 0 | CK61: 0 | CL61: 0 | CM61: 0 | CN61: 0 | CO61: 0 | CP61: 0 | CQ61: 0 | CR61: 0 | CS61: 0 | CT61: 0 | CU61: 0 | CV61: 0 | CW61: 0 | CX61: 0 | CY61: 0 | CZ61: 0 | DA61: 0 | DB61: 0 | DC61: 0 | DD61: 0 | DE61: =SUM(DE58:DE60) -> 0 | DF61: 0 | DG61: 0 | DH61: 0 | DI61: 0 | DJ61: 0 | DK61: 0 | DL61: 0 | DM61: 0 | DN61: 0 | DO61: 0 | DP61: 0 | DQ61: 0 | DR61: 0 | DS61: 0 | DT61: 0 | DU61: 0 | DV61: 0 | DW61: 0 | DX61: 0 | DY61: 0 | DZ61: 0 | EA61: 0 | EB61: 0 | EC61: 0 | ED61: 0 | EE61: 0 | EF61: 0 | EG61: 0 | EH61: 0 | EI61: 0 | EJ61: 0 | EK61: =SUM(EK58:EK60) -> 0 | EL61: 0 | EM61: 0 | EN61: 0 | EO61: 0 | EP61: 0 | EQ61: 0 | ER61: 0 | ES61: 0 | ET61: 0 | EU61: 0 | EV61: 0 | EW61: 0 | EX61: 0 | EY61: 0 | EZ61: 0 | FA61: 0 | FB61: 0 | FC61: 0 | FD61: 0 | FE61: 0 | FF61: 0
B62: (-) Операционные расходы | H62: тыс. руб. | L62: -26314.30832 | M62: =-Oper!M199 -> 0 | N62: =-Oper!N199 -> 0 | O62: =-Oper!O199 -> 0 | P62: =-Oper!P199 -> 0 | Q62: =-Oper!Q199 -> -391.4330639 | R62: =-Oper!R199 -> -403.3276157 | S62: =-Oper!S199 -> -418.5894839 | T62: =-Oper!T199 -> -433.7233714 | U62: =-Oper!U199 -> -442.8712012 | V62: =-Oper!V199 -> -460.7798908 | W62: =-Oper!W199 -> -477.083014 | X62: =-Oper!X199 -> -497.8351419 | Y62: =-Oper!Y199 -> -1037.245505 | Z62: =-Oper!Z199 -> -1047.377226 | AA62: =-Oper!AA199 -> -1057.608779 | AB62: =-Oper!AB199 -> -1067.941148 | AC62: =-Oper!AC199 -> -1078.375325 | AD62: =-Oper!AD199 -> -1088.912315 | AE62: =-Oper!AE199 -> -1099.55313 | AF62: =-Oper!AF199 -> -1110.298794 | AG62: =-Oper!AG199 -> -1121.150338 | AH62: =-Oper!AH199 -> -1132.108808 | AI62: =-Oper!AI199 -> -1143.175255 | AJ62: =-Oper!AJ199 -> -1154.350745 | AK62: =-Oper!AK199 -> -1165.636352 | AL62: =-Oper!AL199 -> -1177.03316 | AM62: =-Oper!AM199 -> -1188.542266 | AN62: =-Oper!AN199 -> -1200.164775 | AO62: =-Oper!AO199 -> -1211.901806 | AP62: =-Oper!AP199 -> -1223.754486 | AQ62: =-Oper!AQ199 -> -1235.723956 | AR62: =-Oper!AR199 -> -1247.811366 | AS62: =-Oper!AS199 -> 0 | AT62: =-Oper!AT199 -> 0 | AU62: =-Oper!AU199 -> 0 | AV62: =-Oper!AV199 -> 0 | AW62: =-Oper!AW199 -> 0 | AX62: =-Oper!AX199 -> 0 | AY62: =-Oper!AY199 -> 0 | AZ62: =-Oper!AZ199 -> 0 | BA62: =-Oper!BA199 -> 0 | BB62: =-Oper!BB199 -> 0 | BC62: =-Oper!BC199 -> 0 | BD62: =-Oper!BD199 -> 0 | BE62: =-Oper!BE199 -> 0 | BF62: =-Oper!BF199 -> 0 | BG62: =-Oper!BG199 -> 0 | BH62: =-Oper!BH199 -> 0 | BI62: =-Oper!BI199 -> 0 | BJ62: =-Oper!BJ199 -> 0 | BK62: =-Oper!BK199 -> 0 | BL62: =-Oper!BL199 -> 0 | BM62: =-Oper!BM199 -> 0 | BN62: =-Oper!BN199 -> 0 | BO62: =-Oper!BO199 -> 0 | BP62: =-Oper!BP199 -> 0 | BQ62: =-Oper!BQ199 -> 0 | BR62: =-Oper!BR199 -> 0 | BS62: =-Oper!BS199 -> 0 | BT62: =-Oper!BT199 -> 0 | BU62: =-Oper!BU199 -> 0 | BV62: =-Oper!BV199 -> 0 | BW62: =-Oper!BW199 -> 0 | BX62: =-Oper!BX199 -> 0 | BY62: =-Oper!BY199 -> 0 | BZ62: =-Oper!BZ199 -> 0 | CA62: =-Oper!CA199 -> 0 | CB62: =-Oper!CB199 -> 0 | CC62: =-Oper!CC199 -> 0 | CD62: =-Oper!CD199 -> 0 | CE62: =-Oper!CE199 -> 0 | CF62: =-Oper!CF199 -> 0 | CG62: =-Oper!CG199 -> 0 | CH62: =-Oper!CH199 -> 0 | CI62: =-Oper!CI199 -> 0 | CJ62: =-Oper!CJ199 -> 0 | CK62: =-Oper!CK199 -> 0 | CL62: =-Oper!CL199 -> 0 | CM62: =-Oper!CM199 -> 0 | CN62: =-Oper!CN199 -> 0 | CO62: =-Oper!CO199 -> 0 | CP62: =-Oper!CP199 -> 0 | CQ62: =-Oper!CQ199 -> 0 | CR62: =-Oper!CR199 -> 0 | CS62: =-Oper!CS199 -> 0 | CT62: =-Oper!CT199 -> 0 | CU62: =-Oper!CU199 -> 0 | CV62: =-Oper!CV199 -> 0 | CW62: =-Oper!CW199 -> 0 | CX62: =-Oper!CX199 -> 0 | CY62: =-Oper!CY199 -> 0 | CZ62: =-Oper!CZ199 -> 0 | DA62: =-Oper!DA199 -> 0 | DB62: =-Oper!DB199 -> 0 | DC62: =-Oper!DC199 -> 0 | DD62: =-Oper!DD199 -> 0 | DE62: =-Oper!DE199 -> 0 | DF62: =-Oper!DF199 -> 0 | DG62: =-Oper!DG199 -> 0 | DH62: =-Oper!DH199 -> 0 | DI62: =-Oper!DI199 -> 0 | DJ62: =-Oper!DJ199 -> 0 | DK62: =-Oper!DK199 -> 0 | DL62: =-Oper!DL199 -> 0 | DM62: =-Oper!DM199 -> 0 | DN62: =-Oper!DN199 -> 0 | DO62: =-Oper!DO199 -> 0 | DP62: =-Oper!DP199 -> 0 | DQ62: =-Oper!DQ199 -> 0 | DR62: =-Oper!DR199 -> 0 | DS62: =-Oper!DS199 -> 0 | DT62: =-Oper!DT199 -> 0 | DU62: =-Oper!DU199 -> 0 | DV62: =-Oper!DV199 -> 0 | DW62: =-Oper!DW199 -> 0 | DX62: =-Oper!DX199 -> 0 | DY62: =-Oper!DY199 -> 0 | DZ62: =-Oper!DZ199 -> 0 | EA62: =-Oper!EA199 -> 0 | EB62: =-Oper!EB199 -> 0 | EC62: =-Oper!EC199 -> 0 | ED62: =-Oper!ED199 -> 0 | EE62: =-Oper!EE199 -> 0 | EF62: =-Oper!EF199 -> 0 | EG62: =-Oper!EG199 -> 0 | EH62: =-Oper!EH199 -> 0 | EI62: =-Oper!EI199 -> 0 | EJ62: =-Oper!EJ199 -> 0 | EK62: =-Oper!EK199 -> 0 | EL62: =-Oper!EL199 -> 0 | EM62: =-Oper!EM199 -> 0 | EN62: =-Oper!EN199 -> 0 | EO62: =-Oper!EO199 -> 0 | EP62: =-Oper!EP199 -> 0 | EQ62: =-Oper!EQ199 -> 0 | ER62: =-Oper!ER199 -> 0 | ES62: =-Oper!ES199 -> 0 | ET62: =-Oper!ET199 -> 0 | EU62: =-Oper!EU199 -> 0 | EV62: =-Oper!EV199 -> 0 | EW62: =-Oper!EW199 -> 0 | EX62: =-Oper!EX199 -> 0 | EY62: =-Oper!EY199 -> 0 | EZ62: =-Oper!EZ199 -> 0 | FA62: =-Oper!FA199 -> 0 | FB62: =-Oper!FB199 -> 0 | FC62: =-Oper!FC199 -> 0 | FD62: =-Oper!FD199 -> 0 | FE62: =-Oper!FE199 -> 0 | FF62: =-Oper!FF199 -> 0
B63: EBITDA | H63: тыс. руб. | L63: 491106.4893 | M63: =SUM(M61:M62) -> 0 | N63: 0 | O63: 0 | P63: 0 | Q63: -391.4330639 | R63: -403.3276157 | S63: -418.5894839 | T63: -433.7233714 | U63: -442.8712012 | V63: -460.7798908 | W63: -477.083014 | X63: -497.8351419 | Y63: 21419.07882 | Z63: 25113.61939 | AA63: 25078.50706 | AB63: 25043.37793 | AC63: 23180.01291 | AD63: 23144.84968 | AE63: 23109.66914 | AF63: 23074.47113 | AG63: 21004.49538 | AH63: 20969.2619 | AI63: 20934.01043 | AJ63: 20898.74078 | AK63: 18660.04865 | AL63: 18627.32741 | AM63: 18594.58745 | AN63: 18561.82859 | AO63: 16064.60027 | AP63: 16031.80305 | AQ63: 15998.98636 | AR63: 99122.85578 | AS63: =SUM(AS61:AS62) -> 0 | AT63: 0 | AU63: 0 | AV63: 0 | AW63: 0 | AX63: 0 | AY63: 0 | AZ63: 0 | BA63: 0 | BB63: 0 | BC63: 0 | BD63: 0 | BE63: 0 | BF63: 0 | BG63: 0 | BH63: 0 | BI63: 0 | BJ63: 0 | BK63: 0 | BL63: 0 | BM63: 0 | BN63: 0 | BO63: 0 | BP63: 0 | BQ63: 0 | BR63: 0 | BS63: 0 | BT63: 0 | BU63: 0 | BV63: 0 | BW63: 0 | BX63: 0 | BY63: =SUM(BY61:BY62) -> 0 | BZ63: 0 | CA63: 0 | CB63: 0 | CC63: 0 | CD63: 0 | CE63: 0 | CF63: 0 | CG63: 0 | CH63: 0 | CI63: 0 | CJ63: 0 | CK63: 0 | CL63: 0 | CM63: 0 | CN63: 0 | CO63: 0 | CP63: 0 | CQ63: 0 | CR63: 0 | CS63: 0 | CT63: 0 | CU63: 0 | CV63: 0 | CW63: 0 | CX63: 0 | CY63: 0 | CZ63: 0 | DA63: 0 | DB63: 0 | DC63: 0 | DD63: 0 | DE63: =SUM(DE61:DE62) -> 0 | DF63: 0 | DG63: 0 | DH63: 0 | DI63: 0 | DJ63: 0 | DK63: 0 | DL63: 0 | DM63: 0 | DN63: 0 | DO63: 0 | DP63: 0 | DQ63: 0 | DR63: 0 | DS63: 0 | DT63: 0 | DU63: 0 | DV63: 0 | DW63: 0 | DX63: 0 | DY63: 0 | DZ63: 0 | EA63: 0 | EB63: 0 | EC63: 0 | ED63: 0 | EE63: 0 | EF63: 0 | EG63: 0 | EH63: 0 | EI63: 0 | EJ63: 0 | EK63: =SUM(EK61:EK62) -> 0 | EL63: 0 | EM63: 0 | EN63: 0 | EO63: 0 | EP63: 0 | EQ63: 0 | ER63: 0 | ES63: 0 | ET63: 0 | EU63: 0 | EV63: 0 | EW63: 0 | EX63: 0 | EY63: 0 | EZ63: 0 | FA63: 0 | FB63: 0 | FC63: 0 | FD63: 0 | FE63: 0 | FF63: 0
B64: (-) Амортизация | H64: тыс. руб. | L64: -149683.4629 | M64: =-FixedAssets!M227 -> 0 | N64: =-FixedAssets!N227 -> 0 | O64: =-FixedAssets!O227 -> 0 | P64: =-FixedAssets!P227 -> 0 | Q64: =-FixedAssets!Q227 -> 0 | R64: =-FixedAssets!R227 -> 0 | S64: =-FixedAssets!S227 -> 0 | T64: =-FixedAssets!T227 -> 0 | U64: =-FixedAssets!U227 -> 0 | V64: =-FixedAssets!V227 -> 0 | W64: =-FixedAssets!W227 -> 0 | X64: =-FixedAssets!X227 -> 0 | Y64: =-FixedAssets!Y227 -> -38037.65847 | Z64: =-FixedAssets!Z227 -> -6074.012286 | AA64: =-FixedAssets!AA227 -> -6074.012286 | AB64: =-FixedAssets!AB227 -> -6074.012286 | AC64: =-FixedAssets!AC227 -> -6074.012286 | AD64: =-FixedAssets!AD227 -> -6074.012286 | AE64: =-FixedAssets!AE227 -> -6074.012286 | AF64: =-FixedAssets!AF227 -> -6074.012286 | AG64: =-FixedAssets!AG227 -> -6074.012286 | AH64: =-FixedAssets!AH227 -> -6074.012286 | AI64: =-FixedAssets!AI227 -> -6074.012286 | AJ64: =-FixedAssets!AJ227 -> -6074.012286 | AK64: =-FixedAssets!AK227 -> -5603.958666 | AL64: =-FixedAssets!AL227 -> -5603.958666 | AM64: =-FixedAssets!AM227 -> -5603.958666 | AN64: =-FixedAssets!AN227 -> -5603.958666 | AO64: =-FixedAssets!AO227 -> -5603.958666 | AP64: =-FixedAssets!AP227 -> -5603.958666 | AQ64: =-FixedAssets!AQ227 -> -5603.958666 | AR64: =-FixedAssets!AR227 -> -5603.958666 | AS64: =-FixedAssets!AS227 -> 0 | AT64: =-FixedAssets!AT227 -> 0 | AU64: =-FixedAssets!AU227 -> 0 | AV64: =-FixedAssets!AV227 -> 0 | AW64: =-FixedAssets!AW227 -> 0 | AX64: =-FixedAssets!AX227 -> 0 | AY64: =-FixedAssets!AY227 -> 0 | AZ64: =-FixedAssets!AZ227 -> 0 | BA64: =-FixedAssets!BA227 -> 0 | BB64: =-FixedAssets!BB227 -> 0 | BC64: =-FixedAssets!BC227 -> 0 | BD64: =-FixedAssets!BD227 -> 0 | BE64: =-FixedAssets!BE227 -> 0 | BF64: =-FixedAssets!BF227 -> 0 | BG64: =-FixedAssets!BG227 -> 0 | BH64: =-FixedAssets!BH227 -> 0 | BI64: =-FixedAssets!BI227 -> 0 | BJ64: =-FixedAssets!BJ227 -> 0 | BK64: =-FixedAssets!BK227 -> 0 | BL64: =-FixedAssets!BL227 -> 0 | BM64: =-FixedAssets!BM227 -> 0 | BN64: =-FixedAssets!BN227 -> 0 | BO64: =-FixedAssets!BO227 -> 0 | BP64: =-FixedAssets!BP227 -> 0 | BQ64: =-FixedAssets!BQ227 -> 0 | BR64: =-FixedAssets!BR227 -> 0 | BS64: =-FixedAssets!BS227 -> 0 | BT64: =-FixedAssets!BT227 -> 0 | BU64: =-FixedAssets!BU227 -> 0 | BV64: =-FixedAssets!BV227 -> 0 | BW64: =-FixedAssets!BW227 -> 0 | BX64: =-FixedAssets!BX227 -> 0 | BY64: =-FixedAssets!BY227 -> 0 | BZ64: =-FixedAssets!BZ227 -> 0 | CA64: =-FixedAssets!CA227 -> 0 | CB64: =-FixedAssets!CB227 -> 0 | CC64: =-FixedAssets!CC227 -> 0 | CD64: =-FixedAssets!CD227 -> 0 | CE64: =-FixedAssets!CE227 -> 0 | CF64: =-FixedAssets!CF227 -> 0 | CG64: =-FixedAssets!CG227 -> 0 | CH64: =-FixedAssets!CH227 -> 0 | CI64: =-FixedAssets!CI227 -> 0 | CJ64: =-FixedAssets!CJ227 -> 0 | CK64: =-FixedAssets!CK227 -> 0 | CL64: =-FixedAssets!CL227 -> 0 | CM64: =-FixedAssets!CM227 -> 0 | CN64: =-FixedAssets!CN227 -> 0 | CO64: =-FixedAssets!CO227 -> 0 | CP64: =-FixedAssets!CP227 -> 0 | CQ64: =-FixedAssets!CQ227 -> 0 | CR64: =-FixedAssets!CR227 -> 0 | CS64: =-FixedAssets!CS227 -> 0 | CT64: =-FixedAssets!CT227 -> 0 | CU64: =-FixedAssets!CU227 -> 0 | CV64: =-FixedAssets!CV227 -> 0 | CW64: =-FixedAssets!CW227 -> 0 | CX64: =-FixedAssets!CX227 -> 0 | CY64: =-FixedAssets!CY227 -> 0 | CZ64: =-FixedAssets!CZ227 -> 0 | DA64: =-FixedAssets!DA227 -> 0 | DB64: =-FixedAssets!DB227 -> 0 | DC64: =-FixedAssets!DC227 -> 0 | DD64: =-FixedAssets!DD227 -> 0 | DE64: =-FixedAssets!DE227 -> 0 | DF64: =-FixedAssets!DF227 -> 0 | DG64: =-FixedAssets!DG227 -> 0 | DH64: =-FixedAssets!DH227 -> 0 | DI64: =-FixedAssets!DI227 -> 0 | DJ64: =-FixedAssets!DJ227 -> 0 | DK64: =-FixedAssets!DK227 -> 0 | DL64: =-FixedAssets!DL227 -> 0 | DM64: =-FixedAssets!DM227 -> 0 | DN64: =-FixedAssets!DN227 -> 0 | DO64: =-FixedAssets!DO227 -> 0 | DP64: =-FixedAssets!DP227 -> 0 | DQ64: =-FixedAssets!DQ227 -> 0 | DR64: =-FixedAssets!DR227 -> 0 | DS64: =-FixedAssets!DS227 -> 0 | DT64: =-FixedAssets!DT227 -> 0 | DU64: =-FixedAssets!DU227 -> 0 | DV64: =-FixedAssets!DV227 -> 0 | DW64: =-FixedAssets!DW227 -> 0 | DX64: =-FixedAssets!DX227 -> 0 | DY64: =-FixedAssets!DY227 -> 0 | DZ64: =-FixedAssets!DZ227 -> 0 | EA64: =-FixedAssets!EA227 -> 0 | EB64: =-FixedAssets!EB227 -> 0 | EC64: =-FixedAssets!EC227 -> 0 | ED64: =-FixedAssets!ED227 -> 0 | EE64: =-FixedAssets!EE227 -> 0 | EF64: =-FixedAssets!EF227 -> 0 | EG64: =-FixedAssets!EG227 -> 0 | EH64: =-FixedAssets!EH227 -> 0 | EI64: =-FixedAssets!EI227 -> 0 | EJ64: =-FixedAssets!EJ227 -> 0 | EK64: =-FixedAssets!EK227 -> 0 | EL64: =-FixedAssets!EL227 -> 0 | EM64: =-FixedAssets!EM227 -> 0 | EN64: =-FixedAssets!EN227 -> 0 | EO64: =-FixedAssets!EO227 -> 0 | EP64: =-FixedAssets!EP227 -> 0 | EQ64: =-FixedAssets!EQ227 -> 0 | ER64: =-FixedAssets!ER227 -> 0 | ES64: =-FixedAssets!ES227 -> 0 | ET64: =-FixedAssets!ET227 -> 0 | EU64: =-FixedAssets!EU227 -> 0 | EV64: =-FixedAssets!EV227 -> 0 | EW64: =-FixedAssets!EW227 -> 0 | EX64: =-FixedAssets!EX227 -> 0 | EY64: =-FixedAssets!EY227 -> 0 | EZ64: =-FixedAssets!EZ227 -> 0 | FA64: =-FixedAssets!FA227 -> 0 | FB64: =-FixedAssets!FB227 -> 0 | FC64: =-FixedAssets!FC227 -> 0 | FD64: =-FixedAssets!FD227 -> 0 | FE64: =-FixedAssets!FE227 -> 0 | FF64: =-FixedAssets!FF227 -> 0
B65: EBIT | H65: тыс. руб. | L65: 341423.0264 | M65: =SUM(M63:M64) -> 0 | N65: =SUM(N63:N64) -> 0 | O65: 0 | P65: 0 | Q65: -391.4330639 | R65: -403.3276157 | S65: -418.5894839 | T65: -433.7233714 | U65: -442.8712012 | V65: -460.7798908 | W65: -477.083014 | X65: -497.8351419 | Y65: -16618.57966 | Z65: 19039.6071 | AA65: 19004.49478 | AB65: 18969.36565 | AC65: =SUM(AC63:AC64) -> 17106.00063 | AD65: 17070.83739 | AE65: 17035.65686 | AF65: 17000.45884 | AG65: 14930.4831 | AH65: 14895.24962 | AI65: 14859.99814 | AJ65: 14824.72849 | AK65: 13056.08998 | AL65: 13023.36874 | AM65: 12990.62878 | AN65: 12957.86993 | AO65: 10460.6416 | AP65: 10427.84438 | AQ65: 10395.0277 | AR65: 93518.89712 | AS65: 0 | AT65: 0 | AU65: 0 | AV65: 0 | AW65: 0 | AX65: 0 | AY65: 0 | AZ65: 0 | BA65: 0 | BB65: 0 | BC65: 0 | BD65: 0 | BE65: 0 | BF65: 0 | BG65: 0 | BH65: 0 | BI65: 0 | BJ65: 0 | BK65: 0 | BL65: 0 | BM65: 0 | BN65: 0 | BO65: 0 | BP65: 0 | BQ65: 0 | BR65: 0 | BS65: 0 | BT65: 0 | BU65: 0 | BV65: 0 | BW65: 0 | BX65: 0 | BY65: 0 | BZ65: =SUM(BZ63:BZ64) -> 0 | CA65: 0 | CB65: 0 | CC65: 0 | CD65: 0 | CE65: 0 | CF65: 0 | CG65: 0 | CH65: 0 | CI65: 0 | CJ65: 0 | CK65: 0 | CL65: 0 | CM65: 0 | CN65: 0 | CO65: 0 | CP65: 0 | CQ65: 0 | CR65: 0 | CS65: 0 | CT65: 0 | CU65: 0 | CV65: 0 | CW65: 0 | CX65: 0 | CY65: 0 | CZ65: 0 | DA65: 0 | DB65: 0 | DC65: 0 | DD65: 0 | DE65: 0 | DF65: 0 | DG65: 0 | DH65: 0 | DI65: 0 | DJ65: 0 | DK65: 0 | DL65: 0 | DM65: 0 | DN65: 0 | DO65: 0 | DP65: 0 | DQ65: 0 | DR65: 0 | DS65: 0 | DT65: 0 | DU65: 0 | DV65: 0 | DW65: 0 | DX65: 0 | DY65: 0 | DZ65: 0 | EA65: 0 | EB65: 0 | EC65: 0 | ED65: 0 | EE65: 0 | EF65: 0 | EG65: 0 | EH65: 0 | EI65: 0 | EJ65: 0 | EK65: 0 | EL65: =SUM(EL63:EL64) -> 0 | EM65: 0 | EN65: 0 | EO65: 0 | EP65: 0 | EQ65: 0 | ER65: 0 | ES65: 0 | ET65: 0 | EU65: 0 | EV65: 0 | EW65: 0 | EX65: 0 | EY65: 0 | EZ65: 0 | FA65: 0 | FB65: 0 | FC65: 0 | FD65: 0 | FE65: 0 | FF65: 0
B66: (-) Проценты и комиссии по кредитной линии, относимые на расходы | H66: тыс. руб. | L66: -149933.9718 | M66: =-Debt!M140 -> -5078.463166 | N66: =-Debt!N140 -> 0 | O66: =-Debt!O140 -> 0 | P66: =-Debt!P140 -> 0 | Q66: =-Debt!Q140 -> 0 | R66: =-Debt!R140 -> 0 | S66: =-Debt!S140 -> -1971.808898 | T66: =-Debt!T140 -> -3058.99935 | U66: =-Debt!U140 -> -4116.71469 | V66: =-Debt!V140 -> -6249.640799 | W66: =-Debt!W140 -> -10013.56784 | X66: =-Debt!X140 -> -12889.92649 | Y66: =-Debt!Y140 -> -13927.51131 | Z66: =-Debt!Z140 -> -13606.59266 | AA66: =-Debt!AA140 -> -10355.37829 | AB66: =-Debt!AB140 -> -9500.442158 | AC66: =-Debt!AC140 -> -8952.80134 | AD66: =-Debt!AD140 -> -8377.648454 | AE66: =-Debt!AE140 -> -7683.741592 | AF66: =-Debt!AF140 -> -6873.375936 | AG66: =-Debt!AG140 -> -6147.088653 | AH66: =-Debt!AH140 -> -5464.358909 | AI66: =-Debt!AI140 -> -4691.280955 | AJ66: =-Debt!AJ140 -> -3820.38851 | AK66: =-Debt!AK140 -> -3051.288797 | AL66: =-Debt!AL140 -> -2245.032463 | AM66: =-Debt!AM140 -> -1379.452824 | AN66: =-Debt!AN140 -> -478.4677603 | AO66: =-Debt!AO140 -> 0 | AP66: =-Debt!AP140 -> 0 | AQ66: =-Debt!AQ140 -> 0 | AR66: =-Debt!AR140 -> 0 | AS66: =-Debt!AS140 -> 0 | AT66: =-Debt!AT140 -> 0 | AU66: =-Debt!AU140 -> 0 | AV66: =-Debt!AV140 -> 0 | AW66: =-Debt!AW140 -> 0 | AX66: =-Debt!AX140 -> 0 | AY66: =-Debt!AY140 -> 0 | AZ66: =-Debt!AZ140 -> 0 | BA66: =-Debt!BA140 -> 0 | BB66: =-Debt!BB140 -> 0 | BC66: =-Debt!BC140 -> 0 | BD66: =-Debt!BD140 -> 0 | BE66: =-Debt!BE140 -> 0 | BF66: =-Debt!BF140 -> 0 | BG66: =-Debt!BG140 -> 0 | BH66: =-Debt!BH140 -> 0 | BI66: =-Debt!BI140 -> 0 | BJ66: =-Debt!BJ140 -> 0 | BK66: =-Debt!BK140 -> 0 | BL66: =-Debt!BL140 -> 0 | BM66: =-Debt!BM140 -> 0 | BN66: =-Debt!BN140 -> 0 | BO66: =-Debt!BO140 -> 0 | BP66: =-Debt!BP140 -> 0 | BQ66: =-Debt!BQ140 -> 0 | BR66: =-Debt!BR140 -> 0 | BS66: =-Debt!BS140 -> 0 | BT66: =-Debt!BT140 -> 0 | BU66: =-Debt!BU140 -> 0 | BV66: =-Debt!BV140 -> 0 | BW66: =-Debt!BW140 -> 0 | BX66: =-Debt!BX140 -> 0 | BY66: =-Debt!BY140 -> 0 | BZ66: =-Debt!BZ140 -> 0 | CA66: =-Debt!CA140 -> 0 | CB66: =-Debt!CB140 -> 0 | CC66: =-Debt!CC140 -> 0 | CD66: =-Debt!CD140 -> 0 | CE66: =-Debt!CE140 -> 0 | CF66: =-Debt!CF140 -> 0 | CG66: =-Debt!CG140 -> 0 | CH66: =-Debt!CH140 -> 0 | CI66: =-Debt!CI140 -> 0 | CJ66: =-Debt!CJ140 -> 0 | CK66: =-Debt!CK140 -> 0 | CL66: =-Debt!CL140 -> 0 | CM66: =-Debt!CM140 -> 0 | CN66: =-Debt!CN140 -> 0 | CO66: =-Debt!CO140 -> 0 | CP66: =-Debt!CP140 -> 0 | CQ66: =-Debt!CQ140 -> 0 | CR66: =-Debt!CR140 -> 0 | CS66: =-Debt!CS140 -> 0 | CT66: =-Debt!CT140 -> 0 | CU66: =-Debt!CU140 -> 0 | CV66: =-Debt!CV140 -> 0 | CW66: =-Debt!CW140 -> 0 | CX66: =-Debt!CX140 -> 0 | CY66: =-Debt!CY140 -> 0 | CZ66: =-Debt!CZ140 -> 0 | DA66: =-Debt!DA140 -> 0 | DB66: =-Debt!DB140 -> 0 | DC66: =-Debt!DC140 -> 0 | DD66: =-Debt!DD140 -> 0 | DE66: =-Debt!DE140 -> 0 | DF66: =-Debt!DF140 -> 0 | DG66: =-Debt!DG140 -> 0 | DH66: =-Debt!DH140 -> 0 | DI66: =-Debt!DI140 -> 0 | DJ66: =-Debt!DJ140 -> 0 | DK66: =-Debt!DK140 -> 0 | DL66: =-Debt!DL140 -> 0 | DM66: =-Debt!DM140 -> 0 | DN66: =-Debt!DN140 -> 0 | DO66: =-Debt!DO140 -> 0 | DP66: =-Debt!DP140 -> 0 | DQ66: =-Debt!DQ140 -> 0 | DR66: =-Debt!DR140 -> 0 | DS66: =-Debt!DS140 -> 0 | DT66: =-Debt!DT140 -> 0 | DU66: =-Debt!DU140 -> 0 | DV66: =-Debt!DV140 -> 0 | DW66: =-Debt!DW140 -> 0 | DX66: =-Debt!DX140 -> 0 | DY66: =-Debt!DY140 -> 0 | DZ66: =-Debt!DZ140 -> 0 | EA66: =-Debt!EA140 -> 0 | EB66: =-Debt!EB140 -> 0 | EC66: =-Debt!EC140 -> 0 | ED66: =-Debt!ED140 -> 0 | EE66: =-Debt!EE140 -> 0 | EF66: =-Debt!EF140 -> 0 | EG66: =-Debt!EG140 -> 0 | EH66: =-Debt!EH140 -> 0 | EI66: =-Debt!EI140 -> 0 | EJ66: =-Debt!EJ140 -> 0 | EK66: =-Debt!EK140 -> 0 | EL66: =-Debt!EL140 -> 0 | EM66: =-Debt!EM140 -> 0 | EN66: =-Debt!EN140 -> 0 | EO66: =-Debt!EO140 -> 0 | EP66: =-Debt!EP140 -> 0 | EQ66: =-Debt!EQ140 -> 0 | ER66: =-Debt!ER140 -> 0 | ES66: =-Debt!ES140 -> 0 | ET66: =-Debt!ET140 -> 0 | EU66: =-Debt!EU140 -> 0 | EV66: =-Debt!EV140 -> 0 | EW66: =-Debt!EW140 -> 0 | EX66: =-Debt!EX140 -> 0 | EY66: =-Debt!EY140 -> 0 | EZ66: =-Debt!EZ140 -> 0 | FA66: =-Debt!FA140 -> 0 | FB66: =-Debt!FB140 -> 0 | FC66: =-Debt!FC140 -> 0 | FD66: =-Debt!FD140 -> 0 | FE66: =-Debt!FE140 -> 0 | FF66: =-Debt!FF140 -> 0
B67: (-) Проценты к уплате по акционерным займам, относимые на расходы | H67: тыс. руб. | L67: -107438.8382 | M67: =-Investor!M102 -> -121.589819 | N67: =-Investor!N102 -> -303.5392159 | O67: =-Investor!O102 -> -424.2583719 | P67: =-Investor!P102 -> -544.9775279 | Q67: =-Investor!Q102 -> -1214.976446 | R67: =-Investor!R102 -> -2270.15328 | S67: =-Investor!S102 -> -3400.027856 | T67: =-Investor!T102 -> -4135.090268 | U67: =-Investor!U102 -> -4263.553653 | V67: =-Investor!V102 -> -4466.561846 | W67: =-Investor!W102 -> -4751.080865 | X67: =-Investor!X102 -> -5079.318054 | Y67: =-Investor!Y102 -> -5188.078034 | Z67: =-Investor!Z102 -> -4830.723761 | AA67: =-Investor!AA102 -> -4510.280059 | AB67: =-Investor!AB102 -> -4474.573334 | AC67: =-Investor!AC102 -> -4426.799708 | AD67: =-Investor!AD102 -> -4362.580081 | AE67: =-Investor!AE102 -> -4313.046019 | AF67: =-Investor!AF102 -> -4281.590831 | AG67: =-Investor!AG102 -> -4236.078626 | AH67: =-Investor!AH102 -> -4174.456094 | AI67: =-Investor!AI102 -> -4129.851286 | AJ67: =-Investor!AJ102 -> -4105.025359 | AK67: =-Investor!AK102 -> -4064.431442 | AL67: =-Investor!AL102 -> -4006.840553 | AM67: =-Investor!AM102 -> -3969.040398 | AN67: =-Investor!AN102 -> -3772.239575 | AO67: =-Investor!AO102 -> -3161.184489 | AP67: =-Investor!AP102 -> -2304.11343 | AQ67: =-Investor!AQ102 -> -1545.14202 | AR67: =-Investor!AR102 -> -607.6358805 | AS67: =-Investor!AS102 -> 0 | AT67: =-Investor!AT102 -> 0 | AU67: =-Investor!AU102 -> 0 | AV67: =-Investor!AV102 -> 0 | AW67: =-Investor!AW102 -> 0 | AX67: =-Investor!AX102 -> 0 | AY67: =-Investor!AY102 -> 0 | AZ67: =-Investor!AZ102 -> 0 | BA67: =-Investor!BA102 -> 0 | BB67: =-Investor!BB102 -> 0 | BC67: =-Investor!BC102 -> 0 | BD67: =-Investor!BD102 -> 0 | BE67: =-Investor!BE102 -> 0 | BF67: =-Investor!BF102 -> 0 | BG67: =-Investor!BG102 -> 0 | BH67: =-Investor!BH102 -> 0 | BI67: =-Investor!BI102 -> 0 | BJ67: =-Investor!BJ102 -> 0 | BK67: =-Investor!BK102 -> 0 | BL67: =-Investor!BL102 -> 0 | BM67: =-Investor!BM102 -> 0 | BN67: =-Investor!BN102 -> 0 | BO67: =-Investor!BO102 -> 0 | BP67: =-Investor!BP102 -> 0 | BQ67: =-Investor!BQ102 -> 0 | BR67: =-Investor!BR102 -> 0 | BS67: =-Investor!BS102 -> 0 | BT67: =-Investor!BT102 -> 0 | BU67: =-Investor!BU102 -> 0 | BV67: =-Investor!BV102 -> 0 | BW67: =-Investor!BW102 -> 0 | BX67: =-Investor!BX102 -> 0 | BY67: =-Investor!BY102 -> 0 | BZ67: =-Investor!BZ102 -> 0 | CA67: =-Investor!CA102 -> 0 | CB67: =-Investor!CB102 -> 0 | CC67: =-Investor!CC102 -> 0 | CD67: =-Investor!CD102 -> 0 | CE67: =-Investor!CE102 -> 0 | CF67: =-Investor!CF102 -> 0 | CG67: =-Investor!CG102 -> 0 | CH67: =-Investor!CH102 -> 0 | CI67: =-Investor!CI102 -> 0 | CJ67: =-Investor!CJ102 -> 0 | CK67: =-Investor!CK102 -> 0 | CL67: =-Investor!CL102 -> 0 | CM67: =-Investor!CM102 -> 0 | CN67: =-Investor!CN102 -> 0 | CO67: =-Investor!CO102 -> 0 | CP67: =-Investor!CP102 -> 0 | CQ67: =-Investor!CQ102 -> 0 | CR67: =-Investor!CR102 -> 0 | CS67: =-Investor!CS102 -> 0 | CT67: =-Investor!CT102 -> 0 | CU67: =-Investor!CU102 -> 0 | CV67: =-Investor!CV102 -> 0 | CW67: =-Investor!CW102 -> 0 | CX67: =-Investor!CX102 -> 0 | CY67: =-Investor!CY102 -> 0 | CZ67: =-Investor!CZ102 -> 0 | DA67: =-Investor!DA102 -> 0 | DB67: =-Investor!DB102 -> 0 | DC67: =-Investor!DC102 -> 0 | DD67: =-Investor!DD102 -> 0 | DE67: =-Investor!DE102 -> 0 | DF67: =-Investor!DF102 -> 0 | DG67: =-Investor!DG102 -> 0 | DH67: =-Investor!DH102 -> 0 | DI67: =-Investor!DI102 -> 0 | DJ67: =-Investor!DJ102 -> 0 | DK67: =-Investor!DK102 -> 0 | DL67: =-Investor!DL102 -> 0 | DM67: =-Investor!DM102 -> 0 | DN67: =-Investor!DN102 -> 0 | DO67: =-Investor!DO102 -> 0 | DP67: =-Investor!DP102 -> 0 | DQ67: =-Investor!DQ102 -> 0 | DR67: =-Investor!DR102 -> 0 | DS67: =-Investor!DS102 -> 0 | DT67: =-Investor!DT102 -> 0 | DU67: =-Investor!DU102 -> 0 | DV67: =-Investor!DV102 -> 0 | DW67: =-Investor!DW102 -> 0 | DX67: =-Investor!DX102 -> 0 | DY67: =-Investor!DY102 -> 0 | DZ67: =-Investor!DZ102 -> 0 | EA67: =-Investor!EA102 -> 0 | EB67: =-Investor!EB102 -> 0 | EC67: =-Investor!EC102 -> 0 | ED67: =-Investor!ED102 -> 0 | EE67: =-Investor!EE102 -> 0 | EF67: =-Investor!EF102 -> 0 | EG67: =-Investor!EG102 -> 0 | EH67: =-Investor!EH102 -> 0 | EI67: =-Investor!EI102 -> 0 | EJ67: =-Investor!EJ102 -> 0 | EK67: =-Investor!EK102 -> 0 | EL67: =-Investor!EL102 -> 0 | EM67: =-Investor!EM102 -> 0 | EN67: =-Investor!EN102 -> 0 | EO67: =-Investor!EO102 -> 0 | EP67: =-Investor!EP102 -> 0 | EQ67: =-Investor!EQ102 -> 0 | ER67: =-Investor!ER102 -> 0 | ES67: =-Investor!ES102 -> 0 | ET67: =-Investor!ET102 -> 0 | EU67: =-Investor!EU102 -> 0 | EV67: =-Investor!EV102 -> 0 | EW67: =-Investor!EW102 -> 0 | EX67: =-Investor!EX102 -> 0 | EY67: =-Investor!EY102 -> 0 | EZ67: =-Investor!EZ102 -> 0 | FA67: =-Investor!FA102 -> 0 | FB67: =-Investor!FB102 -> 0 | FC67: =-Investor!FC102 -> 0 | FD67: =-Investor!FD102 -> 0 | FE67: =-Investor!FE102 -> 0 | FF67: =-Investor!FF102 -> 0
B68: (+) Прочие доходы: проценты по DSRA | H68: тыс. руб. | L68: 0 | M68: =Debt!M166 -> 0 | N68: =Debt!N166 -> 0 | O68: =Debt!O166 -> 0 | P68: =Debt!P166 -> 0 | Q68: =Debt!Q166 -> 0 | R68: =Debt!R166 -> 0 | S68: =Debt!S166 -> 0 | T68: =Debt!T166 -> 0 | U68: =Debt!U166 -> 0 | V68: =Debt!V166 -> 0 | W68: =Debt!W166 -> 0 | X68: =Debt!X166 -> 0 | Y68: =Debt!Y166 -> 0 | Z68: =Debt!Z166 -> 0 | AA68: =Debt!AA166 -> 0 | AB68: =Debt!AB166 -> 0 | AC68: =Debt!AC166 -> 0 | AD68: =Debt!AD166 -> 0 | AE68: =Debt!AE166 -> 0 | AF68: =Debt!AF166 -> 0 | AG68: =Debt!AG166 -> 0 | AH68: =Debt!AH166 -> 0 | AI68: =Debt!AI166 -> 0 | AJ68: =Debt!AJ166 -> 0 | AK68: =Debt!AK166 -> 0 | AL68: =Debt!AL166 -> 0 | AM68: =Debt!AM166 -> 0 | AN68: =Debt!AN166 -> 0 | AO68: =Debt!AO166 -> 0 | AP68: =Debt!AP166 -> 0 | AQ68: =Debt!AQ166 -> 0 | AR68: =Debt!AR166 -> 0 | AS68: =Debt!AS166 -> 0 | AT68: =Debt!AT166 -> 0 | AU68: =Debt!AU166 -> 0 | AV68: =Debt!AV166 -> 0 | AW68: =Debt!AW166 -> 0 | AX68: =Debt!AX166 -> 0 | AY68: =Debt!AY166 -> 0 | AZ68: =Debt!AZ166 -> 0 | BA68: =Debt!BA166 -> 0 | BB68: =Debt!BB166 -> 0 | BC68: =Debt!BC166 -> 0 | BD68: =Debt!BD166 -> 0 | BE68: =Debt!BE166 -> 0 | BF68: =Debt!BF166 -> 0 | BG68: =Debt!BG166 -> 0 | BH68: =Debt!BH166 -> 0 | BI68: =Debt!BI166 -> 0 | BJ68: =Debt!BJ166 -> 0 | BK68: =Debt!BK166 -> 0 | BL68: =Debt!BL166 -> 0 | BM68: =Debt!BM166 -> 0 | BN68: =Debt!BN166 -> 0 | BO68: =Debt!BO166 -> 0 | BP68: =Debt!BP166 -> 0 | BQ68: =Debt!BQ166 -> 0 | BR68: =Debt!BR166 -> 0 | BS68: =Debt!BS166 -> 0 | BT68: =Debt!BT166 -> 0 | BU68: =Debt!BU166 -> 0 | BV68: =Debt!BV166 -> 0 | BW68: =Debt!BW166 -> 0 | BX68: =Debt!BX166 -> 0 | BY68: =Debt!BY166 -> 0 | BZ68: =Debt!BZ166 -> 0 | CA68: =Debt!CA166 -> 0 | CB68: =Debt!CB166 -> 0 | CC68: =Debt!CC166 -> 0 | CD68: =Debt!CD166 -> 0 | CE68: =Debt!CE166 -> 0 | CF68: =Debt!CF166 -> 0 | CG68: =Debt!CG166 -> 0 | CH68: =Debt!CH166 -> 0 | CI68: =Debt!CI166 -> 0 | CJ68: =Debt!CJ166 -> 0 | CK68: =Debt!CK166 -> 0 | CL68: =Debt!CL166 -> 0 | CM68: =Debt!CM166 -> 0 | CN68: =Debt!CN166 -> 0 | CO68: =Debt!CO166 -> 0 | CP68: =Debt!CP166 -> 0 | CQ68: =Debt!CQ166 -> 0 | CR68: =Debt!CR166 -> 0 | CS68: =Debt!CS166 -> 0 | CT68: =Debt!CT166 -> 0 | CU68: =Debt!CU166 -> 0 | CV68: =Debt!CV166 -> 0 | CW68: =Debt!CW166 -> 0 | CX68: =Debt!CX166 -> 0 | CY68: =Debt!CY166 -> 0 | CZ68: =Debt!CZ166 -> 0 | DA68: =Debt!DA166 -> 0 | DB68: =Debt!DB166 -> 0 | DC68: =Debt!DC166 -> 0 | DD68: =Debt!DD166 -> 0 | DE68: =Debt!DE166 -> 0 | DF68: =Debt!DF166 -> 0 | DG68: =Debt!DG166 -> 0 | DH68: =Debt!DH166 -> 0 | DI68: =Debt!DI166 -> 0 | DJ68: =Debt!DJ166 -> 0 | DK68: =Debt!DK166 -> 0 | DL68: =Debt!DL166 -> 0 | DM68: =Debt!DM166 -> 0 | DN68: =Debt!DN166 -> 0 | DO68: =Debt!DO166 -> 0 | DP68: =Debt!DP166 -> 0 | DQ68: =Debt!DQ166 -> 0 | DR68: =Debt!DR166 -> 0 | DS68: =Debt!DS166 -> 0 | DT68: =Debt!DT166 -> 0 | DU68: =Debt!DU166 -> 0 | DV68: =Debt!DV166 -> 0 | DW68: =Debt!DW166 -> 0 | DX68: =Debt!DX166 -> 0 | DY68: =Debt!DY166 -> 0 | DZ68: =Debt!DZ166 -> 0 | EA68: =Debt!EA166 -> 0 | EB68: =Debt!EB166 -> 0 | EC68: =Debt!EC166 -> 0 | ED68: =Debt!ED166 -> 0 | EE68: =Debt!EE166 -> 0 | EF68: =Debt!EF166 -> 0 | EG68: =Debt!EG166 -> 0 | EH68: =Debt!EH166 -> 0 | EI68: =Debt!EI166 -> 0 | EJ68: =Debt!EJ166 -> 0 | EK68: =Debt!EK166 -> 0 | EL68: =Debt!EL166 -> 0 | EM68: =Debt!EM166 -> 0 | EN68: =Debt!EN166 -> 0 | EO68: =Debt!EO166 -> 0 | EP68: =Debt!EP166 -> 0 | EQ68: =Debt!EQ166 -> 0 | ER68: =Debt!ER166 -> 0 | ES68: =Debt!ES166 -> 0 | ET68: =Debt!ET166 -> 0 | EU68: =Debt!EU166 -> 0 | EV68: =Debt!EV166 -> 0 | EW68: =Debt!EW166 -> 0 | EX68: =Debt!EX166 -> 0 | EY68: =Debt!EY166 -> 0 | EZ68: =Debt!EZ166 -> 0 | FA68: =Debt!FA166 -> 0 | FB68: =Debt!FB166 -> 0 | FC68: =Debt!FC166 -> 0 | FD68: =Debt!FD166 -> 0 | FE68: =Debt!FE166 -> 0 | FF68: =Debt!FF166 -> 0
B69: (+) Прочие доходы: доходы будущих периодов | H69: тыс. руб. | L69: 746302.2476 | M69: =-Subs!M47-Subs!M54 -> 0 | N69: =-Subs!N47-Subs!N54 -> 0 | O69: =-Subs!O47-Subs!O54 -> 0 | P69: =-Subs!P47-Subs!P54 -> 0 | Q69: =-Subs!Q47-Subs!Q54 -> 0 | R69: =-Subs!R47-Subs!R54 -> 0 | S69: =-Subs!S47-Subs!S54 -> 0 | T69: =-Subs!T47-Subs!T54 -> 0 | U69: =-Subs!U47-Subs!U54 -> 0 | V69: =-Subs!V47-Subs!V54 -> 0 | W69: =-Subs!W47-Subs!W54 -> 0 | X69: =-Subs!X47-Subs!X54 -> 0 | Y69: =-Subs!Y47-Subs!Y54 -> 38037.65847 | Z69: =-Subs!Z47-Subs!Z54 -> 6074.012286 | AA69: =-Subs!AA47-Subs!AA54 -> 6074.012286 | AB69: =-Subs!AB47-Subs!AB54 -> 6074.012286 | AC69: =-Subs!AC47-Subs!AC54 -> 6074.012286 | AD69: =-Subs!AD47-Subs!AD54 -> 6074.012286 | AE69: =-Subs!AE47-Subs!AE54 -> 6074.012286 | AF69: =-Subs!AF47-Subs!AF54 -> 6074.012286 | AG69: =-Subs!AG47-Subs!AG54 -> 6074.012286 | AH69: =-Subs!AH47-Subs!AH54 -> 6074.012286 | AI69: =-Subs!AI47-Subs!AI54 -> 6074.012286 | AJ69: =-Subs!AJ47-Subs!AJ54 -> 6074.012286 | AK69: =-Subs!AK47-Subs!AK54 -> 5603.958666 | AL69: =-Subs!AL47-Subs!AL54 -> 5603.958666 | AM69: =-Subs!AM47-Subs!AM54 -> 5603.958666 | AN69: =-Subs!AN47-Subs!AN54 -> 5603.958666 | AO69: =-Subs!AO47-Subs!AO54 -> 5603.958666 | AP69: =-Subs!AP47-Subs!AP54 -> 5603.958666 | AQ69: =-Subs!AQ47-Subs!AQ54 -> 5603.958666 | AR69: =-Subs!AR47-Subs!AR54 -> 602222.7433 | AS69: =-Subs!AS47-Subs!AS54 -> 0 | AT69: =-Subs!AT47-Subs!AT54 -> 0 | AU69: =-Subs!AU47-Subs!AU54 -> 0 | AV69: =-Subs!AV47-Subs!AV54 -> 0 | AW69: =-Subs!AW47-Subs!AW54 -> 0 | AX69: =-Subs!AX47-Subs!AX54 -> 0 | AY69: =-Subs!AY47-Subs!AY54 -> 0 | AZ69: =-Subs!AZ47-Subs!AZ54 -> 0 | BA69: =-Subs!BA47-Subs!BA54 -> 0 | BB69: =-Subs!BB47-Subs!BB54 -> 0 | BC69: =-Subs!BC47-Subs!BC54 -> 0 | BD69: =-Subs!BD47-Subs!BD54 -> 0 | BE69: =-Subs!BE47-Subs!BE54 -> 0 | BF69: =-Subs!BF47-Subs!BF54 -> 0 | BG69: =-Subs!BG47-Subs!BG54 -> 0 | BH69: =-Subs!BH47-Subs!BH54 -> 0 | BI69: =-Subs!BI47-Subs!BI54 -> 0 | BJ69: =-Subs!BJ47-Subs!BJ54 -> 0 | BK69: =-Subs!BK47-Subs!BK54 -> 0 | BL69: =-Subs!BL47-Subs!BL54 -> 0 | BM69: =-Subs!BM47-Subs!BM54 -> 0 | BN69: =-Subs!BN47-Subs!BN54 -> 0 | BO69: =-Subs!BO47-Subs!BO54 -> 0 | BP69: =-Subs!BP47-Subs!BP54 -> 0 | BQ69: =-Subs!BQ47-Subs!BQ54 -> 0 | BR69: =-Subs!BR47-Subs!BR54 -> 0 | BS69: =-Subs!BS47-Subs!BS54 -> 0 | BT69: =-Subs!BT47-Subs!BT54 -> 0 | BU69: =-Subs!BU47-Subs!BU54 -> 0 | BV69: =-Subs!BV47-Subs!BV54 -> 0 | BW69: =-Subs!BW47-Subs!BW54 -> 0 | BX69: =-Subs!BX47-Subs!BX54 -> 0 | BY69: =-Subs!BY47-Subs!BY54 -> 0 | BZ69: =-Subs!BZ47-Subs!BZ54 -> 0 | CA69: =-Subs!CA47-Subs!CA54 -> 0 | CB69: =-Subs!CB47-Subs!CB54 -> 0 | CC69: =-Subs!CC47-Subs!CC54 -> 0 | CD69: =-Subs!CD47-Subs!CD54 -> 0 | CE69: =-Subs!CE47-Subs!CE54 -> 0 | CF69: =-Subs!CF47-Subs!CF54 -> 0 | CG69: =-Subs!CG47-Subs!CG54 -> 0 | CH69: =-Subs!CH47-Subs!CH54 -> 0 | CI69: =-Subs!CI47-Subs!CI54 -> 0 | CJ69: =-Subs!CJ47-Subs!CJ54 -> 0 | CK69: =-Subs!CK47-Subs!CK54 -> 0 | CL69: =-Subs!CL47-Subs!CL54 -> 0 | CM69: =-Subs!CM47-Subs!CM54 -> 0 | CN69: =-Subs!CN47-Subs!CN54 -> 0 | CO69: =-Subs!CO47-Subs!CO54 -> 0 | CP69: =-Subs!CP47-Subs!CP54 -> 0 | CQ69: =-Subs!CQ47-Subs!CQ54 -> 0 | CR69: =-Subs!CR47-Subs!CR54 -> 0 | CS69: =-Subs!CS47-Subs!CS54 -> 0 | CT69: =-Subs!CT47-Subs!CT54 -> 0 | CU69: =-Subs!CU47-Subs!CU54 -> 0 | CV69: =-Subs!CV47-Subs!CV54 -> 0 | CW69: =-Subs!CW47-Subs!CW54 -> 0 | CX69: =-Subs!CX47-Subs!CX54 -> 0 | CY69: =-Subs!CY47-Subs!CY54 -> 0 | CZ69: =-Subs!CZ47-Subs!CZ54 -> 0 | DA69: =-Subs!DA47-Subs!DA54 -> 0 | DB69: =-Subs!DB47-Subs!DB54 -> 0 | DC69: =-Subs!DC47-Subs!DC54 -> 0 | DD69: =-Subs!DD47-Subs!DD54 -> 0 | DE69: =-Subs!DE47-Subs!DE54 -> 0 | DF69: =-Subs!DF47-Subs!DF54 -> 0 | DG69: =-Subs!DG47-Subs!DG54 -> 0 | DH69: =-Subs!DH47-Subs!DH54 -> 0 | DI69: =-Subs!DI47-Subs!DI54 -> 0 | DJ69: =-Subs!DJ47-Subs!DJ54 -> 0 | DK69: =-Subs!DK47-Subs!DK54 -> 0 | DL69: =-Subs!DL47-Subs!DL54 -> 0 | DM69: =-Subs!DM47-Subs!DM54 -> 0 | DN69: =-Subs!DN47-Subs!DN54 -> 0 | DO69: =-Subs!DO47-Subs!DO54 -> 0 | DP69: =-Subs!DP47-Subs!DP54 -> 0 | DQ69: =-Subs!DQ47-Subs!DQ54 -> 0 | DR69: =-Subs!DR47-Subs!DR54 -> 0 | DS69: =-Subs!DS47-Subs!DS54 -> 0 | DT69: =-Subs!DT47-Subs!DT54 -> 0 | DU69: =-Subs!DU47-Subs!DU54 -> 0 | DV69: =-Subs!DV47-Subs!DV54 -> 0 | DW69: =-Subs!DW47-Subs!DW54 -> 0 | DX69: =-Subs!DX47-Subs!DX54 -> 0 | DY69: =-Subs!DY47-Subs!DY54 -> 0 | DZ69: =-Subs!DZ47-Subs!DZ54 -> 0 | EA69: =-Subs!EA47-Subs!EA54 -> 0 | EB69: =-Subs!EB47-Subs!EB54 -> 0 | EC69: =-Subs!EC47-Subs!EC54 -> 0 | ED69: =-Subs!ED47-Subs!ED54 -> 0 | EE69: =-Subs!EE47-Subs!EE54 -> 0 | EF69: =-Subs!EF47-Subs!EF54 -> 0 | EG69: =-Subs!EG47-Subs!EG54 -> 0 | EH69: =-Subs!EH47-Subs!EH54 -> 0 | EI69: =-Subs!EI47-Subs!EI54 -> 0 | EJ69: =-Subs!EJ47-Subs!EJ54 -> 0 | EK69: =-Subs!EK47-Subs!EK54 -> 0 | EL69: =-Subs!EL47-Subs!EL54 -> 0 | EM69: =-Subs!EM47-Subs!EM54 -> 0 | EN69: =-Subs!EN47-Subs!EN54 -> 0 | EO69: =-Subs!EO47-Subs!EO54 -> 0 | EP69: =-Subs!EP47-Subs!EP54 -> 0 | EQ69: =-Subs!EQ47-Subs!EQ54 -> 0 | ER69: =-Subs!ER47-Subs!ER54 -> 0 | ES69: =-Subs!ES47-Subs!ES54 -> 0 | ET69: =-Subs!ET47-Subs!ET54 -> 0 | EU69: =-Subs!EU47-Subs!EU54 -> 0 | EV69: =-Subs!EV47-Subs!EV54 -> 0 | EW69: =-Subs!EW47-Subs!EW54 -> 0 | EX69: =-Subs!EX47-Subs!EX54 -> 0 | EY69: =-Subs!EY47-Subs!EY54 -> 0 | EZ69: =-Subs!EZ47-Subs!EZ54 -> 0 | FA69: =-Subs!FA47-Subs!FA54 -> 0 | FB69: =-Subs!FB47-Subs!FB54 -> 0 | FC69: =-Subs!FC47-Subs!FC54 -> 0 | FD69: =-Subs!FD47-Subs!FD54 -> 0 | FE69: =-Subs!FE47-Subs!FE54 -> 0 | FF69: =-Subs!FF47-Subs!FF54 -> 0
B70: (-) Прочие расходы: возврат возмещенного НДС | H70: тыс. руб. | L70: =SUM(M70:FF70) -> -110703.6132 | M70: =-Oper!M213 -> 0 | N70: =-Oper!N213 -> 0 | O70: =-Oper!O213 -> 0 | P70: =-Oper!P213 -> 0 | Q70: =-Oper!Q213 -> 0 | R70: =-Oper!R213 -> 0 | S70: =-Oper!S213 -> 0 | T70: =-Oper!T213 -> 0 | U70: =-Oper!U213 -> 0 | V70: =-Oper!V213 -> 0 | W70: =-Oper!W213 -> 0 | X70: =-Oper!X213 -> 0 | Y70: =-Oper!Y213 -> 0 | Z70: =-Oper!Z213 -> 0 | AA70: =-Oper!AA213 -> -4892.957777 | AB70: =-Oper!AB213 -> -4892.957777 | AC70: =-Oper!AC213 -> -5379.060182 | AD70: =-Oper!AD213 -> -5379.060182 | AE70: =-Oper!AE213 -> -5379.060182 | AF70: =-Oper!AF213 -> -5379.060182 | AG70: =-Oper!AG213 -> -5918.385477 | AH70: =-Oper!AH213 -> -5918.385477 | AI70: =-Oper!AI213 -> -5918.385477 | AJ70: =-Oper!AJ213 -> -5918.385477 | AK70: =-Oper!AK213 -> -6507.38547 | AL70: =-Oper!AL213 -> -6507.38547 | AM70: =-Oper!AM213 -> -6507.38547 | AN70: =-Oper!AN213 -> -6507.38547 | AO70: =-Oper!AO213 -> -7156.70474 | AP70: =-Oper!AP213 -> -7156.70474 | AQ70: =-Oper!AQ213 -> -15384.96369 | AR70: =-Oper!AR213 -> 0 | AS70: =-Oper!AS213 -> 0 | AT70: =-Oper!AT213 -> 0 | AU70: =-Oper!AU213 -> 0 | AV70: =-Oper!AV213 -> 0 | AW70: =-Oper!AW213 -> 0 | AX70: =-Oper!AX213 -> 0 | AY70: =-Oper!AY213 -> 0 | AZ70: =-Oper!AZ213 -> 0 | BA70: =-Oper!BA213 -> 0 | BB70: =-Oper!BB213 -> 0 | BC70: =-Oper!BC213 -> 0 | BD70: =-Oper!BD213 -> 0 | BE70: =-Oper!BE213 -> 0 | BF70: =-Oper!BF213 -> 0 | BG70: =-Oper!BG213 -> 0 | BH70: =-Oper!BH213 -> 0 | BI70: =-Oper!BI213 -> 0 | BJ70: =-Oper!BJ213 -> 0 | BK70: =-Oper!BK213 -> 0 | BL70: =-Oper!BL213 -> 0 | BM70: =-Oper!BM213 -> 0 | BN70: =-Oper!BN213 -> 0 | BO70: =-Oper!BO213 -> 0 | BP70: =-Oper!BP213 -> 0 | BQ70: =-Oper!BQ213 -> 0 | BR70: =-Oper!BR213 -> 0 | BS70: =-Oper!BS213 -> 0 | BT70: =-Oper!BT213 -> 0 | BU70: =-Oper!BU213 -> 0 | BV70: =-Oper!BV213 -> 0 | BW70: =-Oper!BW213 -> 0 | BX70: =-Oper!BX213 -> 0 | BY70: =-Oper!BY213 -> 0 | BZ70: =-Oper!BZ213 -> 0 | CA70: =-Oper!CA213 -> 0 | CB70: =-Oper!CB213 -> 0 | CC70: =-Oper!CC213 -> 0 | CD70: =-Oper!CD213 -> 0 | CE70: =-Oper!CE213 -> 0 | CF70: =-Oper!CF213 -> 0 | CG70: =-Oper!CG213 -> 0 | CH70: =-Oper!CH213 -> 0 | CI70: =-Oper!CI213 -> 0 | CJ70: =-Oper!CJ213 -> 0 | CK70: =-Oper!CK213 -> 0 | CL70: =-Oper!CL213 -> 0 | CM70: =-Oper!CM213 -> 0 | CN70: =-Oper!CN213 -> 0 | CO70: =-Oper!CO213 -> 0 | CP70: =-Oper!CP213 -> 0 | CQ70: =-Oper!CQ213 -> 0 | CR70: =-Oper!CR213 -> 0 | CS70: =-Oper!CS213 -> 0 | CT70: =-Oper!CT213 -> 0 | CU70: =-Oper!CU213 -> 0 | CV70: =-Oper!CV213 -> 0 | CW70: =-Oper!CW213 -> 0 | CX70: =-Oper!CX213 -> 0 | CY70: =-Oper!CY213 -> 0 | CZ70: =-Oper!CZ213 -> 0 | DA70: =-Oper!DA213 -> 0 | DB70: =-Oper!DB213 -> 0 | DC70: =-Oper!DC213 -> 0 | DD70: =-Oper!DD213 -> 0 | DE70: =-Oper!DE213 -> 0 | DF70: =-Oper!DF213 -> 0 | DG70: =-Oper!DG213 -> 0 | DH70: =-Oper!DH213 -> 0 | DI70: =-Oper!DI213 -> 0 | DJ70: =-Oper!DJ213 -> 0 | DK70: =-Oper!DK213 -> 0 | DL70: =-Oper!DL213 -> 0 | DM70: =-Oper!DM213 -> 0 | DN70: =-Oper!DN213 -> 0 | DO70: =-Oper!DO213 -> 0 | DP70: =-Oper!DP213 -> 0 | DQ70: =-Oper!DQ213 -> 0 | DR70: =-Oper!DR213 -> 0 | DS70: =-Oper!DS213 -> 0 | DT70: =-Oper!DT213 -> 0 | DU70: =-Oper!DU213 -> 0 | DV70: =-Oper!DV213 -> 0 | DW70: =-Oper!DW213 -> 0 | DX70: =-Oper!DX213 -> 0 | DY70: =-Oper!DY213 -> 0 | DZ70: =-Oper!DZ213 -> 0 | EA70: =-Oper!EA213 -> 0 | EB70: =-Oper!EB213 -> 0 | EC70: =-Oper!EC213 -> 0 | ED70: =-Oper!ED213 -> 0 | EE70: =-Oper!EE213 -> 0 | EF70: =-Oper!EF213 -> 0 | EG70: =-Oper!EG213 -> 0 | EH70: =-Oper!EH213 -> 0 | EI70: =-Oper!EI213 -> 0 | EJ70: =-Oper!EJ213 -> 0 | EK70: =-Oper!EK213 -> 0 | EL70: =-Oper!EL213 -> 0 | EM70: =-Oper!EM213 -> 0 | EN70: =-Oper!EN213 -> 0 | EO70: =-Oper!EO213 -> 0 | EP70: =-Oper!EP213 -> 0 | EQ70: =-Oper!EQ213 -> 0 | ER70: =-Oper!ER213 -> 0 | ES70: =-Oper!ES213 -> 0 | ET70: =-Oper!ET213 -> 0 | EU70: =-Oper!EU213 -> 0 | EV70: =-Oper!EV213 -> 0 | EW70: =-Oper!EW213 -> 0 | EX70: =-Oper!EX213 -> 0 | EY70: =-Oper!EY213 -> 0 | EZ70: =-Oper!EZ213 -> 0 | FA70: =-Oper!FA213 -> 0 | FB70: =-Oper!FB213 -> 0 | FC70: =-Oper!FC213 -> 0 | FD70: =-Oper!FD213 -> 0 | FE70: =-Oper!FE213 -> 0 | FF70: =-Oper!FF213 -> 0
B71: (-) Прочие расходы: списание основных средств | H71: тыс. руб. | L71: =SUM(M71:FF71) -> -560395.8666 | M71: =FixedAssets!M134 -> 0 | N71: =FixedAssets!N134 -> 0 | O71: =FixedAssets!O134 -> 0 | P71: =FixedAssets!P134 -> 0 | Q71: =FixedAssets!Q134 -> 0 | R71: =FixedAssets!R134 -> 0 | S71: =FixedAssets!S134 -> 0 | T71: =FixedAssets!T134 -> 0 | U71: =FixedAssets!U134 -> 0 | V71: =FixedAssets!V134 -> 0 | W71: =FixedAssets!W134 -> 0 | X71: =FixedAssets!X134 -> 0 | Y71: =FixedAssets!Y134 -> 0 | Z71: =FixedAssets!Z134 -> 0 | AA71: =FixedAssets!AA134 -> 0 | AB71: =FixedAssets!AB134 -> 0 | AC71: =FixedAssets!AC134 -> 0 | AD71: =FixedAssets!AD134 -> 0 | AE71: =FixedAssets!AE134 -> 0 | AF71: =FixedAssets!AF134 -> 0 | AG71: =FixedAssets!AG134 -> 0 | AH71: =FixedAssets!AH134 -> 0 | AI71: =FixedAssets!AI134 -> 0 | AJ71: =FixedAssets!AJ134 -> 0 | AK71: =FixedAssets!AK134 -> 0 | AL71: =FixedAssets!AL134 -> 0 | AM71: =FixedAssets!AM134 -> 0 | AN71: =FixedAssets!AN134 -> 0 | AO71: =FixedAssets!AO134 -> 0 | AP71: =FixedAssets!AP134 -> 0 | AQ71: =FixedAssets!AQ134 -> 0 | AR71: =FixedAssets!AR134 -> -560395.8666 | AS71: =FixedAssets!AS134 -> 0 | AT71: =FixedAssets!AT134 -> 0 | AU71: =FixedAssets!AU134 -> 0 | AV71: =FixedAssets!AV134 -> 0 | AW71: =FixedAssets!AW134 -> 0 | AX71: =FixedAssets!AX134 -> 0 | AY71: =FixedAssets!AY134 -> 0 | AZ71: =FixedAssets!AZ134 -> 0 | BA71: =FixedAssets!BA134 -> 0 | BB71: =FixedAssets!BB134 -> 0 | BC71: =FixedAssets!BC134 -> 0 | BD71: =FixedAssets!BD134 -> 0 | BE71: =FixedAssets!BE134 -> 0 | BF71: =FixedAssets!BF134 -> 0 | BG71: =FixedAssets!BG134 -> 0 | BH71: =FixedAssets!BH134 -> 0 | BI71: =FixedAssets!BI134 -> 0 | BJ71: =FixedAssets!BJ134 -> 0 | BK71: =FixedAssets!BK134 -> 0 | BL71: =FixedAssets!BL134 -> 0 | BM71: =FixedAssets!BM134 -> 0 | BN71: =FixedAssets!BN134 -> 0 | BO71: =FixedAssets!BO134 -> 0 | BP71: =FixedAssets!BP134 -> 0 | BQ71: =FixedAssets!BQ134 -> 0 | BR71: =FixedAssets!BR134 -> 0 | BS71: =FixedAssets!BS134 -> 0 | BT71: =FixedAssets!BT134 -> 0 | BU71: =FixedAssets!BU134 -> 0 | BV71: =FixedAssets!BV134 -> 0 | BW71: =FixedAssets!BW134 -> 0 | BX71: =FixedAssets!BX134 -> 0 | BY71: =FixedAssets!BY134 -> 0 | BZ71: =FixedAssets!BZ134 -> 0 | CA71: =FixedAssets!CA134 -> 0 | CB71: =FixedAssets!CB134 -> 0 | CC71: =FixedAssets!CC134 -> 0 | CD71: =FixedAssets!CD134 -> 0 | CE71: =FixedAssets!CE134 -> 0 | CF71: =FixedAssets!CF134 -> 0 | CG71: =FixedAssets!CG134 -> 0 | CH71: =FixedAssets!CH134 -> 0 | CI71: =FixedAssets!CI134 -> 0 | CJ71: =FixedAssets!CJ134 -> 0 | CK71: =FixedAssets!CK134 -> 0 | CL71: =FixedAssets!CL134 -> 0 | CM71: =FixedAssets!CM134 -> 0 | CN71: =FixedAssets!CN134 -> 0 | CO71: =FixedAssets!CO134 -> 0 | CP71: =FixedAssets!CP134 -> 0 | CQ71: =FixedAssets!CQ134 -> 0 | CR71: =FixedAssets!CR134 -> 0 | CS71: =FixedAssets!CS134 -> 0 | CT71: =FixedAssets!CT134 -> 0 | CU71: =FixedAssets!CU134 -> 0 | CV71: =FixedAssets!CV134 -> 0 | CW71: =FixedAssets!CW134 -> 0 | CX71: =FixedAssets!CX134 -> 0 | CY71: =FixedAssets!CY134 -> 0 | CZ71: =FixedAssets!CZ134 -> 0 | DA71: =FixedAssets!DA134 -> 0 | DB71: =FixedAssets!DB134 -> 0 | DC71: =FixedAssets!DC134 -> 0 | DD71: =FixedAssets!DD134 -> 0 | DE71: =FixedAssets!DE134 -> 0 | DF71: =FixedAssets!DF134 -> 0 | DG71: =FixedAssets!DG134 -> 0 | DH71: =FixedAssets!DH134 -> 0 | DI71: =FixedAssets!DI134 -> 0 | DJ71: =FixedAssets!DJ134 -> 0 | DK71: =FixedAssets!DK134 -> 0 | DL71: =FixedAssets!DL134 -> 0 | DM71: =FixedAssets!DM134 -> 0 | DN71: =FixedAssets!DN134 -> 0 | DO71: =FixedAssets!DO134 -> 0 | DP71: =FixedAssets!DP134 -> 0 | DQ71: =FixedAssets!DQ134 -> 0 | DR71: =FixedAssets!DR134 -> 0 | DS71: =FixedAssets!DS134 -> 0 | DT71: =FixedAssets!DT134 -> 0 | DU71: =FixedAssets!DU134 -> 0 | DV71: =FixedAssets!DV134 -> 0 | DW71: =FixedAssets!DW134 -> 0 | DX71: =FixedAssets!DX134 -> 0 | DY71: =FixedAssets!DY134 -> 0 | DZ71: =FixedAssets!DZ134 -> 0 | EA71: =FixedAssets!EA134 -> 0 | EB71: =FixedAssets!EB134 -> 0 | EC71: =FixedAssets!EC134 -> 0 | ED71: =FixedAssets!ED134 -> 0 | EE71: =FixedAssets!EE134 -> 0 | EF71: =FixedAssets!EF134 -> 0 | EG71: =FixedAssets!EG134 -> 0 | EH71: =FixedAssets!EH134 -> 0 | EI71: =FixedAssets!EI134 -> 0 | EJ71: =FixedAssets!EJ134 -> 0 | EK71: =FixedAssets!EK134 -> 0 | EL71: =FixedAssets!EL134 -> 0 | EM71: =FixedAssets!EM134 -> 0 | EN71: =FixedAssets!EN134 -> 0 | EO71: =FixedAssets!EO134 -> 0 | EP71: =FixedAssets!EP134 -> 0 | EQ71: =FixedAssets!EQ134 -> 0 | ER71: =FixedAssets!ER134 -> 0 | ES71: =FixedAssets!ES134 -> 0 | ET71: =FixedAssets!ET134 -> 0 | EU71: =FixedAssets!EU134 -> 0 | EV71: =FixedAssets!EV134 -> 0 | EW71: =FixedAssets!EW134 -> 0 | EX71: =FixedAssets!EX134 -> 0 | EY71: =FixedAssets!EY134 -> 0 | EZ71: =FixedAssets!EZ134 -> 0 | FA71: =FixedAssets!FA134 -> 0 | FB71: =FixedAssets!FB134 -> 0 | FC71: =FixedAssets!FC134 -> 0 | FD71: =FixedAssets!FD134 -> 0 | FE71: =FixedAssets!FE134 -> 0 | FF71: =FixedAssets!FF134 -> 0
B72: (-) Прочие расходы: налоги, кроме налога на прибыль | H72: тыс. руб. | L72: -64588.13432 | M72: =-Tax!M128 -> 0 | N72: =-Tax!N128 -> 0 | O72: =-Tax!O128 -> 0 | P72: =-Tax!P128 -> 0 | Q72: =-Tax!Q128 -> 0 | R72: =-Tax!R128 -> 0 | S72: =-Tax!S128 -> 0 | T72: =-Tax!T128 -> 0 | U72: =-Tax!U128 -> 0 | V72: =-Tax!V128 -> 0 | W72: =-Tax!W128 -> 0 | X72: =-Tax!X128 -> 0 | Y72: =-Tax!Y128 -> 0 | Z72: =-Tax!Z128 -> -3696.229191 | AA72: =-Tax!AA128 -> -3662.822123 | AB72: =-Tax!AB128 -> -3629.415056 | AC72: =-Tax!AC128 -> -3596.007988 | AD72: =-Tax!AD128 -> -3562.60092 | AE72: =-Tax!AE128 -> -3529.193853 | AF72: =-Tax!AF128 -> -3495.786785 | AG72: =-Tax!AG128 -> -3462.379718 | AH72: =-Tax!AH128 -> -3428.97265 | AI72: =-Tax!AI128 -> -3395.565582 | AJ72: =-Tax!AJ128 -> -3362.158515 | AK72: =-Tax!AK128 -> -3328.751447 | AL72: =-Tax!AL128 -> -3297.929675 | AM72: =-Tax!AM128 -> -3267.107902 | AN72: =-Tax!AN128 -> -3236.286129 | AO72: =-Tax!AO128 -> -3205.464357 | AP72: =-Tax!AP128 -> -3174.642584 | AQ72: =-Tax!AQ128 -> -3143.820811 | AR72: =-Tax!AR128 -> -3112.999039 | AS72: =-Tax!AS128 -> 0 | AT72: =-Tax!AT128 -> 0 | AU72: =-Tax!AU128 -> 0 | AV72: =-Tax!AV128 -> 0 | AW72: =-Tax!AW128 -> 0 | AX72: =-Tax!AX128 -> 0 | AY72: =-Tax!AY128 -> 0 | AZ72: =-Tax!AZ128 -> 0 | BA72: =-Tax!BA128 -> 0 | BB72: =-Tax!BB128 -> 0 | BC72: =-Tax!BC128 -> 0 | BD72: =-Tax!BD128 -> 0 | BE72: =-Tax!BE128 -> 0 | BF72: =-Tax!BF128 -> 0 | BG72: =-Tax!BG128 -> 0 | BH72: =-Tax!BH128 -> 0 | BI72: =-Tax!BI128 -> 0 | BJ72: =-Tax!BJ128 -> 0 | BK72: =-Tax!BK128 -> 0 | BL72: =-Tax!BL128 -> 0 | BM72: =-Tax!BM128 -> 0 | BN72: =-Tax!BN128 -> 0 | BO72: =-Tax!BO128 -> 0 | BP72: =-Tax!BP128 -> 0 | BQ72: =-Tax!BQ128 -> 0 | BR72: =-Tax!BR128 -> 0 | BS72: =-Tax!BS128 -> 0 | BT72: =-Tax!BT128 -> 0 | BU72: =-Tax!BU128 -> 0 | BV72: =-Tax!BV128 -> 0 | BW72: =-Tax!BW128 -> 0 | BX72: =-Tax!BX128 -> 0 | BY72: =-Tax!BY128 -> 0 | BZ72: =-Tax!BZ128 -> 0 | CA72: =-Tax!CA128 -> 0 | CB72: =-Tax!CB128 -> 0 | CC72: =-Tax!CC128 -> 0 | CD72: =-Tax!CD128 -> 0 | CE72: =-Tax!CE128 -> 0 | CF72: =-Tax!CF128 -> 0 | CG72: =-Tax!CG128 -> 0 | CH72: =-Tax!CH128 -> 0 | CI72: =-Tax!CI128 -> 0 | CJ72: =-Tax!CJ128 -> 0 | CK72: =-Tax!CK128 -> 0 | CL72: =-Tax!CL128 -> 0 | CM72: =-Tax!CM128 -> 0 | CN72: =-Tax!CN128 -> 0 | CO72: =-Tax!CO128 -> 0 | CP72: =-Tax!CP128 -> 0 | CQ72: =-Tax!CQ128 -> 0 | CR72: =-Tax!CR128 -> 0 | CS72: =-Tax!CS128 -> 0 | CT72: =-Tax!CT128 -> 0 | CU72: =-Tax!CU128 -> 0 | CV72: =-Tax!CV128 -> 0 | CW72: =-Tax!CW128 -> 0 | CX72: =-Tax!CX128 -> 0 | CY72: =-Tax!CY128 -> 0 | CZ72: =-Tax!CZ128 -> 0 | DA72: =-Tax!DA128 -> 0 | DB72: =-Tax!DB128 -> 0 | DC72: =-Tax!DC128 -> 0 | DD72: =-Tax!DD128 -> 0 | DE72: =-Tax!DE128 -> 0 | DF72: =-Tax!DF128 -> 0 | DG72: =-Tax!DG128 -> 0 | DH72: =-Tax!DH128 -> 0 | DI72: =-Tax!DI128 -> 0 | DJ72: =-Tax!DJ128 -> 0 | DK72: =-Tax!DK128 -> 0 | DL72: =-Tax!DL128 -> 0 | DM72: =-Tax!DM128 -> 0 | DN72: =-Tax!DN128 -> 0 | DO72: =-Tax!DO128 -> 0 | DP72: =-Tax!DP128 -> 0 | DQ72: =-Tax!DQ128 -> 0 | DR72: =-Tax!DR128 -> 0 | DS72: =-Tax!DS128 -> 0 | DT72: =-Tax!DT128 -> 0 | DU72: =-Tax!DU128 -> 0 | DV72: =-Tax!DV128 -> 0 | DW72: =-Tax!DW128 -> 0 | DX72: =-Tax!DX128 -> 0 | DY72: =-Tax!DY128 -> 0 | DZ72: =-Tax!DZ128 -> 0 | EA72: =-Tax!EA128 -> 0 | EB72: =-Tax!EB128 -> 0 | EC72: =-Tax!EC128 -> 0 | ED72: =-Tax!ED128 -> 0 | EE72: =-Tax!EE128 -> 0 | EF72: =-Tax!EF128 -> 0 | EG72: =-Tax!EG128 -> 0 | EH72: =-Tax!EH128 -> 0 | EI72: =-Tax!EI128 -> 0 | EJ72: =-Tax!EJ128 -> 0 | EK72: =-Tax!EK128 -> 0 | EL72: =-Tax!EL128 -> 0 | EM72: =-Tax!EM128 -> 0 | EN72: =-Tax!EN128 -> 0 | EO72: =-Tax!EO128 -> 0 | EP72: =-Tax!EP128 -> 0 | EQ72: =-Tax!EQ128 -> 0 | ER72: =-Tax!ER128 -> 0 | ES72: =-Tax!ES128 -> 0 | ET72: =-Tax!ET128 -> 0 | EU72: =-Tax!EU128 -> 0 | EV72: =-Tax!EV128 -> 0 | EW72: =-Tax!EW128 -> 0 | EX72: =-Tax!EX128 -> 0 | EY72: =-Tax!EY128 -> 0 | EZ72: =-Tax!EZ128 -> 0 | FA72: =-Tax!FA128 -> 0 | FB72: =-Tax!FB128 -> 0 | FC72: =-Tax!FC128 -> 0 | FD72: =-Tax!FD128 -> 0 | FE72: =-Tax!FE128 -> 0 | FF72: =-Tax!FF128 -> 0
B73: Прибыль (убыток) до налогообложения | H73: тыс. руб. | L73: 94664.84982 | M73: =SUM(M65:M72) -> -5200.052985 | N73: -303.5392159 | O73: -424.2583719 | P73: -544.9775279 | Q73: -1606.40951 | R73: -2673.480896 | S73: -5790.426238 | T73: -7627.81299 | U73: -8823.139544 | V73: -11176.98254 | W73: -15241.73172 | X73: -18467.07969 | Y73: 2303.489471 | Z73: 2980.073781 | AA73: 1657.068815 | AB73: 2545.989609 | AC73: 825.3436931 | AD73: 1462.960041 | AE73: 2204.627497 | AF73: 3044.657397 | AG73: 1240.56291 | AH73: 1983.088774 | AI73: 2798.927128 | AJ73: 3692.782919 | AK73: 1708.19149 | AL73: 2570.139245 | AM73: 3471.600855 | AN73: 4567.449657 | AO73: 2541.246682 | AP73: 3396.342294 | AQ73: -4074.940153 | AR73: 131625.1389 | AS73: =SUM(AS65:AS72) -> 0 | AT73: 0 | AU73: 0 | AV73: 0 | AW73: 0 | AX73: 0 | AY73: 0 | AZ73: 0 | BA73: 0 | BB73: 0 | BC73: 0 | BD73: 0 | BE73: 0 | BF73: 0 | BG73: 0 | BH73: 0 | BI73: 0 | BJ73: 0 | BK73: 0 | BL73: 0 | BM73: 0 | BN73: 0 | BO73: 0 | BP73: 0 | BQ73: 0 | BR73: 0 | BS73: 0 | BT73: 0 | BU73: 0 | BV73: 0 | BW73: 0 | BX73: 0 | BY73: =SUM(BY65:BY72) -> 0 | BZ73: 0 | CA73: 0 | CB73: 0 | CC73: 0 | CD73: 0 | CE73: 0 | CF73: 0 | CG73: 0 | CH73: 0 | CI73: 0 | CJ73: 0 | CK73: 0 | CL73: 0 | CM73: 0 | CN73: 0 | CO73: 0 | CP73: 0 | CQ73: 0 | CR73: 0 | CS73: 0 | CT73: 0 | CU73: 0 | CV73: 0 | CW73: 0 | CX73: 0 | CY73: 0 | CZ73: 0 | DA73: 0 | DB73: 0 | DC73: 0 | DD73: 0 | DE73: =SUM(DE65:DE72) -> 0 | DF73: 0 | DG73: 0 | DH73: 0 | DI73: 0 | DJ73: 0 | DK73: 0 | DL73: 0 | DM73: 0 | DN73: 0 | DO73: 0 | DP73: 0 | DQ73: 0 | DR73: 0 | DS73: 0 | DT73: 0 | DU73: 0 | DV73: 0 | DW73: 0 | DX73: 0 | DY73: 0 | DZ73: 0 | EA73: 0 | EB73: 0 | EC73: 0 | ED73: 0 | EE73: 0 | EF73: 0 | EG73: 0 | EH73: 0 | EI73: 0 | EJ73: 0 | EK73: =SUM(EK65:EK72) -> 0 | EL73: 0 | EM73: 0 | EN73: 0 | EO73: 0 | EP73: 0 | EQ73: 0 | ER73: 0 | ES73: 0 | ET73: 0 | EU73: 0 | EV73: 0 | EW73: 0 | EX73: 0 | EY73: 0 | EZ73: 0 | FA73: 0 | FB73: 0 | FC73: 0 | FD73: 0 | FE73: 0 | FF73: 0
B74: (-) Налог на прибыль | H74: тыс. руб. | L74: -83156.70576 | M74: =-Tax!M113 -> 0 | N74: =-Tax!N113 -> 0 | O74: =-Tax!O113 -> 0 | P74: =-Tax!P113 -> 0 | Q74: =-Tax!Q113 -> 0 | R74: =-Tax!R113 -> 0 | S74: =-Tax!S113 -> 0 | T74: =-Tax!T113 -> 0 | U74: =-Tax!U113 -> 0 | V74: =-Tax!V113 -> 0 | W74: =-Tax!W113 -> 0 | X74: =-Tax!X113 -> 0 | Y74: =-Tax!Y113 -> 0 | Z74: =-Tax!Z113 -> 0 | AA74: =-Tax!AA113 -> 0 | AB74: =-Tax!AB113 -> 0 | AC74: =-Tax!AC113 -> 0 | AD74: =-Tax!AD113 -> 0 | AE74: =-Tax!AE113 -> 0 | AF74: =-Tax!AF113 -> 0 | AG74: =-Tax!AG113 -> 0 | AH74: =-Tax!AH113 -> 0 | AI74: =-Tax!AI113 -> 0 | AJ74: =-Tax!AJ113 -> 0 | AK74: =-Tax!AK113 -> 0 | AL74: =-Tax!AL113 -> 0 | AM74: =-Tax!AM113 -> 0 | AN74: =-Tax!AN113 -> 0 | AO74: =-Tax!AO113 -> 0 | AP74: =-Tax!AP113 -> 0 | AQ74: =-Tax!AQ113 -> 0 | AR74: =-Tax!AR113 -> -83156.70576 | AS74: =-Tax!AS113 -> -3.591731624e-13 | AT74: =-Tax!AT113 -> -3.631201203e-13 | AU74: =-Tax!AU113 -> -3.631201203e-13 | AV74: =-Tax!AV113 -> -3.58191815e-13 | AW74: =-Tax!AW113 -> -3.58191815e-13 | AX74: =-Tax!AX113 -> -3.621279888e-13 | AY74: =-Tax!AY113 -> -3.621279888e-13 | AZ74: =-Tax!AZ113 -> -3.552262046e-13 | BA74: =-Tax!BA113 -> -3.591731624e-13 | BB74: =-Tax!BB113 -> -3.631201203e-13 | BC74: =-Tax!BC113 -> -3.631201203e-13 | BD74: =-Tax!BD113 -> -3.552262046e-13 | BE74: =-Tax!BE113 -> -3.591731624e-13 | BF74: =-Tax!BF113 -> -3.631201203e-13 | BG74: =-Tax!BG113 -> -3.631201203e-13 | BH74: =-Tax!BH113 -> -3.552262046e-13 | BI74: =-Tax!BI113 -> -3.591731624e-13 | BJ74: =-Tax!BJ113 -> -3.631201203e-13 | BK74: =-Tax!BK113 -> -3.631201203e-13 | BL74: =-Tax!BL113 -> -3.58191815e-13 | BM74: =-Tax!BM113 -> -3.58191815e-13 | BN74: =-Tax!BN113 -> -3.621279888e-13 | BO74: =-Tax!BO113 -> -3.621279888e-13 | BP74: =-Tax!BP113 -> -3.552262046e-13 | BQ74: =-Tax!BQ113 -> -3.591731624e-13 | BR74: =-Tax!BR113 -> -3.631201203e-13 | BS74: =-Tax!BS113 -> -3.631201203e-13 | BT74: =-Tax!BT113 -> -3.552262046e-13 | BU74: =-Tax!BU113 -> -3.591731624e-13 | BV74: =-Tax!BV113 -> -3.631201203e-13 | BW74: =-Tax!BW113 -> -3.631201203e-13 | BX74: =-Tax!BX113 -> -3.552262046e-13 | BY74: =-Tax!BY113 -> -3.591731624e-13 | BZ74: =-Tax!BZ113 -> -3.631201203e-13 | CA74: =-Tax!CA113 -> -3.631201203e-13 | CB74: =-Tax!CB113 -> -3.58191815e-13 | CC74: =-Tax!CC113 -> -3.58191815e-13 | CD74: =-Tax!CD113 -> -3.621279888e-13 | CE74: =-Tax!CE113 -> -3.621279888e-13 | CF74: =-Tax!CF113 -> -3.552262046e-13 | CG74: =-Tax!CG113 -> -3.591731624e-13 | CH74: =-Tax!CH113 -> -3.631201203e-13 | CI74: =-Tax!CI113 -> -3.631201203e-13 | CJ74: =-Tax!CJ113 -> -3.552262046e-13 | CK74: =-Tax!CK113 -> -3.591731624e-13 | CL74: =-Tax!CL113 -> -3.631201203e-13 | CM74: =-Tax!CM113 -> -3.631201203e-13 | CN74: =-Tax!CN113 -> -3.552262046e-13 | CO74: =-Tax!CO113 -> -3.591731624e-13 | CP74: =-Tax!CP113 -> -3.631201203e-13 | CQ74: =-Tax!CQ113 -> -3.631201203e-13 | CR74: =-Tax!CR113 -> -3.58191815e-13 | CS74: =-Tax!CS113 -> -3.58191815e-13 | CT74: =-Tax!CT113 -> -3.621279888e-13 | CU74: =-Tax!CU113 -> -3.621279888e-13 | CV74: =-Tax!CV113 -> -3.552262046e-13 | CW74: =-Tax!CW113 -> -3.591731624e-13 | CX74: =-Tax!CX113 -> -3.631201203e-13 | CY74: =-Tax!CY113 -> -3.631201203e-13 | CZ74: =-Tax!CZ113 -> -3.552262046e-13 | DA74: =-Tax!DA113 -> -3.591731624e-13 | DB74: =-Tax!DB113 -> -3.631201203e-13 | DC74: =-Tax!DC113 -> -3.631201203e-13 | DD74: =-Tax!DD113 -> -3.552262046e-13 | DE74: =-Tax!DE113 -> -3.591731624e-13 | DF74: =-Tax!DF113 -> -3.631201203e-13 | DG74: =-Tax!DG113 -> -3.631201203e-13 | DH74: =-Tax!DH113 -> -3.58191815e-13 | DI74: =-Tax!DI113 -> -3.58191815e-13 | DJ74: =-Tax!DJ113 -> -3.621279888e-13 | DK74: =-Tax!DK113 -> -3.621279888e-13 | DL74: =-Tax!DL113 -> -3.552262046e-13 | DM74: =-Tax!DM113 -> -3.591731624e-13 | DN74: =-Tax!DN113 -> -3.631201203e-13 | DO74: =-Tax!DO113 -> -3.631201203e-13 | DP74: =-Tax!DP113 -> -3.552262046e-13 | DQ74: =-Tax!DQ113 -> -3.591731624e-13 | DR74: =-Tax!DR113 -> -3.631201203e-13 | DS74: =-Tax!DS113 -> -3.631201203e-13 | DT74: =-Tax!DT113 -> -3.552262046e-13 | DU74: =-Tax!DU113 -> -3.591731624e-13 | DV74: =-Tax!DV113 -> -3.631201203e-13 | DW74: =-Tax!DW113 -> -3.631201203e-13 | DX74: =-Tax!DX113 -> -3.58191815e-13 | DY74: =-Tax!DY113 -> -3.58191815e-13 | DZ74: =-Tax!DZ113 -> -3.621279888e-13 | EA74: =-Tax!EA113 -> -3.621279888e-13 | EB74: =-Tax!EB113 -> -3.552262046e-13 | EC74: =-Tax!EC113 -> -3.591731624e-13 | ED74: =-Tax!ED113 -> -3.631201203e-13 | EE74: =-Tax!EE113 -> -3.631201203e-13 | EF74: =-Tax!EF113 -> -3.552262046e-13 | EG74: =-Tax!EG113 -> -3.591731624e-13 | EH74: =-Tax!EH113 -> -3.631201203e-13 | EI74: =-Tax!EI113 -> -3.631201203e-13 | EJ74: =-Tax!EJ113 -> -3.552262046e-13 | EK74: =-Tax!EK113 -> -3.591731624e-13 | EL74: =-Tax!EL113 -> -3.631201203e-13 | EM74: =-Tax!EM113 -> -3.631201203e-13 | EN74: =-Tax!EN113 -> -3.58191815e-13 | EO74: =-Tax!EO113 -> -3.58191815e-13 | EP74: =-Tax!EP113 -> -3.621279888e-13 | EQ74: =-Tax!EQ113 -> -3.621279888e-13 | ER74: =-Tax!ER113 -> -3.552262046e-13 | ES74: =-Tax!ES113 -> -3.591731624e-13 | ET74: =-Tax!ET113 -> -3.631201203e-13 | EU74: =-Tax!EU113 -> -3.631201203e-13 | EV74: =-Tax!EV113 -> -3.552262046e-13 | EW74: =-Tax!EW113 -> -3.591731624e-13 | EX74: =-Tax!EX113 -> -3.631201203e-13 | EY74: =-Tax!EY113 -> -3.631201203e-13 | EZ74: =-Tax!EZ113 -> -3.552262046e-13 | FA74: =-Tax!FA113 -> -3.591731624e-13 | FB74: =-Tax!FB113 -> -3.631201203e-13 | FC74: =-Tax!FC113 -> -3.631201203e-13 | FD74: =-Tax!FD113 -> -3.58191815e-13 | FE74: =-Tax!FE113 -> -3.58191815e-13 | FF74: =-Tax!FF113 -> -3.621279888e-13
B75: Чистая прибыль | H75: тыс. руб. | L75: 11508.14406 | M75: =SUM(M73:M74) -> -5200.052985 | N75: =SUM(N73:N74) -> -303.5392159 | O75: -424.2583719 | P75: -544.9775279 | Q75: -1606.40951 | R75: -2673.480896 | S75: -5790.426238 | T75: -7627.81299 | U75: -8823.139544 | V75: -11176.98254 | W75: -15241.73172 | X75: -18467.07969 | Y75: 2303.489471 | Z75: 2980.073781 | AA75: 1657.068815 | AB75: 2545.989609 | AC75: 825.3436931 | AD75: 1462.960041 | AE75: 2204.627497 | AF75: 3044.657397 | AG75: 1240.56291 | AH75: 1983.088774 | AI75: 2798.927128 | AJ75: 3692.782919 | AK75: 1708.19149 | AL75: 2570.139245 | AM75: 3471.600855 | AN75: 4567.449657 | AO75: 2541.246682 | AP75: 3396.342294 | AQ75: -4074.940153 | AR75: 48468.43317 | AS75: -3.591731624e-13 | AT75: -3.631201203e-13 | AU75: -3.631201203e-13 | AV75: -3.58191815e-13 | AW75: -3.58191815e-13 | AX75: -3.621279888e-13 | AY75: -3.621279888e-13 | AZ75: -3.552262046e-13 | BA75: -3.591731624e-13 | BB75: -3.631201203e-13 | BC75: -3.631201203e-13 | BD75: -3.552262046e-13 | BE75: -3.591731624e-13 | BF75: -3.631201203e-13 | BG75: -3.631201203e-13 | BH75: -3.552262046e-13 | BI75: -3.591731624e-13 | BJ75: -3.631201203e-13 | BK75: -3.631201203e-13 | BL75: -3.58191815e-13 | BM75: -3.58191815e-13 | BN75: -3.621279888e-13 | BO75: -3.621279888e-13 | BP75: -3.552262046e-13 | BQ75: -3.591731624e-13 | BR75: -3.631201203e-13 | BS75: -3.631201203e-13 | BT75: -3.552262046e-13 | BU75: -3.591731624e-13 | BV75: -3.631201203e-13 | BW75: -3.631201203e-13 | BX75: -3.552262046e-13 | BY75: -3.591731624e-13 | BZ75: =SUM(BZ73:BZ74) -> -3.631201203e-13 | CA75: -3.631201203e-13 | CB75: -3.58191815e-13 | CC75: -3.58191815e-13 | CD75: -3.621279888e-13 | CE75: -3.621279888e-13 | CF75: -3.552262046e-13 | CG75: -3.591731624e-13 | CH75: -3.631201203e-13 | CI75: -3.631201203e-13 | CJ75: -3.552262046e-13 | CK75: -3.591731624e-13 | CL75: -3.631201203e-13 | CM75: -3.631201203e-13 | CN75: -3.552262046e-13 | CO75: -3.591731624e-13 | CP75: -3.631201203e-13 | CQ75: -3.631201203e-13 | CR75: -3.58191815e-13 | CS75: -3.58191815e-13 | CT75: -3.621279888e-13 | CU75: -3.621279888e-13 | CV75: -3.552262046e-13 | CW75: -3.591731624e-13 | CX75: -3.631201203e-13 | CY75: -3.631201203e-13 | CZ75: -3.552262046e-13 | DA75: -3.591731624e-13 | DB75: -3.631201203e-13 | DC75: -3.631201203e-13 | DD75: -3.552262046e-13 | DE75: -3.591731624e-13 | DF75: -3.631201203e-13 | DG75: -3.631201203e-13 | DH75: -3.58191815e-13 | DI75: -3.58191815e-13 | DJ75: -3.621279888e-13 | DK75: -3.621279888e-13 | DL75: -3.552262046e-13 | DM75: -3.591731624e-13 | DN75: -3.631201203e-13 | DO75: -3.631201203e-13 | DP75: -3.552262046e-13 | DQ75: -3.591731624e-13 | DR75: -3.631201203e-13 | DS75: -3.631201203e-13 | DT75: -3.552262046e-13 | DU75: -3.591731624e-13 | DV75: -3.631201203e-13 | DW75: -3.631201203e-13 | DX75: -3.58191815e-13 | DY75: -3.58191815e-13 | DZ75: -3.621279888e-13 | EA75: -3.621279888e-13 | EB75: -3.552262046e-13 | EC75: -3.591731624e-13 | ED75: -3.631201203e-13 | EE75: -3.631201203e-13 | EF75: -3.552262046e-13 | EG75: -3.591731624e-13 | EH75: -3.631201203e-13 | EI75: -3.631201203e-13 | EJ75: -3.552262046e-13 | EK75: -3.591731624e-13 | EL75: =SUM(EL73:EL74) -> -3.631201203e-13 | EM75: -3.631201203e-13 | EN75: -3.58191815e-13 | EO75: -3.58191815e-13 | EP75: -3.621279888e-13 | EQ75: -3.621279888e-13 | ER75: -3.552262046e-13 | ES75: -3.591731624e-13 | ET75: -3.631201203e-13 | EU75: -3.631201203e-13 | EV75: -3.552262046e-13 | EW75: -3.591731624e-13 | EX75: -3.631201203e-13 | EY75: -3.631201203e-13 | EZ75: -3.552262046e-13 | FA75: -3.591731624e-13 | FB75: -3.631201203e-13 | FC75: -3.631201203e-13 | FD75: -3.58191815e-13 | FE75: -3.58191815e-13 | FF75: -3.621279888e-13
B76: (-) Дивиденды | H76: тыс. руб. | L76: 0 | M76: =CashFlow!M67 -> 0 | N76: =CashFlow!N67 -> 0 | O76: =CashFlow!O67 -> 0 | P76: =CashFlow!P67 -> 0 | Q76: =CashFlow!Q67 -> 0 | R76: =CashFlow!R67 -> 0 | S76: =CashFlow!S67 -> 0 | T76: =CashFlow!T67 -> 0 | U76: =CashFlow!U67 -> 0 | V76: =CashFlow!V67 -> 0 | W76: =CashFlow!W67 -> 0 | X76: =CashFlow!X67 -> 0 | Y76: =CashFlow!Y67 -> 0 | Z76: =CashFlow!Z67 -> 0 | AA76: =CashFlow!AA67 -> 0 | AB76: =CashFlow!AB67 -> 0 | AC76: =CashFlow!AC67 -> 0 | AD76: =CashFlow!AD67 -> 0 | AE76: =CashFlow!AE67 -> 0 | AF76: =CashFlow!AF67 -> 0 | AG76: =CashFlow!AG67 -> 0 | AH76: =CashFlow!AH67 -> 0 | AI76: =CashFlow!AI67 -> 0 | AJ76: =CashFlow!AJ67 -> 0 | AK76: =CashFlow!AK67 -> 0 | AL76: =CashFlow!AL67 -> 0 | AM76: =CashFlow!AM67 -> 0 | AN76: =CashFlow!AN67 -> 0 | AO76: =CashFlow!AO67 -> 0 | AP76: =CashFlow!AP67 -> 0 | AQ76: =CashFlow!AQ67 -> 0 | AR76: =CashFlow!AR67 -> 0 | AS76: =CashFlow!AS67 -> 0 | AT76: =CashFlow!AT67 -> 0 | AU76: =CashFlow!AU67 -> 0 | AV76: =CashFlow!AV67 -> 0 | AW76: =CashFlow!AW67 -> 0 | AX76: =CashFlow!AX67 -> 0 | AY76: =CashFlow!AY67 -> 0 | AZ76: =CashFlow!AZ67 -> 0 | BA76: =CashFlow!BA67 -> 0 | BB76: =CashFlow!BB67 -> 0 | BC76: =CashFlow!BC67 -> 0 | BD76: =CashFlow!BD67 -> 0 | BE76: =CashFlow!BE67 -> 0 | BF76: =CashFlow!BF67 -> 0 | BG76: =CashFlow!BG67 -> 0 | BH76: =CashFlow!BH67 -> 0 | BI76: =CashFlow!BI67 -> 0 | BJ76: =CashFlow!BJ67 -> 0 | BK76: =CashFlow!BK67 -> 0 | BL76: =CashFlow!BL67 -> 0 | BM76: =CashFlow!BM67 -> 0 | BN76: =CashFlow!BN67 -> 0 | BO76: =CashFlow!BO67 -> 0 | BP76: =CashFlow!BP67 -> 0 | BQ76: =CashFlow!BQ67 -> 0 | BR76: =CashFlow!BR67 -> 0 | BS76: =CashFlow!BS67 -> 0 | BT76: =CashFlow!BT67 -> 0 | BU76: =CashFlow!BU67 -> 0 | BV76: =CashFlow!BV67 -> 0 | BW76: =CashFlow!BW67 -> 0 | BX76: =CashFlow!BX67 -> 0 | BY76: =CashFlow!BY67 -> 0 | BZ76: =CashFlow!BZ67 -> 0 | CA76: =CashFlow!CA67 -> 0 | CB76: =CashFlow!CB67 -> 0 | CC76: =CashFlow!CC67 -> 0 | CD76: =CashFlow!CD67 -> 0 | CE76: =CashFlow!CE67 -> 0 | CF76: =CashFlow!CF67 -> 0 | CG76: =CashFlow!CG67 -> 0 | CH76: =CashFlow!CH67 -> 0 | CI76: =CashFlow!CI67 -> 0 | CJ76: =CashFlow!CJ67 -> 0 | CK76: =CashFlow!CK67 -> 0 | CL76: =CashFlow!CL67 -> 0 | CM76: =CashFlow!CM67 -> 0 | CN76: =CashFlow!CN67 -> 0 | CO76: =CashFlow!CO67 -> 0 | CP76: =CashFlow!CP67 -> 0 | CQ76: =CashFlow!CQ67 -> 0 | CR76: =CashFlow!CR67 -> 0 | CS76: =CashFlow!CS67 -> 0 | CT76: =CashFlow!CT67 -> 0 | CU76: =CashFlow!CU67 -> 0 | CV76: =CashFlow!CV67 -> 0 | CW76: =CashFlow!CW67 -> 0 | CX76: =CashFlow!CX67 -> 0 | CY76: =CashFlow!CY67 -> 0 | CZ76: =CashFlow!CZ67 -> 0 | DA76: =CashFlow!DA67 -> 0 | DB76: =CashFlow!DB67 -> 0 | DC76: =CashFlow!DC67 -> 0 | DD76: =CashFlow!DD67 -> 0 | DE76: =CashFlow!DE67 -> 0 | DF76: =CashFlow!DF67 -> 0 | DG76: =CashFlow!DG67 -> 0 | DH76: =CashFlow!DH67 -> 0 | DI76: =CashFlow!DI67 -> 0 | DJ76: =CashFlow!DJ67 -> 0 | DK76: =CashFlow!DK67 -> 0 | DL76: =CashFlow!DL67 -> 0 | DM76: =CashFlow!DM67 -> 0 | DN76: =CashFlow!DN67 -> 0 | DO76: =CashFlow!DO67 -> 0 | DP76: =CashFlow!DP67 -> 0 | DQ76: =CashFlow!DQ67 -> 0 | DR76: =CashFlow!DR67 -> 0 | DS76: =CashFlow!DS67 -> 0 | DT76: =CashFlow!DT67 -> 0 | DU76: =CashFlow!DU67 -> 0 | DV76: =CashFlow!DV67 -> 0 | DW76: =CashFlow!DW67 -> 0 | DX76: =CashFlow!DX67 -> 0 | DY76: =CashFlow!DY67 -> 0 | DZ76: =CashFlow!DZ67 -> 0 | EA76: =CashFlow!EA67 -> 0 | EB76: =CashFlow!EB67 -> 0 | EC76: =CashFlow!EC67 -> 0 | ED76: =CashFlow!ED67 -> 0 | EE76: =CashFlow!EE67 -> 0 | EF76: =CashFlow!EF67 -> 0 | EG76: =CashFlow!EG67 -> 0 | EH76: =CashFlow!EH67 -> 0 | EI76: =CashFlow!EI67 -> 0 | EJ76: =CashFlow!EJ67 -> 0 | EK76: =CashFlow!EK67 -> 0 | EL76: =CashFlow!EL67 -> 0 | EM76: =CashFlow!EM67 -> 0 | EN76: =CashFlow!EN67 -> 0 | EO76: =CashFlow!EO67 -> 0 | EP76: =CashFlow!EP67 -> 0 | EQ76: =CashFlow!EQ67 -> 0 | ER76: =CashFlow!ER67 -> 0 | ES76: =CashFlow!ES67 -> 0 | ET76: =CashFlow!ET67 -> 0 | EU76: =CashFlow!EU67 -> 0 | EV76: =CashFlow!EV67 -> 0 | EW76: =CashFlow!EW67 -> 0 | EX76: =CashFlow!EX67 -> 0 | EY76: =CashFlow!EY67 -> 0 | EZ76: =CashFlow!EZ67 -> 0 | FA76: =CashFlow!FA67 -> 0 | FB76: =CashFlow!FB67 -> 0 | FC76: =CashFlow!FC67 -> 0 | FD76: =CashFlow!FD67 -> 0 | FE76: =CashFlow!FE67 -> 0 | FF76: =CashFlow!FF67 -> 0
B77: Нераспределенная прибыль | H77: тыс. руб. | L77: 11508.14406 | M77: =SUM(M75:M76) -> -5200.052985 | N77: =SUM(N75:N76) -> -303.5392159 | O77: -424.2583719 | P77: -544.9775279 | Q77: -1606.40951 | R77: -2673.480896 | S77: -5790.426238 | T77: -7627.81299 | U77: -8823.139544 | V77: -11176.98254 | W77: -15241.73172 | X77: -18467.07969 | Y77: 2303.489471 | Z77: 2980.073781 | AA77: 1657.068815 | AB77: 2545.989609 | AC77: 825.3436931 | AD77: 1462.960041 | AE77: 2204.627497 | AF77: 3044.657397 | AG77: 1240.56291 | AH77: 1983.088774 | AI77: 2798.927128 | AJ77: 3692.782919 | AK77: 1708.19149 | AL77: 2570.139245 | AM77: 3471.600855 | AN77: 4567.449657 | AO77: 2541.246682 | AP77: 3396.342294 | AQ77: -4074.940153 | AR77: 48468.43317 | AS77: -3.591731624e-13 | AT77: -3.631201203e-13 | AU77: -3.631201203e-13 | AV77: -3.58191815e-13 | AW77: -3.58191815e-13 | AX77: -3.621279888e-13 | AY77: -3.621279888e-13 | AZ77: -3.552262046e-13 | BA77: -3.591731624e-13 | BB77: -3.631201203e-13 | BC77: -3.631201203e-13 | BD77: -3.552262046e-13 | BE77: -3.591731624e-13 | BF77: -3.631201203e-13 | BG77: -3.631201203e-13 | BH77: -3.552262046e-13 | BI77: -3.591731624e-13 | BJ77: -3.631201203e-13 | BK77: -3.631201203e-13 | BL77: -3.58191815e-13 | BM77: -3.58191815e-13 | BN77: -3.621279888e-13 | BO77: -3.621279888e-13 | BP77: -3.552262046e-13 | BQ77: -3.591731624e-13 | BR77: -3.631201203e-13 | BS77: -3.631201203e-13 | BT77: -3.552262046e-13 | BU77: -3.591731624e-13 | BV77: -3.631201203e-13 | BW77: -3.631201203e-13 | BX77: -3.552262046e-13 | BY77: -3.591731624e-13 | BZ77: =SUM(BZ75:BZ76) -> -3.631201203e-13 | CA77: -3.631201203e-13 | CB77: -3.58191815e-13 | CC77: -3.58191815e-13 | CD77: -3.621279888e-13 | CE77: -3.621279888e-13 | CF77: -3.552262046e-13 | CG77: -3.591731624e-13 | CH77: -3.631201203e-13 | CI77: -3.631201203e-13 | CJ77: -3.552262046e-13 | CK77: -3.591731624e-13 | CL77: -3.631201203e-13 | CM77: -3.631201203e-13 | CN77: -3.552262046e-13 | CO77: -3.591731624e-13 | CP77: -3.631201203e-13 | CQ77: -3.631201203e-13 | CR77: -3.58191815e-13 | CS77: -3.58191815e-13 | CT77: -3.621279888e-13 | CU77: -3.621279888e-13 | CV77: -3.552262046e-13 | CW77: -3.591731624e-13 | CX77: -3.631201203e-13 | CY77: -3.631201203e-13 | CZ77: -3.552262046e-13 | DA77: -3.591731624e-13 | DB77: -3.631201203e-13 | DC77: -3.631201203e-13 | DD77: -3.552262046e-13 | DE77: -3.591731624e-13 | DF77: -3.631201203e-13 | DG77: -3.631201203e-13 | DH77: -3.58191815e-13 | DI77: -3.58191815e-13 | DJ77: -3.621279888e-13 | DK77: -3.621279888e-13 | DL77: -3.552262046e-13 | DM77: -3.591731624e-13 | DN77: -3.631201203e-13 | DO77: -3.631201203e-13 | DP77: -3.552262046e-13 | DQ77: -3.591731624e-13 | DR77: -3.631201203e-13 | DS77: -3.631201203e-13 | DT77: -3.552262046e-13 | DU77: -3.591731624e-13 | DV77: -3.631201203e-13 | DW77: -3.631201203e-13 | DX77: -3.58191815e-13 | DY77: -3.58191815e-13 | DZ77: -3.621279888e-13 | EA77: -3.621279888e-13 | EB77: -3.552262046e-13 | EC77: -3.591731624e-13 | ED77: -3.631201203e-13 | EE77: -3.631201203e-13 | EF77: -3.552262046e-13 | EG77: -3.591731624e-13 | EH77: -3.631201203e-13 | EI77: -3.631201203e-13 | EJ77: -3.552262046e-13 | EK77: -3.591731624e-13 | EL77: =SUM(EL75:EL76) -> -3.631201203e-13 | EM77: -3.631201203e-13 | EN77: -3.58191815e-13 | EO77: -3.58191815e-13 | EP77: -3.621279888e-13 | EQ77: -3.621279888e-13 | ER77: -3.552262046e-13 | ES77: -3.591731624e-13 | ET77: -3.631201203e-13 | EU77: -3.631201203e-13 | EV77: -3.552262046e-13 | EW77: -3.591731624e-13 | EX77: -3.631201203e-13 | EY77: -3.631201203e-13 | EZ77: -3.552262046e-13 | FA77: -3.591731624e-13 | FB77: -3.631201203e-13 | FC77: -3.631201203e-13 | FD77: -3.58191815e-13 | FE77: -3.58191815e-13 | FF77: -3.621279888e-13
B80: ОТЧЕТ О ДВИЖЕНИИ ДЕНЕЖНЫХ СРЕДСТВ
B82: Баланс денежных средств на начало периода | H82: тыс. руб. | M82: =L142*(M$15=0) -> 0 | N82: 0 | O82: 0 | P82: 0 | Q82: 0 | R82: 0 | S82: 0 | T82: 0 | U82: 0 | V82: 0 | W82: 0 | X82: 0 | Y82: 0 | Z82: 0 | AA82: 0 | AB82: 0 | AC82: 0 | AD82: 0 | AE82: 0 | AF82: 0 | AG82: 0 | AH82: 0 | AI82: 0 | AJ82: 0 | AK82: 0 | AL82: 0 | AM82: 0 | AN82: 0 | AO82: 0 | AP82: 0 | AQ82: 0 | AR82: 0 | AS82: =AR142*(AS$15=0) -> 0 | AT82: 0 | AU82: 0 | AV82: 0 | AW82: 0 | AX82: 0 | AY82: 0 | AZ82: 0 | BA82: 0 | BB82: 0 | BC82: 0 | BD82: 0 | BE82: 0 | BF82: 0 | BG82: 0 | BH82: 0 | BI82: 0 | BJ82: 0 | BK82: 0 | BL82: 0 | BM82: 0 | BN82: 0 | BO82: 0 | BP82: 0 | BQ82: 0 | BR82: 0 | BS82: 0 | BT82: 0 | BU82: 0 | BV82: 0 | BW82: 0 | BX82: 0 | BY82: =BX142*(BY$15=0) -> 0 | BZ82: 0 | CA82: 0 | CB82: 0 | CC82: 0 | CD82: 0 | CE82: 0 | CF82: 0 | CG82: 0 | CH82: 0 | CI82: 0 | CJ82: 0 | CK82: 0 | CL82: 0 | CM82: 0 | CN82: 0 | CO82: 0 | CP82: 0 | CQ82: 0 | CR82: 0 | CS82: 0 | CT82: 0 | CU82: 0 | CV82: 0 | CW82: 0 | CX82: 0 | CY82: 0 | CZ82: 0 | DA82: 0 | DB82: 0 | DC82: 0 | DD82: 0 | DE82: =DD142*(DE$15=0) -> 0 | DF82: 0 | DG82: 0 | DH82: 0 | DI82: 0 | DJ82: 0 | DK82: 0 | DL82: 0 | DM82: 0 | DN82: 0 | DO82: 0 | DP82: 0 | DQ82: 0 | DR82: 0 | DS82: 0 | DT82: 0 | DU82: 0 | DV82: 0 | DW82: 0 | DX82: 0 | DY82: 0 | DZ82: 0 | EA82: 0 | EB82: 0 | EC82: 0 | ED82: 0 | EE82: 0 | EF82: 0 | EG82: 0 | EH82: 0 | EI82: 0 | EJ82: 0 | EK82: =EJ142*(EK$15=0) -> 0 | EL82: 0 | EM82: 0 | EN82: 0 | EO82: 0 | EP82: 0 | EQ82: 0 | ER82: 0 | ES82: 0 | ET82: 0 | EU82: 0 | EV82: 0 | EW82: 0 | EX82: 0 | EY82: 0 | EZ82: 0 | FA82: 0 | FB82: 0 | FC82: 0 | FD82: 0 | FE82: 0 | FF82: 0
B84: ОПЕРАЦИОННЫЙ ДЕНЕЖНЫЙ ПОТОК
B86: Приток денежных средств | H86: тыс. руб. | L86: =SUM(M86:FF86) -> 1103052.384 | M86: =SUM(M87:M96) -> 0 | N86: 0 | O86: 0 | P86: 0 | Q86: 0 | R86: 0 | S86: 0 | T86: 0 | U86: 0 | V86: 0 | W86: 0 | X86: 0 | Y86: 45852.50101 | Z86: 52489.15764 | AA86: 50080.83957 | AB86: 49750.46956 | AC86: 50190.94533 | AD86: 50297.96491 | AE86: 50391.65745 | AF86: 50284.91767 | AG86: 50697.31951 | AH86: 50776.35481 | AI86: 50851.82868 | AJ86: 50727.8044 | AK86: 51285.22189 | AL86: 51335.39415 | AM86: 51351.48691 | AN86: 50909.77073 | AO86: 50976.75119 | AP86: 50968.05602 | AQ86: 50949.20372 | AR86: 142884.739 | AS86: =SUM(AS87:AS96) -> 0 | AT86: 0 | AU86: 0 | AV86: 0 | AW86: 0 | AX86: 0 | AY86: 0 | AZ86: 0 | BA86: 0 | BB86: 0 | BC86: 0 | BD86: 0 | BE86: 0 | BF86: 0 | BG86: 0 | BH86: 0 | BI86: 0 | BJ86: 0 | BK86: 0 | BL86: 0 | BM86: 0 | BN86: 0 | BO86: 0 | BP86: 0 | BQ86: 0 | BR86: 0 | BS86: 0 | BT86: 0 | BU86: 0 | BV86: 0 | BW86: 0 | BX86: 0 | BY86: =SUM(BY87:BY96) -> 0 | BZ86: 0 | CA86: 0 | CB86: 0 | CC86: 0 | CD86: 0 | CE86: 0 | CF86: 0 | CG86: 0 | CH86: 0 | CI86: 0 | CJ86: 0 | CK86: 0 | CL86: 0 | CM86: 0 | CN86: 0 | CO86: 0 | CP86: 0 | CQ86: 0 | CR86: 0 | CS86: 0 | CT86: 0 | CU86: 0 | CV86: 0 | CW86: 0 | CX86: 0 | CY86: 0 | CZ86: 0 | DA86: 0 | DB86: 0 | DC86: 0 | DD86: 0 | DE86: =SUM(DE87:DE96) -> 0 | DF86: 0 | DG86: 0 | DH86: 0 | DI86: 0 | DJ86: 0 | DK86: 0 | DL86: 0 | DM86: 0 | DN86: 0 | DO86: 0 | DP86: 0 | DQ86: 0 | DR86: 0 | DS86: 0 | DT86: 0 | DU86: 0 | DV86: 0 | DW86: 0 | DX86: 0 | DY86: 0 | DZ86: 0 | EA86: 0 | EB86: 0 | EC86: 0 | ED86: 0 | EE86: 0 | EF86: 0 | EG86: 0 | EH86: 0 | EI86: 0 | EJ86: 0 | EK86: =SUM(EK87:EK96) -> 0 | EL86: 0 | EM86: 0 | EN86: 0 | EO86: 0 | EP86: 0 | EQ86: 0 | ER86: 0 | ES86: 0 | ET86: 0 | EU86: 0 | EV86: 0 | EW86: 0 | EX86: 0 | EY86: 0 | EZ86: 0 | FA86: 0 | FB86: 0 | FC86: 0 | FD86: 0 | FE86: 0 | FF86: 0
B87: =Subs!B198 -> Платежи концедента - субсидия на банковские проценты | H87: тыс. руб. | L87: =SUM(M87:FF87) -> 193135.2268 | M87: =CashFlow!M30 -> 0 | N87: =CashFlow!N30 -> 0 | O87: =CashFlow!O30 -> 0 | P87: =CashFlow!P30 -> 0 | Q87: =CashFlow!Q30 -> 0 | R87: =CashFlow!R30 -> 0 | S87: =CashFlow!S30 -> 0 | T87: =CashFlow!T30 -> 0 | U87: =CashFlow!U30 -> 0 | V87: =CashFlow!V30 -> 0 | W87: =CashFlow!W30 -> 0 | X87: =CashFlow!X30 -> 0 | Y87: =CashFlow!Y30 -> 15136.59019 | Z87: =CashFlow!Z30 -> 15136.59019 | AA87: =CashFlow!AA30 -> 15136.59019 | AB87: =CashFlow!AB30 -> 15136.59019 | AC87: =CashFlow!AC30 -> 12667.04805 | AD87: =CashFlow!AD30 -> 12667.04805 | AE87: =CashFlow!AE30 -> 12667.04805 | AF87: =CashFlow!AF30 -> 12667.04805 | AG87: =CashFlow!AG30 -> 9920.746878 | AH87: =CashFlow!AH30 -> 9920.746878 | AI87: =CashFlow!AI30 -> 9920.746878 | AJ87: =CashFlow!AJ30 -> 9920.746878 | AK87: =CashFlow!AK30 -> 6940.264984 | AL87: =CashFlow!AL30 -> 6940.264984 | AM87: =CashFlow!AM30 -> 6940.264984 | AN87: =CashFlow!AN30 -> 6940.264984 | AO87: =CashFlow!AO30 -> 3619.156587 | AP87: =CashFlow!AP30 -> 3619.156587 | AQ87: =CashFlow!AQ30 -> 3619.156587 | AR87: =CashFlow!AR30 -> 3619.156587 | AS87: =CashFlow!AS30 -> 0 | AT87: =CashFlow!AT30 -> 0 | AU87: =CashFlow!AU30 -> 0 | AV87: =CashFlow!AV30 -> 0 | AW87: =CashFlow!AW30 -> 0 | AX87: =CashFlow!AX30 -> 0 | AY87: =CashFlow!AY30 -> 0 | AZ87: =CashFlow!AZ30 -> 0 | BA87: =CashFlow!BA30 -> 0 | BB87: =CashFlow!BB30 -> 0 | BC87: =CashFlow!BC30 -> 0 | BD87: =CashFlow!BD30 -> 0 | BE87: =CashFlow!BE30 -> 0 | BF87: =CashFlow!BF30 -> 0 | BG87: =CashFlow!BG30 -> 0 | BH87: =CashFlow!BH30 -> 0 | BI87: =CashFlow!BI30 -> 0 | BJ87: =CashFlow!BJ30 -> 0 | BK87: =CashFlow!BK30 -> 0 | BL87: =CashFlow!BL30 -> 0 | BM87: =CashFlow!BM30 -> 0 | BN87: =CashFlow!BN30 -> 0 | BO87: =CashFlow!BO30 -> 0 | BP87: =CashFlow!BP30 -> 0 | BQ87: =CashFlow!BQ30 -> 0 | BR87: =CashFlow!BR30 -> 0 | BS87: =CashFlow!BS30 -> 0 | BT87: =CashFlow!BT30 -> 0 | BU87: =CashFlow!BU30 -> 0 | BV87: =CashFlow!BV30 -> 0 | BW87: =CashFlow!BW30 -> 0 | BX87: =CashFlow!BX30 -> 0 | BY87: =CashFlow!BY30 -> 0 | BZ87: =CashFlow!BZ30 -> 0 | CA87: =CashFlow!CA30 -> 0 | CB87: =CashFlow!CB30 -> 0 | CC87: =CashFlow!CC30 -> 0 | CD87: =CashFlow!CD30 -> 0 | CE87: =CashFlow!CE30 -> 0 | CF87: =CashFlow!CF30 -> 0 | CG87: =CashFlow!CG30 -> 0 | CH87: =CashFlow!CH30 -> 0 | CI87: =CashFlow!CI30 -> 0 | CJ87: =CashFlow!CJ30 -> 0 | CK87: =CashFlow!CK30 -> 0 | CL87: =CashFlow!CL30 -> 0 | CM87: =CashFlow!CM30 -> 0 | CN87: =CashFlow!CN30 -> 0 | CO87: =CashFlow!CO30 -> 0 | CP87: =CashFlow!CP30 -> 0 | CQ87: =CashFlow!CQ30 -> 0 | CR87: =CashFlow!CR30 -> 0 | CS87: =CashFlow!CS30 -> 0 | CT87: =CashFlow!CT30 -> 0 | CU87: =CashFlow!CU30 -> 0 | CV87: =CashFlow!CV30 -> 0 | CW87: =CashFlow!CW30 -> 0 | CX87: =CashFlow!CX30 -> 0 | CY87: =CashFlow!CY30 -> 0 | CZ87: =CashFlow!CZ30 -> 0 | DA87: =CashFlow!DA30 -> 0 | DB87: =CashFlow!DB30 -> 0 | DC87: =CashFlow!DC30 -> 0 | DD87: =CashFlow!DD30 -> 0 | DE87: =CashFlow!DE30 -> 0 | DF87: =CashFlow!DF30 -> 0 | DG87: =CashFlow!DG30 -> 0 | DH87: =CashFlow!DH30 -> 0 | DI87: =CashFlow!DI30 -> 0 | DJ87: =CashFlow!DJ30 -> 0 | DK87: =CashFlow!DK30 -> 0 | DL87: =CashFlow!DL30 -> 0 | DM87: =CashFlow!DM30 -> 0 | DN87: =CashFlow!DN30 -> 0 | DO87: =CashFlow!DO30 -> 0 | DP87: =CashFlow!DP30 -> 0 | DQ87: =CashFlow!DQ30 -> 0 | DR87: =CashFlow!DR30 -> 0 | DS87: =CashFlow!DS30 -> 0 | DT87: =CashFlow!DT30 -> 0 | DU87: =CashFlow!DU30 -> 0 | DV87: =CashFlow!DV30 -> 0 | DW87: =CashFlow!DW30 -> 0 | DX87: =CashFlow!DX30 -> 0 | DY87: =CashFlow!DY30 -> 0 | DZ87: =CashFlow!DZ30 -> 0 | EA87: =CashFlow!EA30 -> 0 | EB87: =CashFlow!EB30 -> 0 | EC87: =CashFlow!EC30 -> 0 | ED87: =CashFlow!ED30 -> 0 | EE87: =CashFlow!EE30 -> 0 | EF87: =CashFlow!EF30 -> 0 | EG87: =CashFlow!EG30 -> 0 | EH87: =CashFlow!EH30 -> 0 | EI87: =CashFlow!EI30 -> 0 | EJ87: =CashFlow!EJ30 -> 0 | EK87: =CashFlow!EK30 -> 0 | EL87: =CashFlow!EL30 -> 0 | EM87: =CashFlow!EM30 -> 0 | EN87: =CashFlow!EN30 -> 0 | EO87: =CashFlow!EO30 -> 0 | EP87: =CashFlow!EP30 -> 0 | EQ87: =CashFlow!EQ30 -> 0 | ER87: =CashFlow!ER30 -> 0 | ES87: =CashFlow!ES30 -> 0 | ET87: =CashFlow!ET30 -> 0 | EU87: =CashFlow!EU30 -> 0 | EV87: =CashFlow!EV30 -> 0 | EW87: =CashFlow!EW30 -> 0 | EX87: =CashFlow!EX30 -> 0 | EY87: =CashFlow!EY30 -> 0 | EZ87: =CashFlow!EZ30 -> 0 | FA87: =CashFlow!FA30 -> 0 | FB87: =CashFlow!FB30 -> 0 | FC87: =CashFlow!FC30 -> 0 | FD87: =CashFlow!FD30 -> 0 | FE87: =CashFlow!FE30 -> 0 | FF87: =CashFlow!FF30 -> 0
B88: =Subs!B199 -> Платежи концедента - субсидия на инвестиционные затраты | H88: тыс. руб. | L88: 716507.8475 | M88: =CashFlow!M31 -> 0 | N88: =CashFlow!N31 -> 0 | O88: =CashFlow!O31 -> 0 | P88: =CashFlow!P31 -> 0 | Q88: =CashFlow!Q31 -> 0 | R88: =CashFlow!R31 -> 0 | S88: =CashFlow!S31 -> 0 | T88: =CashFlow!T31 -> 0 | U88: =CashFlow!U31 -> 0 | V88: =CashFlow!V31 -> 0 | W88: =CashFlow!W31 -> 0 | X88: =CashFlow!X31 -> 0 | Y88: =CashFlow!Y31 -> 29357.74666 | Z88: =CashFlow!Z31 -> 29357.74666 | AA88: =CashFlow!AA31 -> 29357.74666 | AB88: =CashFlow!AB31 -> 29357.74666 | AC88: =CashFlow!AC31 -> 32274.36109 | AD88: =CashFlow!AD31 -> 32274.36109 | AE88: =CashFlow!AE31 -> 32274.36109 | AF88: =CashFlow!AF31 -> 32274.36109 | AG88: =CashFlow!AG31 -> 35510.31286 | AH88: =CashFlow!AH31 -> 35510.31286 | AI88: =CashFlow!AI31 -> 35510.31286 | AJ88: =CashFlow!AJ31 -> 35510.31286 | AK88: =CashFlow!AK31 -> 39044.31282 | AL88: =CashFlow!AL31 -> 39044.31282 | AM88: =CashFlow!AM31 -> 39044.31282 | AN88: =CashFlow!AN31 -> 39044.31282 | AO88: =CashFlow!AO31 -> 42940.22844 | AP88: =CashFlow!AP31 -> 42940.22844 | AQ88: =CashFlow!AQ31 -> 42940.22844 | AR88: =CashFlow!AR31 -> 42940.22844 | AS88: =CashFlow!AS31 -> 0 | AT88: =CashFlow!AT31 -> 0 | AU88: =CashFlow!AU31 -> 0 | AV88: =CashFlow!AV31 -> 0 | AW88: =CashFlow!AW31 -> 0 | AX88: =CashFlow!AX31 -> 0 | AY88: =CashFlow!AY31 -> 0 | AZ88: =CashFlow!AZ31 -> 0 | BA88: =CashFlow!BA31 -> 0 | BB88: =CashFlow!BB31 -> 0 | BC88: =CashFlow!BC31 -> 0 | BD88: =CashFlow!BD31 -> 0 | BE88: =CashFlow!BE31 -> 0 | BF88: =CashFlow!BF31 -> 0 | BG88: =CashFlow!BG31 -> 0 | BH88: =CashFlow!BH31 -> 0 | BI88: =CashFlow!BI31 -> 0 | BJ88: =CashFlow!BJ31 -> 0 | BK88: =CashFlow!BK31 -> 0 | BL88: =CashFlow!BL31 -> 0 | BM88: =CashFlow!BM31 -> 0 | BN88: =CashFlow!BN31 -> 0 | BO88: =CashFlow!BO31 -> 0 | BP88: =CashFlow!BP31 -> 0 | BQ88: =CashFlow!BQ31 -> 0 | BR88: =CashFlow!BR31 -> 0 | BS88: =CashFlow!BS31 -> 0 | BT88: =CashFlow!BT31 -> 0 | BU88: =CashFlow!BU31 -> 0 | BV88: =CashFlow!BV31 -> 0 | BW88: =CashFlow!BW31 -> 0 | BX88: =CashFlow!BX31 -> 0 | BY88: =CashFlow!BY31 -> 0 | BZ88: =CashFlow!BZ31 -> 0 | CA88: =CashFlow!CA31 -> 0 | CB88: =CashFlow!CB31 -> 0 | CC88: =CashFlow!CC31 -> 0 | CD88: =CashFlow!CD31 -> 0 | CE88: =CashFlow!CE31 -> 0 | CF88: =CashFlow!CF31 -> 0 | CG88: =CashFlow!CG31 -> 0 | CH88: =CashFlow!CH31 -> 0 | CI88: =CashFlow!CI31 -> 0 | CJ88: =CashFlow!CJ31 -> 0 | CK88: =CashFlow!CK31 -> 0 | CL88: =CashFlow!CL31 -> 0 | CM88: =CashFlow!CM31 -> 0 | CN88: =CashFlow!CN31 -> 0 | CO88: =CashFlow!CO31 -> 0 | CP88: =CashFlow!CP31 -> 0 | CQ88: =CashFlow!CQ31 -> 0 | CR88: =CashFlow!CR31 -> 0 | CS88: =CashFlow!CS31 -> 0 | CT88: =CashFlow!CT31 -> 0 | CU88: =CashFlow!CU31 -> 0 | CV88: =CashFlow!CV31 -> 0 | CW88: =CashFlow!CW31 -> 0 | CX88: =CashFlow!CX31 -> 0 | CY88: =CashFlow!CY31 -> 0 | CZ88: =CashFlow!CZ31 -> 0 | DA88: =CashFlow!DA31 -> 0 | DB88: =CashFlow!DB31 -> 0 | DC88: =CashFlow!DC31 -> 0 | DD88: =CashFlow!DD31 -> 0 | DE88: =CashFlow!DE31 -> 0 | DF88: =CashFlow!DF31 -> 0 | DG88: =CashFlow!DG31 -> 0 | DH88: =CashFlow!DH31 -> 0 | DI88: =CashFlow!DI31 -> 0 | DJ88: =CashFlow!DJ31 -> 0 | DK88: =CashFlow!DK31 -> 0 | DL88: =CashFlow!DL31 -> 0 | DM88: =CashFlow!DM31 -> 0 | DN88: =CashFlow!DN31 -> 0 | DO88: =CashFlow!DO31 -> 0 | DP88: =CashFlow!DP31 -> 0 | DQ88: =CashFlow!DQ31 -> 0 | DR88: =CashFlow!DR31 -> 0 | DS88: =CashFlow!DS31 -> 0 | DT88: =CashFlow!DT31 -> 0 | DU88: =CashFlow!DU31 -> 0 | DV88: =CashFlow!DV31 -> 0 | DW88: =CashFlow!DW31 -> 0 | DX88: =CashFlow!DX31 -> 0 | DY88: =CashFlow!DY31 -> 0 | DZ88: =CashFlow!DZ31 -> 0 | EA88: =CashFlow!EA31 -> 0 | EB88: =CashFlow!EB31 -> 0 | EC88: =CashFlow!EC31 -> 0 | ED88: =CashFlow!ED31 -> 0 | EE88: =CashFlow!EE31 -> 0 | EF88: =CashFlow!EF31 -> 0 | EG88: =CashFlow!EG31 -> 0 | EH88: =CashFlow!EH31 -> 0 | EI88: =CashFlow!EI31 -> 0 | EJ88: =CashFlow!EJ31 -> 0 | EK88: =CashFlow!EK31 -> 0 | EL88: =CashFlow!EL31 -> 0 | EM88: =CashFlow!EM31 -> 0 | EN88: =CashFlow!EN31 -> 0 | EO88: =CashFlow!EO31 -> 0 | EP88: =CashFlow!EP31 -> 0 | EQ88: =CashFlow!EQ31 -> 0 | ER88: =CashFlow!ER31 -> 0 | ES88: =CashFlow!ES31 -> 0 | ET88: =CashFlow!ET31 -> 0 | EU88: =CashFlow!EU31 -> 0 | EV88: =CashFlow!EV31 -> 0 | EW88: =CashFlow!EW31 -> 0 | EX88: =CashFlow!EX31 -> 0 | EY88: =CashFlow!EY31 -> 0 | EZ88: =CashFlow!EZ31 -> 0 | FA88: =CashFlow!FA31 -> 0 | FB88: =CashFlow!FB31 -> 0 | FC88: =CashFlow!FC31 -> 0 | FD88: =CashFlow!FD31 -> 0 | FE88: =CashFlow!FE31 -> 0 | FF88: =CashFlow!FF31 -> 0
B89: =Subs!B200 -> Платежи концедента - субсидия на операционные затраты (на налог на прибыль) | H89: тыс. руб. | L89: 83156.70576 | M89: =CashFlow!M32 -> 0 | N89: =CashFlow!N32 -> 0 | O89: =CashFlow!O32 -> 0 | P89: =CashFlow!P32 -> 0 | Q89: =CashFlow!Q32 -> 0 | R89: =CashFlow!R32 -> 0 | S89: =CashFlow!S32 -> 0 | T89: =CashFlow!T32 -> 0 | U89: =CashFlow!U32 -> 0 | V89: =CashFlow!V32 -> 0 | W89: =CashFlow!W32 -> 0 | X89: =CashFlow!X32 -> 0 | Y89: =CashFlow!Y32 -> 0 | Z89: =CashFlow!Z32 -> 0 | AA89: =CashFlow!AA32 -> 0 | AB89: =CashFlow!AB32 -> 0 | AC89: =CashFlow!AC32 -> 0 | AD89: =CashFlow!AD32 -> 0 | AE89: =CashFlow!AE32 -> 0 | AF89: =CashFlow!AF32 -> 0 | AG89: =CashFlow!AG32 -> 0 | AH89: =CashFlow!AH32 -> 0 | AI89: =CashFlow!AI32 -> 0 | AJ89: =CashFlow!AJ32 -> 0 | AK89: =CashFlow!AK32 -> 0 | AL89: =CashFlow!AL32 -> 0 | AM89: =CashFlow!AM32 -> 0 | AN89: =CashFlow!AN32 -> 0 | AO89: =CashFlow!AO32 -> 0 | AP89: =CashFlow!AP32 -> 0 | AQ89: =CashFlow!AQ32 -> 0 | AR89: =CashFlow!AR32 -> 83156.70576 | AS89: =CashFlow!AS32 -> 0 | AT89: =CashFlow!AT32 -> 0 | AU89: =CashFlow!AU32 -> 0 | AV89: =CashFlow!AV32 -> 0 | AW89: =CashFlow!AW32 -> 0 | AX89: =CashFlow!AX32 -> 0 | AY89: =CashFlow!AY32 -> 0 | AZ89: =CashFlow!AZ32 -> 0 | BA89: =CashFlow!BA32 -> 0 | BB89: =CashFlow!BB32 -> 0 | BC89: =CashFlow!BC32 -> 0 | BD89: =CashFlow!BD32 -> 0 | BE89: =CashFlow!BE32 -> 0 | BF89: =CashFlow!BF32 -> 0 | BG89: =CashFlow!BG32 -> 0 | BH89: =CashFlow!BH32 -> 0 | BI89: =CashFlow!BI32 -> 0 | BJ89: =CashFlow!BJ32 -> 0 | BK89: =CashFlow!BK32 -> 0 | BL89: =CashFlow!BL32 -> 0 | BM89: =CashFlow!BM32 -> 0 | BN89: =CashFlow!BN32 -> 0 | BO89: =CashFlow!BO32 -> 0 | BP89: =CashFlow!BP32 -> 0 | BQ89: =CashFlow!BQ32 -> 0 | BR89: =CashFlow!BR32 -> 0 | BS89: =CashFlow!BS32 -> 0 | BT89: =CashFlow!BT32 -> 0 | BU89: =CashFlow!BU32 -> 0 | BV89: =CashFlow!BV32 -> 0 | BW89: =CashFlow!BW32 -> 0 | BX89: =CashFlow!BX32 -> 0 | BY89: =CashFlow!BY32 -> 0 | BZ89: =CashFlow!BZ32 -> 0 | CA89: =CashFlow!CA32 -> 0 | CB89: =CashFlow!CB32 -> 0 | CC89: =CashFlow!CC32 -> 0 | CD89: =CashFlow!CD32 -> 0 | CE89: =CashFlow!CE32 -> 0 | CF89: =CashFlow!CF32 -> 0 | CG89: =CashFlow!CG32 -> 0 | CH89: =CashFlow!CH32 -> 0 | CI89: =CashFlow!CI32 -> 0 | CJ89: =CashFlow!CJ32 -> 0 | CK89: =CashFlow!CK32 -> 0 | CL89: =CashFlow!CL32 -> 0 | CM89: =CashFlow!CM32 -> 0 | CN89: =CashFlow!CN32 -> 0 | CO89: =CashFlow!CO32 -> 0 | CP89: =CashFlow!CP32 -> 0 | CQ89: =CashFlow!CQ32 -> 0 | CR89: =CashFlow!CR32 -> 0 | CS89: =CashFlow!CS32 -> 0 | CT89: =CashFlow!CT32 -> 0 | CU89: =CashFlow!CU32 -> 0 | CV89: =CashFlow!CV32 -> 0 | CW89: =CashFlow!CW32 -> 0 | CX89: =CashFlow!CX32 -> 0 | CY89: =CashFlow!CY32 -> 0 | CZ89: =CashFlow!CZ32 -> 0 | DA89: =CashFlow!DA32 -> 0 | DB89: =CashFlow!DB32 -> 0 | DC89: =CashFlow!DC32 -> 0 | DD89: =CashFlow!DD32 -> 0 | DE89: =CashFlow!DE32 -> 0 | DF89: =CashFlow!DF32 -> 0 | DG89: =CashFlow!DG32 -> 0 | DH89: =CashFlow!DH32 -> 0 | DI89: =CashFlow!DI32 -> 0 | DJ89: =CashFlow!DJ32 -> 0 | DK89: =CashFlow!DK32 -> 0 | DL89: =CashFlow!DL32 -> 0 | DM89: =CashFlow!DM32 -> 0 | DN89: =CashFlow!DN32 -> 0 | DO89: =CashFlow!DO32 -> 0 | DP89: =CashFlow!DP32 -> 0 | DQ89: =CashFlow!DQ32 -> 0 | DR89: =CashFlow!DR32 -> 0 | DS89: =CashFlow!DS32 -> 0 | DT89: =CashFlow!DT32 -> 0 | DU89: =CashFlow!DU32 -> 0 | DV89: =CashFlow!DV32 -> 0 | DW89: =CashFlow!DW32 -> 0 | DX89: =CashFlow!DX32 -> 0 | DY89: =CashFlow!DY32 -> 0 | DZ89: =CashFlow!DZ32 -> 0 | EA89: =CashFlow!EA32 -> 0 | EB89: =CashFlow!EB32 -> 0 | EC89: =CashFlow!EC32 -> 0 | ED89: =CashFlow!ED32 -> 0 | EE89: =CashFlow!EE32 -> 0 | EF89: =CashFlow!EF32 -> 0 | EG89: =CashFlow!EG32 -> 0 | EH89: =CashFlow!EH32 -> 0 | EI89: =CashFlow!EI32 -> 0 | EJ89: =CashFlow!EJ32 -> 0 | EK89: =CashFlow!EK32 -> 0 | EL89: =CashFlow!EL32 -> 0 | EM89: =CashFlow!EM32 -> 0 | EN89: =CashFlow!EN32 -> 0 | EO89: =CashFlow!EO32 -> 0 | EP89: =CashFlow!EP32 -> 0 | EQ89: =CashFlow!EQ32 -> 0 | ER89: =CashFlow!ER32 -> 0 | ES89: =CashFlow!ES32 -> 0 | ET89: =CashFlow!ET32 -> 0 | EU89: =CashFlow!EU32 -> 0 | EV89: =CashFlow!EV32 -> 0 | EW89: =CashFlow!EW32 -> 0 | EX89: =CashFlow!EX32 -> 0 | EY89: =CashFlow!EY32 -> 0 | EZ89: =CashFlow!EZ32 -> 0 | FA89: =CashFlow!FA32 -> 0 | FB89: =CashFlow!FB32 -> 0 | FC89: =CashFlow!FC32 -> 0 | FD89: =CashFlow!FD32 -> 0 | FE89: =CashFlow!FE32 -> 0 | FF89: =CashFlow!FF32 -> 0
B90: =Subs!B201 -> Платежи концедента - субсидия на операционные затраты (на эксплуатационные расходы) | H90: тыс. руб. | L90: 22788.66553 | M90: =CashFlow!M33 -> 0 | N90: =CashFlow!N33 -> 0 | O90: =CashFlow!O33 -> 0 | P90: =CashFlow!P33 -> 0 | Q90: =CashFlow!Q33 -> 0 | R90: =CashFlow!R33 -> 0 | S90: =CashFlow!S33 -> 0 | T90: =CashFlow!T33 -> 0 | U90: =CashFlow!U33 -> 0 | V90: =CashFlow!V33 -> 0 | W90: =CashFlow!W33 -> 0 | X90: =CashFlow!X33 -> 0 | Y90: =CashFlow!Y33 -> 1037.245505 | Z90: =CashFlow!Z33 -> 1047.377226 | AA90: =CashFlow!AA33 -> 1057.608779 | AB90: =CashFlow!AB33 -> 1067.941148 | AC90: =CashFlow!AC33 -> 1078.375325 | AD90: =CashFlow!AD33 -> 1088.912315 | AE90: =CashFlow!AE33 -> 1099.55313 | AF90: =CashFlow!AF33 -> 1110.298794 | AG90: =CashFlow!AG33 -> 1121.150338 | AH90: =CashFlow!AH33 -> 1132.108808 | AI90: =CashFlow!AI33 -> 1143.175255 | AJ90: =CashFlow!AJ33 -> 1154.350745 | AK90: =CashFlow!AK33 -> 1165.636352 | AL90: =CashFlow!AL33 -> 1177.03316 | AM90: =CashFlow!AM33 -> 1188.542266 | AN90: =CashFlow!AN33 -> 1200.164775 | AO90: =CashFlow!AO33 -> 1211.901806 | AP90: =CashFlow!AP33 -> 1223.754486 | AQ90: =CashFlow!AQ33 -> 1235.723956 | AR90: =CashFlow!AR33 -> 1247.811366 | AS90: =CashFlow!AS33 -> 0 | AT90: =CashFlow!AT33 -> 0 | AU90: =CashFlow!AU33 -> 0 | AV90: =CashFlow!AV33 -> 0 | AW90: =CashFlow!AW33 -> 0 | AX90: =CashFlow!AX33 -> 0 | AY90: =CashFlow!AY33 -> 0 | AZ90: =CashFlow!AZ33 -> 0 | BA90: =CashFlow!BA33 -> 0 | BB90: =CashFlow!BB33 -> 0 | BC90: =CashFlow!BC33 -> 0 | BD90: =CashFlow!BD33 -> 0 | BE90: =CashFlow!BE33 -> 0 | BF90: =CashFlow!BF33 -> 0 | BG90: =CashFlow!BG33 -> 0 | BH90: =CashFlow!BH33 -> 0 | BI90: =CashFlow!BI33 -> 0 | BJ90: =CashFlow!BJ33 -> 0 | BK90: =CashFlow!BK33 -> 0 | BL90: =CashFlow!BL33 -> 0 | BM90: =CashFlow!BM33 -> 0 | BN90: =CashFlow!BN33 -> 0 | BO90: =CashFlow!BO33 -> 0 | BP90: =CashFlow!BP33 -> 0 | BQ90: =CashFlow!BQ33 -> 0 | BR90: =CashFlow!BR33 -> 0 | BS90: =CashFlow!BS33 -> 0 | BT90: =CashFlow!BT33 -> 0 | BU90: =CashFlow!BU33 -> 0 | BV90: =CashFlow!BV33 -> 0 | BW90: =CashFlow!BW33 -> 0 | BX90: =CashFlow!BX33 -> 0 | BY90: =CashFlow!BY33 -> 0 | BZ90: =CashFlow!BZ33 -> 0 | CA90: =CashFlow!CA33 -> 0 | CB90: =CashFlow!CB33 -> 0 | CC90: =CashFlow!CC33 -> 0 | CD90: =CashFlow!CD33 -> 0 | CE90: =CashFlow!CE33 -> 0 | CF90: =CashFlow!CF33 -> 0 | CG90: =CashFlow!CG33 -> 0 | CH90: =CashFlow!CH33 -> 0 | CI90: =CashFlow!CI33 -> 0 | CJ90: =CashFlow!CJ33 -> 0 | CK90: =CashFlow!CK33 -> 0 | CL90: =CashFlow!CL33 -> 0 | CM90: =CashFlow!CM33 -> 0 | CN90: =CashFlow!CN33 -> 0 | CO90: =CashFlow!CO33 -> 0 | CP90: =CashFlow!CP33 -> 0 | CQ90: =CashFlow!CQ33 -> 0 | CR90: =CashFlow!CR33 -> 0 | CS90: =CashFlow!CS33 -> 0 | CT90: =CashFlow!CT33 -> 0 | CU90: =CashFlow!CU33 -> 0 | CV90: =CashFlow!CV33 -> 0 | CW90: =CashFlow!CW33 -> 0 | CX90: =CashFlow!CX33 -> 0 | CY90: =CashFlow!CY33 -> 0 | CZ90: =CashFlow!CZ33 -> 0 | DA90: =CashFlow!DA33 -> 0 | DB90: =CashFlow!DB33 -> 0 | DC90: =CashFlow!DC33 -> 0 | DD90: =CashFlow!DD33 -> 0 | DE90: =CashFlow!DE33 -> 0 | DF90: =CashFlow!DF33 -> 0 | DG90: =CashFlow!DG33 -> 0 | DH90: =CashFlow!DH33 -> 0 | DI90: =CashFlow!DI33 -> 0 | DJ90: =CashFlow!DJ33 -> 0 | DK90: =CashFlow!DK33 -> 0 | DL90: =CashFlow!DL33 -> 0 | DM90: =CashFlow!DM33 -> 0 | DN90: =CashFlow!DN33 -> 0 | DO90: =CashFlow!DO33 -> 0 | DP90: =CashFlow!DP33 -> 0 | DQ90: =CashFlow!DQ33 -> 0 | DR90: =CashFlow!DR33 -> 0 | DS90: =CashFlow!DS33 -> 0 | DT90: =CashFlow!DT33 -> 0 | DU90: =CashFlow!DU33 -> 0 | DV90: =CashFlow!DV33 -> 0 | DW90: =CashFlow!DW33 -> 0 | DX90: =CashFlow!DX33 -> 0 | DY90: =CashFlow!DY33 -> 0 | DZ90: =CashFlow!DZ33 -> 0 | EA90: =CashFlow!EA33 -> 0 | EB90: =CashFlow!EB33 -> 0 | EC90: =CashFlow!EC33 -> 0 | ED90: =CashFlow!ED33 -> 0 | EE90: =CashFlow!EE33 -> 0 | EF90: =CashFlow!EF33 -> 0 | EG90: =CashFlow!EG33 -> 0 | EH90: =CashFlow!EH33 -> 0 | EI90: =CashFlow!EI33 -> 0 | EJ90: =CashFlow!EJ33 -> 0 | EK90: =CashFlow!EK33 -> 0 | EL90: =CashFlow!EL33 -> 0 | EM90: =CashFlow!EM33 -> 0 | EN90: =CashFlow!EN33 -> 0 | EO90: =CashFlow!EO33 -> 0 | EP90: =CashFlow!EP33 -> 0 | EQ90: =CashFlow!EQ33 -> 0 | ER90: =CashFlow!ER33 -> 0 | ES90: =CashFlow!ES33 -> 0 | ET90: =CashFlow!ET33 -> 0 | EU90: =CashFlow!EU33 -> 0 | EV90: =CashFlow!EV33 -> 0 | EW90: =CashFlow!EW33 -> 0 | EX90: =CashFlow!EX33 -> 0 | EY90: =CashFlow!EY33 -> 0 | EZ90: =CashFlow!EZ33 -> 0 | FA90: =CashFlow!FA33 -> 0 | FB90: =CashFlow!FB33 -> 0 | FC90: =CashFlow!FC33 -> 0 | FD90: =CashFlow!FD33 -> 0 | FE90: =CashFlow!FE33 -> 0 | FF90: =CashFlow!FF33 -> 0
B91: Арендная плата | H91: тыс. руб. | L91: =SUM(M91:FF91) -> 64588.13432 | M91: =CashFlow!M34 -> 0 | N91: =CashFlow!N34 -> 0 | O91: =CashFlow!O34 -> 0 | P91: =CashFlow!P34 -> 0 | Q91: =CashFlow!Q34 -> 0 | R91: =CashFlow!R34 -> 0 | S91: =CashFlow!S34 -> 0 | T91: =CashFlow!T34 -> 0 | U91: =CashFlow!U34 -> 0 | V91: =CashFlow!V34 -> 0 | W91: =CashFlow!W34 -> 0 | X91: =CashFlow!X34 -> 0 | Y91: =CashFlow!Y34 -> 0 | Z91: =CashFlow!Z34 -> 3696.229191 | AA91: =CashFlow!AA34 -> 3662.822123 | AB91: =CashFlow!AB34 -> 3629.415056 | AC91: =CashFlow!AC34 -> 3596.007988 | AD91: =CashFlow!AD34 -> 3562.60092 | AE91: =CashFlow!AE34 -> 3529.193853 | AF91: =CashFlow!AF34 -> 3495.786785 | AG91: =CashFlow!AG34 -> 3462.379718 | AH91: =CashFlow!AH34 -> 3428.97265 | AI91: =CashFlow!AI34 -> 3395.565582 | AJ91: =CashFlow!AJ34 -> 3362.158515 | AK91: =CashFlow!AK34 -> 3328.751447 | AL91: =CashFlow!AL34 -> 3297.929675 | AM91: =CashFlow!AM34 -> 3267.107902 | AN91: =CashFlow!AN34 -> 3236.286129 | AO91: =CashFlow!AO34 -> 3205.464357 | AP91: =CashFlow!AP34 -> 3174.642584 | AQ91: =CashFlow!AQ34 -> 3143.820811 | AR91: =CashFlow!AR34 -> 3112.999039 | AS91: =CashFlow!AS34 -> 0 | AT91: =CashFlow!AT34 -> 0 | AU91: =CashFlow!AU34 -> 0 | AV91: =CashFlow!AV34 -> 0 | AW91: =CashFlow!AW34 -> 0 | AX91: =CashFlow!AX34 -> 0 | AY91: =CashFlow!AY34 -> 0 | AZ91: =CashFlow!AZ34 -> 0 | BA91: =CashFlow!BA34 -> 0 | BB91: =CashFlow!BB34 -> 0 | BC91: =CashFlow!BC34 -> 0 | BD91: =CashFlow!BD34 -> 0 | BE91: =CashFlow!BE34 -> 0 | BF91: =CashFlow!BF34 -> 0 | BG91: =CashFlow!BG34 -> 0 | BH91: =CashFlow!BH34 -> 0 | BI91: =CashFlow!BI34 -> 0 | BJ91: =CashFlow!BJ34 -> 0 | BK91: =CashFlow!BK34 -> 0 | BL91: =CashFlow!BL34 -> 0 | BM91: =CashFlow!BM34 -> 0 | BN91: =CashFlow!BN34 -> 0 | BO91: =CashFlow!BO34 -> 0 | BP91: =CashFlow!BP34 -> 0 | BQ91: =CashFlow!BQ34 -> 0 | BR91: =CashFlow!BR34 -> 0 | BS91: =CashFlow!BS34 -> 0 | BT91: =CashFlow!BT34 -> 0 | BU91: =CashFlow!BU34 -> 0 | BV91: =CashFlow!BV34 -> 0 | BW91: =CashFlow!BW34 -> 0 | BX91: =CashFlow!BX34 -> 0 | BY91: =CashFlow!BY34 -> 0 | BZ91: =CashFlow!BZ34 -> 0 | CA91: =CashFlow!CA34 -> 0 | CB91: =CashFlow!CB34 -> 0 | CC91: =CashFlow!CC34 -> 0 | CD91: =CashFlow!CD34 -> 0 | CE91: =CashFlow!CE34 -> 0 | CF91: =CashFlow!CF34 -> 0 | CG91: =CashFlow!CG34 -> 0 | CH91: =CashFlow!CH34 -> 0 | CI91: =CashFlow!CI34 -> 0 | CJ91: =CashFlow!CJ34 -> 0 | CK91: =CashFlow!CK34 -> 0 | CL91: =CashFlow!CL34 -> 0 | CM91: =CashFlow!CM34 -> 0 | CN91: =CashFlow!CN34 -> 0 | CO91: =CashFlow!CO34 -> 0 | CP91: =CashFlow!CP34 -> 0 | CQ91: =CashFlow!CQ34 -> 0 | CR91: =CashFlow!CR34 -> 0 | CS91: =CashFlow!CS34 -> 0 | CT91: =CashFlow!CT34 -> 0 | CU91: =CashFlow!CU34 -> 0 | CV91: =CashFlow!CV34 -> 0 | CW91: =CashFlow!CW34 -> 0 | CX91: =CashFlow!CX34 -> 0 | CY91: =CashFlow!CY34 -> 0 | CZ91: =CashFlow!CZ34 -> 0 | DA91: =CashFlow!DA34 -> 0 | DB91: =CashFlow!DB34 -> 0 | DC91: =CashFlow!DC34 -> 0 | DD91: =CashFlow!DD34 -> 0 | DE91: =CashFlow!DE34 -> 0 | DF91: =CashFlow!DF34 -> 0 | DG91: =CashFlow!DG34 -> 0 | DH91: =CashFlow!DH34 -> 0 | DI91: =CashFlow!DI34 -> 0 | DJ91: =CashFlow!DJ34 -> 0 | DK91: =CashFlow!DK34 -> 0 | DL91: =CashFlow!DL34 -> 0 | DM91: =CashFlow!DM34 -> 0 | DN91: =CashFlow!DN34 -> 0 | DO91: =CashFlow!DO34 -> 0 | DP91: =CashFlow!DP34 -> 0 | DQ91: =CashFlow!DQ34 -> 0 | DR91: =CashFlow!DR34 -> 0 | DS91: =CashFlow!DS34 -> 0 | DT91: =CashFlow!DT34 -> 0 | DU91: =CashFlow!DU34 -> 0 | DV91: =CashFlow!DV34 -> 0 | DW91: =CashFlow!DW34 -> 0 | DX91: =CashFlow!DX34 -> 0 | DY91: =CashFlow!DY34 -> 0 | DZ91: =CashFlow!DZ34 -> 0 | EA91: =CashFlow!EA34 -> 0 | EB91: =CashFlow!EB34 -> 0 | EC91: =CashFlow!EC34 -> 0 | ED91: =CashFlow!ED34 -> 0 | EE91: =CashFlow!EE34 -> 0 | EF91: =CashFlow!EF34 -> 0 | EG91: =CashFlow!EG34 -> 0 | EH91: =CashFlow!EH34 -> 0 | EI91: =CashFlow!EI34 -> 0 | EJ91: =CashFlow!EJ34 -> 0 | EK91: =CashFlow!EK34 -> 0 | EL91: =CashFlow!EL34 -> 0 | EM91: =CashFlow!EM34 -> 0 | EN91: =CashFlow!EN34 -> 0 | EO91: =CashFlow!EO34 -> 0 | EP91: =CashFlow!EP34 -> 0 | EQ91: =CashFlow!EQ34 -> 0 | ER91: =CashFlow!ER34 -> 0 | ES91: =CashFlow!ES34 -> 0 | ET91: =CashFlow!ET34 -> 0 | EU91: =CashFlow!EU34 -> 0 | EV91: =CashFlow!EV34 -> 0 | EW91: =CashFlow!EW34 -> 0 | EX91: =CashFlow!EX34 -> 0 | EY91: =CashFlow!EY34 -> 0 | EZ91: =CashFlow!EZ34 -> 0 | FA91: =CashFlow!FA34 -> 0 | FB91: =CashFlow!FB34 -> 0 | FC91: =CashFlow!FC34 -> 0 | FD91: =CashFlow!FD34 -> 0 | FE91: =CashFlow!FE34 -> 0 | FF91: =CashFlow!FF34 -> 0
B92: Коммерческая выручка | H92: тыс. руб. | L92: =SUM(M92:FF92) -> 0 | M92: =CashFlow!M35 -> 0 | N92: =CashFlow!N35 -> 0 | O92: =CashFlow!O35 -> 0 | P92: =CashFlow!P35 -> 0 | Q92: =CashFlow!Q35 -> 0 | R92: =CashFlow!R35 -> 0 | S92: =CashFlow!S35 -> 0 | T92: =CashFlow!T35 -> 0 | U92: =CashFlow!U35 -> 0 | V92: =CashFlow!V35 -> 0 | W92: =CashFlow!W35 -> 0 | X92: =CashFlow!X35 -> 0 | Y92: =CashFlow!Y35 -> 0 | Z92: =CashFlow!Z35 -> 0 | AA92: =CashFlow!AA35 -> 0 | AB92: =CashFlow!AB35 -> 0 | AC92: =CashFlow!AC35 -> 0 | AD92: =CashFlow!AD35 -> 0 | AE92: =CashFlow!AE35 -> 0 | AF92: =CashFlow!AF35 -> 0 | AG92: =CashFlow!AG35 -> 0 | AH92: =CashFlow!AH35 -> 0 | AI92: =CashFlow!AI35 -> 0 | AJ92: =CashFlow!AJ35 -> 0 | AK92: =CashFlow!AK35 -> 0 | AL92: =CashFlow!AL35 -> 0 | AM92: =CashFlow!AM35 -> 0 | AN92: =CashFlow!AN35 -> 0 | AO92: =CashFlow!AO35 -> 0 | AP92: =CashFlow!AP35 -> 0 | AQ92: =CashFlow!AQ35 -> 0 | AR92: =CashFlow!AR35 -> 0 | AS92: =CashFlow!AS35 -> 0 | AT92: =CashFlow!AT35 -> 0 | AU92: =CashFlow!AU35 -> 0 | AV92: =CashFlow!AV35 -> 0 | AW92: =CashFlow!AW35 -> 0 | AX92: =CashFlow!AX35 -> 0 | AY92: =CashFlow!AY35 -> 0 | AZ92: =CashFlow!AZ35 -> 0 | BA92: =CashFlow!BA35 -> 0 | BB92: =CashFlow!BB35 -> 0 | BC92: =CashFlow!BC35 -> 0 | BD92: =CashFlow!BD35 -> 0 | BE92: =CashFlow!BE35 -> 0 | BF92: =CashFlow!BF35 -> 0 | BG92: =CashFlow!BG35 -> 0 | BH92: =CashFlow!BH35 -> 0 | BI92: =CashFlow!BI35 -> 0 | BJ92: =CashFlow!BJ35 -> 0 | BK92: =CashFlow!BK35 -> 0 | BL92: =CashFlow!BL35 -> 0 | BM92: =CashFlow!BM35 -> 0 | BN92: =CashFlow!BN35 -> 0 | BO92: =CashFlow!BO35 -> 0 | BP92: =CashFlow!BP35 -> 0 | BQ92: =CashFlow!BQ35 -> 0 | BR92: =CashFlow!BR35 -> 0 | BS92: =CashFlow!BS35 -> 0 | BT92: =CashFlow!BT35 -> 0 | BU92: =CashFlow!BU35 -> 0 | BV92: =CashFlow!BV35 -> 0 | BW92: =CashFlow!BW35 -> 0 | BX92: =CashFlow!BX35 -> 0 | BY92: =CashFlow!BY35 -> 0 | BZ92: =CashFlow!BZ35 -> 0 | CA92: =CashFlow!CA35 -> 0 | CB92: =CashFlow!CB35 -> 0 | CC92: =CashFlow!CC35 -> 0 | CD92: =CashFlow!CD35 -> 0 | CE92: =CashFlow!CE35 -> 0 | CF92: =CashFlow!CF35 -> 0 | CG92: =CashFlow!CG35 -> 0 | CH92: =CashFlow!CH35 -> 0 | CI92: =CashFlow!CI35 -> 0 | CJ92: =CashFlow!CJ35 -> 0 | CK92: =CashFlow!CK35 -> 0 | CL92: =CashFlow!CL35 -> 0 | CM92: =CashFlow!CM35 -> 0 | CN92: =CashFlow!CN35 -> 0 | CO92: =CashFlow!CO35 -> 0 | CP92: =CashFlow!CP35 -> 0 | CQ92: =CashFlow!CQ35 -> 0 | CR92: =CashFlow!CR35 -> 0 | CS92: =CashFlow!CS35 -> 0 | CT92: =CashFlow!CT35 -> 0 | CU92: =CashFlow!CU35 -> 0 | CV92: =CashFlow!CV35 -> 0 | CW92: =CashFlow!CW35 -> 0 | CX92: =CashFlow!CX35 -> 0 | CY92: =CashFlow!CY35 -> 0 | CZ92: =CashFlow!CZ35 -> 0 | DA92: =CashFlow!DA35 -> 0 | DB92: =CashFlow!DB35 -> 0 | DC92: =CashFlow!DC35 -> 0 | DD92: =CashFlow!DD35 -> 0 | DE92: =CashFlow!DE35 -> 0 | DF92: =CashFlow!DF35 -> 0 | DG92: =CashFlow!DG35 -> 0 | DH92: =CashFlow!DH35 -> 0 | DI92: =CashFlow!DI35 -> 0 | DJ92: =CashFlow!DJ35 -> 0 | DK92: =CashFlow!DK35 -> 0 | DL92: =CashFlow!DL35 -> 0 | DM92: =CashFlow!DM35 -> 0 | DN92: =CashFlow!DN35 -> 0 | DO92: =CashFlow!DO35 -> 0 | DP92: =CashFlow!DP35 -> 0 | DQ92: =CashFlow!DQ35 -> 0 | DR92: =CashFlow!DR35 -> 0 | DS92: =CashFlow!DS35 -> 0 | DT92: =CashFlow!DT35 -> 0 | DU92: =CashFlow!DU35 -> 0 | DV92: =CashFlow!DV35 -> 0 | DW92: =CashFlow!DW35 -> 0 | DX92: =CashFlow!DX35 -> 0 | DY92: =CashFlow!DY35 -> 0 | DZ92: =CashFlow!DZ35 -> 0 | EA92: =CashFlow!EA35 -> 0 | EB92: =CashFlow!EB35 -> 0 | EC92: =CashFlow!EC35 -> 0 | ED92: =CashFlow!ED35 -> 0 | EE92: =CashFlow!EE35 -> 0 | EF92: =CashFlow!EF35 -> 0 | EG92: =CashFlow!EG35 -> 0 | EH92: =CashFlow!EH35 -> 0 | EI92: =CashFlow!EI35 -> 0 | EJ92: =CashFlow!EJ35 -> 0 | EK92: =CashFlow!EK35 -> 0 | EL92: =CashFlow!EL35 -> 0 | EM92: =CashFlow!EM35 -> 0 | EN92: =CashFlow!EN35 -> 0 | EO92: =CashFlow!EO35 -> 0 | EP92: =CashFlow!EP35 -> 0 | EQ92: =CashFlow!EQ35 -> 0 | ER92: =CashFlow!ER35 -> 0 | ES92: =CashFlow!ES35 -> 0 | ET92: =CashFlow!ET35 -> 0 | EU92: =CashFlow!EU35 -> 0 | EV92: =CashFlow!EV35 -> 0 | EW92: =CashFlow!EW35 -> 0 | EX92: =CashFlow!EX35 -> 0 | EY92: =CashFlow!EY35 -> 0 | EZ92: =CashFlow!EZ35 -> 0 | FA92: =CashFlow!FA35 -> 0 | FB92: =CashFlow!FB35 -> 0 | FC92: =CashFlow!FC35 -> 0 | FD92: =CashFlow!FD35 -> 0 | FE92: =CashFlow!FE35 -> 0 | FF92: =CashFlow!FF35 -> 0
